{"text_format":"1","workbook":"xlsx","n_sheets":7,"sheets":["管理シート","注意事項","リスクアセスメントシート","実施レポート","結果一覧","Select_List","Substance_List"],"not_rendered":{"charts":0,"images":23,"macros":1,"external_links":0,"defined_names":13,"comments":0,"pivot_tables":0},"unopened":[],"bounds":{"document_bytes":16777216,"sheet_cells":100000,"rows_first":2000,"rows_last":500,"rows_between":2000,"halvings":0,"cell_chars":16384,"cell_head_chars":4096},"cells_cut":0,"cells_raw":0,"read":"whole","date_system":"1900"}

{"sheet":"管理シート","index":0,"n_rows":37,"n_cols":17,"rows_kept":37,"cut":false,"hidden":true,"merged":[[5,15,5,16],[5,0,5,9],[5,10,5,13],[4,0,4,13]]}
[]
[]
[]
[]
["基本情報"]
["商品情報",null,null,null,null,null,null,null,null,null,"物質情報",null,null,null,null,"法規制"]
[]
["No.","タイトル","商品名等","メーカー","使用場所","用途・作業内容","使用量／日","ラベル","SDS","備考","物質名","CAS番号","含有率\n[%]","沸点\n[℃]",null,"法令上の分類","RA実施状況"]
[1,null,"○○洗浄剤","○○商会","作業室A","洗浄作業","200mL","入手済","入手済",null,"アセトン","67-64-1",0.995,56.5,null,"第２種有機溶剤","未実施"]
[2,null,"ミネラルスピリット","○○商会","作業室A","洗浄作業","1L","入手済","入手済",null,"トリメチルベンゼン"," 25551-13-7","5～20%"," 165～176",null,"通知対象物質"]
[3,null,"ミネラルスピリット","○○商会","作業室A","洗浄作業","1L","入手済","入手済",null,"キシレン","1330-20-7","1～5%","138～144",null,"第２種有機溶剤"]
[4,null,"ミネラルスピリット","○○商会","作業室A","洗浄作業","1L","入手済","入手済",null,"ノナン"," 111-84-2","3～6%",151,null,"通知対象物質"]
[5,null,"ラッカーシンナー","○○商会","作業室B","製品の塗装作業","1L","入手済","入手済",null,"トルエン","108-88-3","70～80",111,null,"第２種有機溶剤"]
[6,null,"ラッカーシンナー","○○商会","作業室B","製品の塗装作業","1L","入手済","入手済",null,"酢酸エチル","141-78-6","10～20",77,null,"第２種有機溶剤"]
[7,null,"・・・"]
[8,null,"・・・"]
[9]
[10]
[11]
[12]
[13]
[14]
[15]
[16]
[17]
[18]
[19]
[20]
[21]
[22]
[23]
[24]
[25]
[26]
[27]
[28]
[29]

{"sheet":"注意事項","index":1,"n_rows":17,"n_cols":4,"rows_kept":17,"cut":false,"hidden":false,"merged":[[13,2,13,3],[2,2,2,3],[3,2,3,3],[6,2,6,3],[7,2,7,3],[8,2,8,3],[11,2,11,3],[10,2,10,3]]}
[]
[]
[null,null,"○注意事項"]
[null,null,"・本ツールは自動操作を行うプログラム（マクロ機能）を使用しています。起動時に[セキュリティーの警告 無効にされました]との表示が出た場合には、右横にある[コンテンツの有効化]を押してください。"]
[]
[]
[null,null,"・EXCELは「2010」以降のバージョンをお使い下さい。（バージョンが古いEXCELの場合、誤作動を起こす場合があります）"]
[null,null,"・ご利用の際には、必ず「CREATE-SIMPLEを用いた化学物質のリスクアセスメントマニュアル」をご覧ください。"]
[null,null,"・自動入力されるばく露限界値、ＧＨＳ分類情報等の情報は、2018年3月時点の情報です。最新の情報はＳＤＳ等を用いて確認してください。"]
[]
[null,null,"○免責事項"]
[null,null,"　厚生労働省の委託に基づきみずほ情報総研（株）が作成したものであり、本ツールの著作権は厚生労働省が有しております。使用者は、著作権法及び関連法規を遵守するとともに、営利目的の個人、法人、団体等が、利益を得る目的で本ツールを配布、または他の製品と合わせて配布することは禁止します。\n　また、本ツールを使用して得られた結果について、著作権者は利用者に対していかなる保証をするものでもありません。利用者は自己の責任においてご利用ください。\nなお、使用に際して不具合等がございましたら、厚生労働省労働基準局安全衛生部化学物質対策課までお寄せください。"]
[]
[null,null,"○更新履歴"]
[null,null,"・２０１８年３月","CREATE-SIMPLE ver 1.0公開"]
[null,null,"・２０１８年９月","一部不具合を修正（ばく露限界値の単位の標記誤りを修正（mg/cm3→mg/m3）、結果一覧のオートフィルタ―の保護を解除、GHSの選択肢に「区分外」を追加）"]
[null,null,"・２０１８年９月","物質のデータベース更新（最新のGHS分類結果反映、金属塩（ニッケル化合物等）を追加"]

{"sheet":"リスクアセスメントシート","index":2,"n_rows":50,"n_cols":41,"rows_kept":50,"cut":false,"hidden":false,"merged":[[27,11,27,14],[23,7,23,10],[35,5,35,6],[36,2,36,6],[1,1,1,14],[22,7,22,10],[20,7,20,10],[7,3,7,14],[8,3,8,14],[9,3,9,14],[21,7,21,10],[7,1,7,2],[8,1,8,2],[9,1,9,2],[10,1,10,2],[22,5,22,6],[28,1,28,4],[24,5,24,6],[25,5,25,6],[26,1,26,4],[26,5,26,6],[28,5,28,6],[27,5,27,6],[42,9,42,13],[42,2,42,6],[35,9,35,13],[28,7,28,14],[26,11,26,14],[34,10,34,12],[32,9,32,13],[29,13,29,14],[31,9,31,13],[27,7,27,10],[32,2,32,6],[34,2,34,6],[38,2,38,6],[38,9,38,13],[36,9,37,13],[27,1,27,4],[49,2,49,3],[48,2,48,3],[49,4,49,6],[48,4,48,6],[46,9,46,13],[45,9,45,13],[40,9,41,13],[43,9,44,13],[17,7,17,10],[10,3,10,9],[16,7,16,10],[15,7,15,10],[22,11,22,14],[17,13,17,14],[20,11,20,14],[15,11,15,12],[16,11,16,12],[17,11,17,12],[24,11,24,14],[40,2,40,6],[44,2,44,6],[24,7,24,10],[25,7,25,10],[26,7,26,10],[2,12,2,13],[2,10,2,11],[3,12,3,13],[25,11,25,14],[23,11,23,14],[14,13,14,14],[11,3,11,9],[23,1,23,4],[24,1,24,4],[25,1,25,4],[23,5,23,6],[21,11,21,14],[11,10,11,11],[21,1,21,4],[22,1,22,4],[21,5,21,6],[3,10,3,11],[4,12,4,13],[15,13,15,14],[16,13,16,14],[17,5,17,6],[10,10,10,11],[11,1,11,2],[20,1,20,4],[20,5,20,6],[15,1,15,4],[16,1,16,4],[17,1,17,4]]}
[null,null,null,null,null,null,null,null,null,null,null,null,null,null,null,null,null,null,null,null,null,null,null,null,null,null,null,null,null,null,null,null,null,null,null,null,null,null,null,null,500]
[null,"CREATE-SIMPLE ver 1.1\n- サービス業など幅広い職場にむけた簡単な化学物質リスクアセスメントツール -"]
[null," - 説明 -",null,null,null,null,null,null,null,null,"No：",null,2,null,null,null,"←「結果一覧」のNo.に対応"]
[null,"●　リスクアセスメントとは、労働者の安全や健康への影響について評価をすることです。",null,null,null,null,null,null,null,null,"実施日：",null,"2018-09-03"]
[null,"●　CREATE-SIMPLEでは、労働者の健康への影響について評価し、対策を検討します。",null,null,null,null,null,null,null,null,null,"実施者："]
[null,"●　SDSを確認して対象物質を決定し、以下のSTEP1から順番に入力してください。"]
[null,"【STEP 1】 対象物質の基本情報を入力しましょう。"]
[null,"タイトル"]
[null,"製品名等"]
[null,"作業内容等"]
[null,"CAS番号"]
[null,"物質名",null,null,null,null,null,null,null,null,"　　性状",null,null,null,null,1]
[]
[null,"【STEP 2】 ばく露限界値及びGHS分類情報を入力してください。",null,null,null,null,null,null,null,null,"※自動入力される情報は、2018年3月時点の情報です。"]
[null,"○ばく露限界値",null,null,null,null,null,null,null,null,null,null,null,null,null,null,"↓短時間影響"]
[null,"日本産業衛生学会 許容濃度",null,null,null,null,{"$f":"IF($P$12=\"\",\"\",IF($P$12=1,\"ppm\",\"mg/m3\"))","v":"ppm"},"ACGIH TLV TWA",null,null,null,null,null,{"$f":"IF($P$12=\"\",\"\",IF($P$12=1,\"ppm\",\"mg/m3\"))","v":"ppm"},null,null,{"$f":"IF(OR(F17<>\"\",L18<>\"\",F28=\"区分1\"),1,0)","v":0}]
[null,"日本産業衛生学会 最大許容濃度",null,null,null,null,{"$f":"IF($P$12=\"\",\"\",IF($P$12=1,\"ppm\",\"mg/m3\"))","v":"ppm"},"ACGIH TLV STEL",null,null,null,null,null,{"$f":"IF($P$12=\"\",\"\",IF($P$12=1,\"ppm\",\"mg/m3\"))","v":"ppm"}]
[null,"「皮」または「Skin」の表示",null,null,null,null,null,"ACGIH TLV C",null,null,null,null,null,{"$f":"IF($P$12=\"\",\"\",IF($P$12=1,\"ppm\",\"mg/m3\"))","v":"ppm"}]
[]
[null,"○GHS分類情報"]
[null,"急性毒性（経口）",null,null,null,null,null,"生殖細胞変異原性"]
[null,"急性毒性（経皮）",null,null,null,null,null,"発がん性"]
[null,"急性毒性（吸入：ガス）",null,null,null,null,null,"生殖毒性"]
[null,"急性毒性（吸入：蒸気）",null,null,null,null,null,"特定標的臓器毒性（単回暴露）※皮膚以外"]
[null,"急性毒性（吸入：粉塵、ミスト）",null,null,null,null,null,"特定標的臓器毒性（単回暴露）※皮膚のみ"]
[null,"皮膚腐食性／刺激性",null,null,null,null,null,"特定標的臓器毒性（反復暴露）※皮膚以外"]
[null,"眼に対する重篤な損傷性／眼刺激性",null,null,null,null,null,"特定標的臓器毒性（反復暴露）※皮膚のみ"]
[null,"呼吸器感作性",null,null,null,null,null,"吸引性呼吸器有害性"]
[null,"皮膚感作性",null,null,null,null,null,"※区分2Aなど、区分2が細区分されている場合にはは区分2として扱う。"]
[]
[null,"【STEP 3】 以下の質問に答えましょう。",null,null,null,null,null,null,"【STEP 4】 リスクを判定しましょう。"]
[null,{"$f":"IF(H33=\"液体\",\"Q.1 揮発性（沸点）はどのくらいですか。\",\"Q.1 どのような形状ですか。\")","v":"Q.1 揮発性（沸点）はどのくらいですか。"},null,null,null,{"$f":"IF(H33=\"液体\",\"取扱温度が室温以外→\",\"\")","v":"取扱温度が室温以外→"},null,null,null," リスクの判定結果"]
[null,"必須",null,null,null,null,null,{"$f":"IF($P$12=\"\",\"\",IF($P$12=1,\"液体\",\"粉体\"))","v":"液体"},null,"有害性の程度"]
[null,"Q.2 製品の取扱量はどのくらいですか。",null,null,null,null,null,null,null,"目標管理濃度：",null,null,null,{"$f":"IF($P$12=\"\",\"\",IF($P$12=1,\"ppm\",\"mg/m3\"))","v":"ppm"}]
[null,"必須",null,null,null,null,null,{"$f":"IF($P$12=\"\",\"\",IF($P$12=1,\"L\",\"g\"))","v":"L"},null,"ばく露限界値：",null,null,null,{"$f":"IF($P$12=\"\",\"\",IF($P$12=1,\"ppm\",\"mg/m3\"))","v":"ppm"}]
[null,"Q.3 対象物質の含有率はどのくらいですか。",null,null,null,{"$f":"IF(H33=\"液体\",\"　　希釈がある場合→\",\"\")","v":"　　希釈がある場合→"},null,null,null,"※両方の値がある場合にはばく露限界値を基準とします。"]
[null,"必須",null,null,null,null,null,null,null,"×"]
[null,"Q.4 スプレー作業など空気中に飛散しやすい作業を行っていますか。"]
[null,"必須",null,null,null,null,null,null,null,"ばく露の程度"]
[null,"Q.5 化学物質を塗布する合計面積は1m2以上ですか。",null,null,null,null,null,null,null,"推定ばく露濃度：",null,null,null,{"$f":"IF($P$12=\"\",\"\",IF($P$12=1,\"ppm\",\"mg/m3\"))","v":"ppm"}]
[null,{"$f":"IF($P$12=\"\",\"\",IF($P$12=1,\"必須\",\"不要\"))","v":"必須"},null,null,null,null,null,null,null,"="]
[null,"Q.6 作業場の換気状況はどのくらいですか。"]
[null,"必須",null,null,null,null,null,null,null,"リスクレベル"]
[null,"Q.7 １日あたりの化学物質の作業時間はどのくらいですか。"]
[null,"必須"]
[null,"Q.8 化学物質の取り扱い頻度はどのくらいですか。"]
[null,"必須",null,"⇒","必須",null,{"$f":"IF($C$47=\"\",\"\",IF($C$47=\"週1回以上\",\"日／週\",\"日／月\"))","v":""}]
[null,"Q.9 どのような呼吸用保護具を装着していますか。【オプション】"]
[null,null,"種類",null,"フィットテストの有無"]
[null,"任意",null,null,null,null,null,{"$f":"IF($P$12=\"\",\"\",IF($P$12=1,\"防毒\",\"防じん\"))","v":"防毒"}]

{"sheet":"実施レポート","index":3,"n_rows":38,"n_cols":16,"rows_kept":38,"cut":false,"hidden":false,"merged":[[24,10,24,13],[27,10,27,13],[22,7,22,9],[22,4,22,6],[20,10,20,13],[21,10,21,13],[22,10,22,13],[26,10,26,13],[25,10,25,11],[18,7,18,9],[27,4,27,6],[27,7,27,9],[23,4,23,6],[23,7,23,9],[25,8,25,9],[25,5,25,6],[20,7,20,9],[24,7,24,9],[26,7,26,9],[26,4,26,6],[9,1,9,2],[19,7,19,9],[17,1,28,1],[23,2,23,3],[25,2,25,3],[20,2,20,3],[27,2,27,3],[26,2,26,3],[24,4,24,6],[11,3,11,13],[13,2,13,3],[19,2,19,3],[16,7,16,9],[17,7,17,9],[17,2,17,3],[11,1,11,2],[14,1,16,1],[38,1,38,13],[28,2,28,3],[35,1,35,13],[29,10,31,13],[28,10,28,13],[31,4,31,6],[31,7,31,9],[29,4,29,6],[29,7,29,9],[29,2,29,3],[29,1,31,1],[30,2,30,3],[31,2,31,3],[30,7,30,9],[30,4,30,6],[1,1,1,13],[7,3,7,13],[7,1,7,2],[14,10,17,13],[3,12,3,13],[16,4,16,6],[13,4,13,6],[13,7,13,9],[17,4,17,6],[15,4,15,6],[15,7,15,9],[8,1,8,2],[4,12,4,13],[15,2,15,3],[16,2,16,3],[9,3,9,13],[2,12,2,13],[24,2,24,3],[14,2,14,3],[18,4,18,6],[19,4,19,6],[20,4,20,6],[21,4,21,6],[10,1,10,2],[18,2,18,3],[23,10,23,13],[21,7,21,9],[8,3,8,13],[10,3,10,13],[13,10,13,13],[18,10,18,13],[19,10,19,13]]}
[]
[null,"リスクアセスメント実施レポート"]
[null," - 説明 -",null,null,null,null,null,null,null,null,null,"No："]
[null,"●　リスクアセスメントシートで実施した結果が表示されます。",null,null,null,null,null,null,null,null,null,"実施日："]
[null,"●　このシートでリスク低減措置の内容を検討し、労働者に周知を行いましょう。",null,null,null,null,null,null,null,null,null,"実施者："]
[]
[]
[null,"タイトル"]
[null,"製品名等"]
[null,"作業内容等"]
[null,"CAS番号"]
[null,"物質名"]
[]
[null,null,"項目",null,"現状",null,null,"対策後",null,null,"リスク低減対策の検討"]
[null,"有害性",{"$f":"\"目標管理濃度\"&IF($E$18=\"液体\",\"[ppm]\",IF($E$18=\"粉体\",\"[mg/m3]\",\"\"))","v":"目標管理濃度"},null,null,null,null,null,null,null,"※以下のQ1～Q9の選択肢を変更し、\n【再度リスクを判定】をクリックすることによって、\nリスク低減対策後の結果が表示されます。",null,null,null,null,"↓作業時間・頻度の補正を行うかどうかのフラグ（1であれば行わない）"]
[null,null,{"$f":"\"ばく露限界値\"&IF($E$18=\"液体\",\"[ppm]\",IF($E$18=\"粉体\",\"[g/m3]\",\"\"))","v":"ばく露限界値"},null,null,null,null,null,null,null,null,null,null,null,null,1]
[null,null,"目や皮膚に有害な影響"]
[null,"ばく露","性状"]
[null,null,"Q１.揮発性・飛散性"]
[null,null,"Q２.取扱量",null,null,null,null,null,null,null,null,null,null,null,null,{"$f":"IF($E$18=\"\",\"\",IF($E$18=\"液体\",\"L\",\"g\"))","v":""}]
[null,null,"Q３.含有率"]
[null,null,"Q４.スプレー作業の有無"]
[null,null,"Q５.塗布面積1m2超"]
[null,null,"Q6.換気レベル"]
[null,null,"Q7.作業時間"]
[null,null,"Q8.作業頻度",null,null,null,null,null,null,null,null,null,null,{"$f":"IF($K$26=\"\",\"\",IF($K$26=\"週1回以上\",\"日／週\",\"日／月\"))","v":""}]
[null,null,"Q９.呼吸用保護具[任意]",null,null,null,null,null,null,null,null,null,null,null,null,{"$f":"IF($E$18=\"\",\"\",IF($E$18=\"液体\",\"防毒\",\"防じん\"))","v":""}]
[null,null,"　　　フィットテストの方法"]
[null,null,{"$f":"\"推定ばく露濃度\"&IF($E$18=\"液体\",\"[ppm]\",IF($E$18=\"粉体\",\"[mg/m3]\",\"\"))","v":"推定ばく露濃度"}]
[null,"リスク","リスクレベル"]
[null,null,"リスクレベル（吸入）の説明"]
[null,null,"リスクレベル（接触）の説明"]
[null,"※リスク判定に用いたリスク低減対策よりも法令事項の方が厳しい措置である場合は法令が優先されます"]
[]
[null,"■　（自由記述）検討したリスク低減措置の内容、実施時期等"]
[]
[]
[null,"■　（自由記述）備考"]

{"sheet":"結果一覧","index":4,"n_rows":9,"n_cols":78,"rows_kept":9,"cut":false,"hidden":false,"merged":[[6,61,7,61],[6,72,6,74],[6,0,6,7],[6,28,7,28],[6,29,7,29],[6,30,7,30],[6,31,7,31],[6,13,7,13],[6,14,7,14],[6,15,7,15],[6,23,7,23],[6,24,7,24],[6,25,7,25],[6,26,7,26],[6,27,7,27],[6,18,7,18],[6,8,6,11],[6,12,7,12],[5,61,5,77],[6,70,6,71],[6,75,6,77],[6,39,7,39],[6,40,7,40],[6,41,7,41],[6,42,7,42],[6,43,7,43],[6,44,7,44],[6,48,6,49],[6,67,7,67],[6,68,6,69],[6,45,7,45],[6,46,6,47],[5,56,5,60],[5,34,5,38],[5,39,5,55],[5,19,5,33],[6,21,7,21],[6,22,7,22],[6,53,6,55],[6,19,7,19],[6,20,7,20],[6,34,7,36],[6,56,7,58],[6,59,7,59],[6,60,7,60],[5,13,5,18],[6,32,7,32],[6,33,7,33],[6,50,6,52],[6,37,7,37],[6,16,7,16],[6,17,7,17],[6,64,7,64],[6,65,7,65],[6,66,7,66],[6,62,7,62],[6,63,7,63]]}
[1,2,3,4,5,6,7,8,9,10,11,12,13,14,15,16,17,18,19,20,21,22,23,24,25,26,27,28,29,30,31,32,33,34,35,36,37,38,39,40,41,42,43,44,45,46,47,48,49,50,51,52,53,54,55,56,57,58,59,60,61,62,63,64,65,66,67,68,69,70,71,72,73,74,75,76,77,78]
[null,"出力する結果をリストから出力後「リスクアセスメントシートに出力」または「実施レポートに出力」のボタンを押してください。"]
[]
[]
[]
[null,null,null,null,null,null,null,null,null,null,null,null,null,"ばく露限界値",null,null,null,null,null,"GHS分類情報（人健康有害性）",null,null,null,null,null,null,null,null,null,null,null,null,null,null,"有害性の程度の判定結果（対策前）",null,null,null,null,"対策前",null,null,null,null,null,null,null,null,null,null,null,null,null,null,null,null,"有害性の程度の判定結果（対策後）",null,null,null,null,"対策後"]
["基本情報",null,null,null,null,null,null,null,"リスクアセスメント結果",null,null,null,"性状","日本産業衛生学会　許容濃度","日本産業衛生学会　最大許容濃度","ACGIH TLV　TWA","ACGIH TLV　STEL","ACGIH TLV　C","「皮」または「Skin」の表示","急性毒性（経口）","急性毒性（経皮）","急性毒性（吸入：ガス）","急性毒性（吸入：蒸気）","急性毒性（吸入：粉塵、ミスト）","皮膚腐食性／刺激性","眼に対する重篤な損傷性／眼刺激性","呼吸器感作性","皮膚感作性","生殖細胞変異原性","発がん性","生殖毒性","特定標的臓器毒性（単回暴露）\n標的臓器に皮膚が含まれる場合には（皮膚）と表示","特定標的臓器毒性（反復暴露）\n標的臓器に皮膚が含まれる場合には（皮膚）と表示","吸引性呼吸器有害性","管理目標濃度",null,null,"ばく露限界値","目や皮膚に有害な影響","Q1","Q2","Q3","Q4","Q5","Q6","Q7","Q8",null,"Q9",null,"推定ばく露濃度",null,null,"リスクレベル",null,null,"管理目標濃度",null,null,"ばく露限界値","目や皮膚に有害な影響","Q1","Q2","Q3","Q4","Q5","Q6","Q7","Q8",null,"Q9",null,"推定ばく露濃度",null,null,"リスクレベル"]
["No","実施日","実施者名","タイトル","商品名等","作業内容等","ＣＡＳ","物質名","対策前","対策後","検討したリスク低減措置内容等","備考",null,null,null,null,null,null,null,null,null,null,null,null,null,null,null,null,null,null,null,null,null,null,null,null,null,null,null,null,null,null,null,null,null,null,"週or月","単位","種類","フィットテストの有無",null,null,null,"リスクレベル","判定","判定\n（目や皮膚）",null,null,null,null,null,null,null,null,null,null,null,null,"頻度","単位","種類","フィットテストの有無",null,null,null,"リスクレベル","判定","判定\n（目や皮膚）"]
[1,"2018-09-03","みずほ","（リスクアセスメントの例）ミネラルスピリットを用いた洗浄作業","ミネラルスピリット","A室において、ミネラルスピリット（トリメチルベンゼン20%含有）を用いて○○の洗浄を行う作業","25551-13-7","トリメチルベンゼン","Ⅱ & Ｓ","Ⅰ & Ｓ","・局所排気装置（外付け式）を導入すると、リスクレベルがⅠになることが確認できた。局所排気装置のメーカーに問い合わせの上、コスト等を踏まえ、局所排気装置の導入に検討する。\n・手袋、保護メガネの着用を徹底する。","・局所排気装置の導入にあたっては、検知管による測定を行い、実際のばく露濃度を確認する。","液体",null,null,25,null,null,null,"区分外","分類できない","分類対象外","分類できない","分類できない","区分2","区分2","分類できない","分類できない","分類できない","分類できない","分類できない","区分3","区分1","区分1",0.05,"～ ",0.5,25,"Ｓ","低揮発性（沸点：150℃以上）","少量 （100mL以上～1000mL未満）","5%以上～25%未満","いいえ","いいえ","換気レベルC（工業的な全体換気）","6時間超～7時間以下",3,"日／週",null,null,0.3,"～",3,"Ⅱ & Ｓ","良好です。換気、機器や器具、作業手順などの管理に努めましょう。","目や皮膚に有害な影響があります。保護メガネ、手袋等を着用しましょう。",0.05,"～ ",0.5,25,"Ｓ","低揮発性（沸点：150℃以上）","少量 （100mL以上～1000mL未満）","5%以上～25%未満","いいえ","いいえ","換気レベルD（外付け式局所排気装置）","1時間超～2時間以下",3,"日／週",null,null,0.03,"～",0.3,"Ⅰ & Ｓ","十分に良好です。","目や皮膚に有害な影響があります。保護メガネ、手袋等を着用しましょう。"]

{"sheet":"Select_List","index":5,"n_rows":11,"n_cols":23,"rows_kept":11,"cut":false,"hidden":true,"merged":[[0,16,0,18],[0,6,0,7],[0,8,0,9],[0,2,0,5]]}
[null,"「皮」または「Skin」の表示","GHS区分",null,null,null,"Q1",null,"Q2",null,"Q3","Q4","Q5","Q6","Q7","Q8","Q9",null,null,"リスクレベル","判定","リスクレベル","判定"]
["液体","あり","区分1","区分1","区分1","区分1","高揮発性（沸点：50℃未満）","高飛散性（微細な軽い粉体）","中量 （1L以上）","中量 （1kg以上）","25%以上","はい","はい","換気レベルA（特に換気のない部屋）","8時間超","週1回以上","防毒マスク（半面型）","防じんマスク（使い捨て式）","なし","Ⅰ","十分に良好です。"," & Ｓ","目や皮膚に有害な影響があります。保護メガネ、手袋等を着用しましょう。"]
["粉体","－","区分2","区分2","区分2","区分外","中揮発性（沸点：50℃以上～150℃未満）","中飛散性（結晶状・顆粒状）","少量 （100mL以上～1000mL未満）","少量 （100g以上～1000g未満）","5%以上～25%未満","いいえ","いいえ","換気レベルB（全体換気）","7時間超～8時間以下","週1回未満","防毒マスク（全面型）","防じんマスク（半面型）","簡易法（フィットチェック）","Ⅱ","良好です。換気、機器や器具、作業手順などの管理に努めましょう。"]
[null,null,"区分3","区分3","区分外","分類できない","低揮発性（沸点：150℃以上）","低飛散性（壊れないペレット）","微量 （10mL以上～100mL未満）","微量 （10g以上～100g未満）","1%以上～5%未満",null,null,"換気レベルC（工業的な全体換気）","6時間超～7時間以下",null,null,"防じんマスク（全面型）","フィットテスト","Ⅲ","リスクを下げる対策を実施しましょう｡"]
[null,null,"区分4","区分外","分類できない","分類対象外","わからない",null,"極微量（10mL未満）","極微量（10g未満）","1%未満",null,null,"換気レベルD（外付け式局所排気装置）","5時間超～6時間以下",null,null,"電動ファン付き呼吸用保護具",null,"Ⅳ","至急リスクを下げる対策を実施しましょう｡"]
[null,null,"区分外","分類できない","分類対象外",null,null,null,null,null,null,null,null,"換気レベルE（囲い式局所排気装置）","4時間超～5時間以下"]
[null,null,"分類できない","分類対象外",null,null,null,null,null,null,null,null,null,"換気レベルF（密閉容器内での取扱い）","3時間超～4時間以下"]
[null,null,"分類対象外",null,null,null,null,null,null,null,null,null,null,null,"2時間超～3時間以下"]
[null,null,null,null,null,null,null,null,null,null,null,null,null,null,"1時間超～2時間以下"]
[null,null,null,null,null,null,null,null,null,null,null,null,null,null,"30分超～1時間以下"]
[null,null,null,null,null,null,null,null,null,null,null,null,null,null,"30分以下"]

{"sheet":"Substance_List","index":6,"n_rows":966,"n_cols":40,"rows_kept":966,"cut":false,"hidden":true,"merged":[[1,0,2,1],[1,2,2,3],[1,4,2,4],[1,38,2,38],[1,39,2,39],[2,16,2,17],[2,23,2,37],[1,5,1,11],[1,12,1,22],[1,23,1,37],[2,5,2,6],[2,7,2,8],[2,12,2,13],[2,14,2,15]]}
[null,null,1,2,3,4,5,6,7,8,9,10,11,12,13,14,15,16,17,18,19,20,21,22,23,24,25,26,27,28,29,30,31,32,33,34,35,36,37,38]
["番号等",null,"CAS番号",null,"物質名称","日本産業衛生学会",null,null,null,null,null,null,"ACGIH TLV",null,null,null,null,null,null,null,null,null,null,"GHS分類情報",null,null,null,null,null,null,null,null,null,null,null,null,null,null,"物化性状\n（常温）","物化性状"]
[null,null,null,null,null,"許容濃度",null,"最大許容濃度",null,null,null,null,"TWA",null,"STEL",null,"C",null,null,null,null,null,null,"人健康有害性"]
["番号",null,"CAS番号","備考","表示・通知義務対象物質","ppm","mg/m3","ppm","mg/m3","備考","経皮吸収","提案年度","ppm","mg/m3","ppm","mg/m3","ppm","mg/m3","備考","分子量","Skin","ドキュメンテーション採用年","備考","急性毒性（経口）","急性毒性（経皮）","急性毒性（吸入：ガス）","急性毒性（吸入：蒸気）","急性毒性（吸入：粉塵、ミスト）","皮膚腐食性／刺激性","眼に対する重篤な損傷性／眼刺激性","呼吸器感作性","皮膚感作性","生殖細胞変異原性","発がん性","生殖毒性","特定標的臓器毒性（単回暴露）","特定標的臓器毒性（反復暴露）","吸引性呼吸器有害性","性状","沸点"]
[1,"別表第９","79-06-1",null,"アクリルアミド",null,0.1,null,null,null,"皮","2004\r\n",null,0.03,"",null,null,null,null,71.08,"Skin",2004,null,"区分3","区分3","分類対象外","分類対象外","分類できない","区分外","区分2","分類できない","区分1","区分1","区分1","区分1","区分1(神経系)","区分1(神経系､眼､血液系､生殖器(男性))","分類できない","固体",192.6]
[2,"別表第９","79-10-7",null,"アクリル酸","","","","",null,"","",2,null,"",null,null,null,null,72.06,"Skin",1986,null,"区分4","区分3","分類対象外","区分3","区分4","区分1","区分1","分類できない","区分外","分類できない","分類できない","分類できない","区分1(呼吸器､腎臓)､区分2(肝臓)","区分1(呼吸器)","分類できない","液体",141]
[3,"別表第９","140-88-5",null,"アクリル酸エチル","","","","",null,"","",5,null,15,null,null,null,null,100.11,"",1986,null,"区分4","区分4","分類対象外","区分3","分類できない","区分2","区分2","分類できない","区分1","分類できない","分類できない","分類できない","区分1(呼吸器)､区分3(麻酔作用)","区分1(神経系､呼吸器)","分類できない","液体",99.4]
[4,"別表第９","141-32-2",null,"アクリル酸ノルマル－ブチル","","","","",null,"","",2,null,"",null,null,null,null,128.16999999999999,"",1996,null,"区分外","区分4","分類対象外","区分3","分類できない","区分2","区分2","分類できない ","区分1","分類できない","分類できない","分類できない","区分1(呼吸器)","区分1(呼吸器)","分類できない","液体",146]
[5,"別表第９","999-61-1",null,"アクリル酸２－ヒドロキシプロピル","","","","",null,"","",0.5,null,"",null,null,null,null,130.13999999999999,"",1997,null,"区分4","区分2","分類対象外","分類できない","分類できない","区分1","区分1","分類できない","区分1","分類できない","分類できない","分類できない","区分3(気道刺激性)","区分1(呼吸器)","分類できない","液体",191]
[6,"別表第９","96-33-3",null,"アクリル酸メチル",2,7,null,null,null,null,"2004",2,null,"",null,null,null,null,86.09,"Skin",1997,null,"区分3","区分4","分類対象外","区分3","分類できない","区分1","区分1","分類できない","区分1","区分外","分類できない","分類できない","区分1(全身毒性)､区分3(気道刺激性)","区分1(上気道)､区分2(腎臓)","分類できない","液体",80.7]
[7,"別表第９","107-13-1",null,"アクリロニトリル",2,4.3,null,null,null,"皮","1988",2,null,"",null,null,null,null,53.05,"Skin",2015,null,"区分3","区分2","分類対象外","区分2","分類できない","区分2","区分1","分類できない","区分1","分類できない","区分1","区分1","区分1(神経系､肝臓､腎臓､血液系)､区分3(気道刺激性､麻酔作用)","区分1(神経系､呼吸器､血液系､肝臓､腎臓､精巣)","分類できない","液体",77.3]
[8,"別表第９","107-02-8",null,"アクロレイン",0.1,0.23,null,null,null,null,"1973","",null,null,null,0.1,null,null,56.06,"Skin",1995,null,"区分2","区分3","分類対象外","区分1","分類できない","区分1","区分1","分類できない","分類できない","分類できない","分類できない","区分外","区分1(呼吸器､中枢神経系､肝臓)､区分3(麻酔作用)","区分1(呼吸器)","分類できない","液体",53]
[9,"別表第９","26628-22-8",null,"アジ化ナトリウム","","","","",null,"","","",null,"",null,null,0.28999999999999998,null,65.02,"",1992,null,"区分2","区分1","分類対象外","分類できない","分類できない","区分1","区分1","分類できない","分類できない","分類できない","区分外","分類できない","区分1(心血管系､肺､中枢神経系､全身毒性)","区分1(中枢神経系､心血管系)\n区分2(肺)","分類できない","固体",""]
[10,"別表第９","124-04-9",null,"アジピン酸","","","","",null,"","",null,5,"",null,null,null,null,146.13999999999999,"",1990,null,"区分外","区分外","分類対象外","分類対象外","区分外","区分外","区分2","分類できない","分類できない","分類できない","分類できない","分類できない","区分3(気道刺激性)","分類できない","分類できない","固体",337.5]
[11,"別表第９","111-69-3",null,"アジポニトリル","","","","",null,"","",2,null,"",null,null,null,null,108.1,"Skin",1990,null,"区分3","区分3","分類対象外","分類できない","区分4","区分外","区分2","分類できない","区分外","区分外","区分外","区分外","区分1(神経系)","区分2(血液)","分類できない","液体",295]
["11-2","別表第９","542-56-3",null,"亜硝酸イソブチル","","","","",null,"","","",null,"",null,1,null,null,103.12,"",2000,null,"区分4","分類できない","分類対象外","区分3","分類できない","分類できない","分類できない","分類できない","分類できない","区分2","区分2","分類できない","区分1(中枢神経系､呼吸器､心血管系､血液系)","区分1(免疫系)､区分2(呼吸器､血液系)","分類できない","液体",66]
["11-3","別表第９","8052-42-4","30年7月追加物質","アスファルト",null,null,null,null,null,null,null,null,"0.5",null,null,null,null,"アスファルト（石油）\nヒューム（ベンゼン抽出\nまたは同等の方法で分\n析されるエアロゾルと\nして）",null,null,"1999",null,"分類できない","分類できない","分類対象外","分類対象外","分類できない","分類できない","区分2","分類できない","分類できない","区分2","区分2","分類できない","区分3(気道刺激性)","区分1(呼吸器系)","分類できない","固体"]
["11-4","別表第９","123-54-6",null,"アセチルアセトン","","","","",null,"","",25,null,"",null,null,null,null,100.12,"Skin",2010,null,"区分4","区分3","分類対象外","区分3","分類できない","区分外","区分2","分類できない","分類できない","区分2","分類できない","分類できない","区分1(中枢神経系)､区分3(気道刺激性)","分類できない","分類できない","液体",140.5]
[12,"別表第９","50-78-2",null,"アセチルサリチル酸（別名アスピリン）","","","","",null,"","",null,5,"",null,null,null,null,180.15,"",1977,null,"区分4","分類できない","分類対象外","分類対象外","分類できない","区分外","区分2","区分1","分類できない","分類できない","分類できない","区分1","区分1(中枢神経系､胃､肝臓､肺､感覚器(聴覚))","区分1(血液系､中枢神経系､胃､肝臓､腎臓､肺､感覚器(聴覚))","分類できない","固体",140]
[13,"別表第９","60-35-5",null,"アセトアミド","","","","",null,"","",1,null,"",null,null,null,null,59.07,"",2016,null,"区分外","分類できない","分類対象外","分類対象外","分類できない","分類できない","分類できない","分類できない","分類できない","分類できない","区分2","区分2","分類できない","分類できない","分類できない","固体",222]
[14,"別表第９","75-07-0",null,"アセトアルデヒド",null,null,50,90,null,null,"1990","",null,null,null,25,null,null,44.05,"",2013,null,"区分4","区分3","分類対象外","区分4","分類できない","区分外","区分2","分類できない","区分1","区分2","区分1","区分1","区分1(中枢神経系､呼吸器)､区分3(麻酔作用)","区分1(呼吸器)","分類できない","液体",20.100000000000001]
[15,"別表第９","75-05-8",null,"アセトニトリル","","","","",null,"","",20,null,"",null,null,null,null,41.05,"Skin",1996,null,"区分外","区分3","分類対象外","区分4","分類できない","区分外","区分2","分類できない","分類できない","分類できない","分類できない","分類できない","区分1(中枢神経系､呼吸器)","区分2(血液系､中枢神経系､呼吸器､肝臓､腎臓)","分類できない","液体",82]
[16,"別表第９","98-86-2",null,"アセトフェノン","","","","",null,"","",10,null,"",null,null,null,null,120.15,"",2008,null,"区分4","区分外","分類対象外","分類できない","分類できない","区分2","区分2","分類できない","分類できない","分類できない","分類できない","区分2","区分3(気道刺激性､麻酔作用)","分類できない","分類できない","液体",202]
[17,"別表第９","67-64-1",null,"アセトン",200,470,null,null,null,null,"1972",250,null,500,null,null,null,null,58.05,"",2014,null,"区分外","区分外","分類対象外","区分外","分類できない","区分外","区分2","分類できない","区分外","分類できない","分類できない","区分2","区分3(気道刺激性､麻酔作用)","区分1(中枢神経系､呼吸器､消化管)","分類できない","液体",56]
[18,"別表第９","75-86-5",null,"アセトンシアノヒドリン","","","","",null,"","","",null,null,null,null,5,"CNとして",85.1,"Skin",1991,null,"区分2","区分1","分類対象外","区分1","分類できない","分類できない","分類できない","分類できない","分類できない","区分外","分類できない","区分外","区分1(中枢神経系)","区分1(肝臓､腎臓)","分類できない","液体",95]
[19,"別表第９","62-53-3",null,"アニリン",1,3.8,null,null,null,"皮","1988",2,null,"",null,null,null,null,93.12,"Skin",1979,null,"区分4","区分3","分類対象外","区分2","区分4","区分外","区分2","分類できない","区分1","区分2","区分2","区分2","区分1(血液系､神経系)","区分1(血液系､神経系)","分類できない","液体",184]
[20,"別表第９","7773-06-0",null,"アミド硫酸アンモニウム","","","","",null,"","",null,10,"",null,null,null,null,114.13,"",1956,null,"区分5","分類できない","分類対象外","分類できない","分類できない","区分3","区分2","分類できない","分類できない","分類できない","分類できない","分類できない","区分3(気道刺激性､麻酔作用)","区分外","分類できない","固体",160]
[21,"別表第９","141-43-5",null,"２－アミノエタノール",3,7.5,null,null,null,null,"1965",3,null,6,null,null,null,null,61.08,"",1985,null,"区分外","区分4","分類対象外","分類できない","分類できない","区分1","区分1","分類できない","区分1","分類できない","分類できない","分類できない","区分1(中枢神経系､呼吸器､肝臓)､区分3(麻酔作用)","区分1(中枢神経系)､区分2(呼吸器)","分類できない","液体",171]
[22,"別表第９","21087-64-9",null,"４－アミノ－６－ターシャリ－ブチル－３－メチルチオ－１，２，４－トリアジン－５（４Ｈ）－オン（別名メトリブジン）","","","","",null,"","",null,5,"",null,null,null,null,214.28,"",1981,null,"区分4","区分外","分類対象外","分類できない","分類できない","区分外","区分外","分類できない","区分外","区分外","区分外","区分外","分類できない","分類できない","分類できない","固体",240]
[23,"別表第９","61-82-5",null,"３－アミノ－１Ｈ－１，２，４－トリアゾール（別名アミトロール）","","","","",null,"","",null,0.2,"",null,null,null,null,84.08,"",1983,null,"区分外","区分外","分類対象外","分類できない","分類できない","区分外","区分2","分類できない","区分1","区分外","区分外","区分2","分類できない","区分1(甲状腺)､区分2(肝臓)","分類できない","固体",""]
[24,"別表第９","1918-02-1",null,"４―アミノ―３，５，６―トリクロロピリジン―２―カルボン酸（別名ピクロラム）","","","","",null,"","",null,10,"",null,null,null,null,241.48,"",1992,null,"区分外","区分外","分類対象外","分類対象外","分類できない","区分外","区分2","分類できない","区分外","分類できない","分類できない","区分外","区分3(気道刺激性)","区分2(肝臓)","分類できない","固体",""]
[25,"別表第９","504-29-0",null,"２―アミノピリジン","","","","",null,"","",0.5,null,"",null,null,null,null,94.12,"",1966,null,"区分3","区分3","分類対象外","分類できない","分類できない","分類できない","区分2","分類できない","分類できない","分類できない","分類できない","分類できない","区分1(中枢神経系)","分類できない","分類できない","固体",210.6]
[26,"別表第９","7631-90-5",null,"亜硫酸水素ナトリウム","","","","",null,"","",null,5,"",null,null,null,null,104.07,"",1992,null,"分類できない","分類できない","分類対象外","分類できない","分類できない","分類できない","区分2","分類できない","分類できない","分類できない","分類できない","分類できない","区分3(気道刺激性)","分類できない","分類できない","液体",146]
[27,"別表第９","107-18-6",null,"アリルアルコール",1,2.4,null,null,null,"皮","1978",0.5,null,"",null,null,null,null,58.08,"Skin",1996,null,"区分3","区分1","分類対象外","区分2","分類できない","区分2","区分2","分類できない","分類できない","分類できない","分類できない","分類できない","区分1(中枢神経系､肝臓､腎臓)､区分3(気道刺激性)","区分1(肝臓)","分類できない","液体",97.4]
[28,"別表第９","106-92-3",null,"１―アリルオキシ―２，３―エポキシプロパン","","","","",null,"","",1,null,"",null,null,null,null,114.14,"",1995,null,"区分4","区分外","分類対象外","区分2","分類できない","区分2","区分2","分類できない","区分1","区分2","分類できない","区分2","区分1(中枢神経系､呼吸器､肝臓､腎臓)","区分1(上気道)","分類できない","液体",154]
[29,"別表第９","55-68-5",null,"硝酸フェニル水銀","","","","",null,"","",null,null,null,null,null,null,null,null,null,"未設定(2017年現在）",null,"分類できない","分類できない","分類対象外","分類できない","分類できない","区分2","分類できない","分類できない","区分1","分類できない","分類できない","区分2","分類できない","区分1(中枢神経系､腎臓)","分類できない","固体"]
[29,"別表第９","62-38-4",null,"（アセタト－κＯ）（フェニル）水銀","","","","",null,"","",null,null,null,null,null,null,null,null,null,"未設定(2017年現在）",null,"区分2","分類できない","分類対象外","分類できない","分類できない","区分1","区分1","分類できない","区分1","分類できない","分類できない","区分2","分類できない","区分1(腎臓､神経系)","分類できない","固体"]
[30,"別表第９","2179-59-1",null,"アリル―ノルマル―プロピルジスルフィド","","","","",null,"","",0.5,null,"",null,null,null,null,148.16,"",2001,null,"分類できない","分類できない","分類対象外","分類できない","分類できない","分類できない","区分2","分類できない","区分1","分類できない","分類できない","分類できない","区分3(気道刺激性)","分類できない","分類できない","液体",60]
[31,"別表第９","121-45-9",null,"亜りん酸トリメチル","","","","",null,"","",2,null,"",null,null,null,null,124.08,"",1980,null,"区分5","区分5","分類対象外","分類できない","分類できない","区分2","区分2","分類できない","分類できない","分類できない","分類できない","分類できない","区分3(気道刺激性)","区分2(神経系､肺､眼)","分類できない","液体",111.5]
[34,"別表第９","81-81-2",null,"３―（アルファ―アセトニルベンジル）―４―ヒドロキシクマリン（別名ワルファリン）","","","","",null,"","",null,0.01,"",null,null,null,null,308.32,"Skin",2015,null,"区分2","区分4","分類対象外","区分1","分類できない","分類できない","分類できない","分類できない","分類できない","分類できない","分類できない","区分1","区分1(血液系)","区分1(血液系､骨､皮膚)､区分2(肝臓､腎臓)","分類できない","固体",""]
[35,"別表第９","98-87-3",null,"アルファ，アルファ―ジクロロトルエン","","","","",null,"","","",null,"",null,null,null,null,"","","未設定(2017年現在）",null,"区分5","分類できない","分類対象外","区分1","区分4","区分2","区分2","分類できない","分類できない","分類できない","区分1","分類できない","区分3(気道刺激性)","分類できない","分類できない","液体",207]
[36,"別表第９","98-83-9",null,"アルファ―メチルスチレン","","","","",null,"","",10,null,"",null,null,null,null,118.18,"",2009,null,"区分外","区分外","分類対象外","分類できない","区分外","区分2","区分2","分類できない","分類できない","分類できない","区分2","分類できない","区分3(気道刺激性､麻酔作用)","区分1(肝臓)､区分2(呼吸器､腎臓)","区分1","液体",164]
[37,"別表第９","7429-90-5",null,"アルミニウム","","","","",null,"","","",1,"",null,null,null,null,26.98,"",2007,null,"分類できない","分類できない","分類対象外","分類対象外","分類できない","分類できない","分類できない","分類できない","分類できない","分類できない","分類できない","分類できない","区分1(呼吸器)","区分1(呼吸器)","分類できない","固体"]
[38,"別表第９","7440-36-0","追加（2018年9月）","アンチモン",null,0.1,null,null,"Sbとして",null,null,null,0.5,null,null,null,null,"Sbとして",null,null,null,null,"分類できない","分類できない","分類対象外","分類できない","分類できない","分類できない","分類できない","分類できない","分類できない","分類できない","分類できない","分類できない","分類できない","区分2(呼吸器)","分類できない","固体","1635"]
[38,"別表第９","1309-64-4",null,"三酸化二アンチモン","","","","",null,"","","",null,"",null,null,null,null,291.5,"",1977,null,"区分5","分類できない","分類対象外","分類できない","分類できない","分類できない","区分外","分類できない","分類できない","区分外","区分1","分類できない","区分2(呼吸器)","区分1(呼吸器)","分類できない","固体",1425]
[38,"別表第９","1314-60-9","追加（2018年9月）","五酸化二アンチモン",null,0.1,null,null,"Sbとして",null,null,null,0.5,null,null,null,null,"Sbとして",null,null,null,null,"分類できない","分類できない","分類対象外","分類できない","分類できない","分類できない","分類できない","分類できない","分類できない","分類できない","分類できない","分類できない","分類できない","分類できない","分類できない","固体"]
[38,"別表第９","1345-04-6","追加（2018年9月）","三硫化アンチモン",null,0.1,null,null,"Sbとして",null,null,null,0.5,null,null,null,null,"Sbとして",null,null,null,null,"区分外","区分外","分類対象外","分類できない","区分外","分類できない","区分2","分類できない","分類できない","分類できない","区分外","分類できない","分類できない","区分1(心血管系)","分類できない","固体","1150 "]
[38,"別表第９","10025-91-9","追加（2018年9月）","塩化アンチモン（Ⅲ）",null,0.1,null,null,"Sbとして",null,null,null,0.5,null,null,null,null,"Sbとして",null,null,null,null,"区分4","分類できない","分類対象外","分類対象外","分類できない","区分2","区分2","分類できない","分類できない","区分2","分類できない","分類できない","区分2(呼吸器)","区分1(血液系)","分類できない","固体","223.5"]
[38,"別表第９","7647-18-9","追加（2018年9月）","塩化アンチモン（Ⅴ）",null,0.1,null,null,"Sbとして",null,null,null,0.5,null,null,null,null,"Sbとして",null,null,null,null,"区分4","分類できない","分類対象外","区分1","分類できない","区分1","区分1","分類できない","分類できない","分類できない","区分2","分類できない","区分2(呼吸器系)","区分1(肺､心血管系)","分類できない","液体","79"]
[38,"別表第９","7783-56-4","追加（2018年9月）","フッ化アンチモン（Ⅲ）",null,0.1,null,null,"Sbとして",null,null,null,0.5,null,null,null,null,"Sbとして",null,null,null,null,"区分4","分類できない","分類対象外","分類できない","分類できない","区分2","区分2","分類できない","分類できない","分類できない","区分2","分類できない","区分3(気道刺激性)","区分1(骨､肺､心血管系)","分類できない","固体","376"]
[38,"別表第９","7783-70-2","追加（2018年9月）","フッ化アンチモン（Ⅴ）",null,0.1,null,null,"Sbとして",null,null,null,0.5,null,null,null,null,"Sbとして",null,null,null,null,"分類できない","分類できない","分類対象外","分類できない","分類できない","区分2","区分2","分類できない","分類できない","分類できない","分類できない","分類できない","区分1(呼吸器､心血管系､肝臓､腎臓)","分類できない","分類できない","液体","141"]
[39,"別表第９","7664-41-7",null,"アンモニア",25,17,null,null,null,null,"1979",25,null,35,null,null,null,null,17.03,"",1970,null,"分類対象外","分類対象外","区分4","分類対象外","分類対象外","区分1","区分1","区分1","分類できない","分類できない","分類できない","分類できない","区分1(中枢神経系､呼吸器)","区分1(呼吸器)","分類対象外","液体",38]
[40,"別表第９","4098-71-9",null,"３―イソシアナトメチル―３，５，５―トリメチルシクロヘキシル＝イソシアネート","","","","",null,"","",5.0000000000000001E-3,null,"",null,null,null,null,222.3,"",1985,null,"区分外","区分外","分類対象外","分類できない","区分1","区分1","区分2","区分1","区分1","区分外","分類できない","分類できない","区分1(呼吸器系)","区分1(呼吸器系)","分類できない","液体",158]
[41,"別表第９","624-83-9",null,"イソシアン酸メチル","","","","",null,"","",0.02,null,0.06,null,null,null,null,57.05,"Skin",2013,null,"区分3","区分3","分類対象外","区分1","分類できない","区分2","区分1","区分1","区分1","区分2","分類できない","区分1","区分1(呼吸器)","分類できない","分類できない","液体",39]
[42,"別表第９","78-79-5",null,"イソプレン",3,8.4,"","","暫定","",2017,"",null,"",null,null,null,null,"","","未設定(2017年現在）",null,"区分外","分類できない","分類対象外","区分外","分類できない","区分外","区分2","分類できない","分類できない","区分2","区分2","分類できない","区分3(麻酔作用､気道刺激性)","区分1(神経系､上気道)","分類できない","液体",34]
[43,"別表第９","768-52-5",null,"Ｎ―イソプロピルアニリン","","","","",null,"","",2,null,"",null,null,null,null,135.21,"Skin",1990,null,"区分4","区分5","分類対象外","分類できない","区分4","分類できない","区分2","分類できない","分類できない","分類できない","分類できない","区分2","区分3(気道刺激性)","区分2(血液)","分類できない","液体",203]
[44,"別表第９","22224-92-6",null,"Ｎ―イソプロピルアミノホスホン酸Ｏ―エチル―Ｏ―（３―メチル―４―メチルチオフェニル）（別名フェナミホス）","","","","",null,"","",null,0.05,"",null,null,null,null,333.4,"Skin",2005,null,"区分2","区分2","分類対象外","分類できない","区分2","区分外","区分2","分類できない","区分外","区分外","区分外","区分2","区分1(神経系)","区分1(神経系)","分類できない","固体",""]
[45,"別表第９","75-31-0",null,"イソプロピルアミン","","","","",null,"","",5,null,10,null,null,null,null,59.08,"",1962,null,"区分4","区分3","分類対象外","区分4","分類できない","区分1","区分1","分類できない","分類できない","分類できない","分類できない","分類できない","区分1(中枢神経系､呼吸器)､区分3(麻酔作用)","区分2(呼吸器)","分類できない","液体",33]
[46,"別表第９","108-20-3",null,"イソプロピルエーテル","","","","",null,"","",250,null,310,null,null,null,null,102.17,"",1979,null,"区分外","区分外","分類対象外","区分外","分類できない","区分3","区分2","分類できない","分類できない","分類できない","分類できない","区分2","区分2(中枢神経系)､区分3(気道刺激性､麻酔作用)","分類できない","分類できない","液体",69]
[47,"別表第９","66332-96-5",null,"３′―イソプロポキシ―２―トリフルオロメチルベンズアニリド（別名フルトラニル）",null,10,null,null,null,null,"1990","",null,"",null,null,null,null,"","","未設定(2017年現在）",null,"区分外","区分外","分類対象外","分類できない","区分外","区分外","区分外","分類できない","区分外","区分外","区分外","区分外","区分外","区分外","分類できない","固体",256]
[48,"別表第９","123-51-3",null,"イソペンチルアルコール（別名イソアミルアルコール）",100,360,null,null,null,null,"1966",100,null,125,null,null,null,null,88.15,"",1990,null,"区分4","区分外","分類対象外","分類できない","分類できない","区分外","区分1","分類できない","分類できない","分類できない","分類できない","分類できない","区分3(気道刺激性､麻酔作用)","分類できない","分類できない","液体",130.5]
[49,"別表第９","78-59-1",null,"イソホロン","","","","",null,"","","",null,null,null,5,null,null,138.21,"",1992,null,"区分4","区分4","分類対象外","分類できない","区分5","区分3","区分2","分類できない","区分外","区分外","区分2","区分外","区分3(気道刺激性､麻酔作用)","分類できない","分類できない","液体",215]
[50,"別表第９","10025-67-9",null,"一塩化硫黄",null,null,1,5.5,null,null,"1976","",null,"",null,1,null,null,135.03,"",1986,null,"区分3","分類できない","分類対象外","区分2","分類できない","区分1","区分1","分類できない","分類できない","分類できない","分類できない","分類できない","区分2(呼吸器)","分類できない","分類できない","液体",138]
[51,"別表第９","630-08-0",null,"一酸化炭素",50,57,null,null,null,null,"1971",25,null,"",null,null,null,null,28.01,"",1989,null,"分類対象外","分類できない","区分3","分類対象外","分類対象外","区分外","区分外","区分外","区分外","区分外","区分外","区分1","区分1(吸入:循環器､神経)","区分2(吸入:心臓､血液)","分類対象外","気体",""]
[52,"別表第９","10102-43-9",null,"一酸化窒素","","","","",null,"","",25,null,"",null,null,null,null,30.01,"",1992,null,"分類対象外","分類対象外","区分2","分類対象外","分類対象外","分類できない","分類できない","分類できない","分類できない","分類できない","分類できない","分類できない","区分1(血液系)","分類できない","分類対象外","気体",""]
[53,"別表第９","10024-97-2",null,"一酸化二窒素","","","","",null,"","",50,null,"",null,null,null,null,44.02,"",1986,null,"分類対象外","分類できない","分類できない","分類対象外","分類対象外","区分外","分類できない","分類できない","分類できない","分類できない","区分外","区分1","区分3(麻酔作用)","区分1(血液､神経系､肝臓､腎臓)","分類対象外","気体",""]
["54","別表第９","7440-65-5","追加（2018年9月）","イットリウム",null,null,null,null,null,null,null,null,0.1,null,null,null,null,"Yとして",null,null,null,null,"分類できない","分類できない","分類対象外","分類対象外","分類できない","分類できない","分類できない","分類できない","分類できない","分類できない","分類できない","分類できない","区分2(肺)","分類できない","分類できない","固体","3338"]
[55,"別表第９","105-60-2",null,"イプシロン―カプロラクタム","","","","",null,"","",null,5,"",null,null,null,null,113.16,"",1997,null,"区分4","区分4","分類対象外","分類対象外","区分外","区分2","区分2","分類できない","区分外","分類できない","区分外","区分2","区分2(神経系)､区分3(気道刺激性)","区分1(呼吸器)","分類できない","固体",267]
[56,"別表第９","96-45-7",null,"２―イミダゾリジンチオン","","","","",null,"","","",null,"",null,null,null,null,"","","未設定(2017年現在）",null,"区分4","分類できない","分類対象外","分類対象外","分類できない","分類できない","分類できない","分類できない","区分1","分類できない","分類できない","区分1","分類できない","区分1(下垂体､甲状腺)","分類できない","固体",347.18]
[57,"別表第９","569-61-9",null,"４，４′―（４―イミノシクロヘキサ―２，５―ジエニリデンメチル）ジアニリン塩酸塩（別名ＣＩベイシックレッド９）","","","","",null,"","","",null,"",null,null,null,null,"","","未設定(2017年現在）",null,"区分外","分類できない","分類対象外","分類対象外","分類できない","分類できない","区分2","分類できない","分類できない","分類できない","区分2","分類できない","分類できない","分類できない","分類できない","固体",568.20000000000005]
[58,"別表第９","7440-74-6",null,"インジウム",null,null,null,null,"生物学的許容値のみ",null,"2007","",0.1,"",null,null,null,null,114.82,"",1990,null,"区分外","分類できない","分類対象外","分類対象外","分類できない","分類できない","分類できない","分類できない","分類できない","分類できない","分類できない","分類できない","分類できない","分類できない","分類できない","固体",1740]
[58,"別表第９","1312-43-2","追加（2018年9月）","酸化インジウム",null,null,null,null,null,null,null,null,0.1,null,null,null,null,"Inとして",null,null,null,null,"区分外","分類できない","分類対象外","分類対象外","分類できない","分類できない","区分2","分類できない","分類できない","分類できない","区分1","分類できない","分類できない","区分1(呼吸器)","分類できない","固体","850"]
[58,"別表第９","10025-82-8","追加（2018年9月）","塩化インジウム（Ⅲ）",null,null,null,null,null,null,null,null,0.1,null,null,null,null,"Inとして",null,null,null,null,"分類できない","分類できない","分類対象外","分類できない","分類できない","分類できない","分類できない","分類できない","分類できない","区分2","区分2","区分2","区分1(肺)","分類できない","分類できない","固体","600"]
[58,"別表第９","22398-80-7","追加（2018年9月）","リン化インジウム",null,null,null,null,null,null,null,null,0.1,null,null,null,null,"Inとして",null,null,null,null,"区分外","分類できない","分類対象外","分類できない","分類できない","分類できない","分類できない","分類できない","分類できない","分類できない","区分1","分類できない","分類できない","区分1(呼吸器系､造血系)､区分2(肝臓)","分類できない","固体"]
[58,"別表第９","50926-11-9","追加（2018年9月）","インジウムすず酸化物 ",null,null,null,null,null,null,null,null,0.1,null,null,null,null,"Inとして",null,null,null,null,"区分外","分類できない","分類対象外","分類対象外","分類できない","区分2","区分2","分類できない","分類できない","分類できない","区分1","分類できない","分類できない","区分1(呼吸器)","分類できない","固体"]
[59,"別表第９","95-13-6",null,"インデン","","","","",null,"","",5,null,"",null,null,null,null,116.15,"",2007,null,"区分外","分類できない","分類対象外","分類できない","区分外","区分外","分類できない","分類できない","分類できない","分類できない","分類できない","分類できない","区分1(肝臓､腎臓)､区分3(気道刺激性)","分類できない","分類できない","液体",181.6]
[60,"別表第９","51-79-6",null,"ウレタン","","","","",null,"","","",null,"",null,null,null,null,"","","未設定(2017年現在）",null,"区分4","区分4","分類対象外","分類できない","分類できない","分類できない","分類できない","分類できない","分類できない","区分2","区分1","区分2","区分3(麻酔作用)","区分2(造血系)","分類できない","固体",184]
[61,"別表第９","64-17-5",null,"エタノール","","","","",null,"","","",null,1000,null,null,null,null,46.07,"",2008,null,"区分外","区分外","分類対象外","区分外","分類できない","区分外","区分2","分類できない","分類できない","分類できない","区分1","区分1","区分3(気道刺激性､麻酔作用)","区分1(肝臓)､区分2(中枢神経系)","分類できない","液体",78.5]
[62,"別表第９","75-08-1",null,"エタンチオール","","","","",null,"","",0.5,null,"",null,null,null,null,62.13,"",2003,null,"区分4","区分外","分類対象外","区分4","分類できない","区分外","区分2","分類できない","分類できない","分類できない","分類できない","分類できない","区分1(中枢神経系)､区分3(気道刺激性､麻酔作用)","分類できない","分類できない","液体",35.1]
[63,"別表第９","16219-75-3",null,"エチリデンノルボルネン","","","","",null,"","",2,null,4,null,null,null,null,120.19,"",2013,null,"区分外","区分外","分類対象外","区分4","分類できない","区分外","区分2","分類できない","分類できない","分類できない","分類できない","区分2","区分1(中枢神経系)､区分3(気道刺激性)","区分2(肝臓)","区分1","液体",144]
[64,"別表第９","75-04-7",null,"エチルアミン","","","","",null,"","",5,null,15,null,null,null,null,45.08,"Skin",2012,null,"区分4","区分3","区分5","分類対象外","分類対象外","区分1","区分1","分類できない","分類できない","分類できない","分類できない","分類できない","区分3(気道刺激性)","区分1(呼吸器系)､区分2(腎臓)","分類できない","液体",38]
[65,"別表第９","60-29-7",null,"エチルエーテル",400,1200,null,null,null,null,"1997",400,null,500,null,null,null,null,74.12,"",1966,null,"区分4","区分外","分類対象外","区分外","分類できない","区分外","区分2","分類できない","分類できない","分類できない","分類できない","区分2","区分3(気道刺激性､麻酔作用)","区分1(中枢神経系)","分類できない","液体",34.6]
[66,"別表第９","541-85-5",null,"エチル―セカンダリ―ペンチルケトン","","","","",null,"","",10,null,"",null,null,null,null,128.21,"",2006,null,"区分外","分類できない","分類対象外","分類できない","区分外","分類できない","区分2","分類できない","分類できない","分類できない","分類できない","分類できない","区分3(気道刺激性､麻酔作用)","分類できない","分類できない","液体",157]
[67,"別表第９","2104-64-5",null,"エチル―パラ―ニトロフェニルチオノベンゼンホスホネイト（別名ＥＰＮ）","","","","",null,"","",null,0.1,"",null,null,null,null,323.31,"Skin",2000,null,"区分2","区分3","分類対象外","分類対象外","区分2","区分外","区分2","分類できない","分類できない","分類できない","分類できない","区分2","区分1(神経系)","区分1(血液系､神経系､肝臓)","分類できない","固体",""]
[68,"別表第９","944-22-9",null,"Ｏ―エチル―Ｓ―フェニル＝エチルホスホノチオロチオナート（別名ホノホス）","","","","",null,"","",null,0.1,"",null,null,null,null,246.32,"Skin",2005,null,"区分2","区分1","分類対象外","分類できない","区分2","区分外","分類できない","分類できない","分類できない","分類できない","分類できない","区分2","区分1(神経系)","区分1(神経系)､区分2(肝臓､小腸)","分類できない","液体",130]
[69,"別表第９","149-57-5",null,"２―エチルヘキサン酸","","","","",null,"","",null,5,"",null,null,null,null,144.24,"",2006,null,"区分外","区分4","分類対象外","分類できない","分類できない","区分1","区分2","分類できない","分類できない","分類できない","分類できない","区分1","区分2(呼吸器系)","分類できない","分類できない","液体",227]
[70,"別表第９","100-41-4",null,"エチルベンゼン",50,217,null,null,null,null,"2001",20,null,"",null,null,null,null,106.16,"",2010,null,"区分外","区分外","分類対象外","区分4","分類できない","区分外","区分2","分類できない","分類できない","分類できない","区分2","区分1","区分3(気道刺激性､麻酔作用)","区分2(聴覚器)","区分1","液体",136]
[71,"別表第９","1338-23-4",null,"エチルメチルケトンペルオキシド","","","","",null,"","",null,null,"",null,0.2,null,null,176.24,"",1992,null,"区分4","区分外","分類対象外","区分2","区分外","区分2","区分1","分類できない","分類できない","分類できない","分類できない","分類できない","区分1(中枢神経系)､区分3(気道刺激性､麻酔作用)","分類できない","分類できない","液体",118]
[72,"別表第９","100-74-3",null,"Ｎ―エチルモルホリン","","","","",null,"","",5,null,"",null,null,null,null,115.18,"Skin",1985,null,"区分4","分類できない","分類対象外","区分3","分類できない","区分1","区分1","分類できない","分類できない","分類できない","分類できない","分類できない","区分2(神経系)､区分3(気道刺激性)","区分2(神経系)","分類できない","液体",138]
["72-2","別表第９","74-85-1",null,"エチレン","","","","",null,"","",200,null,"",null,null,null,null,28.05,"",2001,null,"分類対象外","分類対象外","区分外","分類対象外","分類対象外","分類できない","分類できない","分類できない","分類できない","分類できない","分類できない","分類できない","区分3(麻酔作用)","区分外","分類対象外","気体",""]
[73,"別表第９","151-56-4",null,"エチレンイミン",0.5,0.88,null,null,null,"皮","1990",0.05,null,0.1,null,null,null,null,43.08,"Skin",2008,null,"区分2","区分1","分類対象外","区分1","分類できない","区分1","区分1","分類できない","分類できない","区分1","区分2","区分2","区分1(中枢神経､呼吸器系､腎臓､肝臓)","区分1(呼吸器系､腎臓､肝臓)","分類できない","液体",56]
[74,"別表第９","75-21-8",null,"エチレンオキシド",1,1.8,null,null,null,null,"1990",1,null,"",null,null,null,null,44.05,"",1990,null,"区分3","分類できない","区分3","分類対象外","分類対象外","区分2","区分2","分類できない","区分1","区分1","区分1","区分1","区分1(中枢神経系)､区分3(気道刺激性)","区分1(神経系)､区分2(血液､腎臓､気道)","分類対象外","気体",""]
[75,"別表第９","107-21-1",null,"エチレングリコール","","","","",null,"","",25,null,50,10,null,null,null,62.07,"",2016,null,"区分外","区分外","分類対象外","分類できない","区分4","区分2","区分2","分類できない","分類できない","分類できない","分類できない","分類できない","区分1(中枢神経系､血液系､腎臓)､区分3(気道刺激性､麻酔作用)","分類できない","分類できない","液体",197.3]
[76,"別表第９","109-59-1",null,"エチレングリコールモノイソプロピルエーテル","","","","",null,"","",25,null,"",null,null,null,null,104.15,"Skin",1990,null,"区分外","区分4","分類対象外","区分4","分類できない","区分2","区分2","分類できない","区分外","分類できない","分類できない","分類できない","区分1(血液系､腎臓､肝臓､脾臓)､区分2(中枢神経系)","区分1(血液系)","分類できない","液体",144]
[77,"別表第９","110-80-5",null,"エチレングリコールモノエチルエーテル（別名セロソルブ）",5,18,null,null,null,"皮","1985",5,null,"",null,null,null,null,90.12,"Skin",1981,null,"区分外","区分外","分類対象外","区分4","分類できない","区分外","区分2","分類できない","区分外","分類できない","分類できない","区分1","区分1(中枢神経系､血液系､腎臓､肝臓)","区分1(血液系､精巣)","分類できない","液体",135.6]
[78,"別表第９","111-15-9",null,"エチレングリコールモノエチルエーテルアセテート（別名セロソルブアセテート） ",5,27,null,null,null,"皮","1985",5,null,"",null,null,null,null,132.16,"Skin",1981,null,"区分外","区分外","分類対象外","区分4","分類できない","区分外","区分2","分類できない","分類できない","分類できない","分類できない","区分1","区分1(血液系)､区分3(麻酔作用)","区分1(血液系､精巣)","分類できない","液体",156.4]
[79,"別表第９","111-76-2",null,"エチレングリコールモノ―ノルマル―ブチルエーテル（別名ブチルセロソルブ） ","","",20,97,"暫定","",2017,20,null,"",null,null,null,null,118.17,"",1996,null,"区分4","区分3","分類対象外","区分2","分類できない","区分2","区分2","分類できない","区分外","分類できない","分類できない","区分2","区分1(血液系､呼吸器､肝臓､腎臓)､区分3(麻酔作用)","区分1(血液系)","分類できない","液体",168.4]
["79-2","別表第９","112-07-2",null,"エチレングリコールモノブチルエーテルアセタート","","","","",null,"","",20,null,"",null,null,null,null,160.19999999999999,"",2000,null,"区分外","区分4","分類対象外","分類できない","分類できない","区分外","区分外","分類できない","区分外","分類できない","分類できない","分類できない","区分1(中枢神経系､血液系､腎臓)","区分2(血液系､腎臓)","分類できない","液体",192]
[80,"別表第９","109-86-4",null,"エチレングリコールモノメチルエーテル（別名メチルセロソルブ）",0.1,0.31,null,null,null,"皮","2009",0.1,null,"",null,null,null,null,76.09,"Skin",2005,null,"区分外","区分4","分類対象外","区分4","分類できない","区分外","区分外","分類できない","分類できない","分類できない","分類できない","区分1","区分1(中枢神経系､血液系､腎臓)､区分3(気道刺激性､麻酔作用)","区分1(血液系､精巣)","分類できない","液体",124.1]
[81,"別表第９","110-49-6",null,"エチレングリコールモノメチルエーテルアセテート",0.1,0.48,null,null,null,"皮","2009",0.1,null,"",null,null,null,null,118.13,"Skin",2005,null,"区分外","区分外","分類対象外","分類できない","区分外","区分外","区分2","分類できない","分類できない","分類できない","分類できない","区分1","区分1(中枢神経系､血液系､腎臓)､区分3(麻酔作用)","区分1(血液系､精巣)","分類できない","液体",145]
[82,"別表第９","107-07-3",null,"エチレンクロロヒドリン","","","","",null,"","","",null,null,null,1,null,null,80.52,"Skin",1985,null,"区分3","区分2","分類対象外","区分1","分類できない","区分外","区分2","分類できない","分類できない","区分2","分類できない","分類できない","区分1(中枢神経系､心血管系､呼吸器)､区分3(麻酔作用)","区分2(膵臓､全身毒性)","分類できない","液体",128]
[83,"別表第９","107-15-3",null,"エチレンジアミン",10,25,null,null,null,"皮","1991",10,null,"",null,null,null,null,60.1,"Skin",1990,null,"区分4","区分3","分類対象外","区分4","区分外","区分1","区分1","区分1","区分1","区分外","分類できない","区分2","区分1(呼吸器)","区分2(肝臓､腎臓､視覚器)","分類できない","液体",116]
[84,"別表第９","85-00-7",null,"１，１′―エチレン―２，２′―ビピリジニウム＝ジブロミド（別名ジクアット）","","","","",null,"","",null,0.5,"",null,null,null,null,null,"Skin",1990,null,"区分4","区分3","分類対象外","分類対象外","区分2","区分2","区分2","分類できない","分類できない","分類できない","分類できない","区分2","区分1(中枢神経系､腎臓)","区分1(呼吸器､眼)､区分2(消化管)","分類できない","固体",335]
[85,"別表第９","637-92-3",null,"２―エトキシ―２，２―ジメチルエタン","","","","",null,"","",25,null,"",null,null,null,null,102.18,"",2012,null,"区分外","分類できない","分類対象外","分類できない","分類できない","区分2","区分2","分類できない","分類できない","区分外","分類できない","分類できない","区分3(麻酔作用)","区分外","分類できない","液体",73]
[86,"別表第９","80844-07-1",null,"２―（４―エトキシフェニル）―２―メチルプロピル＝３―フェノキシベンジルエーテル（別名エトフェンプロックス）",null,3,null,null,null,null,"1995","",null,"",null,null,null,null,"","","未設定(2017年現在）",null,"区分外","区分外","分類対象外","分類対象外","区分外","区分外","区分外","分類できない","分類できない","分類できない","分類できない","区分外","区分1(中枢神経系)､区分3(麻酔作用)","区分2(肝臓､腎臓)","分類できない","固体",200]
[87,"別表第９","106-89-8",null,"エピクロロヒドリン","","","","",null,"","",0.5,null,"",null,null,null,null,92.53,"Skin",1994,null,"区分3","区分3","分類対象外","区分2","分類できない","区分1","区分1","分類できない","区分1","区分2","区分1","区分2","区分1(呼吸器系､肝臓､腎臓)","区分1(呼吸器系､腎臓)","分類できない","液体",116]
[88,"別表第９","4016-14-2",null,"１，２―エポキシ―３―イソプロポキシプロパン","","","","",null,"","",50,null,75,null,null,null,null,116.18,"",1979,null,"区分5","区分外","分類対象外","区分3","分類できない","区分2","区分2","分類できない","分類できない","分類できない","分類できない","分類できない","区分1(中枢神経系)､区分3(気道刺激性､麻酔作用)","分類できない","分類できない","液体",131]
[89,"別表第９","765-34-4",null,"２，３―エポキシ―１―プロパナール","","","","",null,"","","",null,"",null,null,null,null,"","","未設定(2017年現在）",null,"区分3","区分3","分類対象外","区分2","分類できない","区分2","区分2","分類できない","分類できない","区分2","区分2","分類できない","区分3(気道刺激性)","区分1(腎臓)","分類できない","液体",113]
[90,"別表第９","556-52-5",null,"２，３―エポキシ―１―プロパノール","","","","",null,"","",2,null,"",null,null,null,null,74.08,"",1993,null,"区分4","区分4","分類対象外","区分3","分類できない","区分2","区分2","分類できない","分類できない","区分2","区分1","区分2","区分1(中枢神経系､呼吸器系)","区分2(中枢神経系､脾臓､精巣)","分類できない","液体",66]
[91,"別表第９","122-60-1",null,"２，３―エポキシプロピル＝フェニルエーテル","","","","",null,"","",0.1,null,"",null,null,null,null,150.16999999999999,"Skin",1992,null,"区分外","区分4","分類対象外","分類できない","分類できない","区分2","区分2","分類できない","区分1","分類できない","区分2","区分2","区分1(呼吸器)､区分3(麻酔作用)","区分1(呼吸器)","分類できない","液体",245]
[92,"別表第９","1302-74-5",null,"エメリー","","","","",null,"","",null,null,"",null,null,null,null,"","",2008,null,"分類できない","分類できない","分類対象外","分類できない","分類できない","分類できない","区分2","分類できない","分類できない","分類できない","分類できない","分類できない","区分3(気道刺激性)","区分1(肺､中枢神経系)","分類できない","固体",3000]
[93,"別表第９","12510-42-8",null,"エリオナイト","","","","",null,"","","",null,"",null,null,null,null,"","","未設定(2017年現在）",null,"分類できない","分類できない","分類対象外","分類できない","分類できない","分類できない","分類できない","分類できない","分類できない","分類できない","区分1","分類できない","分類できない","区分1(肺)","分類できない","固体",""]
[94,"別表第９","7646-85-7",null,"塩化亜鉛","","","","",null,"","",null,1,null,2,null,null,null,136.29,"",1992,null,"区分4","分類できない","分類対象外","分類対象外","分類できない","区分1","区分1","分類できない","分類できない","分類できない","分類できない","分類できない","区分1(呼吸器)","分類できない","分類できない","固体",732]
[95,"別表第９","107-05-1",null,"塩化アリル","","","","",null,"","",1,null,2,null,null,null,null,76.5,"Skin",2010,null,"区分4","区分外","分類対象外","区分3","分類できない","区分2","区分1","分類できない","分類できない","区分外","区分2","区分2","区分1(呼吸器､神経系､腎臓､肝臓､心臓)､区分3(麻酔作用)","区分1(神経系､腎臓､心臓､肝臓)","分類できない","液体",45]
[96,"別表第９","12125-02-9",null,"塩化アンモニウム","","","","",null,"","",null,10,null,20,null,null,null,53.5,"",1970,null,"分類対象外","分類対象外","区分4","分類対象外","分類対象外","区分1","区分1","区分1","分類できない","分類できない","分類できない","分類できない","区分1(中枢神経系､呼吸器)","区分1(呼吸器)","分類対象外","固体",520]
[97,"別表第９","506-77-4",null,"塩化シアン","","","","",null,"","","",null,null,null,0.3,null,null,61.48,"",2013,null,"分類対象外","分類対象外","区分1","分類対象外","分類対象外","区分1","区分1","分類できない","分類できない","分類できない","分類できない","分類できない","区分1(中枢神経系､呼吸器､心血管系､筋肉系)","区分1(中枢神経系､呼吸器､血液系)","分類対象外","液体",13]
[98,"別表第９","7647-01-0",null,"塩化水素",null,null,2,3,null,null,"2014","",null,null,null,2,null,null,36.47,"",2000,null,"区分3","区分外","区分3","分類できない","区分2","区分1","区分1","区分1","区分外","分類できない","区分外","分類できない","区分1(呼吸器系)","区分1(歯､呼吸器系)","分類対象外","液体",108]
[99,"別表第９","7719-09-7",null,"塩化チオニル","","","","",null,"","","",null,null,null,0.2,null,null,118.98,"",2009,null,"区分3","分類できない","分類対象外","区分2","分類できない","区分1","区分1","分類できない","分類できない","分類できない","分類できない","分類できない","区分1(呼吸器系)","分類できない","分類できない","液体",76]
[100,"別表第９","75-01-4",null,"塩化ビニル",1.5,null,null,null,"評価値",null,2017,1,null,"",null,null,null,null,62.5,"",1997,null,"区分外","分類できない","区分外","分類対象外","分類対象外","区分2","分類できない","分類できない","分類できない","区分2","区分1","区分2","区分1(中枢神経系)､区分3(麻酔作用)","区分1(肝臓､神経系､血管､血液､呼吸器､精巣､骨)","分類対象外","気体"]
[101,"別表第９","100-44-7",null,"塩化ベンジル","","","","",null,"","",1,null,"",null,null,null,null,126.58,"",1990,null,"区分4","区分外","分類対象外","区分1","分類できない","区分1","区分1","分類できない","分類できない","区分外","区分2","分類できない","区分1(呼吸器､神経系)","区分1(肝臓､神経系､呼吸器系)､区分2(心臓)","分類できない","液体",179]
[102,"別表第９","98-88-4",null,"塩化ベンゾイル","","","","",null,"","","",null,null,null,0.5,null,null,140.57,"",1992,null,"区分4","区分3","分類対象外","区分2","分類できない","区分1","区分1","分類できない","分類できない","区分外","区分外","分類できない","区分2(呼吸器系)","区分1(呼吸器系)","分類できない","液体",197.2]
[103,"別表第９","10025-87-3",null,"塩化ホスホリル","","","","",null,"","",0.1,null,"",null,null,null,null,153.35,"",1979,null,"区分2","区分3","分類対象外","区分1","分類できない","区分1","区分1","分類できない","分類できない","分類できない","分類できない","分類できない","区分1(中枢神経系､呼吸器)","区分1(中枢神経系､呼吸器､腎臓)","分類できない","液体",105.8]
[104,"別表第９","7782-50-5",null,"塩素",null,null,0.5,1.5,null,null,"1999",0.5,null,1,null,null,null,null,70.91,"",1995,null,"分類対象外","分類対象外","区分2","分類対象外","分類対象外","区分1","区分1","分類できない","分類できない","分類できない","分類できない","区分外","区分1(呼吸器)","区分1(呼吸器､肝臓､腎臓)","分類対象外","気体",""]
[105,"別表第９","8001-35-2",null,"塩素化カンフェン（別名トキサフェン）","","","","",null,"","",null,0.5,null,1,null,null,null,414,"Skin",1990,null,"区分3","区分3","分類対象外","分類できない","区分3","区分外","分類できない","分類できない","分類できない","区分外","区分2","区分外","区分1(中枢神経系)","区分1(肝臓､腎臓､甲状腺)､区分2(中枢神経系)","分類できない","固体",120]
[106,"別表第９","31242-93-0",null,"塩素化ジフェニルオキシド","","","","",null,"","",null,0.5,"",null,null,null,null,377,"",1979,null,"分類できない","分類できない","分類対象外","分類できない","分類できない","区分2","分類できない","分類できない","分類できない","分類できない","分類できない","分類できない","分類できない","区分1(肝､皮膚)","分類できない","液体",230]
[107,"別表第９","12185-10-3",null,"黄りん","","","","",null,"","","",0.1,"",null,null,null,null,123.92,"",1992,null,"区分1","区分1","分類対象外","分類できない","分類できない","区分1","区分1","分類できない","分類できない","分類できない","分類できない","区分2","区分1(肝､腎､消化器､血液､中枢神経)､区分3(気道刺激性)","区分1(骨､血液)","分類できない","固体",280]
[108,"別表第９","28434-86-8",null,"４，４′―オキシビス（２―クロロアニリン）","","","","",null,"","","",null,"",null,null,null,null,"","","未設定(2017年現在）",null,"分類できない","分類できない","分類対象外","分類できない","分類できない","分類できない","分類できない","分類できない","分類できない","分類できない","区分2","分類できない","分類できない","分類できない","分類できない","",""]
[109,"別表第９","3689-24-5",null,"オキシビス（チオホスホン酸）Ｏ，Ｏ，Ｏ′，Ｏ′―テトラエチル（別名スルホテップ）","","","","",null,"","",null,0.1,"",null,null,null,null,322.3,"Skin",1993,null,"区分2","区分1","分類対象外","分類できない","区分1","区分2","区分2","分類できない","分類できない","区分外","区分外","区分2","区分1(神経系)､区分3(気道刺激性)","区分1(神経系､肺)","分類できない","液体",92]
[110,"別表第９","80-51-3",null,"４，４′―オキシビスベンゼンスルホニルヒドラジド","","","","",null,"","",null,0.1,"",null,null,null,null,358.4,"",1997,null,"区分外","分類できない","分類対象外","分類対象外","分類できない","区分外","区分2","分類できない","分類できない","分類できない","分類できない","分類できない","区分2(神経系)","区分2(神経系､血液系､肝臓､腎臓)","分類できない","固体",""]
[111,"別表第９","7722-88-5",null,"オキシビスホスホン酸四ナトリウム","","","","",null,"","",null,5,"",null,null,null,null,"","",2005,null,"区分4","分類できない","分類対象外","分類できない","分類できない","区分2","区分2","分類できない","分類できない","分類できない","分類できない","分類できない","区分3(気道刺激性)","分類できない","分類できない","固体",""]
[112,"別表第９","2234-13-1",null,"オクタクロロナフタレン","","","","",null,"","",null,0.1,null,0.3,null,null,null,403.74,"Skin",1970,null,"分類できない","分類できない","分類対象外","分類対象外","分類できない","分類できない","分類できない","分類できない","分類できない","分類できない","分類できない","分類できない","分類できない","区分1(肝臓､皮膚)","分類できない","固体",440]
[113,"別表第９","57-74-9",null,"１，２，４，５，６，７，８，８―オクタクロロ―２，３，３ａ，４，７，７ａ―ヘキサヒドロ―４，７―メタノ―１Ｈ―インデン（別名クロルデン）","","","","",null,"","",null,0.5,"",null,null,null,null,409.8,"Skin",1985,null,"区分4","区分3","分類対象外","分類できない","分類できない","区分2","区分2","分類できない","分類できない","区分2","区分2","区分2","区分1(神経系)","区分1(神経系､肝臓､血液)","分類できない","固体",175]
[114,"別表第９","123-96-6",null,"２―オクタノール","","","","",null,"","","",null,"",null,null,null,null,"","","未設定(2017年現在）",null,"区分外","分類できない","分類対象外","分類できない","分類できない","区分外","区分2","分類できない","分類できない","分類できない","分類できない","分類できない","分類できない","分類できない","分類できない","液体",178.5]
[115,"別表第９","111-65-9","他","オクタン",300,1400,null,null,null,null,"1989",300,null,"",null,null,null,null,114.22,"",1979,null,"分類できない","分類できない","分類対象外","分類できない","区分外","区分2","区分2","分類できない","分類できない","分類できない","分類できない","分類できない","区分3(気道刺激性､麻酔作用)","分類できない","区分1","液体",126]
[116,"別表第９","10028-15-6",null,"オゾン",0.1,0.2,null,null,null,null,"1963",0.05,null,"",null,null,null,null,48,"",1995,"代表値として重作業における値を採用","分類できない","分類できない","区分1","分類対象外","分類対象外","分類できない","区分2","分類できない","分類できない","区分2","区分外","区分2","区分1(呼吸器系)","区分1(肺､気管支)","分類対象外","気体",""]
[117,"別表第９","532-27-4",null,"オメガ―クロロアセトフェノン","","","","",null,"","",0.05,null,"",null,null,null,null,154.59,"",1990,null,"区分3","分類できない","分類対象外","分類できない","分類できない","区分2","区分1","分類できない","区分1","分類できない","区分外","分類できない","区分2(呼吸器系)､区分3(麻酔作用)","区分1(肺)","分類できない","固体",244]
[118,"別表第９","492-80-8",null,"オーラミン","","","","",null,"","","",null,"",null,null,null,null,"","","未設定(2017年現在）",null,"区分4","分類できない","分類対象外","分類できない","分類できない","分類できない","分類できない","分類できない","分類できない","区分外","区分2","分類できない","分類できない","分類できない","分類できない","固体",330.5]
[119,"別表第９","90-04-0",null,"オルト―アニシジン",0.1,0.5,null,null,null,"皮","1996",null,0.5,"",null,null,null,null,123.15,"Skin",1979,null,"区分4","区分外","分類対象外","分類できない","分類できない","区分外","区分2","分類できない","分類できない","区分2","区分2","分類できない","区分2(血液､中枢神経)","区分2(血液)","分類できない","液体",213]
[120,"別表第９","2039-87-4",null,"オルト―クロロスチレン","","","","",null,"","",50,null,75,null,null,null,null,138.6,"",1972,null,"区分5","分類できない","分類対象外","分類できない","分類できない","区分2","区分2","分類できない","分類できない","分類できない","分類できない","分類できない","分類できない","分類できない","分類できない","液体",188.7]
[121,"別表第９","95-49-8",null,"オルト―クロロトルエン","","","","",null,"","",50,null,"",null,null,null,null,126.59,"",1971,null,"区分外","区分外","分類対象外","分類できない","区分外","区分外","区分2","分類できない","区分外","分類できない","分類できない","分類できない","区分3(気道刺激性､麻酔作用)","区分2(中枢神経系)","分類できない","液体",159]
[122,"別表第９","95-50-1",null,"オルト―ジクロロベンゼン ",25,150,null,null,null,null,"1994",25,null,50,null,null,null,null,147.01,"",1990,null,"区分4","分類できない","分類対象外","区分4","分類できない","区分2","区分2","分類できない","分類できない","分類できない","分類できない","分類できない","区分1(肝臓､腎臓)､区分3(気道刺激性､麻酔作用)","区分1(神経系､肝臓､呼吸器､血液系)","分類できない","液体",180]
[123,"別表第９","89-72-5",null,"オルト―セカンダリ―ブチルフェノール","","","","",null,"","",5,null,"",null,null,null,null,150.22,"Skin",1977,null,"区分4","区分外","分類対象外","分類できない","分類できない","区分1","区分1","分類できない","分類できない","分類できない","分類できない","分類できない","区分3(気道刺激性､麻酔作用)","分類できない","分類できない","液体",224]
[124,"別表第９","91-23-6",null,"オルト―ニトロアニソール","","","","",null,"","","",null,"",null,null,null,null,"","","未設定(2017年現在）",null,"区分4","区分外","分類対象外","分類できない","分類できない","区分外","区分外","分類できない","分類できない","分類できない","区分2","分類できない","区分2(全身毒性)","区分2(腎臓)","分類できない","液体",277]
[125,"別表第９","91-15-6",null,"オルト―フタロジニトリル",null,0.01,null,null,null,"皮","2009","",1,"",null,null,null,null,128.13,"",2011,null,"区分3","分類できない","分類対象外","分類できない","分類できない","区分外","区分外","分類できない","分類できない","区分外","分類できない","分類できない","区分1(中枢神経系)","区分1(神経系)､区分2(精巣､眼)","分類できない","固体",304.5]
[126,"別表第９","7722-84-1",null,"過酸化水素","","","","",null,"","",1,null,"",null,null,null,null,34.020000000000003,"",1990,null,"区分4","区分3","分類対象外","区分3","区分2","区分1","区分1","分類できない","分類できない","分類できない","区分2","分類できない","区分1(呼吸器)","区分1(呼吸器)","分類できない","液体",141]
[127,"別表第９","8006-61-9",null,"ガソリン",100,300,null,null,"300 mg/m3 を許容濃度とし，mg/m3 から ppm への換算はガソリンの平均分子量を 72.5 と仮定して行っ\nた",null,"1985","",null,"",null,null,null,null,"","","未設定(2017年現在）",null,"区分外","分類できない","分類対象外","分類できない","分類できない","区分2","区分2","分類できない","区分外","区分外","区分2","区分外","区分1(肺､腎臓)､区分3(麻酔作用)","区分1(神経)､区分2(血管)","区分1","液体",39]
[128,"別表第９","120-80-9",null,"カテコール","","","","",null,"","",5,null,"",null,null,null,null,110.11,"Skin",1985,null,"区分3","区分3","分類対象外","分類できない","分類できない","区分2","区分1","分類できない","区分1","区分2","区分2","区分2","区分1(中枢神経系)､区分3(気道刺激性)","分類できない","分類できない","固体",245.5]
[129,"別表第９","7440-43-9","追加（2018年9月）","カドミウム",null,0.05,null,null,"Cdとして",null,null,null,null,null,null,null,null,null,null,null,null,null,"区分4","分類できない","分類対象外","分類できない","区分1","分類できない","分類できない","分類できない","分類できない","区分2","区分1","区分2","区分1(肺､呼吸器)","区分1(腎臓､肺､血液､骨､呼吸器)","分類できない","固体","765"]
[129,"別表第９","513-78-0","追加（2018年9月）","炭酸カドミウム",null,0.05,null,null,"Cdとして",null,null,null,null,null,null,null,null,null,null,null,null,null,"区分4","分類できない","分類対象外","分類できない","分類できない","分類できない","分類できない","分類できない","分類できない","分類できない","区分1","分類できない","区分1(呼吸器)","分類できない","分類できない","固体","357"]
[129,"別表第９","542-83-6","追加（2018年9月）","シアン化カドミウム",null,0.05,null,null,"Cdとして",null,null,null,null,null,null,null,null,null,null,null,null,null,"区分2","分類できない","分類対象外","分類できない","分類できない","分類できない","分類できない","分類できない","分類できない","分類できない","区分1","区分1","分類できない","区分1(腎臓)","分類できない","固体"]
[129,"別表第９","543-90-8","追加（2018年9月）","酢酸カドミウム",null,0.05,null,null,"Cdとして",null,null,null,null,null,null,null,null,null,null,null,null,null,"分類できない","分類できない","分類対象外","分類対象外","分類できない","分類できない","区分2","分類できない","分類できない","区分2","区分1","区分1","区分1(呼吸器､消化管)","区分1(呼吸器､腎臓､骨)","分類できない","固体"]
[129,"別表第９","1306-19-0","追加（2018年9月）","酸化カドミウム",null,0.05,null,null,"Cdとして",null,null,null,null,null,null,null,null,null,null,null,null,null,"区分3","分類できない","分類対象外","分類できない","区分1","区分2","区分2","分類できない","分類できない","区分2","区分1","区分2","区分1(呼吸器､消化器系)","区分1(呼吸器､腎臓､骨､心血管系)","分類できない","固体",1559]
[129,"別表第９","1306-23-6","追加（2018年9月）","硫化カドミウム",null,0.05,null,null,"Cdとして",null,null,null,null,null,null,null,null,null,null,null,null,null,"区分外","分類できない","分類対象外","分類できない","分類できない","分類できない","分類できない","分類できない","分類できない","区分2","区分1","区分2","区分1(呼吸器､消化器)","区分1(呼吸器､腎臓､骨)","分類できない","固体"]
[129,"別表第９","10124-36-4","追加（2018年9月）","硫酸カドミウム",null,0.05,null,null,"Cdとして",null,null,null,null,null,null,null,null,null,null,null,null,null,"区分4","分類できない","分類対象外","分類できない","分類できない","区分2","区分2","分類できない","分類できない","区分2","区分1","区分2","区分1(呼吸器､消化器系)","区分1(呼吸器､腎臓､骨)","分類できない","固体"]
[129,"別表第９","7790-84-3","追加（2018年9月）","硫酸カドミウム 8/3 水和物",null,0.05,null,null,"Cdとして",null,null,null,null,null,null,null,null,null,null,null,null,null,"分類できない","分類できない","分類対象外","分類できない","分類できない","分類できない","分類できない","分類できない","分類できない","分類できない","区分1","区分1","分類できない","区分1(腎臓)","分類できない","固体"]
[129,"別表第９","10325-94-7","追加（2018年9月）","硝酸カドミウム",null,0.05,null,null,"Cdとして",null,null,null,null,null,null,null,null,null,null,null,null,null,"区分3","分類できない","分類対象外","分類できない","分類できない","分類できない","分類できない","分類できない","分類できない","区分2","区分1","区分2","区分1(呼吸器､消化器系)","区分1(呼吸器､腎臓､骨)","分類できない","固体"]
[129,"別表第９","10022-68-1","追加（2018年9月）","硝酸カドミウム四水和物",null,0.05,null,null,"Cdとして",null,null,null,null,null,null,null,null,null,null,null,null,null,"区分3","分類できない","分類対象外","分類できない","分類できない","区分1","区分1","分類できない","分類できない","分類できない","区分1","分類できない","分類できない","分類できない","分類できない","固体","132"]
[129,"別表第９","10108-64-2","追加（2018年9月）","塩化カドミウム",null,0.05,null,null,"Cdとして",null,null,null,null,null,null,null,null,null,null,null,null,null,"区分3","分類できない","分類対象外","分類できない","分類できない","分類できない","分類できない","分類できない","区分外","区分1","区分1","区分2","区分1(呼吸器､肝臓､消化器系)","区分1(呼吸器､骨､肝臓､腎臓､心臓)","分類できない","固体","960"]
[129,"別表第９","7790-78-5","追加（2018年9月）","塩化カドミウム 5/2 水和物",null,0.05,null,null,"Cdとして",null,null,null,null,null,null,null,null,null,null,null,null,null,"区分3","分類できない","分類対象外","分類できない","分類できない","分類できない","分類できない","分類できない","分類できない","区分2","区分1","区分1","分類できない","区分1(腎臓)","分類できない","固体"]
[129,"別表第９","7789-42-6","追加（2018年9月）","臭化カドミウム",null,0.05,null,null,"Cdとして",null,null,null,null,null,null,null,null,null,null,null,null,null,"区分4","分類できない","分類対象外","分類できない","分類できない","分類できない","分類できない","分類できない","分類できない","分類できない","区分1","分類できない","区分2(呼吸器系)","区分1(腎臓)","分類できない","固体","963"]
[129,"別表第９","12214-12-9","追加（2018年9月）","硫セレン化カドミウム",null,0.05,null,null,"Cdとして",null,null,null,null,null,null,null,null,null,null,null,null,null,"区分5","分類できない","分類対象外","分類できない","分類できない","分類できない","区分2","分類できない","分類できない","分類できない","区分1","区分1","区分3(気道刺激性)","区分1(腎臓)","分類できない","固体"]
[129,"別表第９","21041-95-2","追加（2018年9月）","水酸化カドミウム",null,0.05,null,null,"Cdとして",null,null,null,null,null,null,null,null,null,null,null,null,null,"分類できない","分類できない","分類対象外","分類できない","分類できない","分類できない","分類できない","分類できない","分類できない","区分2","区分1","区分2","区分1(呼吸器､消化器系)","区分1(呼吸器､腎臓､骨)","分類できない","固体"]
[129,"別表第９","2223-93-0","追加（2018年9月）","ステアリン酸カドミウム",null,0.05,null,null,"Cdとして",null,null,null,null,null,null,null,null,null,null,null,null,null,"区分4","分類できない","分類対象外","分類できない","区分2","分類できない","区分2","分類できない","分類できない","分類できない","区分1","分類できない","分類できない","区分1(腎臓)､区分2(血液)","分類できない","固体"]
[129,"別表第９","2605-44-9","追加（2018年9月）","ラウリン酸カドミウム",null,0.05,null,null,"Cdとして",null,null,null,null,null,null,null,null,null,null,null,null,null,"区分5","分類できない","分類対象外","分類できない","分類できない","分類できない","分類できない","分類できない","分類できない","分類できない","区分1","区分1","分類できない","区分1(腎臓)","分類できない","固体"]
[130,"別表第９","1333-86-4",null,"カーボンブラック","","","","",null,"","",null,3,"",null,null,null,null,null,"",2010,null,"区分外","分類できない","分類対象外","分類対象外","分類できない","区分外","区分外","分類できない","分類できない","分類できない","区分2","分類できない","分類できない","区分1(呼吸器)","分類できない","固体",4200]
[131,"別表第９","156-62-7",null,"カルシウムシアナミド","","","","",null,"","",null,0.5,"",null,null,null,null,80.11,"",1973,null,"区分4","分類できない","分類対象外","分類対象外","分類できない","区分2","区分1","分類できない","区分1","分類できない","分類できない","分類できない","区分3(気道刺激性)","区分1(甲状腺)､区分2(肝臓)","分類できない","固体",""]
[132,"別表第９","64-18-6",null,"ぎ酸",5,9.4,null,null,null,null,"1978",5,null,10,null,null,null,null,46.02,"",1965,null,"区分4","分類できない","分類対象外","区分4","分類できない","区分1","区分1","分類できない","区分外","分類できない","区分外","分類できない","区分1(中枢神経系､呼吸器､血液系､腎臓)","区分2(呼吸器)","分類できない","液体",101]
[133,"別表第９","109-94-4",null,"ぎ酸エチル","","","","",null,"","","",null,100,null,null,null,null,74.08,"",2011,null,"区分4","区分外","分類対象外","区分4","分類できない","区分外","区分2","分類できない","分類できない","分類できない","分類できない","分類できない","区分1(呼吸器)､区分3(麻酔作用)","分類できない","分類できない","液体",54.5]
[134,"別表第９","107-31-3",null,"ぎ酸メチル","","","","",null,"","",50,null,100,null,null,null,null,60.05,"Skin",2014,null,"区分4","区分外","分類対象外","分類できない","分類できない","区分2","区分2","分類できない","分類できない","分類できない","分類できない","分類できない","区分1(中枢神経系､呼吸器)､区分3(麻酔作用)","区分2(呼吸器)","分類できない","液体",31.5]
[135,"別表第９","1300-73-8",null,"キシリジン","","","","",null,"","",0.5,null,"",null,null,null,null,121.18,"Skin",1999,null,"区分4","区分4","分類対象外","区分2","分類できない","区分外","区分2","分類できない","分類できない","分類できない","区分2","分類できない","区分2(呼吸器系)､区分3(麻酔作用)","区分2(血液､肝臓､腎臓､胆嚢､脾臓)","分類できない","液体",213]
[135,"別表第９","87-59-2",null,"２，３－キシリジン","","","","",null,"","","",null,"",null,null,null,null,"","","未設定(2017年現在）",null,"区分4","区分3","分類対象外","分類できない","分類できない","区分2","分類できない","分類できない","分類できない","分類できない","分類できない","分類できない","分類できない","区分2(血液､腎臓､肝臓)","分類できない","液体",222.7]
[135,"別表第９","95-68-1",null,"２，４－キシリジン","","","","",null,"","","",null,"",null,null,null,null,"","","未設定(2017年現在）",null,"区分4","区分外","分類対象外","分類できない","区分4","区分外","区分2","分類できない","分類できない","分類できない","区分外","分類できない","区分1(血液系)","区分1(血液系､肝臓)","分類できない","液体",214]
[135,"別表第９","95-78-3",null,"２，５－キシリジン","","","","",null,"","","",null,"",null,null,null,null,"","","未設定(2017年現在）",null,"区分4","分類できない","分類対象外","分類できない","分類できない","分類できない","分類できない","分類できない","分類できない","分類できない","分類できない","分類できない","分類できない","区分2(肝臓)","分類できない","液体",217]
[135,"別表第９","87-62-7",null,"２，６－キシリジン","","","","",null,"","","",null,"",null,null,null,null,"","","未設定(2017年現在）",null,"区分4","分類できない","分類対象外","分類できない","分類できない","区分外","区分2","分類できない","分類できない","区分外","区分2","区分2","区分1(血液)､区分2(神経系)","区分2(血液､腎臓)","分類できない","液体",214]
[135,"別表第９","95-64-7",null,"３，４－キシリジン","","","","",null,"","","",null,"",null,null,null,null,"","","未設定(2017年現在）",null,"区分4","分類できない","分類対象外","分類できない","分類できない","分類できない","分類できない","分類できない","分類できない","分類できない","分類できない","分類できない","分類できない","区分2(血液系)","分類できない","固体",226]
[135,"別表第９","108-69-0",null,"３，５－キシリジン","","","","",null,"","","",null,"",null,null,null,null,"","","未設定(2017年現在）",null,"区分4","分類できない","分類対象外","分類できない","分類できない","区分外","区分2","分類できない","分類できない","分類できない","分類できない","分類できない","区分1(血液)","区分2(血液)","分類できない","液体",220.5]
[136,"別表第９","1330-20-7",null,"キシレン","","","","",null,"","",100,null,150,null,null,null,null,106.16,"",1992,null,"区分外","区分4","分類対象外","区分4","分類できない","区分2","区分2","分類できない","分類できない","分類できない","分類できない","区分1","区分1(中枢神経系､呼吸器､肝臓､腎臓)､区分3(麻酔作用)","区分1(神経系､呼吸器)","区分1","液体",113.6]
[136,"別表第９","95-47-6",null,"ｏ－キシレン","","","","",null,"","",100,null,150,null,null,null,null,106.16,"",1992,null,"区分外","区分外","分類対象外","区分4","分類できない","分類できない","分類できない","分類できない","分類できない","分類できない","分類できない","分類できない","区分1(中枢神経系)､区分3(気道刺激性､麻酔作用)","分類できない","区分1","液体",144.5]
[136,"別表第９","108-38-3",null,"ｍ－キシレン","","","","",null,"","",100,null,150,null,null,null,null,106.16,"",1992,null,"区分外","区分外","分類対象外","区分4","分類できない","区分2","区分2","分類できない","分類できない","分類できない","分類できない","分類できない","区分1(呼吸器)､区分3(麻酔作用)","区分1(神経系､呼吸器)","区分1","液体",139.07]
[136,"別表第９","106-42-3",null,"ｐ－キシレン","","","","",null,"","",100,null,150,null,null,null,null,106.16,"",1992,null,"区分外","分類できない","分類対象外","区分4","分類できない","区分2","分類できない","分類できない","分類できない","分類できない","分類できない","区分2","区分1(中枢神経系)､区分3(気道刺激性､麻酔作用)","分類できない","区分1","固体",137]
["137","別表第９","7440-22-4","追加（2018年9月）","銀",null,0.01,null,null,"Agとして",null,null,null,null,null,null,null,null,null,null,null,null,null,"区分外","区分外","分類対象外","分類できない","分類できない","区分外","区分2","分類できない","区分1","分類できない","分類できない","分類できない","区分1(呼吸器系)","区分1(眼)､区分1(吸入:呼吸器)","分類対象外","固体","2212"]
["137","別表第９","7761-88-8","追加（2018年9月）","硝酸銀（Ⅰ）",null,null,null,null,null,null,null,null,null,null,null,null,null,null,null,null,null,null,"区分4","分類できない","分類対象外","分類対象外","分類できない","区分1","区分1","分類できない","分類できない","分類できない","分類できない","分類できない","区分3(気道刺激性)","区分1(呼吸器)","分類できない","固体","440"]
[138,"別表第９","98-82-8",null,"クメン","","","","",null,"","",50,null,"",null,null,null,null,120.19,"",1997,null,"区分外","区分外","分類対象外","区分3","区分外","区分外","区分2","分類できない","区分外","区分外","区分2","分類できない","区分1(中枢神経系､肝臓､腎臓)､区分3(麻酔作用､気道刺激性)","分類できない","区分1","液体",152.4]
[139,"別表第９","111-30-8",null,"グルタルアルデヒド",null,null,0.03,null,null,null,"2006","",null,null,null,0.05,null,null,100.11,"",1998,null,"区分3","区分4","分類対象外","区分1","区分2","区分1","区分1","区分1","区分1","区分外","区分外","区分外","区分1(中枢神経)､区分3(気道刺激性)","区分1(吸入:気道)","分類できない","液体",""]
[140,"別表第９","61789-28-4",null,"クレオソート油","","","","",null,"","","",null,"",null,null,null,null,"","","未設定(2017年現在）",null,"区分外","区分外","分類対象外","分類できない","分類できない","区分2","区分2","分類できない","分類できない","区分2","区分1","区分1","区分3(麻酔作用)","分類できない","分類できない","液体",200]
[141,"別表第９","1319-77-3",null,"クレゾール","","","","",null,"","",null,20,"",null,null,null,null,108.14,"Skin",2009,null,"区分4","区分3","分類対象外","分類できない","分類できない","区分1","区分1","分類できない","分類できない","分類できない","区分2","分類できない","区分1(中枢神経系､呼吸器､心血管系､血液系､肝臓､腎臓)､区分3(麻酔作用)","区分1(中枢神経系､心血管系､血液系､呼吸器､肝臓､腎臓)","分類できない","液体",191]
[141,"別表第９","95-48-7",null,"ｏ－クレゾール","","","","",null,"","","",20,"",null,null,null,null,108.14,"Skin",2009,null,"区分3","区分3","分類対象外","分類できない","分類できない","区分1","区分1","分類できない","分類できない","分類できない","区分2","分類できない","区分1(中枢神経系､呼吸器､心血管系､血液系､肝臓､腎臓､膵臓､脾臓)､区分3(麻酔作用)","区分1(中枢神経系､心血管系､血液系､呼吸器､肝臓､腎臓)","分類できない","固体",191]
[141,"別表第９","108-39-4",null,"ｍ－クレゾール","","","","",null,"","",null,20,"",null,null,null,null,108.14,"Skin",2009,null,"区分3","区分3","分類対象外","分類できない","分類できない","区分1","区分1","分類できない","分類できない","分類できない","区分2","分類できない","区分1(中枢神経系､呼吸器､心血管系､血液系､肝臓､腎臓)","区分1(中枢神経系､心血管系､腎臓)､区分2(呼吸器､血液系､肝臓)","分類できない","液体",202]
[141,"別表第９","106-44-5",null,"ｐ－クレゾール","","","","",null,"","","",20,"",null,null,null,null,108.14,"Skin",2009,null,"区分3","区分3","分類対象外","分類対象外","分類できない","区分1","区分1","分類できない","分類できない","分類できない","区分2","分類できない","区分1(中枢神経系､呼吸器､心血管系､肝臓､腎臓)","区分1(中枢神経系､心血管系､腎臓)､区分2(呼吸器､血液系､肝臓)","分類できない","固体",201.8]
["142","別表第９","7440-47-3","追加（2018年9月）","クロム",null,0.5,null,null,null,null,null,null,null,null,null,null,null,null,null,null,null,null,"分類できない","分類できない","分類対象外","分類できない","分類できない","分類できない","区分2","区分1","区分1","区分2","区分外","分類できない","区分2(全身毒性)､区分3(気道刺激性)","分類できない","分類できない","固体","2642"]
["142","別表第９","1308-14-1","追加（2018年9月）","水酸化クロム（Ⅲ）",null,0.5,null,null,null,null,null,null,null,null,null,null,null,null,null,null,null,null,"区分外","分類できない","分類対象外","分類対象外","区分外","分類できない","分類できない","区分1","区分1","分類できない","分類できない","分類できない","分類できない","分類できない","分類できない","固体"]
["142","別表第９","1308-38-9","追加（2018年9月）","酸化クロム（Ⅲ）",null,0.5,null,null,null,null,null,null,null,null,null,null,null,null,null,null,null,null,"区分外","分類できない","分類対象外","分類対象外","分類できない","区分外","区分外","区分1","区分1","分類できない","分類できない","分類できない","分類できない","区分1(呼吸器)","分類できない","固体","4000"]
["142","別表第９","6449-00-9","追加（2018年9月）","炭酸クロム（Ⅲ）",null,0.5,null,null,null,null,null,null,null,null,null,null,null,null,null,null,null,null,"分類できない","分類できない","分類対象外","分類できない","分類できない","分類できない","分類できない","区分1","区分1","分類できない","区分外","分類できない","分類できない","分類できない","分類できない","固体"]
["142","別表第９","10025-73-7","追加（2018年9月）","塩化クロム（Ⅲ）",null,0.5,null,null,null,null,null,null,null,null,null,null,null,null,null,null,null,null,"分類できない","分類できない","分類対象外","分類対象外","分類できない","分類できない","分類できない","区分1","区分1","分類できない","分類できない","分類できない","分類できない","分類できない","分類できない","固体","1300"]
["142","別表第９","1333-82-0","追加（2018年9月）","無水クロム酸",null,0.01,null,null,"ある種の 6 価クロム化合物として",null,null,null,null,null,null,null,null,null,null,null,null,null,"区分3","区分2","分類対象外","分類対象外","区分2","区分1","区分1","区分1","区分1","区分1","区分1","区分1","区分1(中枢神経系､呼吸器､心血管系､血液系､肝臓､腎臓)","区分1(呼吸器)","分類できない","固体","250"]
["142","別表第９","7775-11-3","追加（2018年9月）","クロム酸ナトリウム",null,0.01,null,null,"ある種の 6 価クロム化合物として",null,null,null,null,null,null,null,null,null,null,null,null,null,"区分2","区分4","分類対象外","分類できない","区分2","区分1","区分1","区分1","区分1","区分2","区分1","分類できない","区分1(呼吸器､腎臓､肝臓)","区分1(呼吸器､腎臓)","分類できない","固体"]
["142","別表第９","13517-17-4","追加（2018年9月）","クロム酸ナトリウム十水和物",null,0.01,null,null,"ある種の 6 価クロム化合物として",null,null,null,null,null,null,null,null,null,null,null,null,null,"区分3","区分5","分類対象外","分類できない","区分2","区分1","区分1","区分1","区分1","区分2","区分1","分類できない","区分1(呼吸器系､腎臓､肝臓)","区分1(呼吸器系､腎臓､肝臓)","分類できない","液体"]
["142","別表第９","7789-00-6","追加（2018年9月）","クロム酸カリウム",null,0.01,null,null,"ある種の 6 価クロム化合物として",null,null,null,null,null,null,null,null,null,null,null,null,null,"区分3","分類できない","分類対象外","分類対象外","分類できない","区分1","区分1","区分1","区分1","区分1","区分1","区分1","区分1(中枢神経系､呼吸器､心血管系､血液系､肝臓､腎臓)","区分1(呼吸器)","分類できない","固体","1000"]
["142","別表第９","13765-19-0","追加（2018年9月）","クロム酸カルシウム",null,0.01,null,null,"ある種の 6 価クロム化合物として",null,null,"",1E-3,null,null,null,null,"Crとして",null,null,null,null,"区分3","分類できない","分類対象外","分類対象外","分類できない","区分1","区分1","区分1","区分1","区分1","区分1","区分1","区分1(中枢神経系､呼吸器､心血管系､血液系､肝臓､腎臓)","区分1(呼吸器)","分類できない","固体"]
["142","別表第９","10294-40-3","追加（2018年9月）","クロム酸バリウム",null,0.01,null,null,"ある種の 6 価クロム化合物として",null,null,null,null,null,null,null,null,null,null,null,null,null,"分類できない","分類できない","分類対象外","分類できない","分類できない","分類できない","分類できない","区分1","区分1","分類できない","区分1","分類できない","分類できない","分類できない","分類できない","固体"]
["142","別表第９","13530-65-9","追加（2018年9月）","クロム酸亜鉛",null,0.01,null,null,"ある種の 6 価クロム化合物として",null,null,null,null,null,null,null,null,null,null,null,null,null,"分類できない","分類できない","分類対象外","分類対象外","分類できない","分類できない","分類できない","区分1","区分1","区分2","区分1","区分2","区分1(中枢神経系､呼吸器､心血管系､血液系､肝臓､腎臓)","区分1(呼吸器)","分類できない","固体"]
["142","別表第９","37235-82-8","追加（2018年9月）","クロム酸ビスマス",null,0.01,null,null,"ある種の 6 価クロム化合物として",null,null,null,null,null,null,null,null,null,null,null,null,null,"分類できない","分類できない","分類対象外","分類できない","分類できない","分類できない","分類できない","区分1","区分1","分類できない","区分1","分類できない","区分1(腎臓､消化器系)","区分1(腎臓､呼吸器系､神経系)","分類できない","固体"]
["142","別表第９","7758-97-6","追加（2018年9月）","クロム酸鉛",null,0.01,null,null,"ある種の 6 価クロム化合物として",null,null,"",1.2E-2,null,null,null,null,"Crとして",null,null,null,null,"区分外","分類できない","分類対象外","分類対象外","分類できない","分類できない","分類できない","区分1","区分1","区分2","区分1","区分1","区分1(中枢神経系､呼吸器､心血管系､血液系､肝臓､腎臓)","区分1(呼吸器)","分類できない","固体"]
["142","別表第９","7784-01-2","追加（2018年9月）","クロム酸銀",null,0.01,null,null,"ある種の 6 価クロム化合物として",null,null,null,null,null,null,null,null,null,null,null,null,null,"分類できない","分類できない","分類対象外","分類できない","分類できない","分類できない","分類できない","区分1","区分1","分類できない","区分1","分類できない","区分1(腎臓､消化器系)､区分3(気道刺激性)","区分1(腎臓､呼吸器系)","分類できない","固体"]
["142","別表第９","7789-06-2","追加（2018年9月）","クロム酸ストロンチウム",null,0.01,null,null,"ある種の 6 価クロム化合物として",null,null,"",5.0000000000000001E-4,null,null,null,null,"Crとして",null,null,null,null,"区分4","分類できない","分類対象外","分類対象外","分類できない","区分1","区分1","区分1","区分1","分類できない","区分1","区分2","区分1(中枢神経系､呼吸器､心血管系､血液系､肝臓､腎臓)","区分1(呼吸器)","分類できない","固体"]
["142","別表第９","50922-29-7","追加（2018年9月）","四塩基性クロム酸亜鉛",null,0.01,null,null,"ある種の 6 価クロム化合物として",null,null,null,null,null,null,null,null,null,null,null,null,null,"分類できない","分類できない","分類対象外","分類できない","分類できない","分類できない","分類できない","区分1","区分1","分類できない","区分1","分類できない","区分1(腎臓､消化器系)","区分1(腎臓､呼吸器系)","分類できない","固体"]
["142","別表第９","63020-43-9","追加（2018年9月）","クロム酸亜鉛カリウム",null,0.01,null,null,"ある種の 6 価クロム化合物として",null,null,null,null,null,null,null,null,null,null,null,null,null,"分類できない","分類できない","分類対象外","分類できない","分類できない","分類できない","分類できない","区分1","区分1","分類できない","区分1","分類できない","区分1(呼吸器系､腎臓､肝臓)","区分1(呼吸器系､腎臓､肝臓)","分類できない","固体"]
["142","別表第９","13530-68-2","追加（2018年9月）","重クロム酸",null,0.01,null,null,"ある種の 6 価クロム化合物として",null,null,null,null,null,null,null,null,null,null,null,null,null,"分類できない","分類できない","分類対象外","分類できない","分類できない","区分1","区分1","区分1","区分1","区分2","区分1","分類できない","区分1(呼吸器系､腎臓､肝臓)","区分1(呼吸器系､腎臓､肝臓)","分類できない","液体"]
["142","別表第９","10588-01-9","追加（2018年9月）","重クロム酸ナトリウム",null,0.01,null,null,"ある種の 6 価クロム化合物として",null,null,null,null,null,null,null,null,null,null,null,null,null,"区分3","区分3","分類対象外","分類できない","区分2","区分1","区分1","区分1","区分1","区分2","区分1","区分外","区分1(呼吸器系､腎臓､肝臓)","区分1(呼吸器系､血液系)","分類できない","固体","400 "]
["142","別表第９","7778-50-9","追加（2018年9月）","重クロム酸カリウム",null,0.01,null,null,"ある種の 6 価クロム化合物として",null,null,null,null,null,null,null,null,null,null,null,null,null,"区分2","区分3","分類対象外","分類対象外","区分1","区分1","区分1","区分1","区分1","区分1","区分1","区分1","区分1(中枢神経系､呼吸器､心血管系､血液系､肝臓､腎臓)","区分1(呼吸器)","分類できない","固体","500"]
["142","別表第９","7789-09-5","追加（2018年9月）","重クロム酸アンモニウム",null,0.01,null,null,"ある種の 6 価クロム化合物として",null,null,null,null,null,null,null,null,null,null,null,null,null,"区分2","区分3","分類対象外","分類対象外","区分2","区分1","区分1","区分1","区分1","区分1","区分1","区分1","区分1(中枢神経系､呼吸器､心血管系､血液系､肝臓､腎臓)","区分1(呼吸器)","分類できない","固体"]
[143,"別表第９","79-04-9",null,"クロロアセチル＝クロリド","","","","",null,"","",0.05,null,0.15,null,null,null,null,112.95,"Skin",1988,null,"区分3","分類できない","分類対象外","区分3","分類できない","区分1","区分1","分類できない","分類できない","分類できない","分類できない","分類できない","区分1(呼吸器､心血管系)","区分1(呼吸器)","分類できない","液体",106]
[144,"別表第９","107-20-0",null,"クロロアセトアルデヒド","","","","",null,"","","",null,null,null,1,null,null,78.5,"",1990,null,"区分3","区分2","分類対象外","区分1","分類できない","区分1","区分1","分類できない","分類できない","分類できない","区分2","分類できない","区分1(呼吸器系､全身毒性)","区分2(肝臓)","分類できない","液体",90]
[145,"別表第９","78-95-5",null,"クロロアセトン","","","","",null,"","","",null,null,null,1,null,null,92.53,"Skin",1986,null,"区分3","区分2","分類対象外","区分2","分類できない","区分1","区分1","分類できない","分類できない","分類できない","分類できない","分類できない","区分1(呼吸器系)","分類できない","分類できない","液体",119.7]
[146,"別表第９","75-00-3",null,"クロロエタン（別名塩化エチル）",100,260,null,null,null,null,"1993",100,null,"",null,null,null,null,64.52,"Skin",1992,null,"分類対象外","分類対象外","区分外","分類対象外","分類対象外","区分2","区分2","分類できない","分類できない","分類できない","区分2","分類できない","区分1(呼吸器､心臓)､区分2(肝臓)､区分3(麻酔作用)","区分1(神経系)","分類対象外","気体",""]
[147,"別表第９","1912-24-9",null,"２―クロロ―４―エチルアミノ―６―イソプロピルアミノ―１，３，５―トリアジン（別名アトラジン）",null,2,null,null,null,null,"2015",null,2,"",null,null,null,null,215.69,"",2013,null,"区分4","区分外","分類対象外","分類できない","区分外","区分外","区分2","分類できない","区分1","分類できない","分類できない","区分2","区分2(神経系)","区分2(心臓､肝臓､腎臓)","分類できない","固体",205]
[148,"別表第９","95-83-0",null,"４―クロロ―オルト―フェニレンジアミン","","","","",null,"","","",null,"",null,null,null,null,"","","未設定(2017年現在）",null,"分類できない","分類できない","分類対象外","分類できない","分類できない","分類できない","分類できない","分類できない","分類できない","区分2","区分2","分類できない","分類できない","分類できない","分類できない","固体",229.3]
["148-2","別表第９","79-11-8",null,"クロロ酢酸","","","","",null,"","",0.5,null,"",null,null,null,null,94.5,"Skin",2005,null,"区分3","区分2","分類対象外","分類対象外","区分2","区分1","区分1","分類できない","分類できない","分類できない","分類できない","分類できない","区分1(神経系､呼吸器､心血管系､血液系､肝臓､腎臓)","区分2(心臓､肝臓､腎臓)","分類できない","固体",189]
[149,"別表第９","75-45-6",null,"クロロジフルオロメタン（別名ＨＣＦＣ―２２）",1000,3500,null,null,null,null,"1987",1000,null,"",null,null,null,null,86.47,"",1990,null,"分類対象外","分類対象外","区分外","分類対象外","分類対象外","区分外","区分2","分類できない","分類できない","分類できない","分類できない","区分2","区分1(中枢神経系､心血管系)､区分3(麻酔作用)","分類できない","分類対象外","気体",""]
[150,"別表第９","1929-82-4",null,"２―クロロ―６―トリクロロメチルピリジン（別名ニトラピリン）","","","","",null,"","",null,10,null,20,null,null,null,230.93,"",1992,null,"区分4","区分3","分類対象外","分類できない","分類できない","区分2","区分2","分類できない","分類できない","分類できない","区分外","分類できない","区分3(麻酔作用､気道刺激性)","区分2(肝臓､腎臓)","分類できない","固体",136]
[151,"別表第９","13838-16-9",null,"２―クロロ―１，１，２―トリフルオロエチルジフルオロメチルエーテル（別名エンフルラン）","","","","",null,"","",75,null,"",null,null,null,null,184.5,"",1979,null,"区分外","分類できない","分類対象外","区分4","分類できない","分類できない","区分2","分類できない","分類できない","分類できない","分類できない","区分2","区分1(中枢神経系､心血管系)､区分3(麻酔作用､気道刺激性)","分類できない","分類できない","液体",56.5]
[152,"別表第９","600-25-9",null,"１―クロロ―１―ニトロプロパン","","","","",null,"","",2,null,"",null,null,null,null,123.54,"",2016,null,"区分4","分類できない","分類対象外","分類できない","区分外","分類できない","区分2","分類できない","分類できない","分類できない","分類できない","分類できない","区分3(気道刺激性)","分類できない","分類できない","液体",142]
[153,"別表第９","76-06-2",null,"クロロピクリン",0.1,0.67,null,null,null,null,"1968",0.1,null,"",null,null,null,null,164.39,"",1990,null,"区分3","分類できない","分類対象外","区分1","分類できない","区分1","区分1","分類できない","分類できない","分類できない","分類できない","区分外","区分1(呼吸器､血液系)","区分1(呼吸器､肝臓､血液系)","分類できない","液体",112]
[154,"別表第９","25167-80-0",null,"クロロフェノール","","","","",null,"","","",null,"",null,null,null,null,"","","未設定(2017年現在）",null,"区分3","区分4","分類対象外","区分2","区分4","区分1","区分1","分類できない","分類できない","分類できない","区分2","区分2","区分1(中枢神経系)､区分3(気道刺激性)","区分2(中枢神経系､肝臓)","分類できない","液体",175]
[154,"別表第９","95-57-8",null,"ｏ－クロロフェノール","","","","",null,"","","",null,"",null,null,null,null,"","","未設定(2017年現在）",null,"区分4","区分4","分類対象外","区分2","分類できない","区分1","区分1","分類できない","分類できない","区分外","分類できない","区分1","区分1(呼吸器系､中枢神経系)","分類できない","分類できない","液体",175]
[154,"別表第９","108-43-0",null,"ｍ－クロロフェノール","","","","",null,"","","",null,"",null,null,null,null,"","","未設定(2017年現在）",null,"区分4","分類できない","分類対象外","分類対象外","分類できない","分類できない","分類できない","分類できない","分類できない","分類できない","分類できない","分類できない","区分2(中枢神経系)","分類できない","分類できない","固体",214]
[154,"別表第９","106-48-9",null,"ｐ－クロロフェノール","","","","",null,"","","",null,"",null,null,null,null,"","","未設定(2017年現在）",null,"区分3","区分4","分類対象外","分類できない","分類できない","区分1","区分1","分類できない","分類できない","分類できない","分類できない","分類できない","分類できない","分類できない","分類できない","固体",220]
[155,"別表第９","126-99-8",null,"２―クロロ―１，３―ブタジエン","","","","",null,"","",1,null,"",null,null,null,null,88.54,"Skin",2016,null,"区分3","区分2","分類対象外","区分3","分類できない","区分2","区分2","分類できない","分類できない","分類できない","区分2","区分2","区分1(中枢神経系､呼吸器系､肝臓､腎臓)","区分1(肝臓､血液､神経系､胃､呼吸器系､心血管系)","分類できない","液体",59]
["155-2","別表第９","127-00-4","30年7月追加物質","１―クロロ―２―プロパノール",null,null,null,null,null,null,null,"1",null,null,null,null,null,null,"94.54","Skin","1999",null,"区分3","区分3","分類対象外","区分3","分類できない","分類できない","分類できない","分類できない","分類できない","区分2","分類できない","分類できない","区分3(麻酔作用)","区分1(血液系､肝臓)､区分2(腎臓､膵臓)","分類できない","液体",126]
["155-3","別表第９","78-89-7","30年7月追加物質","２―クロロ―１―プロパノール",null,null,null,null,null,null,null,"1",null,null,null,null,null,null,"94.54","Skin","1999",null,"区分3","区分3","分類対象外","分類できない","分類できない","区分2","区分2","分類できない","分類できない","区分2","分類できない","分類できない","区分3(気道刺激性､麻酔作用)","区分1(血液系､肝臓)､区分2(腎臓､膵臓)","分類できない","液体",126]
[156,"別表第９","598-78-7",null,"２―クロロプロピオン酸","","","","",null,"","",0.1,null,"",null,null,null,null,108.53,"Skin",1988,null,"区分4","区分2","分類対象外","区分3","分類できない","区分1","区分1","分類できない","区分外","分類できない","分類できない","分類できない","区分2(呼吸器系､神経系)","区分2(精巣､中枢神経系)","分類できない","液体",185]
[157,"別表第９","2698-41-1",null,"２―クロロベンジリデンマロノニトリル","","","","",null,"","","",null,null,null,0.05,null,null,188.62,"Skin",1990,null,"区分4","分類できない","分類対象外","分類対象外","区分2","区分1","区分1","分類できない","分類できない","分類できない","分類できない","分類できない","区分3(気道刺激性)","区分1(呼吸器)","分類できない","固体",310]
[158,"別表第９","108-90-7",null,"クロロベンゼン",10,46,null,null,null,null,"1993",10,null,"",null,null,null,null,112.56,"",1988,null,"区分5","分類できない","分類対象外","区分4","分類できない","区分2","区分2","分類できない","分類できない","区分2","区分2","区分外","区分1(全身毒性)､区分3(麻酔作用)","区分1(中枢神経系､末梢神経系､血液系)､区分2(肝臓､腎臓､副腎)","区分2","液体",131]
[159,"別表第９","76-15-3",null,"クロロペンタフルオロエタン（別名ＣＦＣ―１１５）","","","","",null,"","",1000,null,"",null,null,null,null,154.47,"",1978,null,"分類できない","分類できない","区分外","分類対象外","分類対象外","分類できない","分類できない","分類できない","分類できない","分類できない","分類できない","分類できない","区分外","区分外","分類対象外","気体",""]
[160,"別表第９","67-66-3",null,"クロロホルム",3,14.7,null,null,null,"皮","2005",10,null,"",null,null,null,null,119.38,"",1990,null,"区分4","区分外","分類対象外","区分4","分類できない","区分2","区分1","分類できない","分類できない","区分2","区分2","区分2","区分1(呼吸器､心血管系､肝臓､腎臓)､区分3(麻酔作用)","区分1(中枢神経系､呼吸器､肝臓､腎臓)","分類できない","液体",62]
[161,"別表第９","74-87-3",null,"クロロメタン（別名塩化メチル）",50,100,null,null,null,null,"1984",50,null,100,null,null,null,null,50.49,"Skin",1992,null,"区分4","分類できない","区分4","分類対象外","分類対象外","分類できない","分類できない","分類できない","分類できない","分類できない","区分外","区分1","区分1(神経系､心血管系､肝臓､腎臓)､区分3(麻酔作用)","区分1(肝臓､腎臓､中枢神経系)","分類対象外","気体",""]
[162,"別表第９","95-69-2",null,"４―クロロ―２―メチルアニリン","","","","",null,"","","",null,"",null,null,null,null,"","","未設定(2017年現在）",null,"区分4","区分4","分類対象外","分類できない","分類できない","分類できない","分類できない","分類できない","分類できない","区分2","区分1","分類できない","区分1(膀胱､血液)","区分1(膀胱､血液系)","分類できない","固体",236]
[162,"別表第９","3165-93-3",null,"４―クロロ―２―メチルアニリン塩酸塩","","","","",null,"","","",null,"",null,null,null,null,"","","未設定(2017年現在）",null,"区分4","区分5","分類対象外","分類できない","分類できない","区分外","分類できない","分類できない","分類できない","区分2","区分1","分類できない","区分1(膀胱)","区分1(膀胱､肝臓)","分類できない","固体",""]
["162-2","別表第９","56-72-4",null,"Ｏ―３―クロロ―４―メチル―２―オキソ―２Ｈ―クロメン―７―イル＝Ｏ′Ｏ′′―ジエチル＝ホスホロチオアート","","","","",null,"","","",0.05,"",null,null,null,null,362.8,"Skin",2005,null,"区分2","区分3","分類対象外","分類対象外","区分2","区分外","区分2","分類できない","分類できない","分類できない","分類できない","分類できない","区分1(神経系)","区分1(神経系)","分類できない","固体",200]
[163,"別表第９","107-30-2",null,"クロロメチルメチルエーテル",null,null,null,null,null,null,"1992","",null,"",null,null,null,null,80.5,"",1979,null,"区分4","分類できない","分類対象外","区分1","分類できない","区分1","区分1","分類できない","分類できない","区分2","区分1","分類できない","区分1(呼吸器)","分類できない","分類できない","液体",59]
[164,"別表第９","64741-44-2",null,"軽油","","","","",null,"","","",null,"",null,null,null,null,"","","未設定(2017年現在）",null,"区分外","分類できない","分類対象外","分類できない","区分4","区分2","区分2","分類できない","区分外","区分外","区分2","区分外","区分1(腎臓)､区分3(気道刺激性､麻酔作用)","区分1(腎臓)","区分1","液体",143]
[165,"別表第９","68308-34-9",null,"けつ岩油","","","","",null,"","","",null,"",null,null,null,null,"","","未設定(2017年現在）",null,"区分外","区分外","分類対象外","分類できない","分類できない","分類できない","分類できない","分類できない","分類できない","区分2","区分1","分類できない","分類できない","分類できない","分類できない","液体",""]
["165-2","別表第９","14808-60-7","30年7月追加物質","石英","0.03",null,null,null,null,null,"2006",null,"0.025",null,null,null,null,null,"60.09",null,"2009",null,"分類できない","分類できない","分類対象外","分類対象外","分類できない","分類できない","分類できない","分類できない","分類できない","区分2","区分1","分類できない","分類できない","区分1(呼吸器､免疫系､腎臓)","分類できない","固体"]
["165-2","別表第９","14464-46-1","追加（2018年9月）","クリストバライト","",0.03,null,null,null,"",null,"",2.5000000000000001E-2,null,null,null,null,null,null,null,null,null,"分類できない","分類できない","分類対象外","分類対象外","分類できない","分類できない","分類できない","分類できない","分類できない","区分2","区分1","分類できない","分類できない","区分1(呼吸器)","分類できない","固体",2230]
["165-2","別表第９","15468-32-3","追加（2018年9月）","トリジマイト",null,null,null,null,null,null,null,null,null,null,null,null,null,null,null,null,null,null,"分類できない","分類できない","分類対象外","分類対象外","分類できない","分類できない","分類できない","分類できない","分類できない","分類できない","区分1","分類できない","分類できない","区分1(呼吸器)","分類できない","固体",2230]
["165-2","別表第９","1317-95-9","追加（2018年9月）","トリポリ",null,null,null,null,null,null,null,null,null,null,null,null,null,null,null,null,null,null,"分類できない","分類できない","分類対象外","分類対象外","分類できない","分類できない","分類できない","分類できない","分類できない","分類できない","区分1","分類できない","分類できない","区分1(呼吸器)","分類できない","固体",2230]
[166,"別表第９","463-51-4",null,"ケテン","","","","",null,"","",0.5,null,1.5,null,null,null,null,42.04,"",1962,null,"分類できない","分類できない","分類できない","分類対象外","分類対象外","分類できない","分類できない","分類できない","分類できない","分類できない","分類できない","分類できない","区分1(呼吸器系)","分類できない","分類対象外","気体",""]
[167,"別表第９","7782-65-2",null,"ゲルマン","","","","",null,"","",0.2,null,"",null,null,null,null,76.63,"",1970,null,"分類できない","分類できない","区分1","分類対象外","分類対象外","区分2","区分2","分類できない","分類できない","分類できない","分類できない","分類できない","区分1(肝臓､腎臓)､区分2(血液)､区分3(麻酔作用､気道刺激性)","分類できない","分類対象外","気体",""]
["168","別表第９","64742-52-5","追加（2018年9月）","石油留分",null,null,null,null,null,null,null,null,null,null,null,null,null,null,null,null,null,null,"区分外","区分外","分類対象外","分類できない","分類できない","区分2","区分2","分類できない","分類できない","分類できない","区分1","分類できない","分類できない","分類できない","分類できない","液体",352]
["168","別表第９","64742-54-7","追加（2018年9月）","石油留分",null,null,null,null,null,null,null,null,null,null,null,null,null,null,null,null,null,null,"分類できない","分類できない","分類対象外","分類できない","分類できない","分類できない","分類できない","分類できない","分類できない","分類できない","分類できない","分類できない","分類できない","分類できない","分類できない","液体",150]
["168","別表第９","64742-55-8","追加（2018年9月）","石油留分",null,null,null,null,null,null,null,null,null,null,null,null,null,null,null,null,null,null,"分類できない","分類できない","分類対象外","分類できない","分類できない","分類できない","分類できない","分類できない","分類できない","分類できない","分類できない","分類できない","分類できない","分類できない","区分1","液体","150 "]
["168","別表第９","64742-65-0","追加（2018年9月）","石油留分",null,null,null,null,null,null,null,null,null,null,null,null,null,null,null,null,null,null,"区分外","区分外","分類対象外","分類できない","分類できない","区分外","区分外","分類できない","分類できない","分類できない","分類できない","分類できない","分類できない","分類できない","分類できない","液体",337]
["168","別表第９","8002-05-9","追加（2018年9月）","ニュートラル潤滑油用基油",null,null,null,null,null,null,null,null,null,null,null,null,null,null,null,null,null,null,"区分外","区分外","分類対象外","分類できない","区分4","区分3","区分2","分類できない","区分外","区分2","区分1","分類できない","区分2(肺)","区分1(肺､皮膚)","区分1"]
["168","別表第９","8012-95-1","追加（2018年9月）","ニュートラル潤滑油用基油",null,null,null,null,null,null,null,null,null,null,null,null,null,null,null,null,null,null,"区分外","区分外","分類対象外","分類できない","区分4","区分3","区分2","分類できない","区分外","区分2","区分1","分類できない","区分2(肺)","区分1(肺､皮膚)","区分1"]
["168","別表第９","64741-88-4","追加（2018年9月）","ニュートラル潤滑油用基油",null,null,null,null,null,null,null,null,null,null,null,null,null,null,null,null,null,null,"区分外","区分外","分類対象外","分類できない","区分4","区分3","区分2","分類できない","区分外","区分2","区分1","分類できない","区分2(肺)","区分1(肺､皮膚)","区分1"]
["168","別表第９","64741-97-5","追加（2018年9月）","ニュートラル潤滑油用基油",null,null,null,null,null,null,null,null,null,null,null,null,null,null,null,null,null,null,"区分外","区分外","分類対象外","分類できない","区分4","区分3","区分2","分類できない","区分外","区分2","区分1","分類できない","区分2(肺)","区分1(肺､皮膚)","区分1"]
["168","別表第９","72623-86-0","追加（2018年9月）","ニュートラル潤滑油用基油",null,null,null,null,null,null,null,null,null,null,null,null,null,null,null,null,null,null,"区分外","区分外","分類対象外","分類できない","区分4","区分3","区分2","分類できない","区分外","区分2","区分1","分類できない","区分2(肺)","区分1(肺､皮膚)","区分1","液体","150"]
["168","別表第９","72623-87-1","追加（2018年9月）","ニュートラル潤滑油用基油",null,null,null,null,null,null,null,null,null,null,null,null,null,null,null,null,null,null,"区分外","区分外","分類対象外","分類できない","区分4","区分3","区分2","分類できない","区分外","区分2","区分1","分類できない","区分2(肺)","区分1(肺､皮膚)","区分1"]
[169,"別表第９","10026-13-8",null,"五塩化りん",0.1,0.85,null,null,null,null,"1989",0.1,null,"",null,null,null,null,208.24,"",1985,null,"区分4","分類できない","分類対象外","分類できない","分類できない","区分1","区分1","分類できない","分類できない","分類できない","分類できない","分類できない","区分1(呼吸器系)､区分2(循環器)","区分2(骨組織)","分類できない","固体",162]
[170,"別表第９","8002-74-2",null,"固形パラフィン","","","","",null,"","",null,2,"",null,null,null,null,"","",1972,null,"区分外","区分外","分類対象外","分類できない","分類できない","区分外","区分2","分類できない","分類できない","分類できない","分類できない","分類できない","区分3(気道刺激性)","分類できない","分類できない","固体",204]
[171,"別表第９","1314-62-1",null,"五酸化バナジウム ",null,0.05,null,null,null,null,"2003",null,0.05,"",null,null,null,null,181.88,"",2008,null,"区分2","分類できない","分類対象外","分類できない","区分4","分類できない","区分2","分類できない","分類できない","区分1","区分2","分類できない","区分1(呼吸器系､肝臓､腎臓)","区分1(呼吸器系)､区分2(肝臓)","分類できない","固体",1750]
["172","別表第９","7440-48-4","追加（2018年9月）","コバルト",null,0.05,null,null,"Coとして",null,null,null,null,null,null,null,null,null,null,null,null,null,"区分外","分類できない","分類対象外","分類対象外","分類できない","分類できない","分類できない","区分1","区分1","分類できない","区分2","分類できない","区分3(気道刺激性)","区分1(呼吸器､心血管系､甲状腺､血液系)","分類できない","固体",2870]
["172","別表第９","1307-96-6","追加（2018年9月）","酸化コバルト（Ⅱ）",null,0.05,null,null,"Coとして",null,null,null,null,null,null,null,null,null,null,null,null,null,"区分3","分類できない","分類対象外","分類対象外","分類できない","分類できない","分類できない","区分1","区分1","分類できない","区分2","分類できない","区分1(肝臓)､区分2(心臓)","区分1(呼吸器､甲状腺､血液系)","分類できない","固体"]
["172","別表第９","7646-79-9","追加（2018年9月）","塩化コバルト（Ⅱ）",null,0.05,null,null,"Coとして",null,null,null,null,null,null,null,null,null,null,null,null,null,"区分3","分類できない","分類対象外","分類対象外","分類できない","区分2","区分2","区分1","区分1","区分2","区分2","区分2","区分1(中枢神経系､消化管､肝臓､腎臓)､区分3(気道刺激性)","区分1(神経系､呼吸器､心血管系､甲状腺､血液系)､区分2(精巣)","分類できない","固体","1049"]
["172","別表第９","10026-22-9","追加（2018年9月）","硝酸コバルト（Ⅱ）六水和物",null,0.05,null,null,"Coとして",null,null,null,null,null,null,null,null,null,null,null,null,null,"分類できない","分類できない","分類対象外","分類できない","分類できない","分類できない","分類できない","区分1","区分1","分類できない","区分2","分類できない","分類できない","区分1(呼吸器系､心臓)","分類できない","固体","74 "]
["172","別表第９","10026-24-1","追加（2018年9月）","硫酸コバルト（Ⅱ）七水和物",null,0.05,null,null,"Coとして",null,null,null,null,null,null,null,null,null,null,null,null,null,"区分4","分類できない","分類対象外","分類対象外","分類できない","分類できない","分類できない","区分1","区分1","区分2","区分2","区分2","分類できない","区分1(呼吸器)､区分2(男性生殖器)","分類できない","固体","420"]
["315","別表第９","1344-48-5","追加（2018年9月）","硫化水銀（Ⅱ）",null,2.5000000000000001E-2,null,null,"Hgとして",null,null,null,null,null,null,null,null,null,null,null,null,null,"分類できない","分類できない","分類対象外","分類対象外","分類できない","分類できない","分類できない","分類できない","区分1","分類できない","分類できない","区分1","区分1(中枢神経系､末梢神経系､腎臓､消化管)","区分1(中枢神経系､腎臓)","分類できない"]
["172","別表第９","13963-58-1","追加（2018年9月）","シアン化コバルトカリウム",null,0.05,null,null,"Coとして",null,null,null,null,null,null,null,null,null,null,null,null,null,"区分4","分類できない","分類対象外","分類できない","分類できない","分類できない","分類できない","分類できない","分類できない","分類できない","区分2","分類できない","分類できない","区分1(呼吸器系､心血管系)","分類できない","固体"]
["172","別表第９","80546-49-2","追加（2018年9月）","塩素酸コバルト",null,0.05,null,null,"Coとして",null,null,null,null,null,null,null,null,null,null,null,null,null,"分類できない","分類できない","分類対象外","分類できない","分類できない","分類できない","分類できない","区分1","区分1","分類できない","区分2","分類できない","分類できない","区分1(呼吸器系､心臓)","分類できない","固体"]
[173,"別表第９","7789-30-2",null,"五弗化臭素","","","","",null,"","",0.1,null,"",null,null,null,null,174.92,"",1979,null,"分類できない","分類できない","分類対象外","区分1","分類できない","区分1","区分1","分類できない","分類できない","分類できない","分類できない","分類できない","区分1(呼吸器系)､区分2(全身毒性)","区分2(歯､骨､血液)","区分2","液体",40]
["174","別表第９","8007-45-2","追加（2018年9月）","コールタール",null,null,null,null,null,null,null,null,null,null,null,null,null,null,null,null,null,null,"区分4","区分外","分類対象外","分類できない","分類できない","区分3","区分1","分類できない","区分1","区分2","区分1","分類できない","区分1(神経系)､区分3(気道刺激性)","区分2(呼吸器系)","分類できない","液体"]
["175","別表第９","65996-79-4","追加（2018年9月）","コールタールナフサ",null,null,null,null,null,null,null,null,null,null,null,null,null,null,null,null,null,null,"区分外","区分外","分類対象外","分類できない","分類できない","区分外","区分外","分類できない","分類できない","分類できない","分類できない","分類できない","分類できない","分類できない","分類できない","液体"]
[176,"別表第９","64-19-7",null,"酢酸",10,25,null,null,null,null,"1978",10,null,15,null,null,null,null,60,"",2003,null,"区分外","区分4","分類対象外","分類できない","分類できない","区分1","区分1","分類できない","分類できない","分類できない","分類できない","分類できない","区分1(血液､呼吸器系)","分類できない","分類できない","液体",118]
[177,"別表第９","141-78-6",null,"酢酸エチル",200,720,null,null,null,null,"1995",400,null,"",null,null,null,null,88.1,"",1979,null,"区分外","区分外","分類対象外","区分4","分類できない","区分外","区分2","分類できない","区分外","区分外","分類できない","分類できない","区分3(気道刺激性､麻酔作用)","分類できない","分類できない","液体",77]
[178,"別表第９","108-84-9",null,"酢酸１，３―ジメチルブチル","","","","",null,"","",50,null,"",null,null,null,null,144.21,"",1963,null,"区分外","区分外","分類対象外","分類できない","分類できない","区分2","区分2","分類できない","分類できない","分類できない","分類できない","分類できない","区分3(気道刺激性､麻酔作用)","分類できない","分類できない","液体",""]
[179,"別表第９","301-04-2",null,"酢酸鉛","","","","",null,"","",null,0.05,"",null,null,null,"Pbとして","","",2006,null,"分類できない","分類できない","分類対象外","分類できない","分類できない","区分2","区分2","分類できない","分類できない","区分2","区分2","区分1","区分1(血液系､腎臓､神経系)","区分1(血液系､腎臓､神経系)","分類できない","固体",""]
[180,"別表第９","108-05-4",null,"酢酸ビニル","","","","",null,"","",10,null,15,null,null,null,null,86.09,"",1992,null,"区分外","区分外","分類対象外","区分4","分類できない","区分2","区分2","分類できない","分類できない","区分2","区分2","区分外","区分3(気道刺激性､麻酔作用)","区分2(呼吸器)","分類できない","液体",72]
[181,"別表第９","123-86-4",null,"酢酸ｎ－ブチル",100,475,null,null,null,null,"1994",50,null,150,null,null,null,null,116.16,"",2015,null,"区分外","区分外","分類対象外","分類できない","分類できない","区分外","区分2","分類できない","分類できない","分類できない","分類できない","分類できない","区分3(気道刺激性､麻酔作用)","分類できない","分類できない","液体",126.1]
[181,"別表第９","110-19-0",null,"酢酸イソブチル","","","","",null,"","",50,null,150,null,null,null,null,116.16,"",2015,null,"区分外","区分外","分類対象外","区分4","区分外","分類できない","区分2","分類できない","分類できない","分類できない","分類できない","分類できない","区分3(気道刺激性､麻酔作用)","分類できない","分類できない","液体",116.5]
[181,"別表第９","540-88-5",null,"酢酸tert－ブチル","","","","",null,"","",50,null,150,null,null,null,null,116.16,"",2015,null,"区分外","区分外","分類対象外","区分4","分類できない","区分外","区分2","分類できない","分類できない","分類できない","分類できない","分類できない","区分3(麻酔作用)","分類できない","分類できない","液体",97.8]
[181,"別表第９","105-46-4",null,"酢酸sec－ブチル","","","","",null,"","",50,null,150,null,null,null,null,116.16,"",2015,null,"区分外","区分外","分類対象外","分類できない","分類できない","区分2","区分2","分類できない","分類できない","分類できない","分類できない","分類できない","区分3(気道刺激性､麻酔作用)","分類できない","分類できない","液体",112]
[182,"別表第９","109-60-4",null,"酢酸ｎ－プロピル",200,830,null,null,null,null,"1970",200,null,250,null,null,null,null,102.13,"",1962,null,"区分外","区分外","分類対象外","区分4","分類できない","分類できない","区分2","分類できない","分類できない","分類できない","分類できない","分類できない","区分3(気道刺激性､麻酔作用)","分類できない","分類できない","液体",101.3]
[182,"別表第９","108-21-4",null,"酢酸イソプロピル",100,"","","","暫定","",2017,100,null,200,null,null,null,null,102.13,"",2001,null,"区分外","区分外","分類対象外","区分4","分類できない","区分外","区分2","分類できない","分類できない","分類できない","分類できない","分類できない","区分3(気道刺激性､麻酔作用)","分類できない","分類できない","液体",89]
[183,"別表第９","140-11-4",null,"酢酸ベンジル","","","","",null,"","",10,null,"",null,null,null,null,150.18,"",1990,null,"区分外","区分外","分類対象外","分類できない","分類できない","区分2","区分2","分類できない","分類できない","分類できない","分類できない","分類できない","区分1(呼吸器)､区分3(麻酔作用)","区分1(腎臓)､区分2(鼻腔)","分類できない","液体",212]
[184,"別表第９","628-63-7",null,"酢酸ｎ－ペンチル（別名酢酸ｎ－アミル）","","","","",null,"","",50,null,100,null,null,null,null,130.19999999999999,"",1997,null,"区分外","区分外","分類対象外","分類できない","分類できない","区分2","区分2","分類できない","分類できない","分類できない","分類できない","分類できない","区分3(気道刺激性､麻酔作用)","区分1(視神経)","分類できない","液体",149.19999999999999]
[184,"別表第９","123-92-2",null,"酢酸イソペンチル（別名酢酸イソアミル）","","","","",null,"","",50,null,100,null,null,null,null,130.19999999999999,"",1997,null,"区分外","分類できない","分類対象外","分類できない","分類できない","区分2","区分2","分類できない","分類できない","分類できない","分類できない","分類できない","区分3(気道刺激性､麻酔作用)","区分1(視神経)","分類できない","液体",142.5]
[185,"別表第９","79-20-9",null,"酢酸メチル",200,610,null,null,null,null,"1963",200,null,250,null,null,null,null,74.08,"",2012,null,"区分外","区分外","分類対象外","分類できない","分類できない","区分外","区分2","分類できない","区分外","分類できない","分類できない","分類できない","区分1(視神経)､区分3(気道刺激性､麻酔作用)","区分1(視神経)","分類できない","液体",56.8]
[186,"別表第９","9014-01-1",null,"サチライシン","","","","",null,"","","",null,null,null,null,6.0000000000000002E-5,null,"","",1972,null,"区分4","分類できない","分類対象外","分類できない","区分1","区分外","区分2","区分1","分類できない","区分外","分類できない","分類できない","区分1(呼吸器系)","分類できない","分類できない","固体",""]
[187,"別表第９","7719-12-2",null,"三塩化りん",0.2,1.1000000000000001,null,null,null,null,"1989",0.2,null,0.5,null,null,null,null,137.35,"",1992,null,"区分2","分類できない","分類対象外","区分2","分類できない","区分1","区分1","分類できない","分類できない","区分外","分類できない","分類できない","区分1(呼吸器系)","区分1(呼吸器系)","分類できない","液体",76]
[188,"別表第９","1314-13-2",null,"酸化亜鉛",null,null,null,null,null,null,"1969",null,2,null,10,null,null,null,81.37,"",2001,null,"区分外","区分外","分類対象外","分類対象外","区分外","区分外","区分外","分類できない","区分外","分類できない","分類できない","区分2","区分1(呼吸器､全身毒性)","分類できない","分類できない","固体",""]
[189,"別表第９","1344-28-1",null,"酸化アルミニウム","","","","",null,"","",null,1,"",null,null,null,null,"","",2007,null,"区分外","分類できない","分類対象外","分類できない","分類できない","分類できない","分類できない","分類できない","分類できない","分類できない","区分外","分類できない","区分3(気道刺激性)","区分1(吸入:肺)","分類できない","固体",3000]
[190,"別表第９","1305-78-8",null,"酸化カルシウム","","","","",null,"","",null,2,"",null,null,null,null,56.08,"",1990,null,"区分外","分類できない","分類対象外","分類対象外","分類できない","区分2","区分1","分類できない","分類できない","分類できない","分類できない","分類できない","区分1(呼吸器)","区分1(呼吸器)","分類できない","固体",2850]
[191,"別表第９","13463-67-7",null,"酸化チタン（Ⅳ）",null,0.3,null,null,null,null,"2013",null,10,"",null,null,null,null,79.900000000000006,"",1992,null,"区分外","分類できない","分類対象外","分類対象外","分類できない","区分外","区分外","分類できない","分類できない","分類できない","区分2","分類できない","分類できない","区分1(呼吸器)","分類できない","固体",2500]
[192,"別表第９","1309-37-1",null,"酸化鉄","","","","",null,"","",null,5,"",null,null,null,null,159.69999999999999,"",2005,null,"分類できない","分類できない","分類対象外","分類できない","分類できない","区分2","区分1","分類できない","分類できない","分類できない","区分外","分類できない","区分3(気道刺激性)","区分1(呼吸器系)","分類できない","固体",""]
[193,"別表第９","106-88-7",null,"１，２―酸化ブチレン","","","","",null,"","","",null,"",null,null,null,null,"","","未設定(2017年現在）",null,"区分4","区分4","分類対象外","分類できない","分類できない","区分1","区分1","分類できない","区分外","区分外","区分2","区分2","区分3(気道刺激性)","区分2(神経系､呼吸器系､腎臓､嗅覚器)","分類できない","液体",63.3]
[194,"別表第９","75-56-9",null,"酸化プロピレン","","","","",null,"","",2,null,"",null,null,null,null,58.08,"",2000,null,"区分4","区分3","分類対象外","区分4","分類できない","区分2","区分1","分類できない","区分1","区分2","区分2","区分2","区分3(気道刺激性､麻酔作用)","分類できない","分類できない","液体",34.229999999999997]
[195,"別表第９","141-79-7",null,"酸化メシチル","","","","",null,"","",15,null,25,null,null,null,null,98.14,"",1992,null,"区分4","区分外","分類対象外","区分3","分類できない","区分2","区分2","分類できない","分類できない","分類できない","分類できない","区分2","区分3(気道刺激性､麻酔作用)","区分1(呼吸器)","分類できない","液体",130]
[196,"別表第９","1303-86-2",null,"三酸化二ほう素","","","","",null,"","",null,10,"",null,null,null,null,69.64,"",1985,null,"区分外","分類できない","分類対象外","分類対象外","分類できない","区分外","区分2","分類できない","分類できない","分類できない","分類できない","区分1","区分3(気道刺激性)","分類できない","分類できない","固体",1860]
[197,"別表第９","10294-33-4",null,"三臭化ほう素","","","","",null,"","","",null,null,null,0.7,null,null,250.57,"",2015,null,"分類できない","分類できない","分類対象外","分類できない","分類できない","区分1","区分1","分類できない","分類できない","分類できない","分類できない","分類できない","区分2(呼吸器系)","区分2(呼吸器系)","分類できない","液体",91]
["197-2","別表第９","7784-18-1",null,"三弗化アルミニウム","","","","",null,"","","",null,"",null,null,null,null,"","","未設定(2017年現在）",null,"区分3","分類できない","分類対象外","分類対象外","分類できない","分類できない","区分2","分類できない","分類できない","分類できない","分類できない","区分2","区分3(気道刺激性)","区分1(骨)","分類できない","固体",1272]
[198,"別表第９","7790-91-2",null,"三弗化塩素","","","","",null,"","","",null,null,null,0.1,null,null,92.46,"",1979,null,"分類できない","分類できない","区分2","分類対象外","分類対象外","区分1","区分1","分類できない","分類できない","分類できない","分類できない","分類できない","区分1(呼吸器)","区分1(肺)","区分外","気体",""]
[199,"別表第９","7637-07-2",null,"三弗化ほう素",0.3,0.83,null,null,null,null,"1979",0.1,null,null,null,0.7,null,null,67.819999999999993,"",2015,null,"分類対象外","分類対象外","区分2","分類対象外","分類対象外","区分1","区分1","分類できない","分類できない","分類できない","分類できない","分類できない","区分2(呼吸器､心血管系)","区分1(呼吸器､腎臓､骨)","分類対象外","気体",""]
[200,"別表第９","7778-54-3",null,"次亜塩素酸カルシウム","","","","",null,"","","",null,"",null,null,null,null,"","","未設定(2017年現在）",null,"区分4","区分外","分類対象外","分類対象外","分類できない","区分1","区分1","分類できない","区分1","分類できない","分類できない","分類できない","区分2(中枢神経系)","分類できない","分類できない","固体",""]
[201,"別表第９","613-35-4",null,"Ｎ，Ｎ′―ジアセチルベンジジン","","","","",null,"","","",null,"",null,null,null,null,"","","未設定(2017年現在）",null,"分類できない","分類できない","分類対象外","分類対象外","分類できない","分類できない","分類できない","分類できない","分類できない","分類できない","区分2","分類できない","分類できない","区分2(腎臓)","分類できない","固体",""]
[202,"別表第９","123-42-2",null,"ジアセトンアルコール","","","","",null,"","",50,null,"",null,null,null,null,116.16,"",1979,null,"区分外","区分外","分類対象外","分類できない","分類できない","区分2","区分2","分類できない","分類できない","分類できない","分類できない","区分2","区分2(血液､肝臓)､区分3(麻酔作用､気道刺激性)","分類できない","分類できない","液体",167.9]
[203,"別表第９","334-88-3",null,"ジアゾメタン","","","","",null,"","",0.2,null,"",null,null,null,null,42.04,"",1970,null,"分類できない","分類できない","分類できない","分類対象外","分類対象外","区分2","区分1","区分1","区分1","分類できない","区分外","分類できない","区分1(呼吸器系)､区分2(脾臓､肝臓)","分類できない","分類対象外","気体",""]
[204,"別表第９","420-04-2",null,"シアナミド","","","","",null,"","",null,2,"",null,null,null,null,42.04,"",1974,null,"区分3","区分3","分類対象外","分類対象外","分類できない","区分2","区分2","分類できない","区分1","分類できない","分類できない","区分2","区分1(中枢神経系)､区分3(気道刺激性)","区分1(血液系､甲状腺､肝臓､生殖器(男性))","分類できない","固体",83]
[205,"別表第９","7085-85-0",null,"２―シアノアクリル酸エチル","","","","",null,"","",0.2,null,"",null,null,null,null,125.12,"",1995,null,"区分外","区分外","分類対象外","分類できない","分類できない","区分外","区分2","分類できない","分類できない","分類できない","分類できない","分類できない","区分3(気道刺激性)","分類できない","分類できない","液体",54]
[206,"別表第９","137-05-3",null,"２―シアノアクリル酸メチル","","","","",null,"","",0.2,null,"",null,null,null,null,110.1,"",1955,null,"区分外","区分外","分類対象外","区分2","分類できない","区分外","区分2","分類できない","分類できない","分類できない","分類できない","分類できない","区分3(気道刺激性)","分類できない","分類できない","液体",47]
[207,"別表第９","615-05-4",null,"２，４―ジアミノアニソール","","","","",null,"","","",null,"",null,null,null,null,"","","未設定(2017年現在）",null,"区分4","分類できない","分類対象外","分類できない","分類できない","区分3","区分外","分類できない","区分外","区分2","区分2","分類できない","分類できない","区分2(経口:甲状腺)","分類できない","固体",221]
[208,"別表第９","101-80-4",null,"４，４′―ジアミノジフェニルエーテル","","","","",null,"","","",null,"",null,null,null,null,"","","未設定(2017年現在）",null,"区分4","分類できない","分類対象外","分類対象外","分類できない","分類できない","分類できない","分類できない","区分1","区分2","区分1","区分2","分類できない","区分1(血液系)､区分2(下垂体､甲状腺､肝臓､腎臓､生殖器(男性))","分類できない","固体",350]
[209,"別表第９","139-65-1",null,"４，４′―ジアミノジフェニルスルフィド","","","","",null,"","","",null,"",null,null,null,null,"","","未設定(2017年現在）",null,"区分4","分類できない","分類対象外","分類対象外","分類できない","分類できない","分類できない","分類できない","分類できない","分類できない","区分2","区分2","分類できない","区分2(甲状腺､肺､肝臓)","分類できない","固体",361]
[210,"別表第９","838-88-0",null,"４，４′―ジアミノ―３，３′―ジメチルジフェニルメタン","","","","",null,"","","",null,"",null,null,null,null,"","","未設定(2017年現在）",null,"分類できない","分類できない","分類対象外","分類対象外","分類できない","分類できない","分類できない","分類できない","分類できない","分類できない","区分1","分類できない","分類できない","分類できない","分類できない","固体",230]
[211,"別表第９","95-80-7",null,"２，４―ジアミノトルエン","","","","",null,"","","",null,"",null,null,null,null,"","","未設定(2017年現在）",null,"区分3","区分4","分類対象外","分類対象外","区分外","区分外","区分2","分類できない","区分1","区分2","区分1","区分2","区分1(中枢神経系､肝臓､血液系)､区分3(気道刺激性)","区分1(免疫系､肝臓､精巣)","分類できない","固体",292]
["212","別表第９","78-00-2","追加（2018年9月）","テトラエチル鉛",null,null,null,null,null,null,null,null,null,null,null,null,null,null,null,null,null,null,"区分2","区分3","分類対象外","区分1","分類できない","分類できない","分類できない","分類できない","分類できない","区分外","分類できない","区分2","区分1(中枢神経系)","区分1(神経系､肝臓)","分類できない","液体","200 "]
["212","別表第９","75-74-1","追加（2018年9月）","テトラメチル鉛",null,null,null,null,null,null,null,null,null,null,null,null,null,null,null,null,null,null,"区分3","分類できない","分類対象外","区分2","分類できない","分類できない","分類できない","分類できない","分類できない","分類できない","区分外","分類できない","区分1(神経系)","区分1(神経系､肝臓)","分類できない","液体","110"]
[213,"別表第９","151-50-8",null,"シアン化カリウム",null,null,null,5,null,"皮","2001",null,null,"",null,null,5,null,"","Skin",1991,null,"区分2","区分1","分類対象外","分類できない","分類できない","区分3","区分2","分類できない","分類できない","分類できない","分類できない","分類できない","区分2(中枢神経系)","区分1(甲状腺､腎臓､肝臓､脾臓､中枢神経系)","分類できない","固体",1625]
[214,"別表第９","592-01-8",null,"シアン化カルシウム",null,null,null,5,null,"皮","2001",null,null,"",null,null,5,null,"","Skin",1991,null,"区分2","分類できない","分類対象外","分類できない","分類できない","分類できない","区分2","分類できない","分類できない","分類できない","分類できない","分類できない","区分1(中枢神経系､心血管系)､区分3(気道刺激性)","区分1(中枢神経系､甲状腺)","分類できない","固体",""]
[215,"別表第９","74-90-8",null,"シアン化水素",5,5.5,null,null,null,"皮","1990","",null,null,null,4.7,null,"CNとして",27.03,"Skin",1991,null,"区分1","区分1","分類対象外","区分1","分類できない","分類できない","区分2","分類できない","分類できない","分類できない","分類できない","分類できない","区分1(中枢神経系､呼吸器､心臓)","区分1(中枢神経系)","分類できない","液体",26]
[216,"別表第９","143-33-9",null,"シアン化ナトリウム",null,null,null,5,null,"皮","2001",null,null,"",null,null,5,null,"","Skin",1991,null,"区分2","区分1","分類対象外","分類できない","分類できない","区分3","区分2","分類できない","分類できない","分類できない","分類できない","区分2","分類できない","区分1(中枢神経系､精巣､腎臓､副腎､脾臓)","分類できない","固体",1496]
[217,"別表第９","108-83-8",null,"ジイソブチルケトン","","","","",null,"","",25,null,"",null,null,null,null,142.22999999999999,"",1979,null,"区分外","区分外","分類対象外","分類できない","分類できない","区分外","区分2","分類できない","区分外","分類できない","分類できない","分類できない","区分1(中枢神経系､肝臓)､区分3(気道刺激性､麻酔作用)","分類できない","分類できない","液体",169.4]
[218,"別表第９","108-18-9",null,"ジイソプロピルアミン","","","","",null,"","",5,null,"",null,null,null,null,101.19,"Skin",1979,null,"区分4","区分外","分類対象外","区分3","分類できない","区分1","区分1","分類できない","分類できない","分類できない","分類できない","分類できない","区分1(呼吸器)","分類できない","分類できない","液体",84]
[219,"別表第９","111-42-2",null,"ジエタノールアミン","","","","",null,"","",null,null,"",null,null,1,null,105.14,"Skin",2008,null,"区分外","区分外","分類対象外","分類できない","分類できない","区分2","区分1","分類できない","区分外","区分外","区分2","区分2","区分1(肝臓)､区分2(腎臓､呼吸器系)","区分1(気道)､区分2(血液､腎臓､肝臓)","分類できない","液体",269]
[220,"別表第９","100-37-8",null,"２―（ジエチルアミノ）エタノール","","","","",null,"","",2,null,"",null,null,null,null,117.19,"Skin",1991,null,"区分4","区分4","分類対象外","区分3","分類できない","区分1","区分1","分類できない","区分外","区分外","分類できない","分類できない","区分1(中枢神経系)､区分3(気道刺激性)","区分2(中枢神経系)","分類できない","液体",163]
[221,"別表第９","109-89-7",null,"ジエチルアミン",10,30,null,null,null,null,"1989",5,null,15,null,null,null,null,73.14,"Skin",2012,null,"区分3","区分3","分類対象外","区分4","分類できない","区分1","区分1","分類できない","分類できない","分類できない","分類できない","分類できない","区分1(呼吸器)","区分1(呼吸器)","分類できない","液体",55.5]
[222,"別表第９","96-22-0",null,"ジエチルケトン","","","","",null,"","",200,null,300,null,null,null,null,86.13,"",1995,null,"区分外","区分外","分類対象外","分類できない","分類できない","区分外","区分2","分類できない","分類できない","分類できない","分類できない","分類できない","区分3(気道刺激性､麻酔作用)","分類できない","分類できない","液体",102]
[223,"別表第９","56-38-2",null,"ジエチル―パラ―ニトロフェニルチオホスフェイト（別名パラチオン）",null,0.1,null,null,null,"皮","1980",null,0.05,"",null,null,null,null,291.27,"Skin",2000,null,"区分2","区分2","分類対象外","分類できない","区分1","区分外","区分2","分類できない","分類できない","分類できない","区分2","区分2","区分1(神経系)","区分1(神経系､視覚器)","分類できない","液体",375]
[224,"別表第９","1615-80-1",null,"１，２―ジエチルヒドラジン","","","","",null,"","","",null,"",null,null,null,null,"","","未設定(2017年現在）",null,"分類できない","分類できない","分類対象外","分類できない","分類できない","分類できない","分類できない","分類できない","分類できない","分類できない","区分2","区分1","分類できない","分類できない","分類できない","液体",85.5]
["224-2","別表第９","3710-84-7",null,"Ｎ，Ｎ―ジエチルヒドロキシルアミン","","","","",null,"","",2,null,"",null,null,null,null,89.14,"",2012,null,"区分外","区分4","分類対象外","区分4","分類できない","区分外","区分2","分類できない","区分外","分類できない","分類できない","分類できない","区分2(中枢神経系)","分類できない","分類できない","液体",130]
["224-3","別表第９","112-34-5",null,"ジエチレングリコールモノブチルエーテル","","","","",null,"","",10,null,"",null,null,null,null,162.22999999999999,"",2012,null,"区分外","区分外","分類対象外","分類できない","分類できない","区分外","区分2","分類できない","分類できない","分類できない","分類できない","分類できない","区分3(麻酔作用)","区分1(呼吸器､肝臓)","分類できない","液体",230]
[225,"別表第９","111-40-0",null,"ジエチレントリアミン","","","","",null,"","",1,null,"",null,null,null,null,103.17,"Skin",1985,null,"区分4","区分4","分類対象外","分類できない","分類できない","区分1","区分1","区分1","区分1","分類できない","分類できない","区分1","分類できない","分類できない","分類できない","液体",207]
[226,"別表第９","56-23-5",null,"四塩化炭素",5,31,null,null,null,"皮","1991",5,null,10,null,null,null,null,153.84,"Skin",1990,null,"区分外","区分外","分類対象外","区分4","分類できない","区分2","区分2","分類できない","分類できない","区分外","区分2","区分2","区分1(中枢神経系､肝臓､腎臓)","区分1(肝臓､腎臓)､区分2(呼吸器)","分類できない","液体",76.5]
[227,"別表第９","123-91-1",null,"１，４―ジオキサン",1,3.6,null,null,null,"皮","2015",20,null,"",null,null,null,null,88.1,"Skin",1996,null,"区分外","区分外","分類対象外","区分4","分類できない","区分2","区分2","分類できない","分類できない","区分外","区分2","分類できない","区分1(中枢神経系)､区分3(麻酔作用､気道刺激性)","区分1(腎臓､肝臓､中枢神経系)､区分2(呼吸器)","分類できない","液体",101]
[228,"別表第９","78-34-2",null,"１，４―ジオキサン―２，３―ジイルジチオビス（チオホスホン酸）Ｏ，Ｏ，Ｏ′，Ｏ′―テトラエチル（別名ジオキサチオン）","","","","",null,"","",null,0.1,"",null,null,null,null,456.54,"Skin",2001,null,"区分2","区分2","分類対象外","分類できない","区分2","分類できない","区分2","分類できない","分類できない","分類できない","分類できない","分類できない","区分1(神経系)","区分1(神経系)","分類できない","液体",60]
[229,"別表第９","646-06-0",null,"１，３―ジオキソラン","","","","",null,"","",20,null,"",null,null,null,null,74.08,"",1997,null,"区分外","区分外","分類対象外","区分外","分類できない","区分外","区分2","分類できない","分類できない","分類できない","分類できない","区分2","分類できない","分類できない","分類できない","液体",75]
[230,"別表第９","108-93-0",null,"シクロヘキサノール",25,102,null,null,null,null,"1970",50,null,"",null,null,null,null,100.16,"Skin",1979,null,"区分外","分類できない","分類対象外","分類できない","分類できない","区分2","区分1","分類できない","分類できない","分類できない","分類できない","区分2","区分3(気道刺激性､麻酔作用)","区分1(自律神経系)､区分2(心臓､肝臓､腎臓､生殖器(男性))","分類できない","液体",161]
[231,"別表第９","108-94-1",null,"シクロヘキサノン",25,100,null,null,null,null,"1970",20,null,50,null,null,null,null,98.14,"Skin",1990,null,"区分4","区分3","分類対象外","区分3","区分外","区分2","区分2","分類できない","区分1","区分2","区分外","区分2","区分1(呼吸器系)､区分2(中枢神経系)､区分3(麻酔作用)","区分1(中枢神経系､骨)","分類できない","液体",155.6]
[232,"別表第９","110-82-7",null,"シクロヘキサン",150,520,null,null,null,null,"1970",100,null,"",null,null,null,null,84.16,"",1964,null,"区分外","区分外","分類対象外","区分外","分類できない","区分2","区分2","分類できない","分類できない","分類できない","分類できない","区分外","区分2(血管系)､区分3(気道刺激性､麻酔作用)","分類できない","分類できない","液体",81]
[233,"別表第９","108-91-8",null,"シクロヘキシルアミン","","","","",null,"","",10,null,"",null,null,null,null,99.17,"",1990,null,"区分3","区分3","分類対象外","区分3","分類できない","区分1","区分1","分類できない","分類できない","区分1","分類できない","区分2","区分1(神経系､心血管系)､区分3(気道刺激性)","分類できない","分類できない","液体",134.5]
[234,"別表第９","10470-01-6",null,"２―シクロヘキシルビフェニル","","","","",null,"","",0.5,null,"",null,null,null,null,"","",2005,"ACGIH（2017）には記載がないが、モデルSDSには記載あり","区分外","区分外","分類対象外","分類できない","分類できない","区分2","区分2","分類できない","区分外","区分外","分類できない","区分2","区分3(気道刺激性)","区分2(肝臓､腎臓､脳)","分類できない","液体",340]
[235,"別表第９","110-83-8",null,"シクロヘキセン","","","","",null,"","",300,null,"",null,null,null,null,82.14,"",1964,null,"区分4","区分外","分類対象外","分類できない","分類できない","区分外","区分2","分類できない","分類できない","分類できない","区分外","分類できない","区分3(麻酔作用､気道刺激性)","分類できない","区分1","液体",83]
[236,"別表第９","12079-65-1",null,"シクロペンタジエニルトリカルボニルマンガン","","","","",null,"","",null,0.1,"",null,null,null,"Mnとして",204.1,"Skin",1992,null,"区分2","分類できない","分類対象外","分類できない","区分1","区分2","分類できない","分類できない","分類できない","分類できない","分類できない","分類できない","区分1(肺､神経系)","区分1(腎臓)","分類できない","固体",232]
[237,"別表第９","542-92-7",null,"シクロペンタジエン","","","","",null,"","",75,null,"",null,null,null,null,66.099999999999994,"",1963,null,"区分3","区分3","分類対象外","区分4","分類できない","分類できない","区分2","分類できない","分類できない","分類できない","分類できない","分類できない","区分3(気道刺激性)","区分2(肝臓､腎臓)","分類できない","液体",40]
[238,"別表第９","287-92-3",null,"シクロペンタン","","","","",null,"","",600,null,"",null,null,null,null,70.13,"",1978,null,"区分外","分類できない","分類対象外","分類できない","分類できない","区分外","区分2","分類できない","分類できない","分類できない","分類できない","分類できない","区分3(気道刺激性､麻酔作用)","分類できない","区分1","液体",49.2]
[239,"別表第９","7572-29-4",null,"ジクロロアセチレン","","","","",null,"","","",null,"",null,0.1,null,null,94.93,"",1992,null,"分類できない","分類できない","分類対象外","区分1","分類できない","分類できない","区分2","分類できない","分類できない","分類できない","区分外","分類できない","区分1(中枢神経系､腎臓)､区分3(気道刺激性)","区分1(腎臓)､区分2(中枢神経系)","分類できない","液体",32]
[240,"別表第９","75-34-3",null,"１，１－ジクロロエタン",100,400,null,null,null,null,"1993",100,null,"",null,null,null,null,98.97,"",1990,"ACGIH（2017）には記載がないが、モデルSDSには記載あり","区分外","分類できない","分類対象外","区分4","分類できない","区分2","区分2","分類できない","分類できない","区分2","分類できない","分類できない","区分1(中枢神経系)､区分3(気道刺激性､麻酔作用)","分類できない","分類できない","液体",57.4]
[240,"別表第９","107-06-2",null,"１，２－ジクロロエタン",10,40,null,null,null,null,"1984",10,null,"",null,null,null,null,98.96,"",1977,null,"区分4","区分外","分類対象外","区分3","分類できない","区分外","区分2","分類できない","分類できない","分類できない","区分1","分類できない","区分1(中枢神経系､呼吸器､心血管系､血液系､肝臓､腎臓､消化管)､区分3(麻酔作用)","区分1(神経系､肝臓､心血管系､甲状腺)､区分2(血液系､腎臓)","分類できない","液体",83.5]
[241,"別表第９","75-35-4",null,"１，１－ジクロロエチレン","","","","",null,"","",5,null,"",null,null,null,null,96.95,"",1992,null,"区分4","分類できない","分類対象外","区分4","分類できない","分類できない","分類できない","分類できない","分類できない","分類できない","区分1","区分2","区分1(神経系､呼吸器､肝臓､腎臓)､区分3(麻酔作用)","区分1(血液､呼吸器､肝臓､腎臓､生殖器(男性))","分類できない","液体",32]
[241,"別表第９","540-59-0",null,"１，２－ジクロロエチレン",150,590,null,null,null,null,"1970",200,null,"",null,null,null,null,96.95,"",1990,null,"区分4","分類できない","分類対象外","区分外","分類できない","分類できない","区分2","分類できない","分類できない","分類できない","分類できない","分類できない","区分1(呼吸器､肝臓)､区分3(麻酔作用)","分類できない","分類できない","液体",48]
["241-2","別表第９","79-43-6",null,"ジクロロ酢酸","","","","",null,"","",0.5,null,"",null,null,null,null,128.94999999999999,"Skin",2002,null,"区分外","区分3","分類対象外","分類できない","分類できない","区分1","区分1","分類できない","分類できない","区分2","区分2","区分1","区分1(呼吸器)","区分1(中枢神経系)､区分2(肝臓､膵臓､腎臓､男性生殖器)","分類できない","液体",194]
[242,"別表第９","101-14-4",null,"３，３′―ジクロロ―４，４′―ジアミノジフェニルメタン",null,5.0000000000000001E-3,null,null,null,"皮","2012",0.01,null,"",null,null,null,null,267.17,"Skin",1991,null,"区分4","区分外","分類対象外","分類できない","分類できない","区分外","区分2","分類できない","分類できない","区分2","区分1","分類できない","区分1(血液)","区分2(血液､肝臓)","分類できない","固体",378.9]
[243,"別表第９","75-71-8",null,"ジクロロジフルオロメタン（別名ＣＦＣ―１２）",500,2500,null,null,null,null,"1987",1000,null,"",null,null,null,null,120.91,"",1979,null,"分類対象外","分類対象外","区分外","分類対象外","分類対象外","区分外","分類できない","分類できない","分類できない","分類できない","分類できない","区分外","区分3(麻酔作用)","分類できない","分類対象外","気体",""]
[244,"別表第９","118-52-5",null,"１，３―ジクロロ―５，５―ジメチルイミダゾリジン―２，４―ジオン","","","","",null,"","",null,0.2,null,0.4,null,null,null,197.03,"",1979,null,"区分4","区分外","分類対象外","分類できない","区分5","区分2","分類できない","分類できない","分類できない","分類できない","分類できない","分類できない","区分3(気道刺激性)","分類できない","分類できない","固体",212]
[245,"別表第９","2971-90-6",null,"３，５―ジクロロ―２，６―ジメチル―４―ピリジノール（別名クロピドール）","","","","",null,"","",null,3,"",null,null,null,null,192.06,"",2012,null,"区分外","分類できない","分類対象外","分類できない","分類できない","区分3","区分2","分類できない","分類できない","分類できない","区分外","分類できない","区分3(気道刺激性)","分類できない","分類できない","固体",""]
[246,"別表第９","76-14-2",null,"ジクロロテトラフルオロエタン（別名ＣＦＣ―１１４）","","","","",null,"","",1000,null,"",null,null,null,null,170.93,"",1979,null,"分類対象外","分類対象外","区分外","分類対象外","分類対象外","区分外","分類できない","分類できない","分類できない","分類できない","区分外","分類できない","区分外","区分外","分類対象外","気体",""]
[247,"別表第９","306-83-2",null,"２，２―ジクロロ―１，１，１―トリフルオロエタン（別名ＨＣＦＣ―１２３）",10,62,null,null,null,null,"2000","",null,"",null,null,null,null,"","","未設定(2017年現在）",null,"区分外","区分外","分類対象外","区分外","分類できない","区分外","区分2","分類できない","区分外","区分外","分類できない","区分外","区分1(中枢神経､肝)､区分2(心臓)","区分1(肝)","分類できない","液体",27.82]
[248,"別表第９","594-72-9",null,"１，１―ジクロロ―１―ニトロエタン","","","","",null,"","",2,null,"",null,null,null,null,143.96,"",1978,null,"区分4","分類できない","分類対象外","分類できない","分類できない","区分2","分類できない","分類できない","分類できない","分類できない","分類できない","分類できない","区分1(血液､肺)","分類できない","分類できない","液体",124]
[249,"別表第９","330-54-1",null,"３―（３，４―ジクロロフェニル）―１，１―ジメチル尿素（別名ジウロン）","","","","",null,"","",null,10,"",null,null,null,null,233.1,"",1974,null,"区分5","区分外","分類対象外","分類対象外","区分外","区分3","区分2","分類できない","区分外","区分外","区分外","区分外","区分3(気道刺激性)","区分2(血液)","分類できない","固体",314]
[250,"別表第９","136-78-7",null,"２，４―ジクロロフェノキシエチル硫酸ナトリウム","","","","",null,"","",null,10,"",null,null,null,null,309.13,"",1992,null,"区分4","分類できない","分類対象外","分類できない","分類できない","区分2","区分2","分類できない","分類できない","分類できない","区分外","分類できない","区分2(全身毒性)､区分3(気道刺激性)","区分2(肝臓､腎臓)","分類できない","固体",""]
[251,"別表第９","94-75-7",null,"２，４―ジクロロフェノキシ酢酸","","","","",null,"","",null,10,"",null,null,null,null,221.04,"",2016,null,"区分4","区分外","分類対象外","分類対象外","分類できない","区分外","区分2","分類できない","区分外","分類できない","区分2","区分2","区分1(神経系)､区分3(麻酔作用)","区分1(神経系､血液系､肝臓､腎臓)","分類できない","固体",160]
[252,"別表第９","764-41-0",null,"１，４―ジクロロ―２―ブテン",2E-3,null,null,null,null,null,"2015",5.0000000000000001E-3,null,"",null,null,null,null,124.99,"Skin",1990,null,"区分3","区分3","分類対象外","区分1","分類できない","区分1","区分1","分類できない","分類できない","区分2","区分1","分類できない","区分1(呼吸器系､神経系､全身毒性)､区分3(麻酔作用)","区分1(呼吸器系)","分類できない","液体",156]
[253,"別表第９","75-43-4",null,"ジクロロフルオロメタン（別名ＨＣＦＣ―２１）","","","","",null,"","",10,null,"",null,null,null,null,102.92,"",1977,null,"分類できない","分類できない","区分外","分類対象外","分類対象外","区分3","区分2","分類できない","区分外","分類できない","分類できない","区分2","区分3(麻酔作用)","区分1(肝臓)","分類対象外","気体",""]
[254,"別表第９","78-87-5",null,"１，２―ジクロロプロパン",1,4.5999999999999996,null,null,null,null,"2013",10,null,"",null,null,null,null,112.99,"",2005,null,"区分4","区分外","分類対象外","区分外","分類できない","区分2","区分2","分類できない","区分1","区分外","区分2","区分2","区分1(肝臓､血液､腎臓)､区分3(気道刺激性､麻酔作用)","区分1(腎臓､肝臓､血液系)､区分2(呼吸器)","分類できない","液体",96.4]
[255,"別表第９","75-99-0",null,"２，２―ジクロロプロピオン酸","","","","",null,"","",null,5,"",null,null,null,null,143,"",1997,null,"区分外","区分5","分類対象外","分類できない","区分4","区分3","区分2","分類できない","区分外","分類できない","分類できない","分類できない","区分外","区分外","分類できない","液体",190]
[256,"別表第９","542-75-6",null,"１，３―ジクロロプロペン","","","","",null,"","",1,null,"",null,null,null,null,110.98,"Skin",2003,null,"区分3","区分3","分類対象外","区分3","分類できない","区分2","区分2","分類できない","区分1","区分2","区分2","区分外","区分1(神経系､肺)","区分2(胃､上気道､膀胱)","分類できない","液体",104.3]
[257,"別表第９","75-09-2",null,"ジクロロメタン（別名二塩化メチレン）",50,170,100,340,null,"皮","1999",50,null,"",null,null,null,null,84.93,"",1997,null,"区分外","分類できない","分類対象外","区分4","分類できない","区分2","区分2","分類できない","分類できない","分類できない","区分1","区分2","区分1(中枢神経系､呼吸器)､区分3(麻酔作用)","区分1(中枢神経系､肝臓､生殖器(男性))","分類できない","液体","40"]
[258,"別表第９","20816-12-0",null,"四酸化オスミウム","","","","",null,"","",2.0000000000000001E-4,null,5.9999999999999995E-4,null,null,null,"Osとして",254.2,"",1979,null,"区分3","分類できない","分類対象外","区分1","分類できない","区分1","区分1","分類できない","分類できない","分類できない","分類できない","分類できない","区分1(呼吸器系､肝臓､腎臓､副腎､脾臓)","区分1(呼吸器系)､区分2(腎臓､肝臓､副腎､脾臓､造血系)","分類できない","固体",130]
[259,"別表第９","460-19-5",null,"ジシアン","","","","",null,"","",null,null,"",null,5,null,null,52.04,"",2015,null,"分類できない","分類できない","区分2","分類対象外","分類対象外","分類できない","区分2","分類できない","分類できない","分類できない","分類できない","分類できない","区分1(中枢神経系)､区分3(気道刺激性)","区分2(神経系)","分類対象外","気体",""]
[260,"別表第９","102-54-5",null,"ジシクロペンタジエニル鉄","","","","",null,"","",null,10,"",null,null,null,"Feとして",186.03,"",1990,null,"区分4","分類できない","分類対象外","分類できない","分類できない","区分3","区分2","分類できない","分類できない","分類できない","分類できない","分類できない","区分3(気道刺激性)","区分2(鼻腔)","分類できない","固体",249]
[261,"別表第９","77-73-6",null,"ジシクロペンタジエン","","","","",null,"","",5,null,"",null,null,null,null,132.21,"",1973,null,"区分4","区分外","分類対象外","区分2","分類できない","区分2","区分2","分類できない","分類できない","分類できない","分類できない","区分2","区分1(中枢神経系､呼吸器)､区分3(麻酔作用)","区分2(呼吸器､肝臓)","分類できない","液体",170]
[262,"別表第９","128-37-0",null,"２，６―ジ―ターシャリ―ブチル―４―クレゾール","","","","",null,"","",null,2,"",null,null,null,null,220.34,"",2001,null,"区分外","区分外","分類対象外","分類対象外","分類できない","区分外","区分2","分類できない","分類できない","分類できない","分類できない","区分2","区分1(神経系)","区分2(肺､肝臓)","分類できない","固体",265]
[263,"別表第９","50512-35-1",null,"１，３―ジチオラン―２―イリデンマロン酸ジイソプロピル（別名イソプロチオラン）",null,5,null,null,null,null,"1993","",null,"",null,null,null,null,"","","未設定(2017年現在）",null,"区分4","区分外","分類対象外","分類できない","区分4","区分外","区分2","分類できない","区分外","区分外","区分外","区分外","分類できない","分類できない","分類できない","固体",175]
[264,"別表第９","35400-43-2",null,"ジチオりん酸Ｏ―エチル―Ｏ―（４―メチルチオフェニル）―Ｓ―ノルマル―プロピル（別名スルプロホス）","","","","",null,"","",null,0.1,"",null,null,null,null,322.43,"Skin",2008,null,"区分3","区分3","分類対象外","分類できない","分類できない","区分外","区分外","分類できない","区分外","区分外","区分外","区分外","区分1(神経系)","区分1(神経系)","分類できない","液体",155]
[265,"別表第９","298-04-4",null,"ジチオりん酸Ｏ，Ｏ―ジエチル―Ｓ―（２―エチルチオエチル）（別名ジスルホトン）","","","","",null,"","",null,0.05,"",null,null,null,null,274.38,"Skin",2000,null,"区分1","区分1","分類対象外","分類できない","区分1","区分2","分類できない","分類できない","分類できない","分類できない","分類できない","区分2","区分1(神経系)","区分1(神経系､呼吸器)","分類できない","液体",128]
[266,"別表第９","298-02-2",null,"ジチオりん酸Ｏ，Ｏ―ジエチル―Ｓ―エチルチオメチル（別名ホレート）","","","","",null,"","",null,0.05,"",null,null,null,null,260.39999999999998,"Skin",2002,null,"区分1","区分1","分類対象外","分類できない","区分1","分類できない","分類できない","分類できない","分類できない","区分外","区分外","区分2","区分1(神経系)","区分1(神経系)","分類できない","液体",75]
["266-2","別表第９","13071-79-9","30年7月追加物質","ジチオりん酸Ｏ，Ｏ―ジエチル―Ｓ―（ターシャリ―ブチルチオメチル）(別名テルブホス）",null,null,null,null,null,null,null,null,"0.01",null,null,null,null,null,"288.45",null,"1990",null,"区分1","区分1","分類対象外","区分1","分類できない","分類できない","分類できない","分類できない","分類できない","分類できない","分類できない","区分2","区分1(神経系)","区分1(神経系､消化管)","分類できない","液体",69]
[267,"別表第９","86-50-0",null,"ジチオりん酸Ｏ，Ｏ―ジメチル―Ｓ―［（４―オキソ―１，２，３―ベンゾトリアジン―３（４Ｈ）―イル）メチル］（別名アジンホスメチル）","","","","",null,"","",null,0.2,"",null,null,null,null,317.33999999999997,"Skin",1999,null,"区分2","区分2","分類対象外","分類できない","区分2","区分外","区分2","分類できない","区分1","区分外","区分外","区分2","区分1(神経系)","区分1(神経系)","分類できない","固体",""]
[268,"別表第９","121-75-5",null,"ジチオりん酸Ｏ，Ｏ―ジメチル―Ｓ―１，２―ビス（エトキシカルボニル）エチル（別名マラチオン）",null,10,null,null,null,"皮","1989",null,1,"",null,null,null,null,330.36,"Skin",2000,null,"区分外","区分外","分類対象外","分類できない","区分外","区分外","区分2","分類できない","区分1","区分2","区分1","区分外","区分1(神経系)","区分1(神経系)","分類できない","液体",210]
[269,"別表第９","3761-53-3",null,"ジナトリウム＝４―［（２，４―ジメチルフェニル）アゾ］―３―ヒドロキシ―２，７―ナフタレンジスルホナート（別名ポンソーＭＸ）","","","","",null,"","","",null,"",null,null,null,null,"","","未設定(2017年現在）",null,"区分外","分類できない","分類対象外","分類できない","分類できない","分類できない","分類できない","分類できない","分類できない","区分2","区分2","分類できない","分類できない","分類できない","分類できない","固体",""]
[270,"別表第９","6459-94-5",null,"ジナトリウム＝８―［［３，３′―ジメチル―４′―［［４―［［（４―メチルフェニル）スルホニル］オキシ］フェニル］アゾ］［１，１′―ビフェニル］―４―イル］アゾ］―７―ヒドロキシ―１，３―ナフタレンジスルホナート（別名ＣＩアシッドレッド１１４）","","","","",null,"","","",null,"",null,null,null,null,"","","未設定(2017年現在）",null,"分類できない","分類できない","分類対象外","分類できない","分類できない","分類できない","分類できない","分類できない","分類できない","分類できない","区分2","分類できない","分類できない","区分2(腎臓､ﾘﾝﾊﾟ節､膵臓)","分類できない","固体",""]
[271,"別表第９","3564-09-8",null,"ジナトリウム＝３―ヒドロキシ―４―［（２，４，５―トリメチルフェニル）アゾ］―２，７―ナフタレンジスルホナート（別名ポンソー３Ｒ）","","","","",null,"","","",null,"",null,null,null,null,"","","未設定(2017年現在）",null,"分類できない","分類できない","分類対象外","分類できない","分類できない","分類できない","分類できない","分類できない","分類できない","区分2","区分2","分類できない","分類できない","分類できない","分類できない","固体",""]
[272,"別表第９","121-14-2",null,"２，４―ジニトロトルエン","","","","",null,"","","",null,"",null,null,null,null,"","","未設定(2017年現在）",null,"区分4","分類できない","分類対象外","分類できない","分類できない","区分3","区分外","分類できない","分類できない","区分2","区分2","区分2","分類できない","区分1(肝臓､血液､神経系､精巣)","分類できない","固体",250]
[273,"別表第９","25154-54-5",null,"ジニトロベンゼン","","","","",null,"","",0.15,null,"",null,null,null,null,168.11,"Skin",1979,null,"区分2","分類できない","分類対象外","分類できない","分類できない","区分3","区分2","分類できない","分類できない","分類できない","分類できない","区分2","区分1(血液)､区分3(気道刺激性)","区分1(肝臓､血液､神経系)","分類できない","固体",300]
[274,"別表第９","102-81-8",null,"２―（ジ―ノルマル―ブチルアミノ）エタノール","","","","",null,"","",0.5,null,"",null,null,null,null,173.29,"Skin",1980,null,"区分4","区分4","分類対象外","分類できない","分類できない","区分1","区分1","分類できない","分類できない","分類できない","分類できない","分類できない","区分2(神経系)､区分3(気道刺激性)","区分2(神経系)","分類できない","液体",222]
[275,"別表第９","123-19-3",null,"ジ―ノルマル―プロピルケトン","","","","",null,"","",50,null,"",null,null,null,null,114.8,"",1978,null,"区分外","区分外","分類対象外","区分4","分類できない","区分外","区分2","分類できない","分類できない","分類できない","分類できない","分類できない","区分3(気道刺激性､麻酔作用)","分類できない","分類できない","液体",144]
[276,"別表第９","1321-74-0",null,"ジビニルベンゼン","","","","",null,"","",10,null,"",null,null,null,null,130.19,"",1990,null,"区分5","分類できない","分類対象外","分類できない","分類できない","区分1","区分2","分類できない","分類できない","区分2","分類できない","区分2","区分3(麻酔作用､気道刺激性)","区分2(肝臓､腎臓､胸腺)","分類できない","液体",195]
[277,"別表第９","122-39-4",null,"ジフェニルアミン","","","","",null,"","",null,10,"",null,null,null,null,169.24,"",1990,null,"区分外","区分外","分類対象外","分類対象外","分類できない","区分外","区分1","分類できない","分類できない","分類できない","分類できない","区分2","区分1(中枢神経系､血液系)､区分3(気道刺激性)","区分2(血液系､腎臓)","分類できない","固体",302]
[278,"別表第９","101-84-8",null,"ジフェニルエーテル","","","","",null,"","",1,null,2,null,null,null,null,170.2,"",1979,null,"区分5","区分外","分類対象外","分類できない","分類できない","区分3","区分2","分類できない","分類できない","分類できない","分類できない","分類できない","分類できない","分類できない","分類できない","液体",257]
[279,"別表第９","106-93-4",null,"１，２―ジブロモエタン（別名ＥＤＢ）","","","","",null,"","","",null,"",null,null,null,null,187.88,"Skin",1980,null,"区分3","区分3","分類対象外","区分2","分類できない","区分2","区分2","分類できない","分類できない","区分2","区分1","区分2","区分1(肝臓､腎臓､中枢神経系)､区分3(気道刺激性)","区分2(呼吸器､肝臓､腎臓)","分類できない","液体",131]
[280,"別表第９","96-12-8",null,"１，２―ジブロモ―３―クロロプロパン","","","","",null,"","","",null,"",null,null,null,null,"","","未設定(2017年現在）",null,"区分3","区分4","分類対象外","区分2","分類できない","区分外","区分2","分類できない","分類できない","区分1","区分2","区分1","区分3(気道刺激性)","区分1(呼吸器､腎臓､肝臓､中枢神経系､血液系)","分類できない","液体",196]
[281,"別表第９","75-61-6",null,"ジブロモジフルオロメタン","","","","",null,"","",100,null,"",null,null,null,null,209.83,"",1962,null,"分類できない","分類できない","分類対象外","区分外","分類できない","分類できない","分類できない","分類できない","分類できない","分類できない","分類できない","分類できない","区分2(呼吸器系)","分類できない","分類できない","液体",22.8]
[282,"別表第９","94-36-0",null,"ジベンゾイルペルオキシド","","","","",null,"","",null,5,"",null,null,null,null,242.22,"",1990,null,"区分外","分類できない","分類対象外","分類対象外","区分外","区分外","区分2","分類できない","区分1","分類できない","分類できない","分類できない","区分3(気道刺激性)","分類できない","分類できない","固体",""]
[283,"別表第９","19287-45-7",null,"ジボラン",0.01,1.2E-2,null,null,null,null,"1996",0.1,null,"",null,null,null,null,27.69,"",1990,null,"分類できない","分類できない","区分1","分類対象外","分類対象外","区分1","区分1","分類できない","分類できない","分類できない","分類できない","分類できない","区分1(呼吸器系)","区分1(呼吸器系､神経系)","分類対象外","気体",""]
[284,"別表第９","127-19-5",null,"Ｎ，Ｎ―ジメチルアセトアミド",10,36,null,null,null,"皮","1990",10,null,"",null,null,null,null,87.12,"Skin",1990,null,"区分外","区分外","分類対象外","区分3","区分4","区分外","区分2","分類できない","区分外","区分外","区分2","区分1","区分3(麻酔作用)","区分1(肝臓)､区分2(呼吸器系)","分類できない","液体",165]
[285,"別表第９","121-69-7",null,"Ｎ，Ｎ―ジメチルアニリン",5,25,null,null,null,"皮","1993",5,null,10,null,null,null,null,121.18,"Skin",1990,null,"区分4","区分4","分類対象外","区分2","分類できない","区分外","区分2","分類できない","分類できない","分類できない","区分2","分類できない","区分1(中枢神経系､血液系)､区分3(麻酔作用)","区分1(血液系)","分類できない","液体",192]
[286,"別表第９","1694-09-3",null,"［４―［［４―（ジメチルアミノ）フェニル］［４―［エチル（３―スルホベンジル）アミノ］フェニル］メチリデン］シクロヘキサン―２，５―ジエン―１―イリデン］（エチル）（３―スルホナトベンジル）アンモニウムナトリウム塩（別名ベンジルバイオレット４Ｂ）","","","","",null,"","","",null,"",null,null,null,null,"","","未設定(2017年現在）",null,"分類できない","分類できない","分類対象外","分類できない","分類できない","分類できない","分類できない","分類できない","分類できない","分類できない","区分2","分類できない","分類できない","分類できない","分類できない","固体",""]
[287,"別表第９","124-40-3",null,"ジメチルアミン",2,3.7,null,null,null,null,"2016",5,null,15,null,null,null,null,45.08,"",2013,null,"分類対象外","分類対象外","区分4","分類対象外","分類対象外","区分1","区分1","分類できない","区分1","分類できない","分類できない","分類できない","区分1(呼吸器)､区分3(麻酔作用)","区分1(呼吸器)","分類対象外","気体"]
[288,"別表第９","8022-00-2",null,"ジメチルエチルメルカプトエチルチオホスフェイト（別名メチルジメトン）","","","","",null,"","",null,0.05,"",null,null,null,null,230.3,"Skin",2006,null,"区分2","区分1","分類対象外","分類できない","区分2","区分3","区分2","分類できない","区分1","区分2","分類できない","区分2","区分1(神経系)","区分1(神経系)","分類できない","液体",74]
[289,"別表第９","14857-34-2",null,"ジメチルエトキシシラン","","","","",null,"","",0.5,null,1.5,null,null,null,null,104.2,"",1991,null,"分類できない","分類できない","分類対象外","分類できない","分類できない","区分2","区分外","分類できない","分類できない","分類できない","分類できない","区分2","区分3(麻酔作用､気道刺激性)","区分外","分類できない","液体",54]
[290,"別表第９","79-44-7",null,"ジメチルカルバモイル＝クロリド","","","","",null,"","",5.0000000000000001E-3,null,"",null,null,null,null,107.54,"Skin",2006,null,"区分4","分類できない","分類対象外","区分2","分類できない","区分2","区分2","分類できない","分類できない","区分2","区分1","分類できない","区分1(呼吸器系)","分類できない","分類できない","液体",167]
[291,"別表第９","62-73-7",null,"ジメチル―２，２―ジクロロビニルホスフェイト（別名ＤＤＶＰ）","","","","",null,"","",null,0.1,"",null,null,null,null,220.98,"Skin",1998,null,"区分3","区分2","分類対象外","区分1","区分2","区分2","区分2","分類できない","区分1","区分外","区分2","区分外","区分1(神経系)","区分1(神経系､肝臓)","分類できない","液体",140]
[292,"別表第９","624-92-0",null,"ジメチルジスルフィド","","","","",null,"","",0.5,null,"",null,null,null,null,94.2,"Skin",2006,null,"区分3","区分外","分類対象外","区分3","分類できない","区分2","区分2","分類できない","区分外","区分外","分類できない","区分2","分類できない","区分1(呼吸器､嗅覚器)､区分2(血液)","分類できない","液体",109.75]
["292-2","別表第９","52-68-6",null,"ジメチル＝２，２，２―トリクロロ―１―ヒドロキシエチルホスホナート（別名DEP）",0.2,null,null,null,null,"皮","2010","",1,"",null,null,null,null,257.60000000000002,"",2003,null,"区分4","区分外","分類対象外","分類対象外","区分3","区分外","区分2","分類できない","区分1","区分1","分類できない","区分1","区分1(神経系)","区分1(神経系､血液)､区分2(消化管､肝臓､腎臓､精巣､卵巣)","分類できない","固体",100]
[293,"別表第９","62-75-9",null,"Ｎ，Ｎ―ジメチルニトロソアミン","","","","",null,"","","",null,"",null,null,null,null,74.08,"Skin",1992,null,"区分2","分類できない","分類対象外","区分1","分類できない","区分2","区分2","分類できない  ","分類できない","区分1","区分1","区分2","区分1(肝臓)､区分3(気道刺激性)","区分1(肝臓)","分類できない","液体",151]
[294,"別表第９","298-00-0",null,"ジメチル―パラ―ニトロフェニルチオホスフェイト（別名メチルパラチオン）","","","","",null,"","",null,0.02,"",null,null,null,null,263.2,"Skin",2008,null,"区分2","区分2","分類対象外","分類できない","区分2","区分3","区分2","分類できない","区分外","区分2","区分外","区分2","区分1(神経系)","区分1(神経系)","分類できない","固体",158]
[295,"別表第９","57-14-7",null,"１，１－ジメチルヒドラジン","","","","",null,"","",0.01,null,"",null,null,null,null,60.12,"Skin",1993,null,"区分3","区分4","分類対象外","区分2","分類できない","区分2","区分2","分類できない","分類できない","区分2","区分2","分類できない","区分1(神経系､呼吸器)","区分1(肝臓､血液系､神経系､呼吸器系)","分類できない","液体",64]
[296,"別表第９","1910-42-5",null,"１，１′―ジメチル―４，４′―ビピリジニウム＝ジクロリド（別名パラコート）","","","","",null,"","",null,0.05,"",null,null,null,null,257.18,"Skin",2017,null,"区分3","区分2","分類対象外","分類対象外","区分1","区分2","区分2","分類できない","区分外","区分外","区分外","区分外","区分1(肺､腎臓､肝臓)","区分2(肺)","分類できない","固体",340]
[297,"別表第９","2074-50-2",null,"１，１′―ジメチル―４，４′―ビピリジニウム２メタンスルホン酸塩","","","","",null,"","","",0.05,"",null,null,null,null,257.18,"Skin",2017,null,"区分3","区分3","分類対象外","分類できない","区分1","区分2","区分2","分類できない","区分外","区分外","分類できない","区分外","区分1(腎臓､肝臓､呼吸器系)","区分1(肺､腎臓､肝臓)","分類できない","固体",""]
[298,"別表第９","74222-97-2",null,"２―（４，６―ジメチル―２―ピリミジニルアミノカルボニルアミノスルフォニル）安息香酸メチル（別名スルホメチュロンメチル）","","","","",null,"","",5,null,"",null,null,null,null,364.38,"Skin",1991,null,"区分外","区分外","分類対象外","分類できない","区分外","区分2","区分2","分類できない","区分外","分類できない","区分外","区分2","分類できない","区分外","分類できない","固体",""]
[299,"別表第９","68-12-2",null,"Ｎ，Ｎ―ジメチルホルムアミド",10,30,null,null,null,"皮","1974",10,null,"",null,null,null,null,73.09,"Skin",1995,null,"区分外","区分外","分類対象外","区分3","分類できない","区分外","区分1","分類できない","分類できない","区分2","区分1","区分1","区分1(肝臓)､区分2(呼吸器)","区分1(肝臓)","分類できない","液体",153]
[300,"別表第９","6358-53-8",null,"１―［（２，５―ジメトキシフェニル）アゾ］―２―ナフトール（別名シトラスレッドナンバー２）","","","","",null,"","",5,null,"",null,null,null,null,"","",1990,null,"分類できない","分類できない","分類対象外","分類できない","分類できない","分類できない","分類できない","分類できない","分類できない","分類できない","区分2","分類できない","分類できない","分類できない","分類できない","固体",""]
[301,"別表第９","74-96-4",null,"臭化エチル","","","","",null,"","",5,null,"",null,null,null,null,108.98,"Skin",1990,null,"区分4","分類できない","分類対象外","区分5","分類できない","区分3","区分2","分類できない","分類できない","分類できない","区分2","区分2","区分1(神経系､呼吸器系)､区分3(麻酔作用)","区分2(中枢神経系)","分類できない","液体",38.4]
[302,"別表第９","10035-10-6",null,"臭化水素","","","","",null,"","","",null,null,null,2,null,null,80.92,"",2001,null,"分類できない","分類できない","区分3","分類対象外","分類対象外","区分1","区分1","分類できない","分類できない","分類できない","分類できない","分類できない","区分1(呼吸器)","区分1(呼吸器系､歯)","分類対象外","気体",""]
[303,"別表第９","74-83-9",null,"臭化メチル",1,3.89,null,null,null,"皮","2003",1,null,"",null,null,null,null,94.95,"Skin",1994,null,"区分3","分類できない","区分3","分類対象外","分類対象外","区分2","区分2","分類できない","分類できない","区分2","区分外","区分2","区分1(神経系､呼吸器､肝臓､腎臓､消化器系)","区分1(神経系､心臓､血液)","分類対象外","気体",""]
[304,"別表第９","144-62-7",null,"しゆう酸","","","","",null,"","",null,1,null,2,null,null,null,90.04,"",2014,null,"区分4","区分外","分類対象外","分類できない","分類できない","区分2","区分1","分類できない","分類できない","分類できない","分類できない","区分2","区分1(神経系)､区分3(気道刺激性)","区分1(泌尿器系)","分類できない","固体",""]
[305,"別表第９","7726-95-6",null,"臭素",0.1,0.65,null,null,null,null,"1964",0.1,null,0.2,null,null,null,null,159.81,"",1991,null,"区分外","分類できない","分類対象外","区分2","分類できない","区分1","区分1","分類できない","分類できない","分類できない","分類できない","分類できない","区分1(中枢神経系､呼吸器)","区分1(神経系､呼吸器､内分泌系)","分類できない","液体",59.47]
[307,"別表第９","7697-37-2",null,"硝酸",2,5.2,null,null,null,null,"1982",2,null,4,null,null,null,null,63.02,"",1992,null,"分類できない","分類できない","分類対象外","区分1","分類できない","区分1","区分1","分類できない","分類できない","分類できない","分類できない","分類できない","区分1(呼吸器)","区分1(呼吸器､歯)","分類できない","液体",83]
[308,"別表第９","6484-52-2",null,"硝酸アンモニウム","","","","",null,"","","",null,"",null,null,null,null,"","","未設定(2017年現在）",null,"区分外","区分外","分類対象外","分類対象外","区分外","区分外","区分2","分類できない","分類できない","分類できない","分類できない","分類できない","分類できない","区分1(血液系)","分類できない","固体",200]
[309,"別表第９","627-13-4",null,"硝酸ノルマル―プロピル","","","","",null,"","",25,null,40,null,null,null,null,105.09,"",1962,null,"分類できない","分類できない","分類対象外","区分5","分類できない","分類できない","分類できない","分類できない","分類できない","分類できない","分類できない","分類できない","区分1(神経系)､区分2(全身)","分類できない","分類できない","液体",110]
[310,"別表第９","76-22-2",null,"しよう脳","","","","",null,"","",2,null,3,null,null,null,null,152.22999999999999,"",1990,null,"分類できない","分類できない","分類対象外","分類できない","分類できない","分類できない","区分2","分類できない","分類できない","区分外","区分外","分類できない","区分1(中枢神経系)","区分1(神経系､肝臓)","分類できない","固体",204]
[311,"別表第９","7803-62-5",null,"シラン",null,null,100,130,null,null,"1993",5,null,"",null,null,null,null,32.119999999999997,"",2014,null,"分類できない","分類できない","区分5","分類対象外","分類対象外","区分2","区分2","分類できない","分類できない","分類できない","分類できない","分類できない","区分3(気道刺激性)","区分2(肺)","分類対象外","気体",""]
["313","別表第９","7699-43-6","追加（2018年9月）","オキシ塩化ジルコニウム",null,null,null,null,null,null,null,null,null,null,null,null,null,null,null,null,null,null,"区分外","分類できない","分類対象外","分類対象外","分類できない","分類できない","分類できない","分類できない","分類できない","分類できない","分類できない","分類できない","区分1(神経系､肝臓､血液系)､区分3(気道刺激性)","分類できない","分類できない","固体","210 "]
[314,"別表第９","142844-00-6",null,"リフラクトリーセラミックファイバー","","","","",null,"","","",null,"",null,null,null,null,"","","未設定(2017年現在）",null,"分類できない","分類できない","分類対象外","分類対象外","分類できない","区分2","区分2","分類できない","分類できない","分類できない","区分1","分類できない","区分3(気道刺激性)","区分1(呼吸器)","分類できない","固体",""]
["315","別表第９","7439-97-6","追加（2018年9月）","水銀",null,2.5000000000000001E-2,null,null,"Hgとして",null,null,null,null,null,null,null,null,null,null,null,null,null,"分類できない","分類できない","分類対象外","区分1","分類できない","分類できない","区分2","分類できない","区分1","分類できない","分類できない","区分1","区分1(呼吸器系､心血管系､腎臓､肝臓､中枢神経系)","区分1(神経系､心血管系､血液､肝臓､歯肉)","分類できない","液体","356.72"]
["315","別表第９","21908-53-2","追加（2018年9月）","酸化水銀（Ⅱ）",null,2.5000000000000001E-2,null,null,"Hgとして",null,null,null,null,null,null,null,null,null,null,null,null,null,"区分2","区分3","分類対象外","分類対象外","分類できない","区分2","区分2","分類できない","区分1","分類できない","分類できない","区分1","区分1(中枢神経系､末梢神経系､腎臓､消化管)","区分1(中枢神経系､腎臓)","分類できない","固体"]
["315","別表第９","15829-53-5","追加（2018年9月）","酸化水銀（Ⅰ）",null,2.5000000000000001E-2,null,null,"Hgとして",null,null,null,null,null,null,null,null,null,null,null,null,null,"分類できない","分類できない","分類対象外","分類できない","分類できない","区分2","区分2","分類できない","区分1","区分2","区分外","区分2","区分1(腎臓)､区分3(気道刺激性)","区分1(中枢神経系､腎臓)","分類できない","固体"]
["322","別表第９","6517-25-5","追加（2018年9月）","トリブチルスズ=スルファマート",null,null,null,null,null,null,null,null,null,null,null,null,null,null,null,null,null,null,"分類できない","分類できない","分類対象外","分類できない","分類できない","分類できない","分類できない","分類できない","分類できない","分類できない","分類できない","分類できない","分類できない","分類できない","分類できない"]
["315","別表第９","7487-94-7","追加（2018年9月）","塩化水銀（Ⅱ）",null,2.5000000000000001E-2,null,null,"Hgとして",null,null,null,null,null,null,null,null,null,null,null,null,null,"区分2","分類できない","分類対象外","分類できない","分類できない","区分2","区分2","分類できない","区分1","区分2","分類できない","区分1","区分1(腎臓､消化管､肝臓､心血管系､呼吸器､神経系)","区分1(神経系､腎臓､呼吸器､心血管系､消化管)","分類できない","固体","302"]
["315","別表第９","10112-91-1","追加（2018年9月）","塩化水銀（Ⅰ）",null,2.5000000000000001E-2,null,null,"Hgとして",null,null,null,null,null,null,null,null,null,null,null,null,null,"区分3","区分4","分類対象外","分類できない","分類できない","区分2","区分2","分類できない","区分1","分類できない","区分外","分類できない","区分1(腎臓)､区分3(気道刺激性)","区分1(腎臓､神経系､消化管)","分類できない","固体"]
["315","別表第９","7774-29-0","追加（2018年9月）","ヨウ化水銀（Ⅱ）",null,2.5000000000000001E-2,null,null,"Hgとして",null,null,null,null,null,null,null,null,null,null,null,null,null,"区分2","区分2","分類対象外","分類できない","分類できない","区分2","区分2","分類できない","区分1","分類できない","区分外","分類できない","分類できない","分類できない","分類できない","固体","350"]
["315","別表第９","7789-47-1","追加（2018年9月）","臭化水銀（Ⅱ）",null,2.5000000000000001E-2,null,null,"Hgとして",null,null,null,null,null,null,null,null,null,null,null,null,null,"区分2","区分2","分類対象外","分類できない","分類できない","区分2","区分1","分類できない","区分1","分類できない","区分外","分類できない","分類できない","分類できない","分類できない","固体","322"]
["315","別表第９","7783-35-9","追加（2018年9月）","硫酸水銀（Ⅱ）",null,2.5000000000000001E-2,null,null,"Hgとして",null,null,null,null,null,null,null,null,null,null,null,null,null,"区分3","区分3","分類対象外","分類できない","分類できない","分類できない","分類できない","分類できない","区分1","分類できない","区分外","分類できない","区分1(腎臓)","区分1(腎臓､中枢神経系)","分類できない","固体"]
["315","別表第９","10045-94-0","追加（2018年9月）","硝酸水銀（Ⅱ）",null,2.5000000000000001E-2,null,null,"Hgとして",null,null,null,null,null,null,null,null,null,null,null,null,null,"区分2","区分2","分類対象外","分類できない","分類できない","区分1","区分1","分類できない","区分1","区分2","区分外","区分2","区分1(腎臓)､区分2(呼吸器)","区分1(中枢神経系､腎臓)","分類できない","固体"]
["315","別表第９","10415-75-5","追加（2018年9月）","硝酸水銀（Ⅰ）",null,2.5000000000000001E-2,null,null,"Hgとして",null,null,null,null,null,null,null,null,null,null,null,null,null,"区分3","区分5","分類対象外","分類できない","分類できない","区分3","区分2","分類できない","区分1","区分2","区分外","区分2","区分1(腎臓)､区分3(気道刺激性)","区分1(中枢神経系､腎臓)","分類できない","固体"]
["315","別表第９","1335-31-5","追加（2018年9月）","オキシシアン化水銀（Ⅱ）",null,2.5000000000000001E-2,null,null,"Hgとして",null,null,null,null,null,null,null,null,null,null,null,null,null,"分類できない","分類できない","分類対象外","分類できない","分類できない","区分3","区分2","分類できない","区分1","区分2","区分外","区分2","区分1(腎臓)､区分3(気道刺激性)","区分1(中枢神経系､腎臓)","分類できない","固体"]
["315","別表第９","592-04-1","追加（2018年9月）","シアン化水銀（Ⅱ）",null,2.5000000000000001E-2,null,null,"Hgとして",null,null,null,null,null,null,null,null,null,null,null,null,null,"区分2","分類できない","分類対象外","分類できない","分類できない","区分3","区分2","分類できない","区分1","分類できない","分類できない","区分1","区分1(心血管系､呼吸器系､中枢神経系､腎臓)","区分1(中枢神経系､腎臓)","分類できない","固体"]
["315","別表第９","592-85-8","追加（2018年9月）","チオシアン酸水銀（Ⅱ）",null,2.5000000000000001E-2,null,null,"Hgとして",null,null,null,null,null,null,null,null,null,null,null,null,null,"区分2","区分3","分類対象外","分類できない","分類できない","区分3","区分2","分類できない","区分1","区分2","区分外","区分2","区分1(腎臓)","区分1(中枢神経系､腎臓)","分類できない","固体"]
["315","別表第９","628-86-4","追加（2018年9月）","雷こう",null,2.5000000000000001E-2,null,null,"Hgとして",null,null,null,null,null,null,null,null,null,null,null,null,null,"分類できない","分類できない","分類対象外","分類できない","分類できない","区分2","区分2","分類できない","分類できない","区分2","分類できない","分類できない","分類できない","分類できない","分類できない","固体"]
[316,"別表第９","1310-58-3",null,"水酸化カリウム",null,null,null,2,null,null,"1978","",null,null,null,null,2,null,56.1,"",1992,null,"区分3","分類できない","分類対象外","分類対象外","分類できない","区分1","区分1","分類できない","分類できない","分類できない","分類できない","分類できない","区分1(呼吸器)","区分1(呼吸器)","区分1","固体",1324]
[317,"別表第９","1305-62-0",null,"水酸化カルシウム","","","","",null,"","",null,5,"",null,null,null,null,74.099999999999994,"",1979,null,"区分外","分類できない","分類対象外","分類対象外","分類できない","区分2","区分1","分類できない","分類できない","分類できない","分類できない","分類できない","区分1(呼吸器)","分類できない","分類できない","固体",""]
[318,"別表第９","21351-79-1",null,"水酸化セシウム","","","","",null,"","",null,2,"",null,null,null,null,149.91999999999999,"",1990,null,"区分4","分類できない","分類対象外","分類できない","区分1","区分1","区分1","分類できない","区分外","分類できない","分類できない","分類できない","区分3(気道刺激性)","分類できない","分類できない","固体",990]
[319,"別表第９","1310-73-2",null,"水酸化ナトリウム",null,null,null,2,null,null,"1978","",null,null,null,null,2,null,40.01,"",1992,null,"分類できない","分類できない","分類対象外","分類できない","分類できない","区分1","区分1","分類できない","区分外","区分外","分類できない","分類できない","区分1(呼吸器)","分類できない","分類できない","固体",1390]
[320,"別表第９","1310-65-2",null,"水酸化リチウム",null,1,null,null,null,null,"1995","",null,"",null,null,null,null,"","","未設定(2017年現在）",null,"分類できない","分類できない","分類対象外","分類できない","区分3","区分1","区分1","分類できない","分類できない","分類できない","分類できない","区分1","区分1(気道)","分類できない","分類できない","固体",924]
["320-2","別表第９","22722-98-1",null,"水素化ビス（２―メトキシエトキシ）アルミニウムナトリウム","","","","",null,"","","",null,"",null,null,null,null,"","","未設定(2017年現在）",null,"分類できない","分類できない","分類対象外","分類対象外","分類できない","分類できない","分類できない","分類できない","分類できない","分類できない","分類できない","分類できない","分類できない","分類できない","分類できない","固体",""]
[321,"別表第９","7580-67-8",null,"水素化リチウム","","","","",null,"","",null,0.05,"",null,null,null,null,7.95,"",2014,null,"分類できない","分類できない","分類対象外","分類対象外","区分3","区分1","区分1","分類できない","分類できない","分類できない","分類できない","区分1","区分1(呼吸器)､区分2(神経系)","分類できない","分類できない","固体",850]
["322","別表第９","7440-31-5","追加（2018年9月）","すず",null,null,null,null,null,null,null,null,null,null,null,null,null,null,null,null,null,null,"分類できない","分類できない","分類対象外","分類できない","分類できない","分類できない","分類できない","分類できない","分類できない","分類できない","分類できない","分類できない","分類できない","区分1(肺)","分類できない","固体","2507"]
["322","別表第９","7772-99-8","追加（2018年9月）","塩化スズ（Ⅱ）",null,null,null,null,null,null,null,null,null,null,null,null,null,null,null,null,null,null,"区分外","分類できない","分類対象外","分類対象外","分類できない","分類できない","分類できない","分類できない","分類できない","分類できない","分類できない","区分外","区分3(気道刺激性)","区分1(肝臓､腎臓)､区分2(血液系)","分類できない","固体","623"]
["322","別表第９","7646-78-8","追加（2018年9月）","塩化スズ（Ⅳ）",null,null,null,null,null,null,null,null,null,null,null,null,null,null,null,null,null,null,"分類できない","分類できない","分類対象外","区分2","分類できない","区分1","区分1","分類できない","分類できない","分類できない","分類できない","分類できない","区分3(気道刺激性)","区分1(呼吸器)","分類できない","液体","114.15"]
["322","別表第９","7783-47-3","追加（2018年9月）","フッ化スズ（Ⅱ）",null,null,null,null,null,null,null,null,null,null,null,null,null,null,null,null,null,null,"区分2","分類できない","分類対象外","分類対象外","分類できない","分類できない","分類できない","分類できない","分類できない","分類できない","分類できない","分類できない","区分3(気道刺激性)","分類できない","分類できない","固体","850"]
["322","別表第９","7488-55-3","追加（2018年9月）","硫酸スズ（Ⅱ）",null,null,null,null,null,null,null,null,null,null,null,null,null,null,null,null,null,null,"区分5","分類できない","分類対象外","分類できない","分類できない","分類できない","区分2","分類できない","分類できない","分類できない","分類できない","分類できない","区分3(気道刺激性)","区分1(肺)","分類できない","固体"]
["322","別表第９","814-94-8","追加（2018年9月）","シュウ酸スズ（Ⅱ）",null,null,null,null,null,null,null,null,null,null,null,null,null,null,null,null,null,null,"区分5","分類できない","分類対象外","分類できない","分類できない","分類できない","区分2","分類できない","分類できない","分類できない","分類できない","分類できない","区分3(気道刺激性)","区分1(肝臓､肺)","分類できない","固体"]
["322","別表第９","594-27-4","追加（2018年9月）","テトラメチルスズ",null,null,null,null,null,null,null,null,null,null,null,null,null,null,null,null,null,null,"分類できない","分類できない","分類対象外","分類できない","分類できない","分類できない","分類できない","分類できない","分類できない","分類できない","分類できない","分類できない","分類できない","分類できない","分類できない","液体","78"]
["322","別表第９","1067-97-6","追加（2018年9月）","水酸化トリブチルスズ",null,null,null,null,null,null,null,null,null,null,null,null,null,null,null,null,null,null,"分類できない","分類できない","分類対象外","分類できない","分類できない","分類できない","分類できない","分類できない","分類できない","分類できない","分類できない","分類できない","区分1(中枢神経系)､区分3(気道刺激性)","区分1(免疫系)","分類できない","液体","153"]
["322","別表第９","76-87-9","追加（2018年9月）","水酸化トリフェニルスズ",null,null,null,null,null,null,null,null,null,null,null,null,null,null,null,null,null,null,"区分3","区分2","分類対象外","分類できない","区分2","区分2","区分2","分類できない","区分外","区分外","区分外","区分2","区分1(中枢神経系)､区分3(気道刺激性)","区分1(免疫系)","分類できない","固体"]
["322","別表第９","818-08-6","追加（2018年9月）","ジブチルスズオキシド",null,null,null,null,null,null,null,null,null,null,null,null,null,null,null,null,null,null,"区分3","区分外","分類対象外","分類対象外","分類できない","区分2","区分1","分類できない            ","分類できない","分類できない","分類できない","区分1","区分1(中枢神経系)､区分3(気道刺激性)","分類できない","分類できない","固体","162"]
["322","別表第９","56-35-9","追加（2018年9月）","トリブチルスズオキシド",null,null,null,null,null,null,null,null,null,null,null,null,null,null,null,null,null,null,"区分3","区分3","分類対象外","分類できない","区分2","区分2","区分2","分類できない","分類できない","区分外","区分外","区分外","区分3(気道刺激性)","区分1(免疫系)","分類できない","液体","173"]
["322","別表第９","1118-46-3","追加（2018年9月）","ブチルトリクロロスズ",null,null,null,null,null,null,null,null,null,null,null,null,null,null,null,null,null,null,"区分外","分類できない","分類対象外","分類できない","分類できない","区分1","区分1","分類できない","分類できない","分類できない","分類できない","分類できない","区分3(気道刺激性)","区分1(呼吸器)","分類できない","液体","102"]
["322","別表第９","1461-22-9","追加（2018年9月）","トリブチルスズクロリド",null,null,null,null,null,null,null,null,null,null,null,null,null,null,null,null,null,null,"区分3","分類できない","分類対象外","分類できない","分類できない","区分2","区分2","分類できない","分類できない","分類できない","分類できない","区分1","区分1(中枢神経系､肝臓)､区分3(気道刺激性)","区分1(免疫系､呼吸器､肝臓)","分類できない","液体","171"]
["322","別表第９","1983-10-4","追加（2018年9月）","トリブチルスズフルオリド",null,null,null,null,null,null,null,null,null,null,null,null,null,null,null,null,null,null,"区分4","分類できない","分類対象外","分類できない","区分2","区分3","区分2","分類できない","分類できない","分類できない","分類できない","分類できない","区分1(中枢神経系)､区分3(気道刺激性)","区分1(免疫系)","分類できない","固体"]
["322","別表第９","2279-76-7","追加（2018年9月）","トリプロピルスズクロリド",null,null,null,null,null,null,null,null,null,null,null,null,null,null,null,null,null,null,"分類できない","分類できない","分類対象外","分類できない","分類できない","分類できない","分類できない","分類できない","分類できない","分類できない","分類できない","分類できない","区分1(中枢神経系)､区分3(気道刺激性)","区分1(免疫系)","分類できない","液体","123"]
["322","別表第９","379-52-2","追加（2018年9月）","トリフェニルスズフルオリド",null,null,null,null,null,null,null,null,null,null,null,null,null,null,null,null,null,null,"分類できない","区分3","分類対象外","分類できない","分類できない","分類できない","分類できない","分類できない","分類できない","分類できない","区分外","分類できない","区分1(中枢神経系)､区分3(気道刺激性)","区分1(免疫系)","分類できない","固体"]
["322","別表第９","639-58-7","追加（2018年9月）","トリフェニルスズクロリド",null,null,null,null,null,null,null,null,null,null,null,null,null,null,null,null,null,null,"区分3","分類できない","分類対象外","分類対象外","分類できない","区分2","区分2","分類できない","分類できない","分類できない","分類できない","区分2","分類できない","区分1(免疫系)","分類できない","固体","240"]
["322","別表第９","13356-08-6","追加（2018年9月）","ヘキサキス（2-メチル-2-フェニルプロピル）ジスタノキサン",null,null,null,null,null,null,null,null,null,null,null,null,null,null,null,null,null,null,"区分外","区分外","分類対象外","分類対象外","区分2","区分2","区分2","分類できない","分類できない","分類できない","分類できない","区分2","区分1(呼吸器､腎臓)","分類できない","分類できない","固体","235"]
["322","別表第９","77-58-7","追加（2018年9月）","ジブチルスズ=ジラウラート",null,null,null,null,null,null,null,null,null,null,null,null,null,null,null,null,null,null,"区分3","区分外","分類対象外","分類できない","区分2","区分2","区分2","分類できない","分類できない","分類できない","分類できない","区分1","分類できない","区分1(肝臓)","分類できない","液体","205"]
["322","別表第９","56-36-0","追加（2018年9月）","トリブチルスズアセタート",null,null,null,null,null,null,null,null,null,null,null,null,null,null,null,null,null,null,"区分3","分類できない","分類対象外","分類できない","分類できない","区分3","区分2","分類できない","分類できない","分類できない","分類できない","区分2","区分1(中枢神経系)､区分2(消化器系)､区分3(気道刺激性)","区分1(免疫系)","分類できない","固体","118"]
["322","別表第９","14275-57-1","追加（2018年9月）","ビス（トリブチルスズ）=マレアート",null,null,null,null,null,null,null,null,null,null,null,null,null,null,null,null,null,null,"分類できない","分類できない","分類対象外","分類できない","分類できない","分類できない","分類できない","分類できない","分類できない","分類できない","分類できない","分類できない","分類できない","分類できない","分類できない"]
["322","別表第９","6454-35-9","追加（2018年9月）","ビス（トリブチルスズ）=フマラート",null,null,null,null,null,null,null,null,null,null,null,null,null,null,null,null,null,null,"分類できない","分類できない","分類対象外","分類できない","分類できない","分類できない","分類できない","分類できない","分類できない","分類できない","分類できない","分類できない","分類できない","分類できない","分類できない"]
["322","別表第９","26239-64-5","追加（2018年9月）","トリブチルスズ=1,2,3,4,4a,4b,5,6,10,10a-デカヒドロ-7-イソプロピル-1,4a-ジメチル\n-1-フェナントレンカルボキシラート及びこの類縁化合物の混合物（トリブチルスズロジン塩）",null,null,null,null,null,null,null,null,null,null,null,null,null,null,null,null,null,null,"分類できない","分類できない","分類対象外","分類できない","分類できない","分類できない","分類できない","分類できない","分類できない","分類できない","分類できない","分類できない","分類できない","分類できない","分類できない"]
["322","別表第９","67772-01-4","追加（2018年9月）","アルキル=アクリラート・メチル=メタクリラート・トリブチルスズ=メタクリラート共重合物\n（アルキル=アクリラートのアルキル基の炭素数が 8 のものに限る。）",null,null,null,null,null,null,null,null,null,null,null,null,null,null,null,null,null,null,"分類できない","分類できない","分類対象外","分類できない","分類できない","分類できない","分類できない","分類できない","分類できない","分類できない","分類できない","分類できない","分類できない","分類できない","分類できない"]
["322","別表第９","4782-29-0","追加（2018年9月）","ビス（トリブチルスズ）=フタラート",null,null,null,null,null,null,null,null,null,null,null,null,null,null,null,null,null,null,"分類できない","分類できない","分類対象外","分類できない","分類できない","分類できない","分類できない","分類できない","分類できない","分類できない","分類できない","分類できない","分類できない","分類できない","分類できない","固体"]
["322","別表第９","85409-17-2","追加（2018年9月）","トリブチルスズ=シクロペンタンカルボキシラート及びこの類縁化合物の混合物（トリブチルスズ=ナフテナート）",null,null,null,null,null,null,null,null,null,null,null,null,null,null,null,null,null,null,"区分3","分類できない","分類対象外","分類できない","区分2","分類できない","分類できない","分類できない","分類できない","分類できない","分類できない","分類できない","区分1(呼吸器)","分類できない","分類できない"]
["322","別表第９","31732-71-5","追加（2018年9月）","ビス（トリブチルスズ）=2,3-ジブロモスクシナート",null,null,null,null,null,null,null,null,null,null,null,null,null,null,null,null,null,null,"分類できない","分類できない","分類対象外","分類できない","分類できない","分類できない","分類できない","分類できない","分類できない","分類できない","分類できない","分類できない","区分1(中枢神経系)､区分3(気道刺激性)","区分1(免疫系)","分類できない","固体"]
["322","別表第９","900-95-8","追加（2018年9月）","トリフェニルスズ=アセタート",null,null,null,null,null,null,null,null,null,null,null,null,null,null,null,null,null,null,"区分3","区分3","分類対象外","分類対象外","区分1","区分外","区分1","分類できない","区分1","分類できない","分類できない","区分2","区分1(中枢神経系､肝臓)､区分3(気道刺激性)","区分1(免疫系)","分類できない","固体","60"]
["322","別表第９","7094-94-2","追加（2018年9月）","トリフェニルスズ=クロロアセタート",null,null,null,null,null,null,null,null,null,null,null,null,null,null,null,null,null,null,"分類できない","分類できない","分類対象外","分類できない","分類できない","分類できない","分類できない","分類できない","分類できない","分類できない","分類できない","分類できない","分類できない","分類できない","分類できない","固体"]
["322","別表第９","1803-12-9","追加（2018年9月）","トリフェニルスズ=N,N-ジメチルジチオカルバマート",null,null,null,null,null,null,null,null,null,null,null,null,null,null,null,null,null,null,"分類できない","分類できない","分類対象外","分類できない","分類できない","分類できない","分類できない","分類できない","分類できない","分類できない","分類できない","分類できない","分類できない","分類できない","分類できない","固体"]
["322","別表第９","15578-26-4","追加（2018年9月）","ピロリン酸スズ（Ⅱ）",null,null,null,null,null,null,null,null,null,null,null,null,null,null,null,null,null,null,"分類できない","分類できない","分類対象外","分類できない","分類できない","分類できない","区分2","分類できない","分類できない","分類できない","分類できない","分類できない","区分3(気道刺激性)","区分1(肺)","分類できない","固体"]
["322","別表第９","74925-56-7","追加（2018年9月）","ケイフッ化スズ",null,null,null,null,null,null,null,null,null,null,null,null,null,null,null,null,null,null,"分類できない","分類できない","分類対象外","分類できない","分類できない","分類できない","区分2","分類できない","分類できない","分類できない","分類できない","分類できない","区分3(気道刺激性)","区分1(骨)","分類できない","固体"]
[331,"別表第９","8030-30-6","追加（2018年9月）","石油ベンジン",null,null,null,null,null,null,null,null,null,null,null,null,null,null,null,null,null,null,"区分外","分類できない","分類対象外","分類できない","分類できない","区分3","区分2","分類できない","分類できない","分類できない","分類できない","分類できない","区分3(麻酔作用)","区分1(神経系)","区分1"]
["322","別表第９","3090-36-6","追加（2018年9月）","トリブチルスズ=ラウラート",null,null,null,null,null,null,null,null,null,null,null,null,null,null,null,null,null,null,"区分3","分類できない","分類対象外","分類できない","分類できない","分類できない","分類できない","分類できない","分類できない","分類できない","分類できない","分類できない","区分2(肝臓､腎臓)","分類できない","分類できない",null,"156"]
["322","別表第９","2155-70-6","追加（2018年9月）","トリブチルスズ=メタクリラート",null,null,null,null,null,null,null,null,null,null,null,null,null,null,null,null,null,null,"区分3","分類できない","分類対象外","分類できない","分類できない","分類できない","分類できない","分類できない","分類できない","分類できない","分類できない","分類できない","分類できない","分類できない","分類できない",null,"170"]
[323,"別表第９","100-42-5",null,"スチレン",20,85,null,null,null,"皮","1999",20,null,40,null,null,null,null,104.16,"",1996,null,"区分外","分類できない","分類対象外","区分4","分類できない","区分2","区分2","分類できない","分類できない","区分2","区分2","区分1","区分1(中枢神経系)､区分3(気道刺激性､麻酔作用)","区分1(神経系､呼吸器､血液系､肝臓)","区分1","液体",145]
[324,"別表第９","557-05-1",null,"ステアリン酸亜鉛","","","","",null,"","","",null,"",null,null,null,null,"","","未設定(2017年現在）",null,"区分外","区分外","分類対象外","分類対象外","区分外","区分外","区分外","分類できない","分類できない","分類できない","分類できない","分類できない","分類できない","分類できない","分類できない","固体",""]
[325,"別表第９","822-16-2",null,"ステアリン酸ナトリウム","","","","",null,"","","",null,"",null,null,null,null,"","","未設定(2017年現在）",null,"分類できない","分類できない","分類対象外","分類できない","分類できない","区分外","区分2","分類できない","分類できない","分類できない","分類できない","分類できない","分類できない","分類できない","分類できない","固体",""]
[326,"別表第９","1072-35-1",null,"ステアリン酸鉛","","","","",null,"","","",null,"",null,null,null,null,"","","未設定(2017年現在）",null,"分類できない","分類できない","分類対象外","分類できない","分類できない","分類できない","分類できない","分類できない","分類できない","分類できない","区分1","区分1","区分1(血液系､腎臓､神経系)","区分1(血液系､腎臓､神経系)","分類できない","固体",""]
[327,"別表第９","557-04-0",null,"ステアリン酸マグネシウム","","","","",null,"","","",null,"",null,null,null,null,"","","未設定(2017年現在）",null,"分類できない","分類できない","分類対象外","分類できない","分類できない","区分3","区分2","分類できない","分類できない","分類できない","分類できない","分類できない","分類できない","分類できない","分類できない","固体",""]
[328,"別表第９","57-24-9",null,"ストリキニーネ","","","","",null,"","",null,0.15,"",null,null,null,null,334.4,"",1992,null,"区分1","分類できない","分類対象外","分類できない","分類できない","分類できない","分類できない","分類できない","分類できない","分類できない","分類できない","分類できない","区分1(中枢神経系)","区分1(中枢神経系)","分類できない","固体",270]
[329,"別表第９","8032-32-4","追加（2018年9月）","石油エーテル",null,null,null,null,null,null,null,null,null,null,null,null,null,null,null,null,null,null,"区分外","区分外","分類対象外","区分4","分類できない","区分2","区分2","分類できない","分類できない","分類できない","区分外","分類できない","区分3(気道刺激性､麻酔作用)","区分1(神経系)","区分1","液体","90"]
[330,"別表第９","64742-95-6","追加（2018年9月）","石油ナフサ",null,null,null,null,null,null,null,null,null,null,null,null,null,null,null,null,null,null,"区分外","区分外","分類対象外","区分4","分類できない","区分2","区分外","分類できない","区分外","区分外","分類できない","分類できない","区分3(気道刺激性)","分類できない","区分1","液体"]
["172","別表第９","10124-43-3","追加（2018年9月）","硫酸コバルト（Ⅱ）",null,0.05,null,null,"Coとして",null,null,null,null,null,null,null,null,null,null,null,null,null,"区分4","分類できない","分類対象外","分類できない","分類できない","分類できない","分類できない","区分1","区分1","分類できない","区分2","分類できない","分類できない","区分1(心臓､呼吸器系)","分類できない",null,"420"]
[332,"別表第９","533-96-0",null,"セスキ炭酸ナトリウム","","","","",null,"","","",null,"",null,null,null,null,"","","未設定(2017年現在）",null,"分類できない","分類できない","分類対象外","分類できない","分類できない","区分2","区分2","分類できない","分類できない","分類できない","分類できない","分類できない","区分3(気道刺激性)","分類できない","分類できない","固体",""]
[334,"別表第９","69327-76-0",null,"２―ターシャリ―ブチルイミノ―３―イソプロピル―５―フェニルテトラヒドロ―４Ｈ―１，３，５―チアジアジン―４―オン（別名ブプロフェジン）",null,2,null,null,null,null,"1990","",null,"",null,null,null,null,"","","未設定(2017年現在）",null,"区分4","区分外","分類対象外","分類できない","区分4","区分外","区分2","分類できない","区分外","区分外","区分外","区分外","分類できない","区分2(血液系､肝臓､腎臓､甲状腺､脳)","分類できない","固体",267.60000000000002]
["335","別表第９","7440-28-0","追加（2018年9月）","タリウム",null,null,null,null,null,null,null,null,null,null,null,null,null,null,null,null,null,null,"分類できない","分類できない","分類対象外","分類できない","分類できない","分類できない","分類できない","分類できない","分類できない","区分1","分類できない","区分1","区分1(消化器系､神経系､皮膚(付属器))","区分1(循環器系､脳･神経系､皮膚(付属器))","分類できない","固体","145.7"]
["335","別表第９","7446-18-6","追加（2018年9月）","硫酸タリウム",null,null,null,null,null,null,null,null,null,null,null,null,null,null,null,null,null,null,"区分2","区分3","分類対象外","分類対象外","分類できない","分類できない","分類できない","分類できない","分類できない","分類できない","分類できない","区分2","区分1(神経系､呼吸器､心血管系､消化管､肝臓､腎臓､皮膚)","区分1(神経系､皮膚､生殖器(男性))","分類できない","固体"]
["335","別表第９","10102-45-1","追加（2018年9月）","硝酸タリウム",null,null,null,null,null,null,null,null,null,null,null,null,null,null,null,null,null,null,"区分2","分類できない","分類対象外","分類できない","分類できない","区分1","区分1","分類できない","分類できない","分類できない","区分外","分類できない","区分1(神経系､呼吸器､心血管系)､区分2(腎臓､肝臓)","区分1(神経系､皮膚､精巣)､区分2(心臓血管系)","分類できない","固体"]
["335","別表第９","563-68-8","追加（2018年9月）","酢酸タリウム",null,null,null,null,null,null,null,null,null,null,null,null,null,null,null,null,null,null,"区分2","分類できない","分類対象外","分類できない","分類できない","分類できない","分類できない","分類できない","分類できない","分類できない","分類できない","区分2","区分1(神経系)､区分2(毛(脱毛症))","区分1(神経系)､区分2(毛(脱毛症))","分類できない","固体"]
[336,"別表第９","409-21-2",null,"炭化けい素","","","","",null,"","",null,10,"",null,null,null,null,"","",2002,null,"分類できない","分類できない","分類対象外","分類できない","分類できない","分類できない","分類できない","分類できない","分類できない","分類できない","区分1","分類できない","区分1(呼吸器系)","区分1(肺)","分類できない","固体",2210]
["337","別表第９","7440-33-7","追加（2018年9月）","タングステン",null,null,null,null,null,null,null,"",5,"",10,null,null,null,null,null,null,null,"分類できない","分類できない","分類対象外","分類対象外","分類できない","分類できない","区分2","分類できない","分類できない","分類できない","分類できない","分類できない","区分3(気道刺激性)","分類できない","分類できない","固体",5900]
["338","別表第９","7440-25-7","追加（2018年9月）","タンタル",null,null,null,null,null,null,null,null,null,null,null,null,null,null,null,null,null,null,"分類できない","分類できない","分類対象外","分類対象外","分類できない","分類できない","分類できない","分類できない","分類できない","分類できない","分類できない","分類できない","区分3(気道刺激性)","分類できない","分類できない","固体",5425]
[339,"別表第９","3383-96-8",null,"チオジ（パラ―フェニレン）―ジオキシ―ビス（チオホスホン酸）Ｏ，Ｏ，Ｏ′，Ｏ′―テトラメチル（別名テメホス）","","","","",null,"","",null,1,"",null,null,null,null,466.46,"Skin",2002,null,"区分5","区分4","分類対象外","分類できない","分類できない","区分3","区分2","分類できない","区分外","分類できない","分類できない","区分外","区分2(神経系)","区分1(神経系)","分類できない","固体",120]
[340,"別表第９","62-56-6",null,"チオ尿素","","","","",null,"","","",null,"",null,null,null,null,"","","未設定(2017年現在）",null,"区分4","区分外","分類対象外","分類対象外","分類できない","区分外","区分2","分類できない","区分1","分類できない","区分2","区分2","区分3(気道刺激性)","区分1(甲状腺)､区分2(肝臓)","分類できない","固体",""]
[341,"別表第９","96-69-5",null,"４，４′―チオビス（６―ターシャリ―ブチル―３―メチルフェノール）","","","","",null,"","",null,1,"",null,null,null,null,"","",2010,null,"区分外","分類できない","分類対象外","分類できない","分類できない","分類できない","分類できない","分類できない","分類できない","分類できない","区分外","分類できない","分類できない","区分2(肝臓)","分類できない","固体",316]
[342,"別表第９","108-98-5",null,"チオフェノール","","","","",null,"","",0.1,null,"",null,null,null,null,110.18,"Skin",2001,null,"区分2","区分2","分類対象外","区分1","分類できない","区分2","区分2","分類できない","分類できない","分類できない","分類できない","区分2","区分2(神経系)､区分3(気道刺激性)","区分1(腎臓)","分類できない","液体",168]
[343,"別表第９","333-41-5",null,"チオりん酸Ｏ，Ｏ―ジエチル―Ｏ―（２―イソプロピル―６―メチル―４―ピリミジニル）（別名ダイアジノン）",null,0.1,null,null,null,"皮","1989",null,0.01,"",null,null,null,null,304.36,"Skin",2000,null,"区分4","区分4","分類対象外","分類できない","区分4","区分外","区分外","分類できない","区分1","分類できない","区分1","区分2","区分1(神経系)","区分1(神経系)､区分2(肝臓､腎臓､血液系､生殖器(男性))","分類できない","液体",215]
[344,"別表第９","8065-48-3",null,"チオりん酸Ｏ，Ｏ―ジエチル―エチルチオエチル（別名ジメトン）","","","","",null,"","",null,0.05,"",null,null,null,null,"258.34","",2006,null,"区分1","区分1","分類対象外","分類できない","区分1","分類できない","区分2","分類できない","分類できない","区分2","分類できない","区分2","区分1(神経系)","区分1(神経系)","分類できない","液体",134]
[345,"別表第９","119-12-0",null,"チオりん酸Ｏ，Ｏ―ジエチル―Ｏ―（６―オキソ―１―フェニル―１，６―ジヒドロ―３―ピリダジニル）（別名ピリダフェンチオン）",null,0.2,null,null,null,"皮","1989","",null,"",null,null,null,null,"","","未設定(2017年現在）",null,"区分4","区分5","分類対象外","分類できない","分類できない","区分外","区分外","分類できない","区分外","分類できない","区分外","区分外","区分1(神経系)､区分2(消化管､眼)","区分1(神経系)","分類できない","固体",180]
[346,"別表第９","2921-88-2",null,"チオりん酸Ｏ，Ｏ―ジエチル―Ｏ―（３，５，６―トリクロロ―２―ピリジル）（別名クロルピリホス）","","","","",null,"","",null,0.1,"",null,null,null,null,350.57,"Skin",2000,null,"区分3","区分外","分類対象外","分類対象外","分類できない","区分外","区分2","分類できない","分類できない","分類できない","分類できない","分類できない","区分1(神経系)","区分1(神経系､副腎)､区分2(眼､血液系､肝臓)","分類できない","固体",160]
[347,"別表第９","115-90-2",null,"チオりん酸Ｏ，Ｏ―ジエチル―Ｏ―［４―（メチルスルフィニル）フェニル］（別名フェンスルホチオン）","","","","",null,"","",null,0.01,"",null,null,null,null,308.35000000000002,"Skin",2004,null,"区分1","区分1","分類対象外","分類できない","区分1","分類できない","分類できない","分類できない","分類できない","分類できない","分類できない","区分外","区分1(神経系､呼吸器)","区分1(神経系)","分類できない","液体",138]
[348,"別表第９","299-84-3",null,"チオりん酸Ｏ，Ｏ―ジメチル―Ｏ―（２，４，５―トリクロロフェニル）（別名ロンネル）","","","","",null,"","",null,5,"",null,null,null,null,321.57,"",2005,null,"区分4","区分4","分類対象外","分類できない","分類できない","区分3","区分2","分類できない","区分外","分類できない","区分外","区分2","区分2(神経系)､区分3(気道刺激性)","区分1(神経系)","分類できない","固体",97]
[349,"別表第９","122-14-5",null,"チオりん酸Ｏ，Ｏ―ジメチル―Ｏ―（３―メチル―４―ニトロフェニル）（別名フェニトロチオン）",null,1,null,null,null,"皮","1981","",null,"",null,null,null,null,"","","未設定(2017年現在）",null,"区分4","区分4","分類対象外","分類できない","分類できない","区分外","区分2","分類できない","区分1","分類できない","区分外","区分2","区分1(神経系)","区分1(神経系)","分類できない","液体",210]
[350,"別表第９","55-38-9",null,"チオりん酸Ｏ，Ｏ―ジメチル―Ｏ―（３―メチル―４―メチルチオフェニル）（別名フェンチオン）",null,0.2,null,null,null,"皮","1989",null,0.05,"",null,null,null,null,278.33999999999997,"Skin",2005,null,"区分4","区分4","分類対象外","分類できない","区分3","区分外","区分外","分類できない","区分外","区分外","区分外","区分2","区分1(神経系)","区分1(神経系)","分類できない","液体",90]
[351,"別表第９","17702-41-9",null,"デカボラン","","","","",null,"","",0.05,null,0.15,null,null,null,null,122.31,"Skin",1979,null,"区分3","区分2","分類対象外","区分1","分類できない","区分3","区分2","分類できない","分類できない","分類できない","分類できない","分類できない","区分1(中枢神経系)､区分3(気道刺激性､麻酔作用)","区分1(中枢神経系)","分類できない","固体",213]
["352","別表第９","7705-08-0","追加（2018年9月）","塩化鉄（Ⅲ）",null,null,null,null,null,null,null,null,null,null,null,null,null,null,null,null,null,null,"区分4","分類できない","分類対象外","分類対象外","分類できない","区分1","区分1","分類できない","分類できない","分類できない","分類できない","分類できない","区分1(全身毒性)､区分3(気道刺激性)","分類できない","分類できない","固体","316"]
[353,"別表第９","2475-45-8",null,"１，４，７，８―テトラアミノアントラキノン（別名ジスパースブルー１）","","","","",null,"","","",null,"",null,null,null,null,"","","未設定(2017年現在）",null,"区分外","分類できない","分類対象外","分類できない","分類できない","分類できない","分類できない","分類できない","分類できない","分類できない","区分2","分類できない","分類できない","分類できない","分類できない","固体",""]
[354,"別表第９","97-77-8",null,"テトラエチルチウラムジスルフィド（別名ジスルフィラム）","","","","",null,"","",null,2,"",null,null,null,null,296.54000000000002,"",1979,null,"区分5","区分外","分類対象外","分類できない","分類できない","区分外","区分2","分類できない","分類できない","分類できない","区分外","区分2","区分1(神経系)","区分1(神経系､肝臓､甲状腺､内分泌系)","分類できない","固体",117]
[355,"別表第９","107-49-3",null,"テトラエチルピロホスフェイト（別名ＴＥＰＰ）","","","","",null,"","",null,0.01,"",null,null,null,null,290.2,"Skin",2006,null,"区分1","区分1","分類対象外","区分1","分類できない","区分2","区分2","分類できない","分類できない","分類できない","分類できない","分類できない","区分1(神経系)","区分1(神経系)","分類できない","液体",82]
[356,"別表第９","78-10-4",null,"テトラエトキシシラン",10,85,null,null,null,null,"1991",10,null,"",null,null,null,null,208.3,"",1979,null,"区分外","区分外","分類対象外","分類できない","区分外","区分2","区分2","分類できない","分類できない","分類できない","分類できない","分類できない","区分1(血液系)､区分3(気道刺激性､麻酔作用)","区分1(呼吸器)､区分2(腎臓)","分類できない","液体",166]
[357,"別表第９","79-34-5",null,"１，１，２，２―テトラクロロエタン（別名四塩化アセチレン）",1,6.9,null,null,null,"皮","1984",1,null,"",null,null,null,null,167.86,"Skin",1995,null,"区分4","区分外","分類対象外","区分3","分類できない","区分2","区分2","分類できない","分類できない","区分2","区分2","分類できない","区分1(中枢神経系､肝臓､腎臓)､区分3(気道刺激性､麻酔作用)","区分1(中枢神経系､肝臓)","分類できない","液体",146.5]
[358,"別表第９","2425-06-1",null,"Ｎ―（１，１，２，２―テトラクロロエチルチオ）―１，２，３，６―テトラヒドロフタルイミド（別名キャプタフォル）","","","","",null,"","",null,0.1,"",null,null,null,null,349.1,"Skin",2016,null,"区分5","区分外","分類対象外","分類できない","分類できない","区分2","区分2","区分1","区分1","区分1","区分1","区分外","分類できない","区分1(腎臓､膀胱)､区分2(肝臓)","分類できない","固体",""]
[359,"別表第９","127-18-4",null,"テトラクロロエチレン（別名パークロルエチレン）",null,null,null,null,null,"皮","1972",25,null,100,null,null,null,null,165.8,"",1990,null,"区分外","区分外","分類対象外","区分4","分類できない","区分2","区分2","分類できない","分類できない","区分外","区分1","区分2","区分1(中枢神経系､呼吸器､肝臓)､区分3(麻酔作用)","区分1(神経系､肝臓､呼吸器)､区分2(腎臓)","分類できない","液体",121]
[360,"別表第９","27355-22-2",null,"４，５，６，７―テトラクロロ―１，３―ジヒドロベンゾ［ｃ］フラン―２―オン（別名フサライド）",null,10,null,null,null,null,"1990","",null,"",null,null,null,null,"","","未設定(2017年現在）",null,"区分外","区分外","分類対象外","分類できない","分類できない","区分外","区分外","分類できない","区分外","区分外","分類できない","区分外","分類できない","分類できない","分類できない","固体",290]
[361,"別表第９","76-12-0",null,"テトラクロロジフルオロエタン（別名ＣＦＣ―１１２）","","","","",null,"","",50,null,"",null,null,null,null,203.83,"",2007,null,"区分外","区分外","分類対象外","区分外","分類できない","区分2","区分2","分類できない","区分外","区分外","区分外","分類できない","分類できない","分類できない","分類できない","固体",93]
[362,"別表第９","1746-01-6",null,"２，３，７，８―テトラクロロジベンゾ―１，４―ジオキシン","","","","",null,"","","",null,"",null,null,null,null,"","","未設定(2017年現在）",null,"区分1","区分1","分類対象外","分類できない","分類できない","区分2","区分2","分類できない","分類できない","区分2","区分1","区分1","区分1(皮膚､肝臓､免疫系､内分泌系､骨髄､生殖器､泌尿器)","区分1(皮膚､肝臓､免疫系､内分泌系､神経系､血液､腎臓)","分類できない","固体",""]
[363,"別表第９","1335-88-2",null,"テトラクロロナフタレン","","","","",null,"","",null,2,"",null,null,null,null,265.95999999999998,"",1992,null,"分類できない","分類できない","分類対象外","分類対象外","分類できない","分類できない","分類できない","分類できない","分類できない","分類できない","分類できない","分類できない","分類できない","区分1(肝臓､皮膚)","分類できない","固体",311.5]
[364,"別表第９","72-57-1",null,"テトラナトリウム＝３，３′―［（３，３′―ジメチル―４，４′―ビフェニリレン）ビス（アゾ）］ビス［５―アミノ―４―ヒドロキシ―２，７―ナフタレンジスルホナート］（別名トリパンブルー）","","","","",null,"","","",null,"",null,null,null,null,"","","未設定(2017年現在）",null,"区分外","分類できない","分類対象外","分類できない","分類できない","分類できない","分類できない","分類できない","分類できない","分類できない","区分2","区分2","分類できない","分類できない","分類できない","固体",""]
[365,"別表第９","2429-74-5",null,"テトラナトリウム＝３，３′―［（３，３′―ジメトキシ―４，４′―ビフェニリレン）ビス（アゾ）］ビス［５―アミノ―４―ヒドロキシ―２，７―ナフタレンジスルホナート］（別名ＣＩダイレクトブルー１５）","","","","",null,"","","",null,"",null,null,null,null,"","","未設定(2017年現在）",null,"区分外","分類できない","分類対象外","分類できない","分類できない","分類できない","分類できない","分類できない","分類できない","区分2","区分2","分類できない","分類できない","区分外","分類できない","固体",""]
[366,"別表第９","509-14-8",null,"テトラニトロメタン","","","","",null,"","",5.0000000000000001E-3,null,"",null,null,null,null,196.04,"",1992,null,"区分3","分類できない","分類対象外","区分1","分類できない","区分外","区分2","分類できない","分類できない","分類できない","区分2","分類できない","区分3(気道刺激性)","区分1(呼吸器､血液)","分類できない","液体",125.7]
[367,"別表第９","109-99-9",null,"テトラヒドロフラン",50,148,null,null,null,"皮","2015",50,null,100,null,null,null,null,72.099999999999994,"Skin",2002,null,"区分4","分類できない","分類対象外","区分4","分類できない","区分外","区分2","分類できない","分類できない","分類できない","区分2","区分2","区分1(中枢神経系)､区分3(気道刺激性､麻酔作用)","区分1(中枢神経系､呼吸器､肝臓)","分類できない","液体",65]
["367-2","別表第９","11070-44-3",null,"テトラヒドロメチル無水フタル酸",7.0000000000000001E-3,0.05,null,null,null,null,"2002","",null,"",null,null,null,null,"","","未設定(2017年現在）",null,"区分外","区分4","分類対象外","分類できない","分類できない","区分2","区分2","区分1","区分1","分類できない","分類できない","分類できない","区分3(気道刺激性)","分類できない","分類できない","液体",290]
[368,"別表第９","116-14-3",null,"テトラフルオロエチレン","","","","",null,"","",2,null,"",null,null,null,null,100.2,"",1997,null,"分類対象外","分類対象外","区分外","分類対象外","分類対象外","分類できない","区分2","分類できない","分類できない","分類できない","区分2","分類できない","区分2(腎臓､肝臓)","区分2(腎臓､肝臓)","分類対象外","気体",""]
[369,"別表第９","79-27-6",null,"１，１，２，２―テトラブロモエタン","","","","",null,"","",0.1,null,"",null,null,null,null,345.7,"",2005,null,"区分4","区分外","分類対象外","区分1","分類できない","区分2","区分2","分類できない","分類できない","分類できない","分類できない","分類できない","区分2(中枢神経系)､区分3(気道刺激性)","区分1(肝臓)､区分2(甲状腺､肺)","分類できない","液体",151]
[370,"別表第９","558-13-4",null,"テトラブロモメタン","","","","",null,"","",0.1,null,0.3,null,null,null,null,331.65,"",1972,null,"区分4","分類できない","分類対象外","分類できない","分類できない","区分2","区分1","分類できない","分類できない","分類できない","分類できない","分類できない","区分1(肝臓､腎臓､呼吸器)､区分2(神経)､区分3(麻酔作用)","区分1(肝臓)､区分2(呼吸器)","分類できない","固体",190]
[371,"別表第９","3333-52-6",null,"テトラメチルこはく酸ニトリル","","","","",null,"","",0.5,null,"",null,null,null,null,136.19999999999999,"Skin",1992,null,"区分2","分類できない","分類対象外","分類できない","区分2","分類できない","分類できない","分類できない","分類できない","分類できない","分類できない","分類できない","区分2(中枢神経系)","区分1(中枢神経系)","分類できない","固体",""]
[372,"別表第９","137-26-8",null,"テトラメチルチウラムジスルフィド（別名チウラム）",null,0.1,null,null,null,null,"2008",null,0.05,"",null,null,null,null,240.44,"",2007,null,"区分4","区分外","分類対象外","分類できない","区分2","区分外","区分2","分類できない","区分1","区分1","分類できない","区分2","区分1(神経系)","区分1(甲状腺､肝臓)､区分2(神経系)","分類できない","固体",242]
[373,"別表第９","681-84-5",null,"テトラメトキシシラン",1,6,null,null,null,null,"1991",1,null,"",null,null,null,null,152.22,"",1978,null,"分類できない","区分外","分類対象外","区分1","分類できない","分類できない","区分1","分類できない","分類できない","分類できない","分類できない","分類できない","区分2(肺)","区分1(呼吸器)､区分2(腎臓)","分類できない","液体",121]
[374,"別表第９","479-45-8",null,"テトリル","","","","",null,"","",null,1.5,"",null,null,null,null,287.14999999999998,"",1984,null,"区分外","区分外","分類対象外","分類できない","分類できない","区分2","区分2","分類できない","区分1","分類できない","分類できない","分類できない","区分3(気道刺激性)","区分1(肝臓､血液､中枢神経系､呼吸器系)､区分2(腎臓)","分類できない","固体",187]
[375,"別表第９","26140-60-3",null,"テルフェニル","","","","",null,"","",null,null,"",null,null,5,null,230.31,"",1977,null,"区分外","区分外","分類対象外","分類できない","分類できない","区分2","区分2","分類できない","分類できない","分類できない","分類できない","分類できない","区分3(気道刺激性)","分類できない","分類できない","固体",332]
[377,"別表第９","8006-64-2",null,"テレビン油","","","","",null,"","",20,null,"",null,null,null,null,136,"",2001,null,"区分外","区分外","分類対象外","区分3","分類できない","区分2","区分2","分類できない","区分1","分類できない","分類できない","分類できない","区分1(中枢神経系､腎臓)､区分3(気道刺激性)","区分1(呼吸器､血液系､泌尿器系)","区分1","液体",149]
[378,"別表第９","100-21-0",null,"テレフタル酸","","","","",null,"","",null,10,"",null,null,null,null,166.13,"",1990,null,"区分外","区分外","分類対象外","分類対象外","分類できない","区分外","区分2","分類できない","分類できない","分類できない","分類できない","分類できない","区分3(気道刺激性)","区分1(呼吸器)","分類できない","固体",""]
["379","別表第９","7440-50-8","追加（2018年9月）","銅",null,null,null,null,null,null,null,null,null,null,null,null,null,null,null,null,null,null,"分類できない","分類できない","分類対象外","分類対象外","分類できない","分類できない","分類できない","分類できない","区分1","分類できない","分類できない","分類できない","区分1(消化器)､区分3(気道刺激性)","分類できない","分類できない","固体","2595"]
["379","別表第９","544-92-3","追加（2018年9月）","シアン化銅（Ⅰ）",null,null,null,null,null,null,null,null,null,null,null,null,null,null,null,null,null,null,"区分4","分類できない","分類対象外","分類対象外","分類できない","区分2","区分2","分類できない","区分1","分類できない","分類できない","分類できない","分類できない","区分1(中枢神経系､呼吸器､血液系)､区分2(肝臓)","分類できない","固体"]
["379","別表第９","1317-39-1","追加（2018年9月）","酸化銅（Ⅰ）",null,null,null,null,null,null,null,null,null,null,null,null,null,null,null,null,null,null,"区分4","区分外","分類対象外","分類できない","区分4","区分外","区分2","分類できない","分類できない","分類できない","分類できない","分類できない","区分1(全身)､区分3(気道刺激性)","分類できない","分類できない","固体"]
["379","別表第９","7789-19-7","追加（2018年9月）","フッ化銅（Ⅱ）",null,null,null,null,null,null,null,null,null,null,null,null,null,null,null,null,null,null,"分類できない","分類できない","分類対象外","分類できない","分類できない","分類できない","区分2","分類できない","分類できない","分類できない","分類できない","分類できない","区分3(気道刺激性)","区分1(骨)","分類できない","固体"]
["379","別表第９","7758-89-6","追加（2018年9月）","塩化銅（Ⅰ）",null,null,null,null,null,null,null,null,null,null,null,null,null,null,null,null,null,null,"分類できない","区分外","分類対象外","分類対象外","分類できない","分類できない","分類できない","分類できない","区分1","分類できない","分類できない","分類できない","分類できない","区分2(血液系)","分類できない","固体","1490"]
["379","別表第９","7447-39-4","追加（2018年9月）","塩化銅（Ⅱ）",null,null,null,null,null,null,null,null,null,null,null,null,null,null,null,null,null,null,"区分3","分類できない","分類対象外","分類できない","分類できない","区分2","区分2","分類できない","区分1","分類できない","分類できない","区分2","分類できない","分類できない","分類できない","固体","993"]
["379","別表第９","7681-65-4","追加（2018年9月）","ヨウ化銅（Ⅰ）",null,null,null,null,null,null,null,null,null,null,null,null,null,null,null,null,null,null,"分類できない","分類できない","分類対象外","分類できない","分類できない","区分3","区分2","分類できない","分類できない","分類できない","分類できない","分類できない","区分3(気道刺激性)","分類できない","分類できない","固体","1290"]
["379","別表第９","7758-98-7","追加（2018年9月）","硫酸銅（Ⅱ）",null,null,null,null,null,null,null,null,null,null,null,null,null,null,null,null,null,null,"区分3","分類できない","分類対象外","分類対象外","分類できない","区分1","区分1","分類できない","区分1","分類できない","分類できない","区分2","区分1(神経系､血液系､肝臓､腎臓)､区分3(気道刺激性)","区分1(呼吸器)､区分2(肝臓)","分類できない","固体","650"]
["379","別表第９","7758-99-8","追加（2018年9月）","硫酸銅（Ⅱ）五水和物",null,null,null,null,null,null,null,null,null,null,null,null,null,null,null,null,null,null,"区分4","分類できない","分類対象外","分類できない","分類できない","区分2","区分2","分類できない","区分1","区分2","分類できない","区分2","区分1(血液系､肝臓､神経系､腎臓､呼吸器)","区分1(血液系､腎臓､呼吸器)､区分2(肝臓)","分類できない","固体","150"]
["379","別表第９","10031-43-3","追加（2018年9月）","硝酸銅（Ⅱ）三水和物",null,null,null,null,null,null,null,null,null,null,null,null,null,null,null,null,null,null,"区分4","分類できない","分類対象外","分類できない","分類できない","分類できない","分類できない","分類できない","分類できない","分類できない","分類できない","分類できない","分類できない","分類できない","分類できない","固体"]
["379","別表第９","1332-40-7","追加（2018年9月）","塩基性塩化銅",null,null,null,null,null,null,null,null,null,null,null,null,null,null,null,null,null,null,"区分4","区分外","分類対象外","分類できない","分類できない","区分外","区分2","分類できない","区分外","区分外","分類できない","分類できない","分類できない","分類できない","分類できない","固体"]
["379","別表第９","12069-69-1","追加（2018年9月）","塩基性炭酸銅",null,null,null,null,null,null,null,null,null,null,null,null,null,null,null,null,null,null,"区分4","分類できない","分類対象外","分類できない","分類できない","分類できない","分類できない","分類できない","分類できない","分類できない","分類できない","分類できない","分類できない","分類できない","分類できない","固体"]
["379","別表第９","142-71-2","追加（2018年9月）","酢酸銅（Ⅱ）",null,null,null,null,null,null,null,null,null,null,null,null,null,null,null,null,null,null,"区分4","分類できない","分類対象外","分類できない","分類できない","分類できない","分類できない","分類できない","分類できない","分類できない","分類できない","分類できない","区分1(肝臓､腎臓､血液)､区分3(気道刺激性)","区分1(肝臓)","分類できない","固体","240 "]
["379","別表第９","6046-93-1","追加（2018年9月）","酢酸銅（Ⅱ）一水和物",null,null,null,null,null,null,null,null,null,null,null,null,null,null,null,null,null,null,"区分4","分類できない","分類対象外","分類できない","分類できない","分類できない","分類できない","分類できない","分類できない","分類できない","分類できない","分類できない","分類できない","分類できない","分類できない","固体"]
["379","別表第９","1111-67-7","追加（2018年9月）","チオシアン酸銅（Ⅰ）",null,null,null,null,null,null,null,null,null,null,null,null,null,null,null,null,null,null,"分類できない","分類できない","分類対象外","分類できない","分類できない","分類できない","分類できない","分類できない","分類できない","分類できない","分類できない","分類できない","分類できない","分類できない","分類できない","固体"]
["379","別表第９","10060-13-6","追加（2018年9月）","四塩化銅（Ⅱ）二アンモニウム二水和物",null,null,null,null,null,null,null,null,null,null,null,null,null,null,null,null,null,null,"分類できない","分類できない","分類対象外","分類できない","分類できない","分類できない","分類できない","分類できない","分類できない","分類できない","分類できない","分類できない","分類できない","分類できない","分類できない","固体"]
["379","別表第９","10085-76-4","追加（2018年9月）","四塩化銅（Ⅱ）二カリウム二水和物",null,null,null,null,null,null,null,null,null,null,null,null,null,null,null,null,null,null,"分類できない","分類できない","分類対象外","分類できない","分類できない","分類できない","分類できない","分類できない","分類できない","分類できない","分類できない","分類できない","分類できない","分類できない","分類できない","固体"]
["379","別表第９","10102-90-6","追加（2018年9月）","ピロリン酸銅（Ⅱ）",null,null,null,null,null,null,null,null,null,null,null,null,null,null,null,null,null,null,"分類できない","分類できない","分類対象外","分類できない","分類できない","分類できない","分類できない","分類できない","分類できない","分類できない","分類できない","分類できない","分類できない","分類できない","分類できない","固体"]
["379","別表第９","14264-31-4","追加（2018年9月）","シアン化銅酸ナトリウム",null,null,null,null,null,null,null,null,null,null,null,null,null,null,null,null,null,null,"分類できない","分類できない","分類対象外","分類できない","分類できない","区分3","区分2","分類できない","分類できない","分類できない","分類できない","分類できない","区分1(心血管系､呼吸器系､中枢神経系)","区分1(中枢神経系)","分類できない","固体"]
["379","別表第９","13682-73-0","追加（2018年9月）","シアン化銅酸カリウム",null,null,null,null,null,null,null,null,null,null,null,null,null,null,null,null,null,null,"分類できない","分類できない","分類対象外","分類できない","分類できない","区分3","区分2","分類できない","分類できない","分類できない","分類できない","分類できない","区分1(心血管系､呼吸器系､中枢神経系)","区分1(中枢神経系)","分類できない","固体"]
["379","別表第９","137-29-1","追加（2018年9月）","ジメチルジチオカルバミン酸銅",null,null,null,null,null,null,null,null,null,null,null,null,null,null,null,null,null,null,"分類できない","分類できない","分類対象外","分類できない","分類できない","分類できない","分類できない","分類できない","分類できない","分類できない","分類できない","分類できない","分類できない","分類できない","分類できない","液体"]
["379","別表第９","12062-24-7","追加（2018年9月）","ケイフッ化銅",null,null,null,null,null,null,null,null,null,null,null,null,null,null,null,null,null,null,"分類できない","分類できない","分類対象外","分類できない","分類できない","分類できない","区分2","分類できない","分類できない","分類できない","分類できない","分類できない","区分3(気道刺激性)","区分1(骨)","分類できない","固体"]
["379","別表第９","10380-28-6","追加（2018年9月）","ビス（8-キノリノラト）銅",null,null,null,null,null,null,null,null,null,null,null,null,null,null,null,null,null,null,"区分4","区分外","分類対象外","分類できない","分類できない","分類できない","区分2","分類できない","区分外","区分外","区分外","区分外","区分2(全身毒性)","分類できない","分類できない","固体"]
["379","別表第９","14915-37-8","追加（2018年9月）","ビス（2-スルフィドピリジン-1-オラト）銅",null,null,null,null,null,null,null,null,null,null,null,null,null,null,null,null,null,null,"区分4","区分外","分類対象外","分類できない","区分2","分類できない","分類できない","分類できない","区分1","分類できない","分類できない","分類できない","分類できない","分類できない","分類できない","固体"]
[380,"別表第９","8008-20-6",null,"灯油","","","","",null,"","",null,200,"",null,null,null,null,"","Skin",2003,null,"区分外","区分外","分類対象外","分類できない","区分外","区分2","区分外","分類できない","分類できない","区分外","区分2","分類できない","区分3(気道刺激性､麻酔作用)","分類できない","区分1","液体",150]
[381,"別表第９","102-71-6",null,"トリエタノールアミン","","","","",null,"","",null,5,"",null,null,null,null,149.22,"",1990,null,"区分外","区分外","分類対象外","分類できない","分類できない","区分2","区分2","分類できない","区分1","分類できない","分類できない","分類できない","区分3(気道刺激性)","区分外","分類できない","液体",335.4]
[382,"別表第９","121-44-8",null,"トリエチルアミン","","","","",null,"","",0.5,null,1,null,null,null,null,101.19,"Skin",2014,null,"区分4","区分3","分類対象外","区分4","分類できない","区分1","区分1","分類できない","区分外","分類できない","分類できない","分類できない","区分1(中枢神経系)､区分3(気道刺激性)","区分2(呼吸器)","分類できない","液体",89]
[383,"別表第９","71-55-6",null,"１，１，１－トリクロロエタン",200,1100,null,null,null,null,"1974",350,null,450,null,null,null,null,133.41999999999999,"",1992,null,"区分外","区分外","分類対象外","区分外","分類できない","区分2","区分2","分類できない","区分外","区分外","区分2","区分2","区分1(中枢神経系､心臓)､区分3(麻酔作用､気道刺激性)","区分1(中枢神経系､肝臓､心臓)､区分2(肺)","分類できない","液体",74.099999999999994]
[383,"別表第９","79-00-5",null,"１，１，２－トリクロロエタン",10,55,null,null,null,"皮","1978",10,null,"",null,null,null,null,133.41,"Skin",1992,null,"区分4","区分外","分類対象外","区分3","分類できない","区分2","区分2","分類できない","分類できない","分類できない","区分2","分類できない","区分1(肝臓､腎臓)､区分3(気道刺激性､麻酔作用)","区分1(神経系､呼吸器､消化管､肝臓､腎臓)","分類できない","液体",114]
[384,"別表第９","79-01-6",null,"トリクロロエチレン",25,135,null,null,null,null,"2015",10,null,25,null,null,null,null,131.4,"",2006,null,"区分外","区分外","分類対象外","区分4","分類できない","区分2","区分2","区分外","区分1","区分2","区分1","区分2","区分1(中枢神経系)､区分3(気道刺激性､麻酔作用)","区分1(中枢神経系､肝臓)","分類できない","液体",87]
[385,"別表第９","76-03-9",null,"トリクロロ酢酸","","","","",null,"","",0.5,null,"",null,null,null,null,163.38999999999999,"",2013,null,"区分外","区分外","分類対象外","分類できない","分類できない","区分1","区分1","分類できない","分類できない","区分2","区分外","区分2","区分3(麻酔作用)","分類できない","分類できない","固体",198]
[386,"別表第９","76-13-1",null,"１，１，２―トリクロロ―１，２，２―トリフルオロエタン",500,3800,null,null,null,null,"1987",1000,null,1250,null,null,null,null,187.4,"",1992,null,"区分外","区分外","分類対象外","区分外","分類できない","区分外","区分2","分類できない","分類できない","分類できない","分類できない","区分外","区分1(心血管系)､区分3(気道刺激性､麻酔作用)","区分1(中枢神経系､肝臓)","分類できない","液体",47.7]
[387,"別表第９","1321-65-9",null,"トリクロロナフタレン","","","","",null,"","",null,5,"",null,null,null,null,231.51,"Skin",1970,null,"区分4","分類できない","分類対象外","分類対象外","分類できない","分類できない","分類できない","分類できない","分類できない","分類できない","分類できない","分類できない","分類できない","区分1(肝臓､皮膚)","分類できない","固体",304]
[388,"別表第９","50-29-3",null,"１，１，１―トリクロロ―２，２―ビス（４―クロロフェニル）エタン（別名ＤＤＴ）","","","","",null,"","",null,1,"",null,null,null,null,354.5,"",1979,null,"区分3","区分3","分類対象外","分類対象外","分類できない","区分外","区分2","分類できない","分類できない","区分1","区分1","区分1","区分1(神経系)","区分1(肝臓､免疫系)､区分2(神経系､内分泌系)","分類できない","固体",260]
[389,"別表第９","72-43-5",null,"１，１，１―トリクロロ―２，２―ビス（４―メトキシフェニル）エタン（別名メトキシクロル）","","","","",null,"","",null,10,"",null,null,null,null,345.65,"",1992,null,"区分5","区分外","分類対象外","分類できない","分類できない","分類できない","分類できない","分類できない","区分外","区分外","区分外","区分2","区分2(神経系)","区分2(肝臓､神経系､内分泌系)","分類できない","固体",346]
[390,"別表第９","93-76-5",null,"２，４，５―トリクロロフェノキシ酢酸","","","","",null,"","",null,10,"",null,null,null,null,255.49,"",1992,null,"区分4","区分4","分類対象外","分類できない","分類できない","区分2","区分2","分類できない","分類できない","区分外","区分外","区分1","区分3(気道刺激性)","区分1(皮膚)､区分2(腎臓､免疫系)","分類できない","固体",""]
[391,"別表第９","75-69-4",null,"トリクロロフルオロメタン（別名ＣＦＣ―１１）",null,null,1000,5600,null,null,"1987","",null,null,null,1000,null,null,137.38,"",1992,null,"区分外","分類できない","分類対象外","区分外","分類できない","区分外","区分外","分類できない","分類できない","分類できない","区分外","区分2","区分1(心臓)､区分3(麻酔作用､気道刺激性)","区分外","分類できない","液体",24]
[392,"別表第９","96-18-4",null,"１，２，３―トリクロロプロパン","","","","",null,"","",5.0000000000000001E-3,null,"",null,null,null,null,147.43,"",2014,null,"区分3","区分3","分類対象外","区分2","分類できない","区分外","区分2","分類できない","分類できない","区分2","区分1","区分1","区分1(神経系､副腎)､区分3(気道刺激性)","区分1(呼吸器､肝臓､血液系､膵臓､腎臓)､区分2(心臓)","分類できない","液体",156]
[393,"別表第９","120-82-1",null,"１，２，４―トリクロロベンゼン","","","","",null,"","","",null,null,null,5,null,null,181.46,"",1975,null,"区分4","区分外","分類対象外","分類できない","区分外","区分外","区分外","分類できない","区分外","区分外","区分外","分類できない","区分3(麻酔作用､気道刺激性)","区分2(肝臓､腎臓､甲状腺､血液系)","分類できない","液体",213]
[394,"別表第９","594-42-3",null,"トリクロロメチルスルフェニル＝クロリド","","","","",null,"","",0.1,null,"",null,null,null,null,185.87,"",1988,null,"区分3","区分4","分類対象外","区分1","分類できない","区分2","区分1","分類できない","分類できない","分類できない","分類できない","分類できない","区分1(中枢神経系､呼吸器)","区分1(呼吸器)","分類できない","液体",147]
[395,"別表第９","133-06-2",null,"Ｎ―（トリクロロメチルチオ）―１，２，３，６―テトラヒドロフタルイミド（別名キャプタン）","","","","",null,"","",null,5,"",null,null,null,null,300.60000000000002,"",1999,null,"区分5","区分外","分類対象外","分類できない","区分3","区分2","区分1","分類できない","区分1","区分外","区分2","区分外","区分外","区分外","分類できない","固体",254]
[396,"別表第９","13121-70-5",null,"トリシクロヘキシルすず＝ヒドロキシド","","","","",null,"","",null,5,"",null,null,null,null,385.16,"",1990,null,"区分4","区分2","分類対象外","分類できない","分類できない","区分2","区分2","分類できない","区分外","分類できない","区分外","区分外","区分1(中枢神経系､消化管)､区分3(気道刺激性)","区分1(消化管､腎臓､肝臓)","分類できない","固体",228]
[397,"別表第９","2451-62-9",null,"１，３，５―トリス（２，３―エポキシプロピル）―１，３，５―トリアジン―２，４，６（１Ｈ，３Ｈ，５Ｈ）―トリオン","","","","",null,"","",null,0.05,"",null,null,null,null,29725,"",1994,null,"区分3","区分外","分類対象外","分類対象外","区分3","区分2","区分2","区分1","区分1","区分1","分類できない","区分2","区分1(造血系､呼吸器)","区分1(造血系)､区分2(全身毒性)","分類できない","固体",210]
[398,"別表第９","14484-64-1",null,"トリス（Ｎ，Ｎ―ジメチルジチオカルバメート）鉄（別名ファーバム）","","","","",null,"","",null,5,"",null,null,null,null,416.5,"",2008,null,"区分外","分類できない","分類対象外","分類できない","区分2","区分2","区分2","分類できない","分類できない","分類できない","区分外","区分2","区分3(気道刺激性､麻酔作用)","区分2(甲状腺､神経系)","分類できない","固体",""]
[399,"別表第９","118-96-7",null,"トリニトロトルエン","","","","",null,"","",null,0.1,"",null,null,null,null,227.13,"Skin",1984,null,"区分4","分類できない","分類対象外","分類対象外","分類できない","区分2","区分2","分類できない","区分1","分類できない","分類できない","区分2","区分1(血液系､肝臓)､区分3(気道刺激性)","区分1(血液系､肝臓､眼､心臓､末梢神経系)","分類できない","固体",""]
[400,"別表第９","603-34-9",null,"トリフェニルアミン","","","","",null,"","",null,5,"",null,null,null,null,"","",2005,null,"区分5","分類できない","分類対象外","分類できない","分類できない","分類できない","区分外","分類できない","分類できない","分類できない","分類できない","分類できない","分類できない","分類できない","分類できない","固体",348]
[401,"別表第９","75-25-2",null,"トリブロモメタン",1,10.3,null,null,null,null,"1997",0.5,null,"",null,null,null,null,252.73,"",2008,null,"区分4","分類できない","分類対象外","分類できない","分類できない","区分2","区分2","分類できない","分類できない","区分2","区分2","区分2","区分1(中枢神経系)､区分3(気道刺激性､麻酔作用)","区分1(肝臓)､区分2(中枢神経系)","分類できない","液体",149]
[402,"別表第９","83-26-1",null,"２―トリメチルアセチル―１，３―インダンジオン","","","","",null,"","",null,0.1,"",null,null,null,null,230.25,"",1992,null,"分類できない","分類できない","分類対象外","分類できない","分類できない","分類できない","分類できない","分類できない","分類できない","分類できない","分類できない","分類できない","分類できない","区分1(血液)","分類できない","固体",""]
[403,"別表第９","75-50-3",null,"トリメチルアミン","","","","",null,"","",5,null,15,null,null,null,null,59.11,"",2012,null,"区分4","区分外","区分4","分類対象外","分類対象外","区分1","区分1","分類できない","分類できない","分類できない","分類できない","分類できない","区分2(中枢神経系､呼吸器)","区分1(呼吸器)","分類対象外","気体",""]
[404,"別表第９","25551-13-7",null,"トリメチルベンゼン","","","","",null,"","",25,null,"",null,null,null,null,120.19,"",1970,null,"区分外","分類できない","分類対象外","分類できない","分類できない","区分2","区分2","分類できない","分類できない","分類できない","分類できない","分類できない","区分3(気道刺激性､麻酔作用)","区分1(中枢神経系､呼吸器)","区分1","液体",165]
[405,"別表第９","26471-62-5",null,"トリレンジイソシアネート",5.0000000000000001E-3,3.5000000000000003E-2,0.02,0.14000000000000001,null,null,"1992","",null,"",null,null,null,null,"","","未設定(2017年現在）",null,"区分5","区分外","分類対象外","区分1","分類できない","区分1","区分2","区分1","区分1","区分外","区分2","分類できない","区分1(呼吸器､中枢神経系)","区分1(呼吸器)､区分2(肝臓)","分類できない","液体",120]
[405,"別表第９","584-84-9",null,"2,4-トリレンジイソシアネート","","","","",null,"","",1E-3,null,5.0000000000000001E-3,null,null,null,null,174.15,"Skin",2015,null,"区分外","区分外","分類対象外","区分1","区分2","区分2","区分2","区分1","区分1","分類できない","区分2","分類できない","区分1(呼吸器)","区分1(呼吸器)","分類できない","液体",251]
[405,"別表第９","91-08-7",null,"2,6-トリレンジイソシアネート","","","","",null,"","",1E-3,null,5.0000000000000001E-3,null,null,null,null,174.15,"Skin",2015,null,"分類できない","分類できない","分類対象外","区分1","区分2","区分1","区分1","区分1","区分1","分類できない","区分2","分類できない","区分1(呼吸器)","区分1(呼吸器)","分類できない","液体",129]
[406,"別表第９","26915-12-8",null,"トルイジン","","","","",null,"","","",null,"",null,null,null,null,"","","未設定(2017年現在）",null,"分類できない","分類できない","分類対象外","分類できない","分類できない","分類できない","分類できない","分類できない","分類できない","分類できない","区分1","分類できない","区分1(全身毒性)","区分1(全身毒性)","分類できない","液体",200.2]
[406,"別表第９","95-53-4",null,"ｏ－トルイジン",1,4.4000000000000004,null,null,null,"皮","1991",2,null,"",null,null,null,null,107.15,"Skin",1984,null,"区分4","区分外","分類対象外","分類できない","区分4","区分外","区分2","分類できない","分類できない","区分2","区分1","分類できない","区分1(中枢神経系､血液系､膀胱)､区分3(麻酔作用)","区分1(血液系､膀胱)","分類できない","液体",200]
[406,"別表第９","108-44-1",null,"ｍ－トルイジン","","","","",null,"","",2,null,"",null,null,null,null,107.15,"Skin",1984,null,"区分4","区分外","分類対象外","分類できない","分類できない","区分2","区分2","分類できない","分類できない","分類できない","分類できない","区分2","区分1(血液系)","区分1(血液系)､区分2(腎臓)","分類できない","液体",203]
[406,"別表第９","106-49-0",null,"ｐ－トルイジン","","","","",null,"","",2,null,"",null,null,null,null,107.15,"Skin",1984,null,"区分4","区分3","分類対象外","分類できない","分類できない","区分外","区分2","分類できない","区分1","分類できない","区分2","分類できない","区分1(中枢神経系､血液系､腎臓､膀胱)､区分3(気道刺激性)","区分1(血液系､膀胱)","分類できない","固体",200.4]
[407,"別表第９","108-88-3",null,"トルエン",50,188,null,null,null,"皮","2013",20,null,"",null,null,null,null,92.13,"",2006,null,"区分外","区分外","分類対象外","区分4","分類できない","区分2","区分2","分類できない","区分外","区分外","分類できない","区分1","区分1(中枢神経系)､区分3(気道刺激性､麻酔作用)","区分1(中枢神経系､腎臓)","区分1","液体",111]
[408,"別表第９","91-20-3",null,"ナフタレン","","","","",null,"","",10,null,"",null,null,null,null,128.19,"Skin",2013,null,"区分4","区分外","分類対象外","分類できない","分類できない","区分外","区分2","分類できない","区分1","区分外","区分2","分類できない","区分1(血液､眼､気道)","区分1(血液､眼､呼吸器)","分類できない","固体",218]
[409,"別表第９","86-88-4",null,"１―ナフチルチオ尿素","","","","",null,"","",null,0.3,"",null,null,null,null,202.27,"Skin",1990,null,"区分2","分類できない","分類対象外","分類できない","分類できない","分類できない","分類できない","分類できない","分類できない","分類できない","区分外","分類できない","区分1(肺)","分類できない","分類できない","固体",""]
[410,"別表第９","63-25-2",null,"１―ナフチル―Ｎ―メチルカルバメート（別名カルバリル）",null,5,null,null,null,"皮","1989",null,0.5,"",null,null,null,null,201.2,"Skin",2007,null,"区分4","分類できない","分類対象外","分類できない","分類できない","区分3","区分2","分類できない","区分外","区分外","区分外","区分外","区分1(神経系)","区分2(神経系)","分類できない","固体",210]
["411","別表第９","7439-92-1","追加（2018年9月）","鉛",null,null,null,null,null,null,null,null,null,null,null,null,null,null,null,null,null,null,"分類できない","分類できない","分類対象外","分類できない","分類できない","分類できない","分類できない","分類できない","分類できない","区分2","区分2","区分1","分類できない","区分1(造血系､腎臓､中枢神経系､末梢神経系､心血管系､免疫系)","分類できない","固体","1740"]
["411","別表第９","1309-60-0","追加（2018年9月）","酸化鉛（Ⅳ）",null,null,null,null,null,null,null,null,null,null,null,null,null,null,null,null,null,null,"分類できない","分類できない","分類対象外","分類できない","分類できない","区分2","区分2","分類できない","分類できない","分類できない","区分2","区分1","区分1(血液系､腎臓､神経系)","区分1(血液系､腎臓､神経系)","分類できない","固体"]
["411","別表第９","1317-36-8","追加（2018年9月）","酸化鉛（Ⅱ）",null,null,null,null,null,null,null,null,null,null,null,null,null,null,null,null,null,null,"区分外","区分外","分類対象外","分類対象外","区分外","区分外","区分外","分類できない","分類できない","区分2","区分2","区分1","区分1(中枢神経系､腎臓)","区分1(血液系､神経系､心血管系､腎臓)","分類できない","固体","1470"]
["411","別表第９","1314-41-6","追加（2018年9月）","四酸化三鉛",null,null,null,null,null,null,null,null,null,null,null,null,null,null,null,null,null,null,"区分外","分類できない","分類対象外","分類できない","分類できない","分類できない","分類できない","分類できない","分類できない","分類できない","区分2","区分1","区分1(血液系､腎臓､神経系)","区分1(血液系､腎臓､神経系)","分類できない","固体"]
["411","別表第９","1314-87-0","追加（2018年9月）","硫化鉛",null,null,null,null,null,null,null,null,null,null,null,null,null,null,null,null,null,null,"分類できない","分類できない","分類対象外","分類できない","分類できない","分類できない","分類できない","分類できない","分類できない","区分外","区分2","区分1","区分1(血液系､腎臓､神経系)","区分1(血液系､腎臓､神経系)","分類できない","固体","1281"]
["411","別表第９","592-05-2","追加（2018年9月）","シアン化鉛",null,null,null,null,null,null,null,null,null,null,null,null,null,null,null,null,null,null,"分類できない","分類できない","分類対象外","分類できない","分類できない","分類できない","分類できない","分類できない","分類できない","区分2","区分1","区分1","分類できない","区分1(中枢神経系､血液､腎臓)","分類できない","固体","1740"]
["411","別表第９","19783-14-3","追加（2018年9月）","水酸化鉛",null,null,null,null,null,null,null,null,null,null,null,null,null,null,null,null,null,null,"分類できない","分類できない","分類対象外","分類できない","分類できない","分類できない","分類できない","分類できない","分類できない","分類できない","区分1","区分1","区分1(中枢神経系､血液､腎臓)","区分1(中枢神経系､血液､腎臓)","分類できない","固体"]
["411","別表第９","598-63-0","追加（2018年9月）","炭酸鉛",null,null,null,null,null,null,null,null,null,null,null,null,null,null,null,null,null,null,"分類できない","分類できない","分類対象外","分類できない","分類できない","分類できない","分類できない","分類できない","分類できない","分類できない","区分1","区分1","区分1(中枢神経系､血液､腎臓)","区分1(中枢神経系､血液､腎臓)","分類できない","固体"]
["411","別表第９","7446-14-2","追加（2018年9月）","硫酸鉛",null,null,null,null,null,null,null,null,null,null,null,null,null,null,null,null,null,null,"分類できない","分類できない","分類対象外","分類できない","分類できない","分類できない","分類できない","分類できない","分類できない","分類できない","区分1","区分1","区分1(腎臓､神経系､消化器系､血液系)","区分1(腎臓､血液系､心血管系､神経系)","分類できない","固体"]
["411","別表第９","10099-74-8","追加（2018年9月）","硝酸鉛",null,null,null,null,null,null,null,null,null,null,null,null,null,null,null,null,null,null,"分類できない","分類できない","分類対象外","分類できない","分類できない","区分2","区分2","分類できない","分類できない","区分2","区分2","区分1","区分1(血液系､腎臓､神経系)","区分1(血液系､腎臓､神経系)","分類できない","固体"]
["411","別表第９","7783-46-2","追加（2018年9月）","フッ化鉛",null,null,null,null,null,null,null,null,null,null,null,null,null,null,null,null,null,null,"区分5","分類できない","分類対象外","分類できない","分類できない","区分3","区分2","分類できない","分類できない","分類できない","区分1","区分1","区分1(中枢神経系､血液､腎臓)､区分3(気道刺激性)","区分1(骨､中枢神経系､血液､腎臓)","分類できない","固体","1293"]
["411","別表第９","7758-95-4","追加（2018年9月）","塩化鉛（Ⅱ）",null,null,null,null,null,null,null,null,null,null,null,null,null,null,null,null,null,null,"区分4","分類できない","分類対象外","分類できない","分類できない","分類できない","区分1","分類できない","分類できない","分類できない","区分2","区分1","区分1(血液系､腎臓､神経系)","区分1(血液系､腎臓､神経系)","分類できない","固体","950"]
["411","別表第９","10101-63-0","追加（2018年9月）","ヨウ化鉛（Ⅱ）",null,null,null,null,null,null,null,null,null,null,null,null,null,null,null,null,null,null,"分類できない","分類できない","分類対象外","分類できない","分類できない","分類できない","分類できない","分類できない","分類できない","分類できない","区分2","区分1","区分1(血液系､腎臓､神経系)","区分1(血液系､腎臓､神経系)","分類できない","固体","872"]
["411","別表第９","13424-46-9","追加（2018年9月）","アジ化鉛（Ⅱ）",null,null,null,null,null,null,null,null,null,null,null,null,null,null,null,null,null,null,"分類できない","分類できない","分類対象外","分類できない","分類できない","分類できない","分類できない","分類できない","分類できない","分類できない","区分1","区分1","区分1(中枢神経系､血液､腎臓)","区分1(中枢神経系､血液､腎臓)","分類できない","固体"]
["411","別表第９","7446-27-7","追加（2018年9月）","りん酸鉛（Ⅱ）",null,null,null,null,null,null,null,null,null,null,null,null,null,null,null,null,null,null,"分類できない","分類できない","分類対象外","分類できない","分類できない","分類できない","分類できない","分類できない","分類できない","分類できない","区分2","区分1","区分1(腎臓､消化器､脳神経系)","区分1(血液系､腎臓､神経系)","分類できない","固体"]
["411","別表第９","14720-53-7","追加（2018年9月）","ホウ酸鉛",null,null,null,null,null,null,null,null,null,null,null,null,null,null,null,null,null,null,"分類できない","分類できない","分類対象外","分類できない","分類できない","分類できない","分類できない","分類できない","分類できない","分類できない","区分1","区分1","区分1(中枢神経系､血液､腎臓)","区分1(中枢神経系､血液､腎臓)","分類できない","固体"]
["411","別表第９","10099-76-0","追加（2018年9月）","ケイ酸鉛",null,null,null,null,null,null,null,null,null,null,null,null,null,null,null,null,null,null,"分類できない","分類できない","分類対象外","分類できない","分類できない","分類できない","分類できない","分類できない","分類できない","分類できない","区分1","区分1","区分1(中枢神経系､血液､腎臓)","区分1(中枢神経系､血液､腎臓)","分類できない","固体"]
["411","別表第９","7784-40-9","追加（2018年9月）","砒酸鉛",null,null,null,null,null,null,null,null,null,null,null,null,null,null,null,null,null,null,"区分3","分類できない","分類対象外","分類できない","分類できない","分類できない","区分2","分類できない","分類できない","分類できない","区分1","区分2","区分1(消化器系､循環器系､神経系､血液系､呼吸器､皮膚､腎臓､肝臓)","区分1(消化器系､循環器系､神経系､腎臓､肝臓､血液系､呼吸器系､皮膚)","分類できない","固体"]
["411","別表第９","90583-37-2","追加（2018年9月）","二塩基性亜硫酸鉛",null,null,null,null,null,null,null,null,null,null,null,null,null,null,null,null,null,null,"分類できない","分類できない","分類対象外","分類できない","分類できない","分類できない","分類できない","分類できない","分類できない","分類できない","区分1","区分1","区分1(中枢神経系､血液､腎臓)","区分1(中枢神経系､血液､腎臓)","分類できない","固体"]
["411","別表第９","12202-17-4","追加（2018年9月）","三塩基性硫酸鉛",null,null,null,null,null,null,null,null,null,null,null,null,null,null,null,null,null,null,"区分外","区分外","分類対象外","分類できない","分類できない","分類できない","分類できない","分類できない","分類できない","分類できない","区分1","区分1","区分1(腎臓､神経系､消化器系､血液系)","区分1(腎臓､心血管系､神経系､血液系)","分類できない","固体"]
["411","別表第９","1335-32-6","追加（2018年9月）","塩基性酢酸鉛",null,null,null,null,null,null,null,null,null,null,null,null,null,null,null,null,null,null,"分類できない","分類できない","分類対象外","分類できない","分類できない","分類できない","分類できない","分類できない","分類できない","区分2","区分1","区分1","区分1(腎臓､消化器､脳神経系)","区分1(血液系､腎臓､神経系)","分類できない","固体","200"]
["411","別表第９","1344-40-7","追加（2018年9月）","二塩基性亜リン酸鉛",null,null,null,null,null,null,null,null,null,null,null,null,null,null,null,null,null,null,"区分外","分類できない","分類対象外","分類できない","分類できない","分類できない","分類できない","分類できない","分類できない","分類できない","区分1","区分1","区分1(中枢神経系､血液､腎臓)","区分1(中枢神経系､血液､腎臓)","分類できない","固体"]
["411","別表第９","12013-69-3","追加（2018年9月）","鉛酸カルシウム",null,null,null,null,null,null,null,null,null,null,null,null,null,null,null,null,null,null,"分類できない","分類できない","分類対象外","分類できない","分類できない","分類できない","分類できない","分類できない","分類できない","分類できない","区分1","区分1","区分1(中枢神経系､血液､腎臓)","区分1(中枢神経系､血液､腎臓)","分類できない","固体"]
["411","別表第９","12060-00-3","追加（2018年9月）","チタン酸鉛",null,null,null,null,null,null,null,null,null,null,null,null,null,null,null,null,null,null,"区分外","分類できない","分類対象外","分類できない","分類できない","分類できない","分類できない","分類できない","分類できない","分類できない","区分1","区分1","区分1(腎臓､神経系､消化器系､血液系)","区分1(腎臓､血液系､心血管系､神経系)","分類できない","固体"]
["411","別表第９","13510-89-9","追加（2018年9月）","アンチモン酸鉛",null,null,null,null,null,null,null,null,null,null,null,null,null,null,null,null,null,null,"分類できない","分類できない","分類対象外","分類できない","分類できない","分類できない","分類できない","分類できない","分類できない","区分2","区分1","区分2","区分3(気道刺激性)","区分1(肺､心血管系､中枢神経系､血液､腎臓)","分類できない","固体"]
["411","別表第９","10031-13-7","追加（2018年9月）","亜砒酸鉛",null,null,null,null,null,null,null,null,null,null,null,null,null,null,null,null,null,null,"分類できない","分類できない","分類対象外","分類できない","分類できない","分類できない","区分2","分類できない","分類できない","分類できない","区分1","区分2","区分1(消化器系､循環器系､神経系､血液系､呼吸器､皮膚､腎臓､肝臓)","区分1(消化器系､循環器系､神経系､腎臓､肝臓､血液系､呼吸器系､皮膚)","分類できない","固体"]
["411","別表第９","18454-12-1","追加（2018年9月）","塩基性クロム酸鉛",null,null,null,null,null,null,null,null,null,null,null,null,null,null,null,null,null,null,"分類できない","分類できない","分類対象外","分類できない","分類できない","分類できない","分類できない","区分1","区分1","分類できない","区分1","区分1","区分1(中枢神経系､血液､腎臓)","区分1(中枢神経系､血液､腎臓)","分類できない","固体"]
["411","別表第９","12656-85-8","追加（2018年9月）","硫酸モリブデン酸クロム酸鉛",null,null,null,null,null,null,null,null,null,null,null,null,null,null,null,null,null,null,"区分外","分類できない","分類対象外","分類できない","分類できない","分類できない","分類できない","区分1","区分1","分類できない","区分1","区分1","区分1(中枢神経系､血液､腎臓)","区分1(中枢神経系､血液､腎臓)","分類できない","固体"]
["411","別表第９","1344-37-2","追加（2018年9月）","ピグメントエロー３４  （別名  クロム酸鉛）",null,null,null,null,null,null,null,null,null,null,null,null,null,null,null,null,null,null,"区分外","分類できない","分類対象外","分類できない","分類できない","区分外","区分外","分類できない","分類できない","分類できない","区分1","区分1","区分1(腎臓､消化器､脳神経系)","区分1(血液系､腎臓､神経系)","分類できない","固体"]
["411","別表第９","20837-86-9","追加（2018年9月）","シアナミド鉛",null,null,null,null,null,null,null,null,null,null,null,null,null,null,null,null,null,null,"分類できない","分類できない","分類対象外","分類できない","分類できない","分類できない","分類できない","分類できない","分類できない","分類できない","区分2","区分1","区分1(血液系､腎臓､神経系)","区分1(血液系､腎臓､神経系)","分類できない","固体"]
["411","別表第９","25808-74-6","追加（2018年9月）","ケイフッ化鉛",null,null,null,null,null,null,null,null,null,null,null,null,null,null,null,null,null,null,"分類できない","分類できない","分類対象外","分類できない","分類できない","分類できない","区分2","分類できない","分類できない","分類できない","区分1","区分1","区分1(中枢神経系､血液､腎臓)､区分3(気道刺激性)","区分1(骨､中枢神経系､血液､腎臓)","分類できない","固体"]
[412,"別表第９","7681-57-4",null,"二亜硫酸ナトリウム","","","","",null,"","",null,5,"",null,null,null,null,190.13,"",1992,null,"区分4","区分外","分類対象外","分類対象外","分類できない","分類できない","区分1","分類できない","分類できない","分類できない","分類できない","区分外","区分3(気道刺激性)","分類できない","分類できない","固体",""]
[413,"別表第９","54-11-5",null,"ニコチン","","","","",null,"","",null,0.5,"",null,null,null,null,162.22999999999999,"Skin",1992,null,"区分1","区分1","分類対象外","分類できない","分類できない","分類できない","分類できない","分類できない","分類できない","区分外","分類できない","区分2","区分1(神経系､呼吸器系､心臓血管系､消化管)､区分3(気道刺激性)","分類できない","分類できない","液体",247]
[414,"別表第９","7446-09-5",null,"二酸化硫黄",null,null,null,null,null,null,"1961","",null,0.25,null,null,null,null,64.069999999999993,"",2008,null,"分類対象外","分類対象外","区分3","分類対象外","分類対象外","分類できない","区分2","分類できない","分類できない","分類できない","区分外","分類できない","区分1(呼吸器)","区分1(呼吸器系)","分類対象外","気体",""]
[415,"別表第９","10049-04-4",null,"二酸化塩素","","","","",null,"","",0.1,null,0.3,null,null,null,null,67.459999999999994,"",1991,null,"分類対象外","分類対象外","区分1","分類対象外","分類対象外","分類できない","区分2","分類できない","分類できない","分類できない","分類できない","区分1","区分1(呼吸器)､区分3(麻酔作用)","区分1(呼吸器)","分類対象外","気体",""]
[416,"別表第９","10102-44-0",null,"二酸化窒素",null,null,null,null,null,null,"1961",0.2,null,"",null,null,null,null,46.01,"",2011,null,"分類対象外","分類対象外","区分1","分類対象外","分類対象外","分類できない","区分2","分類できない","分類できない","分類できない","分類できない","区分2","区分1(呼吸器)､区分3(麻酔作用)","区分1(肺､免疫系)","分類対象外","気体",""]
[417,"別表第９","6423-43-4",null,"二硝酸プロピレン","","","","",null,"","",0.05,null,"",null,null,null,null,166.09,"Skin",1980,null,"区分4","分類できない","分類対象外","分類できない","分類できない","区分外","区分外","分類できない","分類できない","分類できない","分類できない","分類できない","区分1(神経系､血管)､区分2(血液)","区分1(神経系)､区分2(血液､肝臓)","分類できない","液体",92]
[418,"別表第９","7440-02-0",null,"ニッケル",null,1,null,null,null,null,"1967",null,1.5,"",null,null,null,null,58.71,"",1996,null,"区分外","分類できない","分類対象外","分類できない","分類できない","分類できない","分類できない","区分1","区分1","分類できない","区分2","分類できない","区分1(呼吸器､腎臓)","区分1(呼吸器)","分類できない","固体",2730]
[418,"別表第９","13463-39-3",null,"ニッケルカルボニル",1E-3,7.0000000000000001E-3,null,null,null,null,"1966","",null,"",null,0.05,null,null,170.73,"",2013,null,"分類できない","分類できない","分類対象外","区分1","分類できない","区分2","区分1","区分1","分類できない","分類できない","区分1","区分2","区分1(中枢神経系､肝臓､呼吸器､腎臓､副腎､心臓､脾臓､膵臓)","分類できない","分類できない","液体",43]
[418,"別表第９","1313-99-1","追加（2018年9月）","酸化ニッケル（Ⅱ）",null,null,null,null,null,null,null,null,null,null,null,null,null,null,null,null,null,null,"区分外","分類できない","分類対象外","分類できない","分類できない","分類できない","分類できない","区分1","区分1","区分外","区分1","分類できない","分類できない","区分1(呼吸器)","分類できない","固体","2000"]
[418,"別表第９","1314-06-3","追加（2018年9月）","酸化ニッケル（Ⅲ）",null,null,null,null,null,null,null,null,null,null,null,null,null,null,null,null,null,null,"区分外","分類できない","分類対象外","分類できない","分類できない","分類できない","分類できない","区分1","区分1","分類できない","区分1","分類できない","分類できない","区分1(呼吸器系)","分類できない","固体"]
[418,"別表第９","12035-36-8","追加（2018年9月）","酸化ニッケル（Ⅳ）",null,null,null,null,null,null,null,null,null,null,null,null,null,null,null,null,null,null,"分類できない","分類できない","分類対象外","分類できない","分類できない","分類できない","分類できない","区分1","区分1","分類できない","区分1","分類できない","分類できない","区分1(呼吸器系)","分類できない","固体"]
[418,"別表第９","12054-48-7","追加（2018年9月）","水酸化ニッケル（Ⅱ）",null,null,null,null,null,null,null,null,null,null,null,null,null,null,null,null,null,null,"区分4","分類できない","分類対象外","分類できない","区分4","分類できない","分類できない","区分1","区分1","分類できない","区分1","分類できない","分類できない","分類できない","分類できない","固体"]
[418,"別表第９","7718-54-9","追加（2018年9月）","塩化ニッケル",null,null,null,null,null,null,null,null,null,null,null,null,null,null,null,null,null,null,"区分4","分類できない","分類対象外","分類できない","分類できない","区分2","分類できない","区分1","区分1","区分外","区分1","区分1","区分2(神経系)","区分2(肺､中枢神経系)","分類できない","固体","973"]
[418,"別表第９","7791-20-0","追加（2018年9月）","塩化ニッケル六水和物",null,null,null,null,null,null,null,null,null,null,null,null,null,null,null,null,null,null,"区分3","分類できない","分類対象外","分類対象外","分類できない","分類できない","分類できない","区分1","区分1","分類できない","区分1","区分1","分類できない","区分2(肺)","分類できない","固体"]
[418,"別表第９","16812-54-7","追加（2018年9月）","硫化ニッケル",null,null,null,null,null,null,null,null,null,null,null,null,null,null,null,null,null,null,"分類できない","分類できない","分類対象外","分類できない","分類できない","分類できない","分類できない","区分1","区分1","分類できない","区分1","分類できない","分類できない","区分1(呼吸器)","分類できない","固体","2047"]
[418,"別表第９","12035-72-2","追加（2018年9月）","亜硫化ニッケル",null,null,null,null,null,null,null,null,null,null,null,null,null,null,null,null,null,null,"区分外","分類できない","分類対象外","分類できない","分類できない","分類できない","分類できない","区分1","区分1","区分外","区分1","分類できない","分類できない","区分1(呼吸器系)","分類できない","固体","2967 "]
[418,"別表第９","7786-81-4","追加（2018年9月）","硫酸ニッケル",null,null,null,null,null,null,null,null,null,null,null,null,null,null,null,null,null,null,"区分4","分類できない","分類対象外","分類できない","分類できない","分類できない","分類できない","区分1","区分1","区分外","区分1","区分2","分類できない","区分1(呼吸器､雄性生殖器)","分類できない","固体"]
[418,"別表第９","10101-97-0","追加（2018年9月）","硫酸ニッケル六水和物",null,null,null,null,null,null,null,null,null,null,null,null,null,null,null,null,null,null,"区分3","分類できない","分類対象外","分類対象外","分類できない","分類できない","分類できない","区分1","区分1","分類できない","区分1","分類できない","分類できない","区分1(呼吸器)､区分2(肝臓､精巣)","分類できない","固体"]
[418,"別表第９","13138-45-9","追加（2018年9月）","硝酸ニッケル",null,null,null,null,null,null,null,null,null,null,null,null,null,null,null,null,null,null,"分類できない","分類できない","分類対象外","分類できない","分類できない","分類できない","分類できない","区分1","区分1","区分外","区分1","分類できない","分類できない","分類できない","分類できない","固体","137"]
[418,"別表第９","14220-17-8","追加（2018年9月）","シアン化ニッケルカリウム",null,null,null,null,null,null,null,null,null,null,null,null,null,null,null,null,null,null,"区分3","分類できない","分類対象外","分類できない","分類できない","分類できない","分類できない","区分1","区分1","分類できない","区分1","分類できない","区分3(気道刺激性)","区分1(中枢神経系)","分類できない","固体"]
[418,"別表第９","14267-17-5","追加（2018年9月）","ジエチルジチオカルバミン酸ニッケル",null,null,null,null,null,null,null,null,null,null,null,null,null,null,null,null,null,null,"分類できない","分類できない","分類対象外","分類できない","分類できない","分類できない","分類できない","分類できない","分類できない","分類できない","分類できない","分類できない","分類できない","分類できない","分類できない","固体"]
[418,"別表第９","13927-77-0","追加（2018年9月）","ジブチルジチオカルバミン酸ニッケル",null,null,null,null,null,null,null,null,null,null,null,null,null,null,null,null,null,null,"分類できない","分類できない","分類対象外","分類できない","分類できない","分類できない","分類できない","分類できない","分類できない","分類できない","分類できない","分類できない","分類できない","分類できない","分類できない","固体"]
[419,"別表第９","139-13-9",null,"ニトリロ三酢酸","","","","",null,"","","",null,"",null,null,null,null,"","","未設定(2017年現在）",null,"区分4","分類できない","分類対象外","分類できない","分類できない","分類できない","区分2","分類できない","分類できない","区分外","区分2","分類できない","分類できない","区分2(腎臓)","分類できない","固体",167]
[420,"別表第９","602-87-9",null,"５―ニトロアセナフテン","","","","",null,"","","",null,"",null,null,null,null,"","","未設定(2017年現在）",null,"分類できない","分類できない","分類対象外","分類対象外","分類できない","分類できない","分類できない","分類できない","分類できない","分類できない","区分2","分類できない","分類できない","区分2(肝臓､腎臓)","分類できない","固体",279]
[421,"別表第９","79-24-3",null,"ニトロエタン","","","","",null,"","",100,null,"",null,null,null,null,75.069999999999993,"",1979,null,"区分4","分類できない","分類対象外","区分4","分類できない","区分外","区分2","分類できない","分類できない","分類できない","分類できない","分類できない","区分1(血液系)､区分3(気道刺激性､麻酔作用)","分類できない","分類できない","液体",114]
[422,"別表第９","628-96-6",null,"ニトログリコール",0.05,0.31,null,null,null,"皮","1986",0.05,null,"",null,null,null,null,152.06,"Skin",1980,null,"区分4","区分外","分類対象外","分類できない","分類できない","分類できない","分類できない","分類できない","分類できない","分類できない","分類できない","分類できない","区分1(心血管系)","区分1(心血管系､神経系､血液)","分類できない","液体",198.5]
[423,"別表第９","55-63-0",null,"ニトログリセリン",null,null,0.05,0.46,null,"皮","1986",0.05,null,"",null,null,null,null,227.09,"Skin",1980,null,"区分4","区分外","分類対象外","分類できない","分類できない","区分外","区分外","分類できない","区分1","区分外","分類できない","区分2","区分1(心血管系､血液､神経系)","区分1(心血管系)","分類できない","液体",125]
[424,"別表第９","9004-70-0",null,"ニトロセルローズ","","","","",null,"","","",null,"",null,null,null,null,"","","未設定(2017年現在）",null,"区分外","分類できない","分類対象外","分類できない","分類できない","分類できない","分類できない","分類できない","分類できない","分類できない","分類できない","分類できない","区分3(麻酔作用)","分類できない","分類できない","固体"]
[425,"別表第９","59-89-2",null,"Ｎ―ニトロソモルホリン","","","","",null,"","","",null,"",null,null,null,null,"","","未設定(2017年現在）",null,"区分4","分類できない","分類対象外","分類できない","分類できない","分類できない","分類できない","分類できない","分類できない","区分2","区分2","分類できない","分類できない","分類できない","分類できない","固体",139]
[426,"別表第９","88-72-2",null,"ｏ－ニトロトルエン","","","","",null,"","",2,null,"",null,null,null,null,137.13,"Skin",1992,null,"区分4","区分外","分類対象外","分類できない","分類できない","区分外","区分外","分類できない","分類できない","分類できない","区分1","分類できない","区分2(血液)","区分2(肝臓､血液)","分類できない","液体",220.4]
[426,"別表第９","99-08-1",null,"ｍ－ニトロトルエン","","","","",null,"","",2,null,"",null,null,null,null,137.13,"Skin",1992,null,"区分4","分類できない","分類対象外","分類できない","分類できない","区分3","区分2","分類できない","分類できない","区分外","区分外","区分2","区分2(血液)","区分2(免疫系)","分類できない","液体",231.9]
[426,"別表第９","99-99-0",null,"ｐ－ニトロトルエン","","","","",null,"","",2,null,"",null,null,null,null,137.13,"Skin",1992,null,"区分5","区分外","分類対象外","分類できない","分類できない","区分外","区分外","分類できない","区分外","区分外","区分外","区分外","区分1(血液)","区分2(血液､肝臓､免疫系)","分類できない","固体",238]
[427,"別表第９","108-03-2",null,"１－ニトロプロパン","","","","",null,"","",25,null,"",null,null,null,null,89.09,"",1992,null,"区分4","区分外","分類対象外","区分3","分類できない","分類できない","区分2","分類できない","分類できない","分類できない","分類できない","分類できない","区分1(消化器)､区分3(気道刺激性､麻酔作用)","分類できない","分類できない","液体",131.6]
[427,"別表第９","79-46-9",null,"２－ニトロプロパン","","","","",null,"","",10,null,"",null,null,null,null,89.09,"",1992,null,"区分4","区分外","分類対象外","区分2","分類できない","分類できない","区分2","分類できない","分類できない","区分2","区分1","分類できない","区分1(中枢神経系､肝臓､血液系)､区分3(麻酔作用)","区分1(肝臓)､区分2(血液系､呼吸器)","分類できない","液体",120]
[428,"別表第９","98-95-3",null,"ニトロベンゼン",1,5,null,null,null,"皮","1988",1,null,"",null,null,null,null,123.11,"Skin",1992,null,"区分4","区分3","分類対象外","分類できない","区分4","区分外","区分2","分類できない","分類できない","分類できない","区分2","区分1","区分1(神経系､血液系､肝臓､生殖器(男性))､区分3(麻酔作用)","区分1(神経系､血液系､呼吸器､肝臓､腎臓､生殖器(男性))","分類できない","液体",211]
[429,"別表第９","75-52-5",null,"ニトロメタン","","","","",null,"","",20,null,"",null,null,null,null,61.04,"",1997,null,"区分4","分類できない","分類対象外","分類できない","分類できない","区分外","区分2","分類できない","分類できない","分類できない","区分2","分類できない","区分1(肝臓)､区分2(中枢神経系)､区分3(気道刺激性､麻酔作用)","区分1(呼吸器)､区分2(血液系､神経系､肝臓)","分類できない","液体",101]
[430,"別表第９","138-22-7",null,"乳酸ノルマル―ブチル","","","","",null,"","",5,null,"",null,null,null,null,146.19,"",1973,null,"区分外","分類できない","分類対象外","分類できない","区分外","分類できない","分類できない","分類できない","分類できない","分類できない","分類できない","分類できない","区分3(気道刺激性､麻酔作用)","分類できない","分類できない","液体",160]
[431,"別表第９","75-15-0",null,"二硫化炭素",1,3.13,null,null,null,"皮","2015",1,null,"",null,null,null,null,76.14,"Skin",2005,null,"区分外","分類できない","分類対象外","区分4","分類できない","区分2","区分2","分類できない","分類できない","分類できない","分類できない","区分1","区分1(中枢神経系､心臓)､区分3(気道刺激性､麻酔作用)","区分1(中枢神経系､心血管系､腎臓)","分類できない","液体",46]
[432,"別表第９","111-84-2","他","ノナン",200,1050,null,null,null,null,"1989",200,null,"",null,null,null,null,128.26,"",2011,null,"分類できない","分類できない","分類対象外","区分4","区分外","区分2","区分2","分類できない","分類できない","分類できない","分類できない","分類できない","区分2(中枢神経系)､区分3(気道刺激性､麻酔作用)","分類できない","区分1","液体",150.47]
[433,"別表第９","109-73-9",null,"ノルマル―ブチルアミン",null,null,5,15,null,"皮","1994","",null,null,null,5,null,null,73.14,"Skin",1985,null,"区分4","区分3","分類対象外","区分3","分類できない","区分1","区分1","分類できない","分類できない","分類できない","分類できない","区分1","区分1(呼吸器)､区分2(中枢神経系)","分類できない","分類できない","液体",77]
[434,"別表第９","106-35-4",null,"ノルマル―ブチルエチルケトン","","","","",null,"","",50,null,75,null,null,null,null,114.19,"",1995,null,"区分外","区分外","分類対象外","分類できない","区分外","区分外","区分2","分類できない","分類できない","分類できない","分類できない","分類できない","区分3(気道刺激性､麻酔作用)","分類できない","分類できない","液体",147]
[435,"別表第９","2426-08-6",null,"ノルマル―ブチル―２，３―エポキシプロピルエーテル",0.25,1.33,null,null,null,null,"2016",3,null,"",null,null,null,null,130.21,"Skin",2002,null,"区分外","区分3","分類対象外","区分3","分類できない","区分2","区分2","分類できない","区分1","区分2","区分1","区分2","区分3(気道刺激性)","区分1(呼吸器)､区分2(生殖器(男性))","分類できない","液体",164]
[436,"別表第９","17804-35-2",null,"Ｎ―［１―（Ｎ―ノルマル―ブチルカルバモイル）―１Ｈ―２―ベンゾイミダゾリル］カルバミン酸メチル（別名ベノミル）","","","","",null,"","","",1,"",null,null,null,null,290.32,"",2007,null,"区分外","区分外","分類対象外","分類できない","分類できない","区分3","分類できない","分類できない","区分1","区分1","区分外","区分1","区分外","区分2(肝臓)","分類できない","固体",""]
["437","別表第９","7440-06-4","追加（2018年9月）","白金",null,null,null,null,null,null,null,null,null,null,null,null,null,null,null,null,null,null,"分類できない","分類できない","分類対象外","分類できない","分類できない","区分2","区分2","区分1","区分外","分類できない","分類できない","分類できない","区分3(気道刺激性)","区分外","分類できない","固体","3827"]
["437","別表第９","16941-12-1","追加（2018年9月）","塩化白金（Ⅳ）酸",null,null,null,null,null,null,null,null,null,null,null,null,null,null,null,null,null,null,"分類できない","分類できない","分類対象外","分類できない","分類できない","分類できない","分類できない","区分1","区分1","分類できない","分類できない","分類できない","分類できない","分類できない","分類できない","固体"]
["437","別表第９","16923-58-3","追加（2018年9月）","六塩化白金酸二ナトリウム",null,null,null,null,null,null,null,null,null,null,null,null,null,null,null,null,null,null,"区分2","分類できない","分類対象外","分類できない","分類できない","区分外","区分2","区分1","区分1","分類できない","分類できない","分類できない","区分3(気道刺激性)","分類できない","分類できない","固体"]
[439,"別表第９","104-94-9",null,"パラ―アニシジン",0.1,0.5,null,null,null,"皮","1996",null,0.5,"",null,null,null,null,123.15,"Skin",1979,null,"区分4","区分5","分類対象外","分類できない","分類できない","分類できない","分類できない","分類できない","分類できない","分類できない","区分外","分類できない","区分1(血液)","区分1(血液)","分類できない","固体",243]
[440,"別表第９","106-47-8",null,"パラ―クロロアニリン","","","","",null,"","","",null,"",null,null,null,null,"","","未設定(2017年現在）",null,"区分3","区分3","分類対象外","分類できない","区分4","区分外","区分2","分類できない","区分1","区分2","区分2","分類できない","区分1(血液系､中枢神経系)","区分1(血液系)","分類できない","固体",232]
[441,"別表第９","106-46-7",null,"パラ―ジクロロベンゼン",10,60,null,null,null,null,"1998",10,null,"",null,null,null,null,147.01,"",1990,null,"区分外","区分外","分類対象外","分類対象外","区分外","区分外","区分2","分類できない","区分1","分類できない","区分2","区分2","区分1(中枢神経系､血液系､肝臓)､区分3(気道刺激性)","区分1(神経系､肝臓､血液系)､区分2(呼吸器､腎臓)","分類できない","固体",174]
[442,"別表第９","60-11-7",null,"パラ―ジメチルアミノアゾベンゼン","","","","",null,"","","",null,"",null,null,null,null,"","","未設定(2017年現在）",null,"分類できない","分類できない","分類対象外","分類対象外","分類できない","区分2","分類できない","分類できない","分類できない","区分2","区分2","分類できない","分類できない","分類できない","分類できない","固体",""]
[443,"別表第９","98-51-1",null,"パラ―ターシャリ―ブチルトルエン","","","","",null,"","",1,null,"",null,null,null,null,148.18,"",1990,null,"区分4","区分外","分類対象外","区分2","区分4","分類できない","区分2","分類できない","分類できない","分類できない","分類できない","区分1","区分3(気道刺激性､麻酔作用)","区分1(神経系､血液､肝臓､心臓)､区分2(精巣)","分類できない","液体",192]
[444,"別表第９","100-01-6",null,"パラ―ニトロアニリン",null,3,null,null,null,"皮","1995",null,3,"",null,null,null,null,138.12,"Skin",1992,null,"区分4","分類できない","分類対象外","分類できない","分類できない","区分外","分類できない","分類できない","区分外","区分外","区分外","区分2","区分1(血液)､区分3(麻酔作用)","区分1(血液)","分類できない","固体",332]
[445,"別表第９","100-00-5",null,"パラ―ニトロクロロベンゼン",0.1,0.64,null,null,null,"皮","1989",0.1,null,"",null,null,null,null,157.56,"Skin",1985,null,"区分4","区分3","分類対象外","分類できない","分類できない","分類できない","区分2","分類できない","分類できない","区分2","区分2","区分2","区分1(血液)","区分1(血液)","分類できない","固体",242]
[446,"別表第９","60-09-3",null,"パラ―フェニルアゾアニリン","","","","",null,"","","",null,"",null,null,null,null,"","","未設定(2017年現在）",null,"区分4","区分外","分類対象外","分類できない","分類できない","区分外","区分外","分類できない","区分1","区分2","区分2","分類できない","区分2(血液)","分類できない","分類できない","固体","360 "]
[447,"別表第９","106-51-4",null,"パラ―ベンゾキノン","","","","",null,"","",0.1,null,"",null,null,null,null,108.09,"",1970,null,"区分3","分類できない","分類対象外","分類できない","分類できない","区分2","分類できない","分類できない","分類できない","区分外","区分外","分類できない","区分2(中枢神経系)､区分3(気道刺激性)","分類できない","分類できない","固体",180]
[448,"別表第９","150-76-5",null,"パラ―メトキシフェノール","","","","",null,"","",null,5,"",null,null,null,null,124.15,"",1992,null,"区分4","分類できない","分類対象外","分類できない","分類できない","区分2","区分2","分類できない","分類できない","分類できない","分類できない","分類できない","分類できない","分類できない","分類できない","固体",246]
["449","別表第９","7440-39-3","追加（2018年9月）","バリウム",null,null,null,null,null,null,null,null,null,null,null,null,null,null,null,null,null,null,"分類できない","分類できない","分類対象外","分類対象外","分類できない","区分2","区分2","分類できない","分類できない","分類できない","分類できない","分類できない","区分1(神経系､心血管系､消化管､筋肉系)､区分3(気道刺激性)","区分1(心血管系､神経系､筋肉系､腎臓)","分類できない","固体","1640"]
["449","別表第９","1304-28-5","追加（2018年9月）","酸化バリウム",null,null,null,null,null,null,null,null,null,null,null,null,null,null,null,null,null,null,"分類できない","分類できない","分類対象外","分類対象外","分類できない","区分2","区分2","分類できない","分類できない","分類できない","分類できない","分類できない","区分1(神経系､心血管系､筋肉系､腎臓､消化管)､区分3(気道刺激性)","区分1(心血管系､呼吸器､神経系､筋肉系､腎臓)","分類できない","固体","2000"]
["449","別表第９","17194-00-2","追加（2018年9月）","水酸化バリウム",null,null,null,null,null,null,null,null,null,null,null,null,null,null,null,null,null,null,"区分4","分類できない","分類対象外","分類対象外","分類できない","区分2","区分2","分類できない","分類できない","分類できない","分類できない","分類できない","区分1(神経系､心血管系､筋肉系､腎臓､消化管)､区分3(気道刺激性)","区分1(心血管系､神経系､筋肉系､腎臓)","分類できない","固体"]
["449","別表第９","12230-71-6","追加（2018年9月）","水酸化バリウム八水和物",null,null,null,null,null,null,null,null,null,null,null,null,null,null,null,null,null,null,"区分4","分類できない","分類対象外","分類できない","分類できない","区分1","区分1","分類できない","分類できない","分類できない","分類できない","分類できない","区分2(全身毒性)","分類できない","分類できない","固体","95 "]
["449","別表第９","543-80-6","追加（2018年9月）","酢酸バリウム",null,null,null,null,null,null,null,null,null,null,null,null,null,null,null,null,null,null,"区分4","分類できない","分類対象外","分類できない","分類できない","分類できない","分類できない","分類できない","分類できない","分類できない","分類できない","分類できない","区分1(消化器系､心臓､筋肉)､区分2(神経系)","分類できない","分類できない","固体"]
["449","別表第９","10022-31-8","追加（2018年9月）","硝酸バリウム",null,null,null,null,null,null,null,null,null,null,null,null,null,null,null,null,null,null,"区分4","分類できない","分類対象外","分類できない","分類できない","分類できない","区分2","分類できない","分類できない","分類できない","分類できない","分類できない","区分1(神経系､心血管系､筋肉系､腎臓､消化管)､区分3(気道刺激性)","区分1(心血管系､神経系､筋肉系､腎臓)","分類できない","固体"]
["449","別表第９","10361-37-2","追加（2018年9月）","塩化バリウム",null,null,null,null,null,null,null,null,null,null,null,null,null,null,null,null,null,null,"区分3","区分外","分類対象外","分類対象外","分類できない","区分2","区分2","分類できない","分類できない","分類できない","分類できない","分類できない","区分1(神経系､心血管系､筋肉系､腎臓)､区分3(気道刺激性)","区分1(心血管系､神経系､筋肉系､腎臓)","分類できない","固体","1560"]
["449","別表第９","10326-27-9","追加（2018年9月）","塩化バリウム二水和物",null,null,null,null,null,null,null,null,null,null,null,null,null,null,null,null,null,null,"分類できない","分類できない","分類対象外","分類できない","分類できない","分類できない","分類できない","分類できない","分類できない","分類できない","分類できない","分類できない","区分1(心血管系､筋肉)､区分2(神経系)､区分3(気道刺激性)","分類できない","分類できない","固体"]
["449","別表第９","13465-95-7","追加（2018年9月）","過塩素酸バリウム",null,null,null,null,null,null,null,null,null,null,null,null,null,null,null,null,null,null,"分類できない","分類できない","分類対象外","分類できない","分類できない","区分2","区分2","分類できない","分類できない","分類できない","分類できない","分類できない","区分1(筋肉､心臓､消化器系)､区分3(気道刺激性)","分類できない","分類できない","固体"]
["449","別表第９","13477-00-4","追加（2018年9月）","塩素酸バリウム",null,null,null,null,null,null,null,null,null,null,null,null,null,null,null,null,null,null,"分類できない","分類できない","分類対象外","分類できない","分類できない","区分2","区分2","分類できない","分類できない","分類できない","分類できない","分類できない","区分2(血液､心臓､中枢神経系)､区分3(気道刺激性)","区分2(腎臓)","分類できない","固体"]
["449","別表第９","18810-58-7","追加（2018年9月）","アジ化バリウム",null,null,null,null,null,null,null,null,null,null,null,null,null,null,null,null,null,null,"分類できない","分類できない","分類対象外","分類できない","分類できない","区分2","区分2","分類できない","分類できない","分類できない","分類できない","分類できない","区分1(消化管､心臓､骨格筋)","区分2(中枢神経系､肺､心臓､精巣)","分類できない","固体"]
[450,"別表第９","88-89-1",null,"ピクリン酸",null,null,null,null,null,null,"2014",null,0.1,"",null,null,null,null,229.11,"",1992,null,"区分3","分類できない","分類対象外","分類対象外","分類できない","分類できない","区分2","分類できない","区分1","分類できない","分類できない","分類できない","区分1(中枢神経系､血液系､肝臓､腎臓)､区分3(気道刺激性)","区分1(血液系)､区分2(肝臓､精巣)","分類できない","固体",300]
[451,"別表第９","2238-07-5",null,"ビス（２，３―エポキシプロピル）エーテル","","","","",null,"","",0.01,null,"",null,null,null,null,130.13999999999999,"",2006,null,"区分4","区分3","分類対象外","区分1","区分4","区分2","区分2","分類できない","分類できない","分類できない","区分外","分類できない","区分1(精巣､呼吸器､肝臓､腎臓､副腎)","区分1(精巣､血液)､区分2(眼､免疫系､腎臓､副腎)","分類できない","液体",260]
[452,"別表第９","101-90-6",null,"１，３―ビス［（２，３―エポキシプロピル）オキシ］ベンゼン","","","","",null,"","","",null,"",null,null,null,null,"","","未設定(2017年現在）",null,"区分5","分類できない","分類対象外","分類できない","分類できない","区分2","区分2","分類できない","区分1","区分2","区分2","分類できない","区分3(気道刺激性)","区分外","分類できない","固体",208]
[453,"別表第９","111-44-4",null,"ビス（２―クロロエチル）エーテル",15,88,null,null,null,"皮","1967",5,null,10,null,null,null,null,143.02000000000001,"Skin",1985,null,"区分3","区分3","分類対象外","区分1","分類できない","区分2","区分2","分類できない","分類できない","分類できない","区分2","分類できない","区分1(呼吸器)､区分3(麻酔作用)","分類できない","分類できない","液体",178]
[454,"別表第９","505-60-2",null,"ビス（２―クロロエチル）スルフィド（別名マスタードガス）","","","","",null,"","","",null,"",null,null,null,null,"","","未設定(2017年現在）",null,"区分2","区分1","分類対象外","区分1","分類できない","区分1","区分1","分類できない","分類できない","区分1","区分1","区分1","区分1(神経系､呼吸器系､循環器系､消化器系､造血系､泌尿器系)","区分1(呼吸器)","分類できない","液体",215]
[455,"別表第９","126-85-2",null,"Ｎ，Ｎ―ビス（２―クロロエチル）メチルアミン―Ｎ―オキシド","","","","",null,"","","",null,"",null,null,null,null,"","","未設定(2017年現在）",null,"分類できない","分類できない","分類できない","分類できない","分類できない","分類できない","分類できない","分類できない","分類できない","区分1","区分2","分類できない","分類できない","分類できない","分類できない","",""]
[456,"別表第９","563-12-2",null,"ビス（ジチオりん酸）Ｓ，Ｓ′―メチレン―Ｏ，Ｏ，　Ｏ′，Ｏ′―テトラエチル（別名エチオン）","","","","",null,"","",null,0.05,"",null,null,null,null,384.48,"Skin",2000,null,"区分2","区分2","分類対象外","分類できない","区分2","区分外","区分外","分類できない","分類できない","区分外","区分外","区分外","区分1(神経系)","区分1(神経系)","分類できない","液体",150]
[457,"別表第９","3033-62-3",null,"ビス（２―ジメチルアミノエチル）エーテル","","","","",null,"","",0.05,null,0.15,null,null,null,null,160.26,"Skin",1997,null,"区分4","区分3","分類対象外","区分2","分類できない","区分1","区分1","分類できない","分類できない","区分外","分類できない","分類できない","分類できない","分類できない","分類できない","液体",189.2]
["458","別表第９","7778-39-4","追加（2018年9月）","砒素",null,null,null,null,null,null,null,null,null,null,null,null,null,null,null,null,null,null,"区分2","分類できない","分類対象外","分類できない","分類できない","分類できない","区分2","分類できない","分類できない","分類できない","区分1","区分2","区分1(消化器系､循環器系､神経系､血液系､呼吸器､皮膚､腎臓､肝臓)","区分1(消化器系､循環器系､神経系､腎臓､肝臓､血液系､呼吸器系､皮膚)","分類できない","液体","120"]
["458","別表第９","7774-41-6","追加（2018年9月）","砒酸 1/2 水和物",null,null,null,null,null,null,null,null,null,null,null,null,null,null,null,null,null,null,"区分2","分類できない","分類対象外","分類できない","分類できない","分類できない","区分2","分類できない","分類できない","分類できない","区分1","区分2","区分1(消化器系､循環器系､神経系､血液系､呼吸器､皮膚､腎臓､肝臓)","区分1(消化器系､循環器系､神経系､腎臓､肝臓､血液系､呼吸器系､皮膚)","分類できない","固体","160"]
["458","別表第９","1327-53-3","追加（2018年9月）","三酸化二砒素（亜砒酸）",null,null,null,null,null,null,null,null,null,null,null,null,null,null,null,null,null,null,"区分2","分類できない","分類対象外","分類できない","分類できない","分類できない","区分2","分類できない","分類できない","区分2","区分1","区分1","区分1(消化管､心臓､骨格筋､呼吸器)","区分1(中枢神経系､末梢神経系､免疫系､呼吸器､肝臓､腎臓､皮膚､血管)","分類できない","固体","465"]
["458","別表第９","1303-28-2","追加（2018年9月）","五酸化二砒素",null,null,null,null,null,null,null,null,null,null,null,null,null,null,null,null,null,null,"区分2","分類できない","分類できない","分類できない","分類できない","分類できない","区分2","分類できない","分類できない","分類できない","区分1","区分2","区分1(消化器系､循環器系､神経系､血液系､呼吸器､皮膚､腎臓､肝臓)","区分1(消化器系､循環器系､神経系､腎臓､肝臓､血液系､呼吸器系､皮膚)","分類できない","固体"]
["458","別表第９","1303-32-8","追加（2018年9月）","一硫化一砒素",null,null,null,null,null,null,null,null,null,null,null,null,null,null,null,null,null,null,"分類できない","分類できない","分類対象外","分類できない","分類できない","分類できない","区分2","分類できない","分類できない","分類できない","区分1","区分2","区分1(消化器系､循環器系､神経系､血液系､呼吸器､皮膚､腎臓､肝臓)","区分1(消化器系､循環器系､神経系､腎臓､肝臓､血液系､呼吸器系､皮膚)","分類できない","固体","565"]
["458","別表第９","1303-33-9","追加（2018年9月）","三硫化二砒素",null,null,null,null,null,null,null,null,null,null,null,null,null,null,null,null,null,null,"区分3","区分3","分類対象外","分類できない","分類できない","分類できない","区分2","分類できない","分類できない","区分外","区分1","区分2","区分1(消化器系､循環器系､神経系､血液系､呼吸器､皮膚､腎臓､肝臓)","区分1(消化器系､循環器系､神経系､腎臓､肝臓､血液系､呼吸器系､皮膚)","分類できない","固体","707"]
["458","別表第９","12279-90-2","追加（2018年9月）","四硫化四砒素",null,null,null,null,null,null,null,null,null,null,null,null,null,null,null,null,null,null,"分類できない","分類できない","分類対象外","分類できない","分類できない","分類できない","区分2","分類できない","分類できない","分類できない","区分1","区分2","区分1(消化器系､循環器系､神経系､血液系､呼吸器､皮膚､腎臓､肝臓)","区分1(消化器系､循環器系､神経系､腎臓､肝臓､血液系､呼吸器系､皮膚)","分類できない","固体","565"]
["458","別表第９","7784-42-1","追加（2018年9月）","アルシン（砒化水素）",0.01,3.2000000000000001E-2,"0.1","0.32",null,"",null,"0.005","",null,null,null,null,null,null,null,null,null,"分類できない","分類できない","区分1","分類対象外","分類対象外","分類できない","分類できない","分類できない","分類できない","分類できない","区分1","分類できない","区分1(中枢神経系､血液系､心血管系､呼吸器､肝臓､腎臓)","区分1(血液系)","分類対象外","気体","-62.5"]
["458","別表第９","7784-35-2","追加（2018年9月）","弗化砒素（Ⅲ）",null,null,null,null,null,null,null,null,null,null,null,null,null,null,null,null,null,null,"分類できない","分類できない","分類対象外","分類できない","分類できない","分類できない","区分2","分類できない","分類できない","分類できない","区分1","区分2","区分1(消化器系､循環器系､神経系､血液系､呼吸器､皮膚､腎臓､肝臓)","区分1(消化器系､循環器系､神経系､腎臓､肝臓､血液系､呼吸器系､皮膚､骨)","分類できない","液体","57.8"]
["458","別表第９","7784-36-3","追加（2018年9月）","弗化砒素（Ⅴ）",null,null,null,null,null,null,null,null,null,null,null,null,null,null,null,null,null,null,"分類できない","分類できない","分類できない","分類対象外","分類対象外","分類できない","区分2","分類できない","分類できない","分類できない","区分1","区分2","区分1(消化器系､循環器系､神経系､血液系､呼吸器､皮膚､腎臓､肝臓)","区分1(消化器系､循環器系､神経系､腎臓､肝臓､血液系､呼吸器系､皮膚､骨)","分類対象外","気体","-53.2"]
["458","別表第９","7784-34-1","追加（2018年9月）","塩化砒素（Ⅲ）",null,null,null,null,null,null,null,null,null,null,null,null,null,null,null,null,null,null,"分類できない","分類できない","分類対象外","分類できない","分類できない","分類できない","区分2","分類できない","分類できない","区分2","区分1","区分2","区分1(消化器系､循環器系､神経系､血液系､呼吸器､皮膚､腎臓､肝臓)","区分1(消化器系､循環器系､神経系､腎臓､肝臓､血液系､呼吸器系､皮膚)","分類できない","液体","130"]
["458","別表第９","22441-45-8","追加（2018年9月）","塩化砒素（Ⅴ）",null,null,null,null,null,null,null,null,null,null,null,null,null,null,null,null,null,null,"分類できない","分類できない","分類できない","分類できない","分類できない","分類できない","分類できない","分類できない","分類できない","分類できない","区分1","区分2","区分1(消化器系､循環器系､神経系､血液系､呼吸器､皮膚､腎臓､肝臓)","区分1(消化器系､循環器系､神経系､腎臓､肝臓､血液系､呼吸器系､皮膚)","分類できない","気体","-25"]
["458","別表第９","7784-46-5","追加（2018年9月）","亜砒酸ナトリウム",null,null,null,null,null,null,null,null,null,null,null,null,null,null,null,null,null,null,"区分2","区分2","分類対象外","分類対象外","分類できない","分類できない","区分2","分類できない","分類できない","区分2","区分1","区分2","区分1(消化器系､循環器系､神経系､血液系､呼吸器､皮膚､腎臓､肝臓)","区分1(消化器系､循環器系､神経系､腎臓､肝臓､血液系､呼吸器系､皮膚)","分類できない","固体"]
["458","別表第９","10124-50-2","追加（2018年9月）","亜砒酸カリウム",null,null,null,null,null,null,null,null,null,null,null,null,null,null,null,null,null,null,"区分2","区分2","分類対象外","分類できない","分類できない","分類できない","区分2","分類できない","分類できない","区分2","区分1","区分2","区分1(消化器系､循環器系､神経系､血液系､呼吸器､皮膚､腎臓､肝臓)","区分1(消化器系､循環器系､神経系､腎臓､肝臓､血液系､呼吸器系､皮膚)","分類できない","固体"]
["458","別表第９","27152-57-4","追加（2018年9月）","亜砒酸カルシウム",null,null,null,null,null,null,null,null,null,null,null,null,null,null,null,null,null,null,"区分1","分類できない","分類対象外","分類できない","分類できない","分類できない","区分2","分類できない","分類できない","分類できない","区分1","区分2","区分1(消化器系､循環器系､神経系､血液系､呼吸器､皮膚､腎臓､肝臓)","区分1(消化器系､循環器系､神経系､腎臓､肝臓､血液系､呼吸器系､皮膚)","分類できない","固体"]
["458","別表第９","7778-43-0","追加（2018年9月）","砒酸水素二ナトリウム",null,null,null,null,null,null,null,null,null,null,null,null,null,null,null,null,null,null,"分類できない","分類できない","分類対象外","分類できない","分類できない","分類できない","区分2","分類できない","分類できない","分類できない","区分1","区分2","区分1(消化器系､循環器系､神経系､血液系､呼吸器､皮膚､腎臓､肝臓)","区分1(消化器系､循環器系､神経系､腎臓､肝臓､血液系､呼吸器系､皮膚)","分類できない","固体","150"]
["458","別表第９","13464-38-5","追加（2018年9月）","砒酸ナトリウム",null,null,null,null,null,null,null,null,null,null,null,null,null,null,null,null,null,null,"区分3","分類できない","分類対象外","分類できない","分類できない","分類できない","区分2","分類できない","区分外","分類できない","区分1","区分2","区分1(消化器系､循環器系､神経系､血液系､呼吸器､皮膚､腎臓､肝臓)","区分1(消化器系､循環器系､神経系､腎臓､肝臓､血液系､呼吸器系､皮膚)","分類できない","固体"]
["458","別表第９","7784-41-0","追加（2018年9月）","砒酸カリウム",null,null,null,null,null,null,null,null,null,null,null,null,null,null,null,null,null,null,"区分2","分類できない","分類対象外","分類できない","分類できない","分類できない","区分2","分類できない","分類できない","分類できない","区分1","区分2","区分1(消化器系､循環器系､神経系､血液系､呼吸器､皮膚､腎臓､肝臓)","区分1(消化器系､循環器系､神経系､腎臓､肝臓､血液系､呼吸器系､皮膚)","分類できない","固体"]
["458","別表第９","7778-44-1","追加（2018年9月）","砒酸カルシウム",null,null,null,null,null,null,null,null,null,null,null,null,null,null,null,null,null,null,"区分3","区分外","分類対象外","分類できない","分類できない","分類できない","区分2","分類できない","分類できない","分類できない","区分1","区分2","区分1(消化器系､循環器系､神経系､血液系､呼吸器､皮膚､腎臓､肝臓)","区分1(消化器系､循環器系､神経系､腎臓､肝臓､血液系､呼吸器系､皮膚)","分類できない","固体"]
["458","別表第９","1303-39-5","追加（2018年9月）","砒酸亜鉛",null,null,null,null,null,null,null,null,null,null,null,null,null,null,null,null,null,null,"分類できない","分類できない","分類対象外","分類できない","分類できない","分類できない","区分2","分類できない","分類できない","分類できない","区分1","区分2","区分1(消化器系､循環器系､神経系､血液系､呼吸器､皮膚､腎臓､肝臓)","区分1(消化器系､循環器系､神経系､腎臓､肝臓､血液系､呼吸器系､皮膚)","分類できない","固体"]
["458","別表第９","7784-40-9","追加（2018年9月）","砒酸鉛",null,null,null,null,null,null,null,null,null,null,null,null,null,null,null,null,null,null,"区分3","分類できない","分類対象外","分類できない","分類できない","分類できない","区分2","分類できない","分類できない","分類できない","区分1","区分2","区分1(消化器系､循環器系､神経系､血液系､呼吸器､皮膚､腎臓､肝臓)","区分1(消化器系､循環器系､神経系､腎臓､肝臓､血液系､呼吸器系､皮膚)","分類できない","固体"]
["458","別表第９","7784-38-5","追加（2018年9月）","砒酸マンガン",null,null,null,null,null,null,null,null,null,null,null,null,null,null,null,null,null,null,"分類できない","分類できない","分類対象外","分類できない","分類できない","分類できない","区分2","分類できない","分類できない","分類できない","区分1","区分2","区分1(消化器系､循環器系､神経系､血液系､呼吸器､皮膚､腎臓､肝臓)","区分1(消化器系､循環器系､神経系､腎臓､肝臓､血液系､呼吸器系､皮膚)","分類できない","固体"]
["458","別表第９","10102-49-5","追加（2018年9月）","砒酸鉄",null,null,null,null,null,null,null,null,null,null,null,null,null,null,null,null,null,null,"分類できない","分類できない","分類対象外","分類できない","分類できない","分類できない","区分2","分類できない","分類できない","分類できない","区分1","区分2","区分1(消化器系､循環器系､神経系､血液系､呼吸器､皮膚､腎臓､肝臓)","区分1(消化器系､循環器系､神経系､腎臓､肝臓､血液系､呼吸器系､皮膚)","分類できない","固体"]
["458","別表第９","10103-61-4","追加（2018年9月）","砒酸銅",null,null,null,null,null,null,null,null,null,null,null,null,null,null,null,null,null,null,"分類できない","分類できない","分類対象外","分類できない","分類できない","分類できない","区分2","分類できない","分類できない","分類できない","区分1","区分2","区分1(消化器系､循環器系､神経系､血液系､呼吸器､皮膚､腎臓､肝臓)","区分1(消化器系､循環器系､神経系､腎臓､肝臓､血液系､呼吸器系､皮膚)","分類できない","固体"]
["458","別表第９","12002-03-8","追加（2018年9月）","アセト亜砒酸銅",null,null,null,null,null,null,null,null,null,null,null,null,null,null,null,null,null,null,"区分2","区分外","分類対象外","分類できない","分類できない","分類できない","区分2","分類できない","分類できない","分類できない","区分1","区分2","区分1(消化器系､循環器系､神経系､血液系､呼吸器､皮膚､腎臓､肝臓)","区分1(消化器系､循環器系､神経系､腎臓､肝臓､血液系､呼吸器系､皮膚)","分類できない","固体"]
["458","別表第９","17068-86-9","追加（2018年9月）","弗化砒酸石灰",null,null,null,null,null,null,null,null,null,null,null,null,null,null,null,null,null,null,"分類できない","分類できない","分類対象外","分類できない","分類できない","分類できない","区分2","分類できない","分類できない","分類できない","区分1","区分2","区分1(消化器系､循環器系､神経系､血液系､呼吸器､皮膚､腎臓､肝臓)","区分1(消化器系､循環器系､神経系､腎臓､肝臓､血液系､呼吸器系､皮膚)","分類できない","固体"]
["458","別表第９","29935-35-1","追加（2018年9月）","ヘキサフルオロ砒酸リチウム",null,null,null,null,null,null,null,null,null,null,null,null,null,null,null,null,null,null,"分類できない","分類できない","分類対象外","分類できない","分類できない","分類できない","区分2","分類できない","分類できない","分類できない","区分1","区分2","区分1(消化器系､循環器系､神経系､血液系､呼吸器､皮膚､腎臓､肝臓)","区分1(消化器系､循環器系､神経系､腎臓､肝臓､血液系､呼吸器系､皮膚､骨格系)","分類できない","固体","280"]
["458","別表第９","6423-72-9","追加（2018年9月）","メタンアルソン酸カルシウム",null,null,null,null,null,null,null,null,null,null,null,null,null,null,null,null,null,null,"分類できない","分類できない","分類対象外","分類できない","分類できない","分類できない","分類できない","分類できない","分類できない","分類できない","区分1","分類できない","分類できない","分類できない","分類できない","固体"]
["458","別表第９","33972-75-7","追加（2018年9月）","メタンアルソン酸鉄",null,null,null,null,null,null,null,null,null,null,null,null,null,null,null,null,null,null,"分類できない","分類できない","分類対象外","分類できない","分類できない","分類できない","分類できない","分類できない","分類できない","分類できない","区分1","分類できない","分類できない","分類できない","分類できない","固体"]
[459,"別表第９","302-01-2",null,"ヒドラジン",0.1,0.13,null,null,null,"皮","1998",0.01,null,"",null,null,null,null,32.049999999999997,"Skin",1988,null,"区分3","区分2","分類対象外","区分3","分類できない","区分1","区分1","分類できない","区分1","区分2","区分1","区分2","区分1(中枢神経系､肝臓)､区分3(気道刺激性､麻酔作用)","区分1(中枢神経系､呼吸器､心臓､肝臓､生殖器)","分類できない","液体",114]
[460,"別表第９","7803-57-8",null,"ヒドラジン一水和物",0.1,0.21,null,null,null,null,0,"",null,"",null,null,null,null,"","","未設定(2017年現在）",null,"区分3","分類できない","分類対象外","分類できない","分類できない","区分1","区分1","分類できない","区分1","区分2","区分2","分類できない","区分1(中枢神経系､肝臓､腎臓)","区分1(肝臓､神経系､消化管､腎臓)","分類できない","液体",118]
[461,"別表第９","123-31-9",null,"ヒドロキノン","","","","",null,"","",null,1,"",null,null,null,null,110.11,"",2007,null,"区分4","区分外","分類対象外","分類できない","分類できない","区分外","区分1","分類できない","区分1","区分1","区分2","区分外","区分1(中枢神経系)","区分2(腎臓､肝臓)","分類できない","固体",287]
[462,"別表第９","100-40-3",null,"４―ビニル―１―シクロヘキセン","","","","",null,"","",0.1,null,"",null,null,null,null,108.18,"",1994,null,"区分5","区分外","分類対象外","分類できない","分類できない","区分2","区分1","分類できない","分類できない","分類できない","区分2","区分2","分類できない","区分1(血液系)､区分2(腎臓)","分類できない","液体",130]
[463,"別表第９","106-87-6",null,"４―ビニルシクロヘキセンジオキシド","","","","",null,"","",0.1,null,"",null,null,null,null,140.18,"Skin",1994,null,"区分5","区分3","分類対象外","区分3","分類できない","区分2","区分2","分類できない","分類できない","分類できない","区分2","区分2","区分3(麻酔作用､気道刺激性)","区分2(免疫系)","分類できない","液体",227]
[464,"別表第９","25013-15-4",null,"ビニルトルエン","","","","",null,"","",50,null,100,null,null,null,null,118.18,"",1992,null,"区分5","区分外","分類対象外","分類できない","分類できない","区分2","区分2","分類できない","分類できない","区分2","区分外","分類できない","区分3(気道刺激性､麻酔作用)","区分1(神経系)､区分2(肝臓､呼吸器､腎臓)","分類できない","液体",170]
["464-2","別表第９","88-12-0",null,"Ｎ―ビニル―２―ピロリドン","","","","",null,"","",0.05,null,"",null,null,null,null,111.16,"",2000,null,"区分4","区分3","分類対象外","分類できない","区分4","区分外","区分1","分類できない","区分外","分類できない","区分2","分類できない","区分2(中枢神経系､呼吸器､肝臓)","区分1(呼吸器､肝臓､血液系)","分類できない","液体",90]
[465,"別表第９","92-52-4",null,"ビフェニル","","","","",null,"","",0.2,null,"",null,null,null,null,154.19999999999999,"",1979,null,"区分外","区分外","分類対象外","分類できない","分類できない","分類できない","区分2","分類できない","区分外","区分外","区分2","区分外","分類できない","区分1(肝臓､神経系､呼吸器)､区分2(腎臓)","分類できない","固体",254]
[466,"別表第９","142-64-3",null,"ピペラジン二塩酸塩","","","","",null,"","",0.03,null,"",null,null,null,null,86.14,"",2011,null,"区分5","分類できない","分類できない","分類できない","分類できない","区分2","区分2","分類できない","分類できない","分類できない","分類できない","分類できない","分類できない","分類できない","分類できない","固体",""]
[467,"別表第９","110-86-1",null,"ピリジン","","","","",null,"","",1,null,"",null,null,null,null,79.099999999999994,"",1992,null,"区分4","区分4","分類対象外","区分4","分類できない","区分1","区分1","分類できない","分類できない","分類できない","区分2","分類できない","区分1(中枢神経系)､区分3(気道刺激性､麻酔作用)","区分1(神経系､肝臓､腎臓､血液系)","区分1","液体",115]
[468,"別表第９","8003-34-7",null,"ピレトラム","","","","",null,"","","0.35",5,"",null,null,null,null,345,"",1992,"ppm単位は20℃換算値","区分4","分類できない","分類対象外","分類できない","区分4","区分3","区分2","分類できない","区分1","分類できない","区分外","区分2","区分3(麻酔作用)","区分2(神経系､血液､呼吸器)","分類できない","液体",170]
["468-2","別表第９","103-71-9","30年7月追加物質","フェニルイソシアネート ",null,null,null,null,null,null,null,"0.005",null,null,null,"0.015",null,null,"119.10","Skin","2017",null,"区分4","区分外","分類対象外","区分1","分類できない","分類できない","分類できない","分類できない","区分1","分類できない","分類できない","分類できない","区分1(呼吸器)","区分1(呼吸器)","分類できない","液体",158]
[469,"別表第９","96-09-3",null,"フェニルオキシラン","","","","",null,"","",0.2,null,"",null,null,null,null,120.15,"Skin",2017,null,"区分4","区分3","分類できない","分類できない","分類できない","区分2","区分2","分類できない","区分1","区分2","区分1","区分2","区分3(麻酔作用)","区分2(肝臓)","分類できない","液体",194]
[470,"別表第９","100-63-0",null,"フェニルヒドラジン","","","","",null,"","",0.1,null,"",null,null,null,null,108.14,"Skin",1988,null,"区分3","区分2","分類対象外","分類できない","分類できない","区分2","区分2","分類できない","区分1","区分2","区分2","分類できない","区分1(血液)","区分1(血液)","分類できない","液体",243.5]
[471,"別表第９","638-21-1",null,"フェニルホスフィン","","","","",null,"","","",null,null,null,0.05,null,null,110.1,"",1992,null,"分類できない","分類できない","分類対象外","分類できない","分類できない","区分2","区分2","分類できない","分類できない","分類できない","分類できない","区分2","区分3(気道刺激性)","区分1(血液､神経系)","分類できない","液体",160]
[472,"別表第９","95-54-5",null,"ｏ－フェニレンジアミン",null,0.1,null,null,null,null,"1999",null,0.1,"",null,null,null,null,108.05,"",1988,null,"区分4","区分外","分類対象外","分類できない","分類できない","区分外","区分2","分類できない","区分1","区分2","区分2","分類できない","区分1(血液系)､区分2(呼吸器､神経系)","区分2(血液)","分類できない","固体",256]
[472,"別表第９","108-45-2",null,"ｍ－フェニレンジアミン",null,0.1,null,null,null,null,"1999",null,0.1,"",null,null,null,null,108.05,"",1988,null,"区分3","区分4","分類対象外","分類できない","分類できない","区分外","区分2","分類できない","区分1","区分2","区分外","区分2","区分1(中枢神経系､血液)","区分1(神経系､肝臓､腎臓､膀胱)､\n区分2(血液)","分類できない","固体",284]
[472,"別表第９","106-50-3",null,"ｐ－フェニレンジアミン",null,0.1,null,null,null,null,"1997",null,0.1,"",null,null,null,null,108.05,"",1988,null,"区分3","区分外","分類対象外","分類できない","区分3","区分2","区分2","区分1","区分1","区分外","分類できない","分類できない","区分1(心臓､筋肉､腎臓)","区分1(肝臓､神経系､腎臓)､区分2(心臓､筋肉)","分類できない","固体",267]
[473,"別表第９","92-84-2",null,"フェノチアジン","","","","",null,"","",null,5,"",null,null,null,null,199.26,"Skin",1968,null,"区分外","区分外","分類対象外","分類できない","区分外","区分2","区分外","分類できない","分類できない","区分外","分類できない","分類できない","区分1(肝臓､腎臓､血液､神経系､循環器系)\n区分3(気道刺激性)","区分2(血液)","分類できない","固体",371]
[474,"別表第９","108-95-2",null,"フェノール",5,19,null,null,null,"皮","1978",5,null,"",null,null,null,null,94.11,"Skin",1992,null,"区分4","区分3","分類対象外","分類できない","分類できない","区分1","区分1","分類できない","区分外","区分1","区分外","区分1","区分1(呼吸器､心血管系､腎臓､神経系)","区分1(心血管系､肝臓､消化管､血液系､腎臓､脾臓､胸腺､中枢神経系)","分類できない","固体",182]
[475,"別表第９","12604-58-9",null,"フェロバナジウム",null,1,null,null,null,null,"1968",null,1,null,3,null,null,null,"","",1990,null,"分類できない","分類できない","分類対象外","分類できない","分類できない","分類できない","区分2","分類できない","分類できない","分類できない","分類できない","分類できない","区分3(気道刺激性)","区分2(呼吸器)","分類できない","固体",""]
[476,"別表第９","106-99-0",null,"１，３―ブタジエン","","","","",null,"","",2,null,"",null,null,null,null,54.09,"",1994,null,"分類対象外","分類対象外","区分外","分類対象外","分類対象外","分類できない","区分2","分類できない","分類できない","区分1","区分1","区分1","区分3(気道刺激性､麻酔作用)","区分1(生殖器(女性))､区分2(心臓､血液系､肝臓)","分類対象外","気体",""]
[477,"別表第９","71-36-3",null,"１－ブタノール",null,null,50,150,null,"皮","1987",20,null,"",null,null,null,null,74.12,"",1998,null,"区分外","区分外","分類対象外","分類できない","区分外","区分2","区分2","分類できない","分類できない","分類できない","分類できない","分類できない","区分3(気道刺激性､麻酔作用)","区分1(中枢神経系､聴覚器)","分類できない","液体",117]
[477,"別表第９","78-92-2",null,"２－ブタノール",100,300,null,null,null,null,"1987",100,null,"",null,null,null,null,74.12,"",2001,null,"区分外","区分外","分類対象外","区分4","分類できない","区分外","区分2","分類できない","区分外","分類できない","分類できない","区分2","区分3(気道刺激性､麻酔作用)","分類できない","分類できない","液体",100]
[477,"別表第９","78-83-1",null,"イソブタノール（イソブチルアルコール）",50,150,null,null,null,null,"1987",50,null,"",null,null,null,null,74.12,"",1973,null,"区分外","区分外","分類対象外","区分4","分類できない","区分2","区分1","分類できない","分類できない","分類できない","分類できない","分類できない","区分3(気道刺激性､麻酔作用)","分類できない","分類できない","液体",108]
[477,"別表第９","75-65-0",null,"tert－ブタノール",50,150,null,null,null,null,"1987",100,null,"",null,null,null,null,74.12,"",1992,null,"区分外","区分外","分類対象外","分類できない","分類できない","区分外","区分2","分類できない","分類できない","分類できない","分類できない","区分2","区分3(麻酔作用､気道刺激性)","分類できない","分類できない","固体",83]
[478,"別表第９","84-66-2",null,"フタル酸ジエチル",null,5,null,null,null,null,"1995",null,5,"",null,null,null,null,222.23,"",1996,null,"区分外","区分外","分類対象外","分類できない","区分外","区分2","区分2","分類できない","区分1","分類できない","区分外","区分外","区分3(気道刺激性､麻酔作用)","区分外","分類できない","液体",295]
[479,"別表第９","84-74-2",null,"フタル酸ジ―ノルマル―ブチル",null,5,null,null,null,null,"1996",null,5,"",null,null,null,null,278.33999999999997,"",1990,null,"区分外","区分外","分類対象外","分類できない","区分外","区分外","区分外","分類できない","区分1","分類できない","分類できない","区分1","区分3(気道刺激性)","区分1(呼吸器)","分類できない","液体",340]
[480,"別表第９","131-11-3",null,"フタル酸ジメチル","","","","",null,"","",null,5,"",null,null,null,null,194.19,"",2005,null,"区分外","区分外","分類対象外","分類できない","分類できない","区分外","区分2","分類できない","分類できない","分類できない","分類できない","分類できない","区分3(麻酔作用､気道刺激性)","分類できない","分類できない","液体",284]
[481,"別表第９","117-81-7",null,"フタル酸ビス（２―エチルヘキシル）（別名ＤＥＨＰ）",null,5,null,null,null,null,"1995",null,5,"",null,null,null,null,390.54,"",1996,null,"区分外","区分外","分類対象外","分類できない","区分外","区分外","区分2","分類できない","区分外","分類できない","区分2","区分1","区分3(気道刺激性)","区分2(肝臓､精巣)","分類できない","液体",384]
[482,"別表第９","106-97-8",null,"ブタン",500,1200,null,null,null,null,"1988","",null,1000,null,null,null,null,58.12,"",2012,null,"分類対象外","分類対象外","区分外","分類対象外","分類対象外","分類できない","分類できない","分類できない","分類できない","分類できない","分類できない","分類できない","区分3(麻酔作用)","分類できない","分類対象外","気体"]
[482,"別表第９","75-28-5","追加（2018年9月）","イソブタン",null,null,null,null,null,null,null,null,null,null,null,null,null,null,null,null,null,null,"分類できない","分類できない","区分4","分類対象外","分類対象外","区分外","区分外","分類できない","分類できない","分類できない","分類できない","分類できない","区分2(心臓)､区分3(麻酔作用)","分類できない","分類対象外","気体","-11.7"]
["482-2","別表第９","431-03-8","30年7月追加物質","２，３―ブタンジオン（別名ジアセチル）",null,null,null,null,null,null,null,"0.01",null,"0.02",null,null,null,null,"86.10",null,"2011",null,"区分外","区分外","分類対象外","分類できない","分類できない","区分2","区分1","分類できない","区分1","分類できない","分類できない","分類できない","区分1(呼吸器)","区分1(呼吸器)","分類できない","液体",88]
[483,"別表第９","109-79-5",null,"１―ブタンチオール","","","","",null,"","",0.5,null,"",null,null,null,null,90.19,"",1968,null,"区分4","区分外","分類対象外","区分4","分類できない","区分外","区分2","分類できない","分類できない","分類できない","分類できない","分類できない","区分1(中枢神経系)､区分3(気道刺激性､麻酔作用)","分類できない","分類できない","液体",98]
[484,"別表第９","353-50-4",null,"弗化カルボニル","","","","",null,"","",2,null,5,null,null,null,null,66.010000000000005,"",1990,null,"分類対象外","分類対象外","区分2","分類対象外","分類対象外","区分2","区分2","分類できない","分類できない","分類できない","分類できない","分類できない","区分1(肺)","分類できない","分類対象外","気体",""]
[485,"別表第９","75-38-7",null,"弗化ビニリデン","","","","",null,"","",500,null,"",null,null,null,null,64.040000000000006,"",1996,null,"分類対象外","分類対象外","区分外","分類対象外","分類対象外","区分外","区分外","分類できない","分類できない","分類できない","分類できない","分類できない","区分3(麻酔作用)","区分外","分類対象外","気体",""]
[486,"別表第９","75-02-5",null,"弗化ビニル","","","","",null,"","",1,null,"",null,null,null,null,46.05,"",1996,null,"分類対象外","分類対象外","区分外","分類対象外","分類対象外","分類できない","分類できない","分類できない","分類できない","区分2","区分1","分類できない","区分3(麻酔作用)","区分2(肝臓)","分類対象外","気体",""]
[487,"別表第９","7664-39-3",null,"弗化水素",null,null,3,2.5,null,null,"2000",0.5,null,"",null,2,null,"as F",20.010000000000002,"Skin",2004,null,"分類対象外","分類対象外","区分3","分類対象外","分類対象外","区分1","区分1","分類できない","分類できない","分類できない","分類できない","分類できない","区分1(呼吸器､心血管系)","区分1(神経系､歯､骨､呼吸器)","分類対象外","液体",19.510000000000002]
["487","別表第９","7782-41-4","追加（2018年9月）","弗素",null,null,null,null,null,null,null,"1","","2","",null,null,null,null,"-",null,null,"分類対象外","分類対象外","区分1","分類対象外","分類対象外","区分2","区分2","分類できない","分類できない","分類できない","分類できない","分類できない","区分1(呼吸器､肝臓､腎臓)","区分1(骨､歯､呼吸器､生殖器(男性))","分類対象外","気体","-188.13"]
["487","別表第９","12125-01-8","追加（2018年9月）","弗化アンモニウム",null,null,null,null,null,null,null,null,null,null,null,null,null,null,null,null,null,null,"分類できない","分類できない","分類対象外","分類対象外","分類できない","分類できない","区分2","分類できない","分類できない","分類できない","分類できない","分類できない","分類できない","区分1(骨)","分類できない","固体"]
["487","別表第９","1333-83-1","追加（2018年9月）","弗化水素ナトリウム",null,null,null,null,null,null,null,null,null,null,null,null,null,null,null,null,null,null,"分類できない","分類できない","分類対象外","分類できない","分類できない","分類できない","分類できない","分類できない","分類できない","分類できない","区分外","分類できない","区分1(呼吸器)","区分1(歯､骨､腎臓)","分類できない","固体"]
["487","別表第９","1341-49-7","追加（2018年9月）","一水素二弗化アンモニウム",null,null,null,null,null,null,null,null,null,null,null,null,null,null,null,null,null,null,"区分3","分類できない","分類対象外","分類対象外","分類できない","区分1","区分1","分類できない","分類できない","分類できない","分類できない","分類できない","区分1(心臓)､区分3(気道刺激性)","区分1(歯､骨)","分類できない","固体","240"]
["487","別表第９","13755-29-8","追加（2018年9月）","ホウ弗化ナトリウム",null,null,null,null,null,null,null,null,null,null,null,null,null,null,null,null,null,null,"分類できない","分類できない","分類対象外","分類できない","分類できない","分類できない","区分2","分類できない","分類できない","分類できない","分類できない","分類できない","区分3(気道刺激性)","区分1(骨)","分類できない","固体"]
["487","別表第９","13826-83-0","追加（2018年9月）","ホウ弗化アンモニウム",null,null,null,null,null,null,null,null,null,null,null,null,null,null,null,null,null,null,"分類できない","分類できない","分類対象外","分類できない","分類できない","分類できない","区分2","分類できない","分類できない","分類できない","分類できない","分類できない","区分3(気道刺激性)","区分1(骨)","分類できない","固体"]
["487","別表第９","14075-53-7","追加（2018年9月）","ホウ弗化カリウム",null,null,null,null,null,null,null,null,null,null,null,null,null,null,null,null,null,null,"分類できない","分類できない","分類対象外","分類できない","分類できない","分類できない","区分2","分類できない","分類できない","分類できない","分類できない","分類できない","区分3(気道刺激性)","区分1(骨)","分類できない","固体"]
["487","別表第９","16871-71-9","追加（2018年9月）","ケイ弗化亜鉛",null,null,null,null,null,null,null,null,null,null,null,null,null,null,null,null,null,null,"区分3","分類できない","分類対象外","分類できない","分類できない","分類できない","区分2","分類できない","分類できない","分類できない","分類できない","分類できない","区分3(気道刺激性)","区分1(骨)","分類できない","固体"]
["487","別表第９","16872-11-0","追加（2018年9月）","ホウ弗化水素酸",null,null,null,null,null,null,null,null,null,null,null,null,null,null,null,null,null,null,"区分3","区分3","分類対象外","分類できない","分類できない","区分1","区分1","分類できない","分類できない","分類できない","分類できない","分類できない","区分2(中枢神経系)､区分3(気道刺激性､麻酔作用)","区分1(歯､骨)","分類できない","液体","130"]
["487","別表第９","16919-19-0","追加（2018年9月）","ケイ弗化アンモニウム",null,null,null,null,null,null,null,null,null,null,null,null,null,null,null,null,null,null,"区分3","分類できない","分類対象外","分類対象外","分類できない","区分2","区分2","分類できない","分類できない","分類できない","分類できない","分類できない","区分3(気道刺激性)","区分1(歯､骨)","分類できない","固体"]
["487","別表第９","16949-65-8","追加（2018年9月）","六弗化ケイ酸マグネシウム",null,null,null,null,null,null,null,null,null,null,null,null,null,null,null,null,null,null,"区分3","区分外","分類対象外","分類できない","区分4","区分外","区分2","分類できない","分類できない","分類できない","分類できない","分類できない","分類できない","区分2(歯､骨)","分類できない","固体"]
["487","別表第９","16961-83-4","追加（2018年9月）","ケイ弗化水素酸",null,null,null,null,null,null,null,null,null,null,null,null,null,null,null,null,null,null,"区分4","分類できない","分類対象外","分類できない","分類できない","区分1","区分1","分類できない","分類できない","分類できない","分類できない","分類できない","区分3(気道刺激性)","区分1(歯､骨)","分類できない","液体"]
["487","別表第９","18972-56-0","追加（2018年9月）","ケイ弗化マグネシウム六水和物",null,null,null,null,null,null,null,null,null,null,null,null,null,null,null,null,null,null,"区分3","分類できない","分類対象外","分類できない","分類できない","分類できない","区分2","分類できない","分類できない","分類できない","分類できない","分類できない","区分3(気道刺激性)","区分1(骨)","分類できない","固体"]
["487","別表第９","7681-49-4","追加（2018年9月）","弗化ナトリウム",null,null,null,null,null,null,null,null,null,null,null,null,null,null,null,null,null,null,"区分3","分類できない","分類対象外","分類対象外","分類できない","区分2","区分1","分類できない","分類できない","分類できない","分類できない","分類できない","区分1(神経系､心臓､腎臓)","区分1(歯､骨)､区分2(心臓､肝臓､腎臓､生殖器(男性))","分類できない","固体","1700"]
["487","別表第９","7783-49-5","追加（2018年9月）","弗化亜鉛",null,null,null,null,null,null,null,null,null,null,null,null,null,null,null,null,null,null,"分類できない","分類できない","分類対象外","分類できない","分類できない","分類できない","区分2","分類できない","分類できない","分類できない","区分外","分類できない","区分3(気道刺激性)","区分1(骨)","分類できない","固体","1500"]
["487","別表第９","7783-55-3","追加（2018年9月）","三弗化リン",null,null,null,null,null,null,null,null,null,null,null,null,null,null,null,null,null,null,"分類できない","分類できない","区分1","分類対象外","分類対象外","分類できない","区分2","分類できない","分類できない","分類できない","分類できない","分類できない","区分3(気道刺激性)","区分1(骨)","分類対象外","気体"]
["487","別表第９","7783-60-0","追加（2018年9月）","四弗化イオウ",null,null,null,null,null,null,null,null,null,null,null,null,null,null,null,null,null,null,"分類できない","分類できない","区分1","分類対象外","分類対象外","区分1","区分1","分類できない","分類できない","分類できない","分類できない","分類できない","区分1(吸入:呼吸器系)､区分3(気道刺激性)","区分1(呼吸器系)､区分2(歯･骨)","分類対象外","気体","-40"]
["487","別表第９","7783-61-1","追加（2018年9月）","四弗化ケイ素",null,null,null,null,null,null,null,null,null,null,null,null,null,null,null,null,null,null,"分類できない","分類できない","分類できない","分類対象外","分類対象外","分類できない","分類できない","分類できない","分類できない","分類できない","分類できない","分類できない","分類できない","分類できない","分類対象外","気体","-86 "]
["487","別表第９","7789-21-1","追加（2018年9月）","フルオロスルホン酸",null,null,null,null,null,null,null,null,null,null,null,null,null,null,null,null,null,null,"分類できない","分類できない","分類対象外","分類できない","分類できない","区分1","区分1","分類できない","分類できない","分類できない","分類できない","分類できない","区分2(呼吸器系)","分類できない","分類できない","液体","163"]
["487","別表第９","7789-23-3","追加（2018年9月）","弗化カリウム",null,null,null,null,null,null,null,null,null,null,null,null,null,null,null,null,null,null,"区分3","分類できない","分類対象外","分類できない","分類できない","分類できない","分類できない","分類できない","分類できない","分類できない","分類できない","分類できない","分類できない","分類できない","分類できない","固体","1502"]
[488,"別表第９","123-73-9",null,"２―ブテナール","","","","",null,"","","",null,"",null,null,null,null,"","","未設定(2017年現在）",null,"区分3","区分3","分類対象外","分類できない","分類できない","分類できない","分類できない","分類できない","分類できない","区分1","区分外","分類できない","分類できない","分類できない","分類できない","液体",102.2]
["488-2","別表第９","25167-67-3",null,"ブテン","","","","",null,"","",250,null,"",null,null,null,null,56.11,"",2007,null,"分類対象外","分類対象外","分類できない","分類対象外","分類対象外","分類できない","分類できない","分類できない","分類できない","分類できない","分類できない","分類できない","分類できない","分類できない","分類対象外","気体",""]
["488-2","別表第９","106-98-9",null,"１－ブテン","","","","",null,"","",250,null,"",null,null,null,null,56.11,"",2007,null,"分類対象外","分類対象外","分類できない","分類対象外","分類対象外","分類できない","区分2","分類できない","分類できない","分類できない","分類できない","分類できない","分類できない","分類できない","分類対象外","気体",""]
["488-2","別表第９","107-01-7","他","２－ブテン","","","","",null,"","",250,null,"",null,null,null,null,56.11,"",2007,null,"分類対象外","分類対象外","分類できない","分類対象外","分類対象外","分類できない","分類できない","分類できない","分類できない","分類できない","分類できない","分類できない","分類できない","分類できない","分類対象外","気体"]
["488-2","別表第９","115-11-7",null,"イソブテン","","","","",null,"","",250,null,"",null,null,null,null,"","",2007,null,"分類対象外","分類対象外","区分外","分類対象外","分類対象外","分類できない","分類できない","分類できない","分類できない","分類できない","分類できない","分類できない","分類できない","区分外","分類対象外","気体",""]
[489,"別表第９","62-74-8",null,"フルオロ酢酸ナトリウム","","","","",null,"","",null,0.05,"",null,null,null,null,100.02,"Skin",1992,null,"区分1","区分1","分類対象外","分類できない","分類できない","区分外","分類できない","分類できない","分類できない","分類できない","分類できない","分類できない","区分1(心臓､中枢神経系)","区分1(心臓､精巣､神経系､腎臓､肝臓)","分類できない","固体",""]
[490,"別表第９","98-01-1",null,"フルフラール",2.5,9.8000000000000007,null,null,null,"皮","1989",0.2,null,"",null,null,null,null,96.08,"Skin",2016,null,"区分3","区分3","分類対象外","区分2","分類できない","区分2","区分2","分類できない","分類できない","分類できない","区分2","分類できない","区分1(呼吸器､肝臓)","区分1(呼吸器､肝臓)","分類できない","液体",162]
[491,"別表第９","98-00-0",null,"フルフリルアルコール",5,20,null,null,null,null,"1978",0.2,null,null,null,null,null,null,98.1,"Skin",2016,null,"区分3","区分3","分類対象外","区分2","分類できない","区分2","区分2","分類できない","分類できない","区分外","分類できない","分類できない","区分3(麻酔作用､気道刺激性)","区分1(呼吸器)､区分2(肝臓､腎臓､中枢神経系)","分類できない","液体",170]
[492,"別表第９","1120-71-4",null,"１，３―プロパンスルトン","","","","",null,"","","",null,"",null,null,null,null,122.14,"",1976,null,"区分3","区分3","分類対象外","分類できない","分類できない","分類できない","分類できない","分類できない","分類できない","区分2","区分1","分類できない","分類できない","分類できない","分類できない","固体",150]
["492-2","別表第９","123-38-6",null,"プロピオンアルデヒド","","","","",null,"","",20,null,"",null,null,null,null,58.1,"",1998,null,"区分4","区分外","分類対象外","区分4","分類できない","区分2","区分2","分類できない","分類できない","分類できない","分類できない","分類できない","区分2(呼吸器)､区分3(麻酔作用)","区分2(呼吸器)","分類できない","液体",49]
[493,"別表第９","79-09-4",null,"プロピオン酸","","","","",null,"","",10,null,"",null,null,null,null,74.08,"",1977,null,"区分外","区分3","分類対象外","分類できない","分類できない","区分1","区分1","分類できない","分類できない","分類できない","分類できない","分類できない","区分3(気道刺激性)","分類できない","分類できない","液体",141.1]
[494,"別表第９","71-23-8",null,"ｎ－プロピルアルコール","","","","",null,"","",100,null,"",null,null,null,null,60.09,"",2006,null,"区分外","区分外","分類対象外","分類できない","分類できない","区分外","区分1","分類できない","分類できない","分類できない","区分外","区分2","区分3(麻酔作用､気道刺激性)","分類できない","分類できない","液体",97]
[494,"別表第９","67-63-0",null,"イソプロピルアルコール",null,null,400,980,null,null,"1987",200,null,400,null,null,null,null,60.09,"",2001,null,"区分外","区分外","分類対象外","区分外","分類できない","区分外","区分2","分類できない","分類できない","分類できない","分類できない","区分2","区分1(中枢神経系､全身毒性)､区分3(気道刺激性)","区分1(血液系)､区分2(呼吸器､肝臓､脾臓)","分類できない","液体",82.3]
[495,"別表第９","75-55-8",null,"プロピレンイミン",0.2,0.45,null,null,"暫定","皮",2017,0.2,null,0.4,null,null,null,null,57.09,"Skin",2008,null,"区分2","区分2","分類対象外","区分2","分類できない","区分2","区分2","分類できない","分類できない","分類できない","区分2","分類できない","区分3(気道刺激性)","分類できない","分類できない","液体",63]
[496,"別表第９","107-98-2",null,"プロピレングリコールモノメチルエーテル","","","","",null,"","",50,null,100,null,null,null,null,90.12,"",2012,null,"区分外","区分外","分類対象外","区分4","分類できない","区分外","区分2","分類できない","分類できない","分類できない","分類できない","区分外","区分3(麻酔作用)","区分外","分類できない","液体",120]
[497,"別表第９","107-19-7",null,"２―プロピン―１―オール","","","","",null,"","",1,null,"",null,null,null,null,56.06,"Skin",1992,null,"区分2","区分1","分類対象外","区分2","分類できない","区分1","区分1","分類できない","区分外","区分2","分類できない","分類できない","区分3(麻酔作用)","区分1(肝臓､腎臓)","分類できない","液体",114]
["497-2","別表第９","115-07-1",null,"プロペン","","","","",null,"","",500,null,"",null,null,null,null,42.08,"",2005,null,"分類対象外","分類対象外","区分外","分類対象外","分類対象外","分類できない","分類できない","分類できない","分類できない","分類できない","分類できない","分類できない","区分3(麻酔作用)","区分外","分類対象外","気体",""]
[498,"別表第９","593-60-2",null,"ブロモエチレン","","","","",null,"","",0.5,null,"",null,null,null,null,106.96,"",1996,null,"分類対象外","分類対象外","分類できない","分類対象外","分類対象外","分類できない","区分2","分類できない","分類できない","区分2","区分1","分類できない","区分3(麻酔作用)","区分1(肝臓)","分類対象外","液体",15.6]
[499,"別表第９","151-67-7",null,"２―ブロモ―２―クロロ―１，１，１―トリフルオロエタン（別名ハロタン）","","","","",null,"","",50,null,"",null,null,null,null,197.39,"",1979,null,"分類できない","分類できない","分類対象外","区分4","分類できない","分類できない","区分2","分類できない","分類できない","分類できない","分類できない","区分2","区分1(心血管系､肝臓)､区分3(麻酔作用)","区分1(肝臓)","分類できない","液体",50]
[500,"別表第９","74-97-5",null,"ブロモクロロメタン","","","","",null,"","",200,null,"",null,null,null,null,129.38999999999999,"",2008,null,"区分外","区分外","分類対象外","区分4","分類できない","区分2","区分2","分類できない","分類できない","分類できない","分類できない","区分2","区分1(中枢神経系)､区分3(麻酔作用)","区分2(肝臓)","分類できない","液体",68]
[501,"別表第９","75-27-4",null,"ブロモジクロロメタン","","","","",null,"","","",null,"",null,null,null,null,"","","未設定(2017年現在）",null,"区分4","分類できない","分類対象外","分類できない","分類できない","分類できない","分類できない","分類できない","分類できない","区分外","区分2","区分外","分類できない","区分2(肝臓､腎臓､甲状腺)","分類できない","液体",88.4]
[502,"別表第９","314-40-9",null,"５―ブロモ―３―セカンダリ―ブチル―６―メチル―１，２，３，４―テトラヒドロピリミジン―２，４―ジオン（別名ブロマシル）","","","","",null,"","",null,10,"",null,null,null,null,261.11,"",1976,null,"区分4","区分外","分類対象外","分類できない","分類できない","区分3","区分2","分類できない","区分外","区分外","区分2","区分外","区分3(麻酔作用)","区分外","分類できない","固体",210]
[503,"別表第９","75-63-8",null,"ブロモトリフルオロメタン","","","","",null,"","",1000,null,"",null,null,null,null,148.91999999999999,"",1979,null,"分類対象外","分類対象外","分類できない","分類対象外","分類対象外","分類できない","区分2","分類できない","分類できない","分類できない","分類できない","分類できない","区分3(麻酔作用)","区分外","分類対象外","気体",""]
["503-2","別表第９","106-94-5",null,"１―ブロモプロパン",0.5,2.5,null,null,null,null,"2012",0.1,null,"",null,null,null,null,122.99,"",2013,null,"区分外","区分外","分類対象外","区分4","分類できない","区分外","区分2","分類できない","分類できない","分類できない","区分2","区分1","区分3(気道刺激性､麻酔作用)","区分1(神経系)､区分2(肝臓､呼吸器)","分類できない","液体",71]
[504,"別表第９","75-26-3",null,"２―ブロモプロパン",1,5,null,null,null,"皮","1999","",null,"",null,null,null,null,"","","未設定(2017年現在）",null,"分類できない","分類できない","分類対象外","区分外","分類できない","区分外","区分2","分類できない","分類できない","分類できない","分類できない","区分1","分類できない","区分1(血液系､精巣､卵巣)","分類できない","液体",59]
["504-2","別表第９","106-95-6",null,"３―ブロモ―１―プロペン（別名臭化アリル）","","","","",null,"","",0.1,null,0.2,null,null,null,null,120.99,"Skin",2011,null,"区分3","分類できない","分類対象外","区分3","分類できない","区分1","区分1","分類できない","分類できない","分類できない","分類できない","分類できない","区分3(気道刺激性)","分類できない","分類できない","液体",71.3]
[505,"別表第９","67-72-1",null,"ヘキサクロロエタン","","","","",null,"","",1,null,"",null,null,null,null,236.74,"Skin",1990,null,"区分5","区分外","分類対象外","分類できない","区分外","区分3","区分2","分類できない","区分外","分類できない","区分2","区分外","分類できない","区分2(腎臓､神経系)","分類できない","固体",183]
[506,"別表第９","60-57-1",null,"１，２，３，４，１０，１０―ヘキサクロロ―６，７―エポキシ―１，４，４ａ，５，６，７，８，８ａ―オクタヒドロ―エキソ―１，４―エンド―５，８―ジメタノナフタレン（別名ディルドリン）","","","","",null,"","",null,0.1,"",null,null,null,null,380.93,"Skin",2009,null,"区分1","区分1","分類対象外","分類できない","区分1","分類できない","分類できない","分類できない","分類できない","区分外","区分外","区分1","区分1(中枢神経系)","区分1(中枢神経系､肝臓)","分類できない","固体",330]
[507,"別表第９","72-20-8",null,"１，２，３，４，１０，１０―ヘキサクロロ―６，７―エポキシ―１，４，４ａ，５，６，７，８，８ａ―オクタヒドロ―エンド―１，４―エンド―５，８―ジメタノナフタレン（別名エンドリン）","","","","",null,"","",null,0.1,"",null,null,null,null,380.93,"Skin",1979,null,"区分2","区分1","分類対象外","分類できない","分類できない","区分外","分類できない","分類できない","分類できない","区分外","区分外","区分外","区分1(神経系､肝臓､腎臓)","区分1(神経系､肝臓)","分類できない","固体",245]
[508,"別表第９","608-73-1",null,"１，２，３，４，５，６―ヘキサクロロシクロヘキサン（別名リンデン）","","","","",null,"","","",null,"",null,null,null,null,"","","未設定(2017年現在）",null,"区分3","区分3","分類対象外","分類できない","区分3","分類できない","分類できない","分類できない","分類できない","区分外","区分2","区分2","区分1(神経系)､区分3(気道刺激性)","区分1(中枢神経系)､区分2(肝臓､腎臓)","分類できない","固体",288]
[509,"別表第９","77-47-4",null,"ヘキサクロロシクロペンタジエン","","","","",null,"","",0.01,null,"",null,null,null,null,272.75,"",1990,null,"区分4","区分3","分類対象外","区分1","分類できない","区分1","区分1","分類できない","区分1","分類できない","区分外","分類できない","区分1(呼吸器､肝臓､腎臓)､区分3(麻酔作用)","区分1(呼吸器)､区分2(腎臓)","分類できない","液体",239]
[510,"別表第９","1335-87-1",null,"ヘキサクロロナフタレン","","","","",null,"","",null,0.2,"",null,null,null,null,334.74,"Skin",1965,null,"分類できない","分類できない","分類対象外","分類対象外","分類できない","分類できない","分類できない","分類できない","分類できない","分類できない","分類できない","分類できない","分類できない","区分1(肝臓､皮膚)","分類できない","固体",344]
[511,"別表第９","115-28-6",null,"１，４，５，６，７，７―ヘキサクロロビシクロ［２，２，１］―５―ヘプテン―２，３―ジカルボン酸（別名クロレンド酸）","","","","",null,"","","",null,"",null,null,null,null,"","","未設定(2017年現在）",null,"区分4","分類できない","分類対象外","分類できない","分類できない","区分2","区分2","分類できない","分類できない","分類できない","区分2","分類できない","分類できない","区分外","分類できない","固体",""]
[512,"別表第９","309-00-2",null,"１，２，３，４，１０，１０―ヘキサクロロ―１，４，４ａ，５，８，８ａ―ヘキサヒドロ―エキソ―１，４―エンド―５，８―ジメタノナフタレン（別名アルドリン）","","","","",null,"","",null,0.05,"",null,null,null,null,364.93,"Skin",2006,null,"区分2","区分2","分類対象外","分類できない","区分1","区分3","区分2","分類できない","区分外","区分2","区分2","区分2","区分1(神経系)","区分1(神経系､肝臓､腎臓)","分類できない","固体",145]
[513,"別表第９","115-29-7",null,"ヘキサクロロヘキサヒドロメタノベンゾジオキサチエピンオキサイド（別名ベンゾエピン）","","","","",null,"","",null,0.1,"",null,null,null,null,406.95,"Skin",2008,null,"区分2","区分3","分類対象外","分類できない","区分1","区分外","区分外","分類できない","区分外","区分外","区分外","区分外","区分1(神経系)","区分1(腎臓)､区分2(肝臓)","分類できない","固体",340]
[514,"別表第９","118-74-1",null,"ヘキサクロロベンゼン","","","","",null,"","",null,2E-3,"",null,null,null,null,284.77999999999997,"Skin",1994,null,"区分外","分類できない","分類対象外","分類対象外","区分4","分類できない","分類できない","分類できない","分類できない","分類できない","区分2","区分1","分類できない","区分1(肝臓､皮膚､骨､甲状腺､神経系､腎臓､内分泌系)､区分2(免疫系)","分類できない","固体",323]
[515,"別表第９","121-82-4",null,"ヘキサヒドロ―１，３，５―トリニトロ―１，３，５―トリアジン（別名シクロナイト）","","","","",null,"","",null,0.5,"",null,null,null,null,222.26,"Skin",1994,null,"区分3","分類できない","分類対象外","分類できない","分類できない","区分3","分類できない","分類できない","分類できない","区分外","区分外","分類できない","区分1(神経系､肝臓､腎臓)","区分1(中枢神経系､造血系)､区分2(精巣)","分類できない","固体",276]
[516,"別表第９","684-16-2",null,"ヘキサフルオロアセトン","","","","",null,"","",0.1,null,"",null,null,null,null,166.02,"Skin",1986,null,"分類対象外","分類対象外","区分2","分類対象外","分類対象外","区分2","区分2","分類できない","分類できない","分類できない","分類できない","区分2","区分1(精巣､腎臓､肝臓､胸腺)､区分2(呼吸器)","区分1(精巣､腎臓､血液)","分類できない","気体",""]
["516-2","別表第９","13775-53-6",null,"ヘキサフルオロアルミン酸三ナトリウム","","","","",null,"","","",null,"",null,null,null,null,"","","未設定(2017年現在）",null,"区分外","分類できない","分類対象外","分類対象外","区分4","区分外","区分2","分類できない","分類できない","分類できない","分類できない","分類できない","区分2(呼吸器､肝臓)","区分1(神経系､骨､歯､肺､肝臓､腎臓､胃)","分類できない","固体",""]
["516-3","別表第９","116-15-4",null,"ヘキサフルオロプロペン","","","","",null,"","",0.1,null,"",null,null,null,null,150.02000000000001,"",2009,null,"分類対象外","分類対象外","区分4","分類対象外","分類対象外","分類できない","分類できない","分類できない","分類できない","分類できない","分類できない","分類できない","区分1(中枢神経系､呼吸器､腎臓)","区分1(腎臓)","分類対象外","気体",""]
[517,"別表第９","680-31-9",null,"ヘキサメチルホスホリックトリアミド","","","","",null,"","","",null,"",null,null,null,null,179.2,"Skin",1990,null,"区分5","区分5","分類対象外","分類できない","分類できない","区分2","分類できない","分類できない","分類できない","区分1","区分2","区分2","区分2(呼吸器系､腎臓､中枢神経系)","区分1(呼吸器)､区分2(腎臓)","分類できない","液体",232]
[518,"別表第９","124-09-4",null,"ヘキサメチレンジアミン","","","","",null,"","",0.5,null,"",null,null,null,null,116.21,"",1990,null,"区分4","区分4","分類対象外","分類できない","分類できない","区分1","区分1","分類できない","区分1","区分外","分類できない","区分2","区分1(呼吸器)､区分2(全身毒性)","区分1(気道)","分類できない","固体",205]
[519,"別表第９","822-06-0",null,"ヘキサメチレン＝ジイソシアネート",5.0000000000000001E-3,3.4000000000000002E-2,null,null,null,null,"1995",5.0000000000000001E-3,null,"",null,null,null,null,168.22,"",1985,null,"区分4","区分3","分類対象外","区分1","分類できない","区分1","区分1","区分1","区分1","分類できない","分類できない","分類できない","区分1(呼吸器)","区分1(呼吸器)","分類できない","液体",213]
[520,"別表第９","110-54-3","他","ヘキサン",40,140,null,null,null,"皮","1985","",null,"",null,null,null,null,"","","",null,"区分外","分類できない","分類対象外","区分外","分類できない","区分2","区分2","分類できない","分類できない","区分外","分類できない","区分2","区分3(麻酔作用､気道刺激性)","区分1(神経系)","区分1","液体",69]
[520,"別表第９","110-54-3",null,"ｎ－ヘキサン",40,140,null,null,null,"皮","1985",50,null,"",null,null,null,null,86.18,"Skin",1996,null,"区分外","分類できない","分類対象外","区分外","分類できない","区分2","区分2","分類できない","分類できない","区分外","分類できない","区分2","区分3(麻酔作用､気道刺激性)","区分1(神経系)","区分1","液体",69]
[521,"別表第９","592-41-6",null,"１―ヘキセン","","","","",null,"","",50,null,"",null,null,null,null,84.16,"",1999,null,"区分外","区分外","分類対象外","区分外","分類できない","区分外","区分外","分類できない","区分外","区分外","分類できない","区分外","区分3(麻酔作用､気道刺激性)","区分外","区分1","液体",63]
[522,"別表第９","3068-88-0","他","ベータ―ブチロラクトン","","","","",null,"","","",null,"",null,null,null,null,"","","未設定(2017年現在）",null,"区分外","区分外","分類対象外","分類できない","分類できない","区分2","分類できない","分類できない","分類できない","区分2","区分2","分類できない","分類できない","分類できない","分類できない","液体",71]
[523,"別表第９","57-57-8",null,"ベータ―プロピオラクトン","","","","",null,"","",0.5,null,"",null,null,null,null,72.06,"",1992,null,"区分3","分類できない","分類対象外","区分1","分類できない","区分2","区分1","分類できない","分類できない","区分1","区分2","分類できない","区分3(気道刺激性)","分類できない","分類できない","液体",155]
[524,"別表第９","1024-57-3",null,"１，４，５，６，７，８，８―ヘプタクロロ―２，３―エポキシ―３ａ，４，７，７ａ―テトラヒドロ―４，７―メタノ―１Ｈ―インデン（別名ヘプタクロルエポキシド）","","","","",null,"","",null,0.05,"",null,null,null,null,389.4,"Skin",1990,null,"区分2","分類できない","分類対象外","分類できない","分類できない","分類できない","分類できない","分類できない","分類できない","区分外","区分2","区分1","分類できない","区分1(肝臓)","分類できない","固体",""]
[525,"別表第９","76-44-8",null,"１，４，５，６，７，８，８―ヘプタクロロ―３ａ，４，７，７ａ―テトラヒドロ―４，７―メタノ―１Ｈ―インデン（別名ヘプタクロル）","","","","",null,"","",null,0.05,"",null,null,null,null,373.32,"Skin",1990,null,"区分3","区分2","分類対象外","分類できない","分類できない","区分外","分類できない","分類できない","分類できない","区分外","区分2","区分1","区分1(肝臓､神経系)","区分1(肝臓､神経系､腎臓)","分類できない","固体",135]
[526,"別表第９","142-82-5","他","ヘプタン",200,820,null,null,null,null,"1988",400,null,500,null,null,null,null,100.2,"",1979,null,"区分外","区分外","分類対象外","区分外","分類できない","区分2","区分2","分類できない","分類できない","分類できない","分類できない","分類できない","区分3(気道刺激性､麻酔作用)","区分1(神経系)","区分1","液体",98.4]
[527,"別表第９","7727-54-0",null,"ペルオキソ二硫酸アンモニウム","","","","",null,"","",null,0.1,"",null,null,null,null,"","",1993,null,"区分4","区分外","分類対象外","分類できない","分類できない","区分2","区分2","区分1","区分1","分類できない","分類できない","分類できない","区分2(中枢神経系)､区分3(気道刺激性)","区分2(呼吸器系)","分類できない","固体",""]
[528,"別表第９","7727-21-1",null,"ペルオキソ二硫酸カリウム","","","","",null,"","",null,0.1,"",null,null,null,null,"","",1993,null,"区分4","区分外","分類対象外","分類できない","区分外","区分2","分類できない","区分1","区分1","分類できない","分類できない","分類できない","区分2(全身毒性)､区分3(気道刺激性)","分類できない","分類できない","固体",""]
[529,"別表第９","7775-27-1",null,"ペルオキソ二硫酸ナトリウム","","","","",null,"","",null,0.1,"",null,null,null,null,"","",1993,null,"区分4","区分外","分類対象外","分類対象外","区分外","区分外","区分外","区分1","区分1","分類できない","分類できない","分類できない","区分2(全身毒性)､区分3(気道刺激性)","分類できない","分類できない","固体",""]
[530,"別表第９","335-67-1",null,"ペルフルオロオクタン酸",null,5.0000000000000001E-3,null,null,null,null,"2008","",null,"",null,null,null,null,"","","未設定(2017年現在）",null,"区分4","分類できない","分類対象外","分類対象外","分類できない","区分2","区分1","分類できない","分類できない","分類できない","区分2","区分1","区分3(気道刺激性､麻酔作用)","区分1(中枢神経系､肝臓)､区分2(骨髄)","分類できない","固体",189]
[530,"別表第９","3825-26-1",null,"ペルフルオロオクタン酸アンモニウム塩","","","","",null,"","",null,0.01,"",null,null,null,null,431,"Skin",1992,null,"区分4","区分5","分類対象外","分類できない","分類できない","区分外","区分2","分類できない","分類できない","分類できない","区分2","区分外","分類できない","区分1(肝臓､内分泌系)","分類できない","固体",125]
[531,"別表第９","71-43-2",null,"ベンゼン",1,null,null,null,"過剰発がん生涯リスクレベル　103","皮","1997",0.5,null,2.5,null,null,null,null,78.11,"Skin",1996,null,"区分4","区分外","分類対象外","区分外","分類できない","区分2","区分2","分類できない","分類できない","区分2","区分1","区分2","区分1(呼吸器)､区分3(麻酔作用)","区分1(中枢神経系､造血系)","区分1","液体",80]
[532,"別表第９","552-30-7",null,"１，２，４―ベンゼントリカルボン酸１，２―無水物",null,5.0000000000000001E-4,null,4.0000000000000001E-3,null,"皮","2015",null,5.0000000000000001E-4,"",2E-3,null,null,null,192.12,"Skin",2007,null,"区分外","区分外","分類対象外","分類対象外","区分外","区分外","区分1","区分1","区分1","分類できない","分類できない","分類できない","区分1(呼吸器)","区分1(呼吸器､血液系･免疫系)","分類できない","固体",390]
[533,"別表第９","56-55-3",null,"ベンゾ［ａ］アントラセン","","","","",null,"","","",null,"",null,null,null,null,228.3,"",1990,null,"分類できない","分類できない","分類対象外","分類できない","分類できない","分類できない","分類できない","分類できない","分類できない","区分2","区分2","分類できない","分類できない","分類できない","分類できない","固体",438]
[534,"別表第９","50-32-8",null,"ベンゾ［ａ］ピレン","","","","",null,"","","",null,"",null,null,null,null,252.3,"",1990,null,"分類できない","分類できない","分類対象外","分類できない","分類できない","分類できない","分類できない","分類できない","分類できない","区分1","区分1","区分1","分類できない","区分2(造血系)","分類できない","固体",495]
[535,"別表第９","271-89-6",null,"ベンゾフラン","","","","",null,"","","",null,"",null,null,null,null,"","","未設定(2017年現在）",null,"分類できない","分類できない","分類対象外","分類できない","分類できない","分類できない","分類できない","分類できない","分類できない","分類できない","区分2","分類できない","分類できない","区分2(肝臓)","分類できない","液体",174]
[536,"別表第９","205-99-2",null,"ベンゾ［ｅ］フルオラセン","","","","",null,"","","",null,"",null,null,null,null,252.3,"",1990,null,"分類できない","分類できない","分類対象外","分類できない","分類できない","分類できない","分類できない","分類できない","分類できない","区分外","区分1","分類できない","分類できない","分類できない","分類できない","固体",481]
[537,"別表第９","1321-64-8",null,"ペンタクロロナフタレン","","","","",null,"","",null,0.5,"",null,null,null,null,300.39999999999998,"Skin",1970,null,"区分4","分類できない","分類対象外","分類対象外","分類できない","分類できない","分類できない","分類できない","分類できない","分類できない","分類できない","分類できない","分類できない","区分1(肝臓､皮膚)","分類できない","固体",327]
[538,"別表第９","82-68-8",null,"ペンタクロロニトロベンゼン","","","","",null,"","",null,0.5,"",null,null,null,null,295.36,"",1988,null,"区分4","区分外","分類対象外","分類対象外","分類できない","区分外","区分外","分類できない","区分1","分類できない","分類できない","区分外","区分2(血液系)","区分1(肝臓)","分類できない","固体",328]
[539,"別表第９","87-86-5",null,"ペンタクロロフェノール（別名ＰＣＰ）",null,0.5,null,null,null,"皮","1989","",0.5,"",1,null,null,null,266.35000000000002,"Skin",2013,null,"区分3","区分1","分類対象外","分類できない","分類できない","区分2","区分2","分類できない","分類できない","区分外","区分2","区分1","区分1(中枢神経系､心臓)､区分3(気道刺激性)","区分1(血液系､神経系､呼吸器､心臓､肝臓､腎臓)","分類できない","固体",309]
[539,"別表第９","131-52-2",null,"ペンタクロロフェノール（別名ＰＣＰ）ナトリウム塩","","","","",null,"","","",null,"",null,null,null,null,"","","未設定(2017年現在）",null,"区分3","区分2","分類対象外","分類対象外","区分2","区分2","区分2","分類できない","分類できない","区分外","区分2","区分2","区分2(肺､心血管系､中枢神経系､肝臓､腎臓)","区分1(皮膚､中枢神経系､肝臓､腎臓)､区分2(中枢神経系)","分類できない","固体",""]
[540,"別表第９","110-62-3",null,"１―ペンタナール","","","","",null,"","",50,null,"",null,null,null,null,86.13,"",1984,null,"区分外","区分外","分類対象外","区分4","分類できない","区分1","区分1","分類できない","分類できない","分類できない","分類できない","分類できない","区分3(気道刺激性､麻酔作用)","分類できない","分類できない","液体",103]
[541,"別表第９","382-21-8",null,"１，１，３，３，３―ペンタフルオロ―２―（トリフルオロメチル）―１―プロペン（別名ＰＦＩＢ）","","","","",null,"","","",null,null,null,0.01,null,null,200.04,"",1989,null,"分類対象外","分類対象外","区分1","分類対象外","分類対象外","分類できない","分類できない","分類できない","分類できない","分類できない","分類できない","分類できない","区分1(呼吸器)","区分1(呼吸器)","分類対象外","気体",""]
[542,"別表第９","19624-22-7",null,"ペンタボラン","","","","",null,"","",5.0000000000000001E-3,null,1.4999999999999999E-2,null,null,null,null,63.17,"",1970,null,"分類できない","分類できない","分類対象外","区分1","分類できない","区分2","区分1","分類できない","分類できない","分類できない","分類できない","分類できない","区分1(中枢神経系､肝臓)､区分3(気道刺激性､麻酔作用)","区分1(中枢神経系)","分類できない","液体",60]
[543,"別表第９","109-66-0","他","ペンタン",300,880,null,null,null,null,"1987",1000,null,"",null,null,null,null,72.150000000000006,"",2013,null,"区分外","区分外","分類対象外","区分外","分類できない","区分外","区分2","分類できない","区分外","分類できない","分類できない","分類できない","区分3(気道刺激性､麻酔作用)","分類できない","区分1","液体",36]
[544,"別表第９","1330-43-4",null,"ほう酸ナトリウム","","","","",null,"","",null,2,null,6,null,null,null,"","",2004,null,"区分外","分類できない","分類対象外","分類対象外","分類できない","分類できない","区分2","分類できない","分類できない","分類できない","分類できない","区分1","区分1(中枢神経系､消化管)､区分3(気道刺激性)","区分1(呼吸器)､区分2(生殖器(男性))","分類できない","固体",1573]
[544,"別表第９","10043-35-3","30年7月追加物質","ほう酸",null,null,null,null,null,null,null,null,"2",null,"6",null,null,null,null,null,"2004",null,"区分外","区分外","分類対象外","分類対象外","分類できない","区分2","区分2","分類できない","分類できない","分類できない","分類できない","区分1","区分1(消化管､中枢神経系)､区分3(気道刺激性)","分類できない","分類できない","固体",168]
[545,"別表第９","75-44-5",null,"ホスゲン",0.1,0.4,null,null,null,null,"1969",0.1,null,"",null,null,null,null,98.92,"",1992,null,"分類できない","分類できない","区分1","分類対象外","分類対象外","区分2","区分2","分類できない","分類できない","区分外","分類できない","分類できない","区分1(呼吸器)","区分1(呼吸器)","分類対象外","気体",""]
["545-2","別表第９","65997-15-1","30年7月追加物質","ポルトランドセメント","1",null,null,null,"吸入性粉じんとして",null,"2004",null,"1",null,null,null,null,null,null,null,"2009",null,"分類できない","分類できない","分類対象外","分類対象外","分類できない","分類できない","分類できない","分類できない","分類できない","分類できない","分類できない","分類できない","区分3(気道刺激性)","区分1(呼吸器)","分類できない","固体"]
[546,"別表第９","3570-75-0",null,"（２―ホルミルヒドラジノ）―４―（５―ニトロ―２―フリル）チアゾール","","","","",null,"","","",null,"",null,null,null,null,"","","未設定(2017年現在）",null,"区分4","分類できない","分類対象外","分類できない","分類できない","分類できない","分類できない","分類できない","分類できない","分類できない","区分2","分類できない","分類できない","分類できない","分類できない","固体",""]
[547,"別表第９","75-12-7",null,"ホルムアミド","","","","",null,"","",10,null,"",null,null,null,null,45.04,"Skin",1985,null,"区分外","区分外","分類対象外","分類できない","区分外","区分外","区分2","分類できない","分類できない","分類できない","分類できない","区分1","分類できない","分類できない","分類できない","液体",210]
[548,"別表第９","50-00-0",null,"ホルムアルデヒド",0.1,0.12,0.2,0.24,null,null,"2007",0.1,null,0.3,null,null,null,null,30.03,"",2016,null,"区分4","区分3","区分2","分類対象外","分類できない","区分2","区分2","区分1","区分1","区分2","区分1","分類できない","区分1(神経系､呼吸器)","区分1(中枢神経系､呼吸器)","分類対象外","液体",98]
[549,"別表第９","632-99-5",null,"マゼンタ","","","","",null,"","","",null,"",null,null,null,null,"","","未設定(2017年現在）",null,"分類できない","分類できない","分類対象外","分類できない","分類できない","分類できない","分類できない","分類できない","分類できない","分類できない","区分2","分類できない","分類できない","分類できない","分類できない","固体",""]
[550,"別表第９","7439-96-5",null,"マンガン",null,0.2,null,null,null,null,"2008","",0.02,"",null,null,null,null,54.94,"",2012,null,"区分外","分類できない","分類対象外","分類できない","分類できない","区分3","区分2","分類できない","分類できない","分類できない","区分外","区分1","区分1(呼吸器)","区分1(呼吸器､神経系)","分類できない","固体",1962]
[550,"別表第９","1313-13-9","追加（2018年9月）","二酸化マンガン（Ⅳ）",null,0.2,null,null,"マンガンとして",null,null,null,null,null,null,null,null,null,null,null,null,null,"区分外","区分外","分類対象外","分類対象外","分類できない","分類できない","分類できない","分類できない","分類できない","区分2","分類できない","分類できない","区分1(呼吸器)","区分1(神経系､呼吸器)","分類できない","固体"]
[550,"別表第９","598-62-9","追加（2018年9月）","炭酸マンガン（Ⅱ）",null,0.2,null,null,"マンガンとして",null,null,null,null,null,null,null,null,null,null,null,null,null,"分類できない","分類できない","分類対象外","分類対象外","分類できない","分類できない","分類できない","分類できない","分類できない","分類できない","分類できない","区分1","区分1(呼吸器)","区分1(神経系､呼吸器)","分類できない","固体"]
[550,"別表第９","7785-87-7","追加（2018年9月）","硫酸マンガン（Ⅱ）",null,0.2,null,null,"マンガンとして",null,null,null,null,null,null,null,null,null,null,null,null,null,"区分4","分類できない","分類対象外","分類対象外","分類できない","分類できない","分類できない","分類できない","分類できない","区分2","分類できない","区分1","分類できない","区分1(神経系､呼吸器)","分類できない","固体","850"]
[550,"別表第９","10034-96-5","追加（2018年9月）","硫酸マンガン一水和物",null,0.2,null,null,"マンガンとして",null,null,null,null,null,null,null,null,null,null,null,null,null,"分類できない","分類できない","分類対象外","分類できない","分類できない","分類できない","分類できない","分類できない","分類できない","区分2","分類できない","分類できない","分類できない","区分外","分類できない","固体"]
[550,"別表第９","7722-64-7","追加（2018年9月）","過マンガン酸カリウム",null,0.2,null,null,"マンガンとして",null,null,null,null,null,null,null,null,null,null,null,null,null,"区分4","分類できない","分類対象外","分類対象外","分類できない","区分1","区分1","分類できない","分類できない","区分2","分類できない","区分2","区分3(気道刺激性)","区分1(神経系､呼吸器)","分類できない","固体"]
[550,"別表第９","23414-72-4","追加（2018年9月）","過マンガン酸亜鉛",null,0.2,null,null,"マンガンとして",null,null,null,null,null,null,null,null,null,null,null,null,null,"分類できない","分類できない","分類対象外","分類できない","分類できない","分類できない","分類できない","分類できない","分類できない","分類できない","分類できない","分類できない","分類できない","区分1(中枢神経系､肺)","分類できない","固体"]
[550,"別表第９","25868-86-4","追加（2018年9月）","ケイフッ化マンガン",null,0.2,null,null,"マンガンとして",null,null,null,null,null,null,null,null,null,null,null,null,null,"分類できない","分類できない","分類対象外","分類できない","分類できない","分類できない","区分2","分類できない","分類できない","分類できない","分類できない","分類できない","区分3(気道刺激性)","区分1(骨)","分類できない","固体"]
[551,"別表第９","64742-47-8",null,"ミネラルスピリット（ミネラルシンナー、ペトロリウムスピリット、ホワイトスピリット及びミネラルターペンを含む。）","","","","",null,"","",null,null,"",null,null,null,null,"","","未設定(2017年現在）",null,"区分外","分類できない","分類対象外","分類できない","分類できない","区分外","区分外","分類できない","分類できない","分類できない","区分外","分類できない","分類できない","分類できない","分類できない","液体",""]
[552,"別表第９","108-24-7",null,"無水酢酸",null,null,5,21,null,null,"1990",1,null,3,null,null,null,null,102.09,"",2010,null,"区分4","区分5","分類対象外","区分3","分類できない","区分1","区分1","分類できない","分類できない","区分外","分類できない","分類できない","区分1(呼吸器)､区分3(麻酔作用)","区分1(呼吸器)","分類できない","液体",139]
[553,"別表第９","85-44-9",null,"無水フタル酸",null,null,0.33,2,null,null,"1998",null,2E-3,"",5.0000000000000001E-3,null,null,null,148.12,"Skin",2016,null,"区分4","区分外","分類対象外","分類対象外","分類できない","区分外","区分2","区分1","区分1","分類できない","分類できない","分類できない","区分3(気道刺激性､麻酔作用)","区分1(呼吸器)","分類できない","固体",295]
[554,"別表第９","108-31-6",null,"無水マレイン酸",0.1,0.4,0.2,0.8,null,null,"2015",null,0.01,"",null,null,null,null,98.06,"",2010,null,"区分4","区分外","分類対象外","分類対象外","分類できない","区分1","区分1","区分1 ","区分1","分類できない","分類できない","区分外","区分1(呼吸器､消化管､肝臓)","区分1(呼吸器､血液系)､区分2(腎臓)","分類できない","固体",202]
[555,"別表第９","1477-55-0",null,"メタ―キシリレンジアミン","","","","",null,"","","",null,null,null,null,0.1,null,136.19999999999999,"Skin",1992,null,"区分4","区分4","分類対象外","分類できない","区分3","区分1","区分1","分類できない","区分1","区分外","分類できない","分類できない","区分1(肺)､区分2(全身毒性)","分類できない","分類できない","液体",273]
[556,"別表第９","79-41-4",null,"メタクリル酸",2,7,null,null,null,null,"2012",20,null,"",null,null,null,null,86.09,"",1992,null,"区分外","区分3","分類対象外","分類できない","区分外","区分1","区分1","分類できない","区分外","分類できない","分類できない","分類できない","区分1(呼吸器)","区分1(呼吸器)","区分1","液体",159]
[557,"別表第９","80-62-6",null,"メタクリル酸メチル",2,8.3000000000000007,null,null,null,null,"2012",50,null,100,null,null,null,null,100.13,"",1992,null,"区分外","区分外","分類対象外","区分4","分類できない","区分2","区分2","区分1","区分1","分類できない","分類できない","分類できない","区分1(呼吸器)､区分3(麻酔作用)","区分1(神経系､呼吸器)","分類できない","液体",100]
[558,"別表第９","126-98-7",null,"メタクリロニトリル","","","","",null,"","",1,null,"",null,null,null,null,67.09,"Skin",2010,null,"区分3","区分3","分類対象外","区分2","区分外","区分3","区分2","分類できない","分類できない","区分外","分類できない","区分2","区分1(中枢神経系)","区分1(中枢神経系)､区分2(血液系､鼻腔(嗅上皮)､肝臓)","分類できない","液体",90.3]
[559,"別表第９","626-17-5",null,"メタ―ジシアノベンゼン","","","","",null,"","",null,5,"",null,null,null,null,128.13999999999999,"",2008,null,"区分4","分類できない","分類対象外","分類できない","分類できない","区分外","区分外","分類できない","分類できない","分類できない","分類できない","分類できない","分類できない","区分2(肝臓､腎臓)","分類できない","固体",162]
[560,"別表第９","67-56-1",null,"メタノール",200,260,null,null,null,"皮","1963",200,null,250,null,null,null,null,32.04,"Skin",2008,null,"区分4","区分外","分類対象外","区分外","分類できない","分類できない","区分2","分類できない","区分外","区分外","分類できない","区分1","区分1(中枢神経系､視覚器､全身毒性)区分3(麻酔作用)","区分1(中枢神経系､視覚器)","分類できない","液体",65]
[561,"別表第９","62-50-0",null,"メタンスルホン酸エチル","","","","",null,"","","",null,"",null,null,null,null,"","","未設定(2017年現在）",null,"区分4","分類できない","分類対象外","分類できない","分類できない","分類できない","分類できない","分類できない","分類できない","区分1","区分2","区分2","分類できない","分類できない","分類できない","液体",213]
[562,"別表第９","66-27-3",null,"メタンスルホン酸メチル","","","","",null,"","","",null,"",null,null,null,null,"","","未設定(2017年現在）",null,"区分3","分類できない","分類対象外","分類できない","分類できない","分類できない","分類できない","分類できない","分類できない","区分1","区分1","区分2","分類できない","分類できない","分類できない","液体",203]
[563,"別表第９","109-87-5",null,"メチラール","","","","",null,"","",1000,null,"",null,null,null,null,76.099999999999994,"",1970,null,"分類できない","分類できない","分類対象外","区分外","分類できない","区分2","区分2","分類できない","分類できない","分類できない","分類できない","分類できない","区分3(気道刺激性､麻酔作用)","分類できない","分類できない","液体",42]
[564,"別表第９","74-99-7",null,"メチルアセチレン","","","","",null,"","",1000,null,"",null,null,null,null,40.07,"",1956,null,"分類対象外","分類対象外","区分外","分類対象外","分類対象外","分類できない","分類できない","分類できない","分類できない","分類できない","分類できない","分類できない","区分3(麻酔作用､気道刺激性)","分類できない","分類対象外","気体",""]
[565,"別表第９","100-61-8",null,"Ｎ―メチルアニリン","","","","",null,"","",0.5,null,"",null,null,null,null,107.15,"Skin",1992,null,"区分4","分類できない","分類対象外","分類できない","分類できない","分類できない","分類できない","分類できない","分類できない","分類できない","分類できない","分類できない","区分1(血液系､腎臓)､区分2(神経系)","区分1(血液系､呼吸器､肝臓､腎臓)","分類できない","液体",194]
[566,"別表第９","2784-94-3",null,"２，２′―［［４―（メチルアミノ）―３―ニトロフェニル］アミノ］ジエタノール（別名ＨＣブルーナンバー１）","","","","",null,"","","",null,"",null,null,null,null,"","","未設定(2017年現在）",null,"分類できない","分類できない","分類対象外","分類できない","分類できない","分類できない","分類できない","分類できない","分類できない","区分2","区分2","分類できない","分類できない","分類できない","分類できない","固体",""]
[567,"別表第９","299-86-5",null,"Ｎ―メチルアミノホスホン酸Ｏ―（４―ターシャリ―ブチル―２―クロロフェニル）―Ｏ―メチル（別名クルホメート）","","","","",null,"","",null,5,"",null,null,null,null,291.70999999999998,"",1971,null,"区分4","区分4","分類対象外","分類できない","分類できない","区分3","区分2","分類できない","分類できない","分類できない","区分外","分類できない","区分2(神経系)､区分3(気道刺激性)","分類できない","分類できない","固体",117]
[568,"別表第９","74-89-5",null,"メチルアミン",10,13,null,null,null,null,"1979",5,null,15,null,null,null,null,31.06,"",2012,null,"区分3","分類できない","区分4","分類対象外","分類対象外","区分1","区分1","分類できない","分類できない","分類できない","分類できない","分類できない","区分1(呼吸器系)","区分2(呼吸器系､肝臓)","分類対象外","気体",""]
[569,"別表第９","108-10-1",null,"メチルイソブチルケトン",50,200,null,null,null,null,"1984",20,null,75,null,null,null,null,100.16,"",2009,null,"区分外","区分外","分類対象外","区分3","分類できない","区分外","区分2","分類できない","分類できない","分類できない","区分2","分類できない","区分3(気道刺激性､麻酔作用)","区分1(中枢神経系)","分類できない","液体",117]
[570,"別表第９","78-93-3",null,"メチルエチルケトン",200,590,null,null,null,null,"1964",200,null,300,null,null,null,null,72.099999999999994,"",1992,null,"区分外","区分外","分類対象外","区分4","分類できない","区分2","区分2","分類できない","分類できない","分類できない","分類できない","分類できない","区分2(腎臓)､区分3(気道刺激性､麻酔作用)","区分1(神経系)","分類できない","液体",80]
[571,"別表第９","114-26-1",null,"Ｎ―メチルカルバミン酸２―イソプロピルオキシフェニル（別名プロポキスル）","","","","",null,"","",null,0.5,"",null,null,null,null,209.24,"",2015,null,"区分3","区分外","分類対象外","分類対象外","分類できない","区分外","区分2","分類できない","分類できない","区分2","区分2","区分2","区分1(神経系､循環器系)､区分3(麻酔作用)","区分2(神経系)","分類できない","固体",""]
[572,"別表第９","1563-66-2",null,"Ｎ―メチルカルバミン酸２，３―ジヒドロ―２，２―ジメチル―７―ベンゾ［ｂ］フラニル（別名カルボフラン）","","","","",null,"","",null,0.1,"",null,null,null,null,221.3,"",2001,null,"区分1","区分5","分類対象外","分類できない","区分1","分類できない","分類できない","分類できない","分類できない","区分2","区分外","区分外","区分1(神経系)","区分1(神経系)､区分2(精巣)","分類できない","固体",150]
[573,"別表第９","3766-81-2",null,"Ｎ―メチルカルバミン酸２―セカンダリ―ブチルフェニル（別名フェノブカルブ）",null,5,null,null,null,"皮","1989","",null,"",null,null,null,null,"","","未設定(2017年現在）",null,"区分4","区分外","分類対象外","分類できない","分類できない","区分外","区分外","分類できない","区分外","区分外","区分外","区分外","区分1(神経系)","区分外","分類できない","固体",115]
[574,"別表第９","25639-42-3","他","メチルシクロヘキサノール",50,230,null,null,null,null,"1980",50,null,"",null,null,null,null,114.19,"",2005,null,"区分4","区分外","分類対象外","分類できない","分類できない","区分2","分類できない","分類できない","分類できない","分類できない","分類できない","分類できない","区分3(麻酔作用)","分類できない","分類できない","液体",174]
[575,"別表第９","1331-22-2",null,"メチルシクロヘキサノン",50,230,null,null,null,"皮","1987","",null,"",null,null,null,null,"","","",null,"分類できない","分類できない","分類対象外","分類できない","分類できない","区分2","区分2","分類できない","分類できない","分類できない","分類できない","分類できない","区分3(気道刺激性､麻酔作用)","分類できない","区分2","液体",163]
[575,"別表第９","583-60-8",null,"o－メチルシクロヘキサノン",50,230,null,null,null,"皮","1987","50",null,"75",null,null,null,null,"112.17","Skin","1970",null,"区分4","区分4","分類対象外","区分4","分類できない","区分外","区分2","分類できない","分類できない","分類できない","分類できない","分類できない","区分3(気道刺激性､麻酔作用)","分類できない","分類できない","液体",163]
[576,"別表第９","108-87-2",null,"メチルシクロヘキサン",400,1600,null,null,null,null,"1986",400,null,"",null,null,null,null,98.19,"",1962,null,"区分4","区分外","分類対象外","区分外","分類できない","区分3","区分2","分類できない","分類できない","分類できない","分類できない","分類できない","区分3(麻酔作用)","分類できない","区分1","液体",101]
[577,"別表第９","12108-13-3",null,"２―メチルシクロペンタジエニルトリカルボニルマンガン","","","","",null,"","",null,0.2,"",null,null,null,"as Mn",218.1,"Skin",1970,null,"区分2","区分3","分類対象外","区分1","分類できない","区分3","区分外","分類できない","分類できない","区分外","分類できない","区分外","区分1(肺)､区分3(麻酔作用)","区分2(肝臓､腎臓)","分類できない","液体",231.7]
[578,"別表第９","534-52-1",null,"２―メチル―４，６―ジニトロフェノール","","","","",null,"","",null,0.2,"",null,null,null,null,198.13,"Skin",1979,null,"区分2","区分2","分類対象外","分類できない","区分2","区分2","区分1","分類できない","分類できない","区分1","分類できない","区分2","区分1(神経系､肝臓)､区分2(呼吸器)","区分1(神経系､呼吸器､肝臓､腎臓)､区分2(胸腺､脾臓)","分類できない","固体",312]
[579,"別表第９","148-01-6",null,"２―メチル―３，５―ジニトロベンズアミド（別名ジニトルミド）","","","","",null,"","",null,1,"",null,null,null,null,225.16,"",2006,null,"区分4","分類できない","分類対象外","分類できない","分類できない","区分2","分類できない","分類できない","分類できない","分類できない","区分外","分類できない","分類できない","分類できない","分類できない","固体",""]
[580,"別表第９","1634-04-4",null,"メチル―ターシャリ―ブチルエーテル（別名ＭＴＢＥ）","","","","",null,"","",50,null,"",null,null,null,null,88.17,"",1999,null,"区分外","区分外","分類対象外","区分外","分類できない","区分2","区分2","分類できない","区分外","分類できない","分類できない","分類できない","区分3(気道刺激性､麻酔作用)","分類できない","分類できない","液体",55]
[581,"別表第９","41814-78-2",null,"５―メチル―１，２，４―トリアゾロ［３，４―ｂ］ベンゾチアゾール（別名トリシクラゾール）",null,3,null,null,null,null,"1990","",null,"",null,null,null,null,"","","未設定(2017年現在）",null,"区分3","区分外","分類対象外","分類できない","分類できない","区分外","区分外","分類できない","区分外","区分外","区分外","分類できない","分類できない","区分2(肝臓)","分類できない","固体",280]
[582,"別表第９","97-56-3",null,"２―メチル―４―（２―トリルアゾ）アニリン","","","","",null,"","","",null,"",null,null,null,null,"","","未設定(2017年現在）",null,"分類できない","分類できない","分類対象外","分類できない","分類できない","分類できない","分類できない","分類できない","区分1","区分1","区分2","分類できない","分類できない","分類できない","分類できない","固体",""]
["582-2","別表第９","90-12-0",null,"１－メチルナフタレン","","","","",null,"","",0.5,null,"",null,null,null,null,142.19999999999999,"Skin",2006,null,"区分4","区分外","分類対象外","分類できない","分類できない","区分外","区分2","分類できない","分類できない","分類できない","分類できない","分類できない","区分3(気道刺激性､麻酔作用)","区分2(肺)","分類できない","液体",245]
["582-2","別表第９","91-57-6",null,"２－メチルナフタレン","","","","",null,"","",0.5,null,"",null,null,null,null,142.19999999999999,"Skin",2006,null,"区分外","区分外","分類対象外","分類対象外","分類できない","区分外","区分2","分類できない","分類できない","分類できない","分類できない","分類できない","区分3(気道刺激性､麻酔作用)","区分2(肺)","分類できない","固体",241]
["582-3","別表第９","99-55-8",null,"２―メチル―５―ニトロアニリン","","","","",null,"","","",1,"",null,null,null,null,152.16,"",2006,null,"区分4","分類できない","分類対象外","分類対象外","分類できない","分類できない","分類できない","分類できない","分類できない","区分2","区分2","分類できない","区分1(血液系)","区分1(肝臓)","分類できない","固体",""]
[583,"別表第９","129-15-7",null,"２―メチル―１―ニトロアントラキノン","","","","",null,"","","",null,"",null,null,null,null,"","","未設定(2017年現在）",null,"分類できない","分類できない","分類対象外","分類できない","分類できない","分類できない","分類できない","分類できない","分類できない","分類できない","区分2","分類できない","分類できない","区分2(胃)","分類できない","固体",""]
[584,"別表第９","615-53-2",null,"Ｎ―メチル―Ｎ―ニトロソカルバミン酸エチル","","","","",null,"","","",null,"",null,null,null,null,"","","未設定(2017年現在）",null,"区分3","分類できない","分類対象外","分類できない","分類できない","区分2","区分2","分類できない","分類できない","区分2","区分2","分類できない","区分3(気道刺激性)","分類できない","分類できない","液体",62]
[585,"別表第９","591-78-6",null,"メチル―ノルマル―ブチルケトン",5,20,null,null,null,"皮","1984",5,null,10,null,null,null,null,100.16,"Skin",1995,null,"区分外","区分外","分類対象外","分類できない","区分外","区分外","区分2","分類できない","分類できない","分類できない","分類できない","区分2","区分1(末梢神経系)､区分3(気道刺激性､麻酔作用)","区分1(神経系)","分類できない","液体",126]
[586,"別表第９","110-43-0",null,"メチル―ノルマル―ペンチルケトン","","","","",null,"","",50,null,"",null,null,null,null,114.18,"",1978,null,"区分4","区分外","分類対象外","分類できない","分類できない","分類できない","区分2","分類できない","分類できない","分類できない","分類できない","分類できない","区分3(気道刺激性､麻酔作用)","分類できない","分類できない","液体",151]
[587,"別表第９","60-34-4",null,"メチルヒドラジン","","","","",null,"","",0.01,null,"",null,null,null,null,46.07,"Skin",1991,null,"区分2","区分2","分類対象外","区分1","分類できない","区分2","区分2","分類できない","分類できない","区分外","区分2","区分2","区分1(血液､神経系)","区分1(血経､肝臓､腎臓､呼吸器､副腎)","分類できない","液体",87.5]
[588,"別表第９","78-94-4",null,"メチルビニルケトン","","","","",null,"","","",null,null,null,0.2,null,null,70.099999999999994,"Skin",1994,null,"区分2","区分1","分類対象外","区分1","分類できない","区分1","区分1","分類できない","区分1","分類できない","分類できない","分類できない","区分1(呼吸器､腎臓)､区分3(麻酔作用)","区分1(呼吸器)","分類できない","液体",81]
["588-2","別表第９","872-50-4",null,"Ｎ―メチル―２―ピロリドン",1,4,null,null,null,"皮","2002","",null,"",null,null,null,null,"","","未設定(2017年現在）",null,"区分外","区分外","分類対象外","分類できない","区分外","区分2","区分2","分類できない","分類できない","分類できない","分類できない","区分1","区分3(麻酔作用)","区分2(神経系､肺､肝臓､骨髄)","分類できない","液体",202]
[589,"別表第９","2646-17-5",null,"１―［（２―メチルフェニル）アゾ］―２―ナフトール（別名オイルオレンジＳＳ）","","","","",null,"","","",null,"",null,null,null,null,"","","未設定(2017年現在）",null,"区分外","分類できない","分類対象外","分類できない","分類できない","分類できない","分類できない","分類できない","分類できない","区分2","区分2","分類できない","分類できない","分類できない","分類できない","固体",190]
[590,"別表第９","107-87-9",null,"メチルプロピルケトン","","","","",null,"","","",null,150,null,null,null,null,86.17,"",2006,null,"区分外","区分外","分類対象外","分類できない","分類できない","区分外","区分2","分類できない","分類できない","分類できない","分類できない","分類できない","区分3(気道刺激性､麻酔作用)","分類できない","分類できない","液体",102]
[591,"別表第９","110-12-3",null,"５―メチル―２―ヘキサノン","","","","",null,"","",20,null,50,null,null,null,null,114.2,"",2012,null,"区分外","区分外","分類対象外","区分4","分類できない","分類できない","区分2","分類できない","分類できない","分類できない","分類できない","分類できない","区分3(気道刺激性､麻酔作用)","区分2(中枢神経系､呼吸器､腎臓)","分類できない","液体",144]
[592,"別表第９","108-11-2",null,"４―メチル―２―ペンタノール","","","","",null,"","",25,null,40,null,null,null,null,102.18,"Skin",1966,null,"区分外","区分外","分類対象外","分類できない","分類できない","区分外","区分2","分類できない","区分外","分類できない","分類できない","分類できない","区分3(気道刺激性､麻酔作用)","分類できない","分類できない","液体",133]
[593,"別表第９","107-41-5",null,"２―メチル―２，４―ペンタンジオール","","","","",null,"","",25,null,50,10,null,null,null,118.18,"",2016,null,"区分外","区分外","分類対象外","分類できない","分類できない","区分外","区分2","分類できない","区分外","分類できない","分類できない","区分外","区分3(麻酔作用､気道刺激性)","区分外","分類できない","液体",196]
[594,"別表第９","55814-41-0",null,"２―メチル―Ｎ―［３―（１―メチルエトキシ）フェニル］ベンズアミド（別名メプロニル）",null,5,null,null,null,null,"1990","",null,"",null,null,null,null,"","","未設定(2017年現在）",null,"区分外","区分外","分類対象外","分類できない","分類できない","区分外","区分外","分類できない","区分外","区分外","区分外","区分外","区分外","区分外","分類できない","固体",276.5]
[595,"別表第９","16752-77-5",null,"Ｓ―メチル―Ｎ―（メチルカルバモイルオキシ）チオアセチミデート（別名メソミル）","","","","",null,"","",null,0.2,"",null,null,null,null,162.19999999999999,"Skin",2013,null,"区分3","区分4","分類対象外","分類できない","区分2","区分外","区分外","分類できない","区分外","区分外","区分外","区分外","区分1(神経系)","区分2(神経系､血液)","分類できない","固体",""]
[596,"別表第９","74-93-1",null,"メチルメルカプタン","","","","",null,"","",0.5,null,"",null,null,null,null,48.11,"",2003,null,"分類対象外","分類対象外","区分3","分類対象外","分類対象外","区分2","区分2","分類できない","分類できない","分類できない","分類できない","分類できない","区分1(中枢神経系､呼吸器､血液系)､区分3(麻酔作用)","区分1(中枢神経系､呼吸器)","分類対象外","気体",""]
[597,"別表第９","101-77-9",null,"４，４′―メチレンジアニリン",null,0.4,null,null,null,"皮","1995",0.1,null,"",null,null,null,null,198.26,"Skin",1992,null,"区分4","区分3","分類対象外","分類対象外","分類できない","区分外","区分2","分類できない","区分1","区分2","区分1","分類できない","区分1(中枢神経系､肝臓､腎臓､心臓､視覚器)","区分1(心臓､肝臓､腎臓)､区分2(血液系)","分類できない","固体",398]
[598,"別表第９","5124-30-1",null,"メチレンビス（４，１―シクロヘキシレン）＝ジイソシアネート","","","","",null,"","",5.0000000000000001E-3,null,"",null,null,null,null,262.35000000000002,"",1985,null,"区分外","区分外","分類対象外","分類できない","区分2","区分2","区分2","分類できない","区分1","分類できない","分類できない","区分2","区分1(中枢神経系､呼吸器)","区分1(呼吸器)","分類できない","液体",200]
[599,"別表第９","101-68-8",null,"メチレンビス（４，１―フェニレン）＝ジイソシアネート（別名ＭＤＩ）",null,0.05,null,null,null,null,"1993",5.0000000000000001E-3,null,"",null,null,null,null,250.26,"",1985,null,"区分外","分類できない","分類対象外","分類対象外","区分2","区分2","区分2","区分1","区分1","分類できない","分類できない","分類できない","区分1(呼吸器)","区分1(呼吸器)","分類できない","固体",314]
[600,"別表第９","120-71-8",null,"２―メトキシ―５―メチルアニリン","","","","",null,"","","",null,"",null,null,null,null,"","","未設定(2017年現在）",null,"区分4","分類できない","分類対象外","分類対象外","分類できない","区分2","区分2","分類できない","分類できない","分類できない","区分2","分類できない","区分2(血液系)","分類できない","分類できない","固体",235]
[601,"別表第９","34590-94-8",null,"１―（２―メトキシ―２―メチルエトキシ）―２―プロパノール","","","","",null,"","",100,null,150,null,null,null,null,148.19999999999999,"Skin",1979,null,"区分外","区分外","分類対象外","分類できない","分類できない","区分外","区分2","分類できない","区分外","分類できない","分類できない","分類できない","区分3(麻酔作用､気道刺激性)","区分外","分類できない","液体",189.6]
["601-2","別表第９","994-05-8","30年7月追加物質","２―メトキシ―２―メチルブタン（別名ターシャリ―アミルメチルエーテル）",null,null,null,null,null,null,null,"20",null,null,null,null,null,null,"102.20",null,"1999",null,"区分外","分類できない","分類対象外","分類できない","分類できない","区分外","区分2","分類できない","区分外","分類できない","分類できない","区分2","区分1(呼吸器)､区分3(麻酔作用)","分類できない","分類できない","液体",86.3]
[602,"別表第９","68-11-1",null,"メルカプト酢酸","","","","",null,"","",1,null,"",null,null,null,null,92.12,"Skin",1992,null,"区分3","区分3","分類対象外","分類できない","区分4","区分1","区分1","分類できない","区分1","分類できない","分類できない","分類できない","区分1(中枢神経系､呼吸器､全身毒性)","区分2(血液系､肝臓､腎臓)","分類できない","液体",220]
[604,"別表第９","110-91-8",null,"モルホリン","","","","",null,"","",20,null,"",null,null,null,null,87.12,"Skin",1992,null,"区分4","区分3","分類対象外","区分3","分類できない","区分1","区分1","分類できない","分類できない","分類できない","分類できない","分類できない","区分1(呼吸器)","区分1(呼吸器)","分類できない","液体",129]
[606,"別表第９","7553-56-2",null,"沃素",0.1,1,null,null,null,null,"1968",0.01,null,0.1,null,null,null,null,126.91,"",2007,null,"区分4","区分外","分類対象外","区分1","分類できない","区分2","区分2","分類できない","区分1","分類できない","分類できない","分類できない","区分3(気道刺激性)","区分1(甲状腺)","分類できない","液体",184.4]
[606,"別表第９","74-88-4",null,"沃化メチル","","","","",null,"","",2,null,"",null,null,null,null,141.94999999999999,"Skin",1978,null,"区分3","区分外","分類対象外","区分2","分類できない","区分2","区分2","分類できない","分類できない","分類できない","分類できない","分類できない","区分1(中枢神経系)､区分3(気道刺激性､麻酔作用)","区分1(中枢神経系)､区分2(呼吸器､甲状腺)","分類できない","液体",42.5]
[607,"別表第９","75-47-8",null,"ヨードホルム","","","","",null,"","",0.6,null,"",null,null,null,null,393.73,"",1979,null,"区分4","区分4","分類対象外","分類できない","区分4","分類できない","区分2","分類できない","分類できない","分類できない","分類できない","分類できない","区分3(麻酔作用)","分類できない","分類できない","固体",218]
["607-2","別表第９","463-58-1","30年7月追加物質","硫化カルボニル ",null,null,null,null,null,null,null,"5",null,null,null,null,null,null,"60.08",null,"2011",null,"分類対象外","分類対象外","区分3","分類対象外","分類対象外","分類できない","分類できない","分類できない","分類できない","分類できない","分類できない","分類できない","区分1(中枢神経系)","区分2(中枢神経系)","分類対象外","気体"]
[608,"別表第９","75-18-3",null,"硫化ジメチル","","","","",null,"","",10,null,"",null,null,null,null,62.14,"",2001,null,"分類できない","区分外","分類対象外","区分外","分類できない","区分外","区分2","分類できない","分類できない","分類できない","分類できない","分類できない","分類できない","分類できない","分類できない","液体",37.299999999999997]
[609,"別表第９","7783-06-4",null,"硫化水素",5,7,null,null,null,null,"2001",1,null,5,null,null,null,null,34.08,"",2009,null,"分類対象外","分類対象外","区分2","分類対象外","分類対象外","分類できない","区分2","分類できない","分類できない","分類できない","区分外","分類できない","区分1(中枢神経系､心臓血管系､呼吸器系)","分類できない","分類対象外","気体",""]
[610,"別表第９","16721-80-5",null,"硫化水素ナトリウム","","","","",null,"","","",null,"",null,null,null,null,"","","未設定(2017年現在）",null,"区分3","分類できない","分類対象外","分類できない","分類できない","区分1","区分1","分類できない","分類できない","分類できない","分類できない","分類できない","区分2(呼吸器)､区分3(気道刺激性)","分類できない","分類できない","固体",""]
[611,"別表第９","1313-82-2",null,"硫化ナトリウム","","","","",null,"","","",null,"",null,null,null,null,"","","未設定(2017年現在）",null,"区分3","分類できない","分類対象外","分類できない","分類できない","区分1","区分1","分類できない","分類できない","区分外","分類できない","分類できない","区分2(呼吸器)","分類できない","分類できない","固体"]
[612,"別表第９","1314-80-3","他","硫化りん","","","","",null,"","",1,null,3,null,null,null,null,222.29,"",1992,null,"区分4","区分5","分類対象外","分類できない","分類できない","区分2","区分1","分類できない","分類できない","分類できない","分類できない","分類できない","区分2(呼吸器､全身毒性)","分類できない","分類できない","固体",515]
[613,"別表第９","7664-93-9",null,"硫酸",null,null,null,1,null,null,"2000",null,0.2,"",null,null,null,null,98.08,"",2000,null,"区分5","分類できない","分類対象外","分類できない","区分2","区分1","区分1","分類できない","区分外","分類できない","分類できない","区分外","区分1(呼吸器系)","区分1(呼吸器系)","分類できない","液体",340]
[614,"別表第９","2973-10-6",null,"硫酸ジイソプロピル","","","","",null,"","","",null,"",null,null,null,null,"","","未設定(2017年現在）",null,"区分4","区分4","分類対象外","分類できない","分類できない","分類できない","分類できない","分類できない","分類できない","分類できない","区分2","分類できない","分類できない","分類できない","分類できない","液体",94]
[615,"別表第９","64-67-5",null,"硫酸ジエチル","","","","",null,"","","",null,"",null,null,null,null,"","","未設定(2017年現在）",null,"区分4","区分3","分類対象外","分類できない","分類できない","区分1","区分1","分類できない","分類できない","区分1","区分1","分類できない","区分2(呼吸器)","分類できない","分類できない","液体",209]
[616,"別表第９","77-78-1",null,"硫酸ジメチル",0.1,0.52,null,null,null,"皮","1980",0.1,null,"",null,null,null,null,126.1,"Skin",1985,null,"区分3","分類できない","分類対象外","区分1","分類できない","区分1","区分1","分類できない","分類できない","区分2","区分1","区分2","区分1(呼吸器系､中枢神経系､肝臓､腎臓､心臓)､区分3(気道刺激性)","区分2(肺)","分類できない","液体",188]
[617,"別表第９","7803-51-2",null,"りん化水素",null,null,0.3,0.42,null,null,"1998",0.3,null,1,null,null,null,null,34,"",1992,null,"分類対象外","分類対象外","区分1","分類対象外","分類対象外","分類できない","分類できない","分類できない","分類できない","区分外","区分外","区分外","区分1(神経系､呼吸器系､肝臓､消化管､心血管系)","区分外","分類対象外","気体",""]
[618,"別表第９","7664-38-2",null,"りん酸",null,1,null,null,null,null,"1990",null,1,null,3,null,null,null,98,"",1992,null,"区分4","区分外","分類対象外","分類対象外","区分3","区分1","区分1","分類できない","分類できない","分類できない","分類できない","分類できない","区分1(呼吸器)","分類できない","分類できない","液体",407]
[619,"別表第９","107-66-4",null,"りん酸ジ―ノルマル―ブチル","","","","",null,"","",null,5,"",null,null,null,null,"","",2008,null,"区分5","分類できない","分類対象外","分類できない","分類できない","区分2","区分2","分類できない","分類できない","分類できない","分類できない","区分外","区分3(気道刺激性､麻酔作用)","区分2(膀胱､肝臓､副腎)","分類できない","液体",135]
[620,"別表第９","2528-36-1",null,"りん酸ジ―ノルマル―ブチル＝フェニル","","","","",null,"","",0.3,null,"",null,null,null,null,286.26,"Skin",1987,null,"区分5","区分外","分類対象外","分類できない","分類できない","区分外","区分外","分類できない","分類できない","区分外","分類できない","分類できない","区分3(気道刺激性)","区分2(肝臓､膀胱､卵巣､血液)","分類できない","液体",155]
[621,"別表第９","300-76-5",null,"りん酸１，２―ジブロモ―２，２―ジクロロエチル＝ジメチル（別名ナレド）","","","","",null,"","",null,0.1,"",null,null,null,null,380.79,"Skin",2002,null,"区分3","区分3","分類対象外","分類できない","区分2","区分2","区分2","分類できない","区分1","区分外","区分外","区分外","区分1(神経系)","区分1(神経系､血液)","分類できない","液体",110]
[622,"別表第９","141-66-2",null,"りん酸ジメチル＝（Ｅ）―１―（Ｎ，Ｎ―ジメチルカルバモイル）―１―プロペン―２―イル（別名ジクロトホス）","","","","",null,"","",null,0.05,"",null,null,null,null,237.21,"Skin",1998,null,"区分2","区分1","分類対象外","分類できない","区分2","分類できない","分類できない","分類できない","分類できない","分類できない","区分外","区分外","区分1(神経系)","区分1(神経系)","分類できない","液体",400]
[623,"別表第９","6923-22-4",null,"りん酸ジメチル＝（Ｅ）―１―（Ｎ―メチルカルバモイル）―１―プロペン―２―イル（別名モノクロトホス）","","","","",null,"","",null,0.05,"",null,null,null,null,223.16,"Skin",2002,null,"区分2","区分2","分類対象外","分類できない","区分1","区分外","区分外","分類できない","区分外","区分2","区分外","区分外","区分1(神経系)","区分1(神経系)","分類できない","固体",125]
[624,"別表第９","7786-34-7",null,"りん酸ジメチル＝１―メトキシカルボニル―１―プロペン―２―イル（別名メビンホス）","","","","",null,"","",null,0.01,"",null,null,null,null,224.16,"Skin",1998,null,"区分1","区分1","分類対象外","分類できない","区分1","分類できない","分類できない","分類できない","分類できない","区分外","区分外","区分外","区分1(神経系)","区分1(神経系)","分類できない","液体",315]
[625,"別表第９","78-30-8",null,"りん酸トリ（オルト―トリル）","","","","",null,"","",null,0.02,"",null,null,null,null,368.37,"Skin",2015,null,"区分外","区分外","分類対象外","分類できない","分類できない","区分外","分類できない","分類できない","分類できない","分類できない","区分外","分類できない","区分1(神経系)","区分1(神経系)","分類できない","液体",410]
[626,"別表第９","126-72-7",null,"りん酸トリス（２，３―ジブロモプロピル）","","","","",null,"","","",null,"",null,null,null,null,"","","未設定(2017年現在）",null,"区分4","区分外","分類対象外","分類できない","分類できない","区分外","区分外","分類できない","区分外","区分2","区分1","区分2","分類できない","区分2(腎臓)","分類できない","液体",200]
[627,"別表第９","126-73-8",null,"りん酸トリ―ノルマル―ブチル","","","","",null,"","",null,5,"",null,null,null,null,266.31,"",2012,null,"区分4","分類できない","分類対象外","区分2","分類できない","区分2","区分2","分類できない","分類できない","区分外","分類できない","区分外","分類できない","区分2(精巣､膀胱､神経系)","分類できない","液体",289]
[628,"別表第９","115-86-6",null,"りん酸トリフェニル","",null,"","",null,"","",null,3,"",null,null,null,null,326.27999999999997,"",1992,null,"区分5","区分外","分類対象外","分類できない","分類できない","区分外","区分2","分類できない","分類できない","分類できない","区分外","区分外","分類できない","区分外","分類できない","固体",370]
[629,"別表第９","108-46-3",null,"レソルシノール","","","","",null,"","",10,null,20,null,null,null,null,110.11,"",1992,null,"区分4","区分外","分類対象外","分類対象外","区分外","区分2","区分1","分類できない","区分1","分類できない","分類できない","区分外","区分1(中枢神経系､血液系)","分類できない","分類できない","固体",280]
[630,"別表第９","87-68-3",null,"六塩化ブタジエン",0.01,0.12,null,null,null,"皮","2013",0.02,null,"",null,null,null,null,260.76,"Skin",1979,null,"区分3","区分4","分類できない","区分1","分類できない","分類できない","分類できない","分類できない","区分1","区分2","区分2","区分2","区分1(腎臓)","区分1(肝臓､腎臓､骨髄)","分類できない","液体",212]
[632,"別表第９","8050-09-7",null,"ロジン","","","","",null,"","","",null,"",null,null,null,null,"","",1992,null,"区分外","区分外","分類対象外","分類できない","区分4","区分外","区分2","区分1","区分1","区分外","分類できない","分類できない","分類できない","分類できない","分類できない","固体",280]
[633,"別表第９","83-79-4",null,"ロテノン","","","","",null,"","",null,5,"",null,null,null,null,391.41,"",1992,null,"区分2","区分2","分類対象外","分類できない","分類できない","区分2","区分2","分類できない","分類できない","分類できない","区分外","区分外","区分1(神経系)､区分3(気道刺激性)","区分1(肝臓､腎臓)､区分2(骨髄､消化管)","分類できない","固体",210]